Workbook

Sheet Start
B1: 1 | F1: *
G2: PODAJ TERYT POWIATU
G3: 0602
G5: PODAJ TERYT WOJEWÓDZTWA
G6: 06
G8: PODAJ ROK AKTUALNOŚCI
G9: 2017
B11: * pliki powiatowe lub wojewódzkie muszą znajdować się w tym samym katalogu co niniejszy skoroszyt
A15: O P C J A | B15: WYPEŁNIANIE PÓŁAUTOMATYCZNE. Kopiuj - Wklej. Pomijaj komórki zablokowane. Funkcja umożliwiająca wklejenie wartości numecznych do wskazanego miejsca wybrango arkusza. Dane są kopiowane z zakresu B20:AL220 a wartości komórek wklejane do niezablokowanych komórek arkusza docelowego.
E16: Wiersz | F16: Kolumna | G16: Nazwa zakadki docelowej
E17: 14 | F17: 6 | G17: 222222_G
B20: Tu wklej dane

Sheet 0602_G
A1: Województwo: LUBELSKIE (06)
A2: Powiat: biłgorajski (0602)
A5: ="Powiatowe zbiorcze zestawienie danych dotyczących gruntów stan na dzień 1 stycznia "&Start!G9 -> Powiatowe zbiorcze zestawienie danych dotyczących gruntów stan na dzień 1 stycznia 2017
E7: Powierzchnia ogólna gruntów | F7: Wartość ogólna gruntów | G7: Grunty rolne | Q7: Grunty leśne | T7: Grunty zabudowane i zurbanizowane | AE7: Grunty pod wodami | AI7: Użytki ekologiczne | AJ7: Tereny różne | AK7: Uwagi
A8: Nr | B8: Nr | C8: Wyszczególnienie gruntów | D8: Rodzaj | G8: Użytki rolne | O8: Nieużytki | P8: Razem | Q8: lasy | R8: gr. zadrz. i zakrzew. | S8: Razem | T8: tereny mieszk. | U8: tereny przemysł. | V8: inne tereny zabudow. | W8: zurb. tereny niezabud. lub w trakcie zabudowy | X8: tereny rekreacyjno-wypoczynkowe | Y8: użytki kopalne | Z8: tereny komunikacyjne | AD8: Razem | AE8: morskimi wewnętrznymi | AF8: powierzchniowymi płynącymi | AG8: powierzchniowymi stojącymi | AH8: Razem
A9: gr. | B9: podgr. | C9: wchodzących w skład grupy | D9: jedn. | G9: grunty orne | H9: sady | I9: łąki trwałe | J9: pastwiska trwałe | K9: grunty rolne zabudowane | L9: grunty pod stawami | M9: grunty pod rowami | N9: grunty zadrzewione i zakrzewione na użytkach rolnych | Z9: drogi | AA9: tereny kolejowe | AB9: inne tereny komunik. | AC9: grunty przezn. pod bud. dróg pub. lub linii kolej.
A10: rej. | B10: rej. | C10: lub podgrupy rejestrowej | D10: teryt.
P11: (7-15) | S11: (17-18) | AD11: (20-29) | AH11: (31-33)
E12: w ha | F12: w zł | G12: w ha | P12: w ha | S12: w ha | AD12: w ha | AH12: w ha | AI12: w ha | AJ12: w ha
A13: 1 | B13: 2 | C13: 3 | D13: 4 | E13: 5 | F13: 6 | G13: 7 | H13: 8 | I13: 9 | J13: 10 | K13: 11 | L13: 12 | M13: 13 | N13: 14 | O13: 15 | P13: 16 | Q13: 17 | R13: 18 | S13: 19 | T13: 20 | U13: 21 | V13: 22 | W13: 23 | X13: 24 | Y13: 25 | Z13: 26 | AA13: 27 | AB13: 28 | AC13: 29 | AD13: 30 | AE13: 31 | AF13: 32 | AG13: 33 | AH13: 34 | AI13: 35 | AJ13: 36
A14: 1 | C14: Grunty wchodzące w skład | D14: M | E14: =SUM(P14,S14,AD14,AH14,AI14,AJ14) -> 4 | F14: =SUM('0602011_G:0602142_G'!F14 ) -> 0 | G14: =SUM('0602011_G:0602142_G'!G14 ) -> 0 | H14: =SUM('0602011_G:0602142_G'!H14 ) -> 0 | I14: =SUM('0602011_G:0602142_G'!I14 ) -> 1 | J14: =SUM('0602011_G:0602142_G'!J14 ) -> 0 | K14: =SUM('0602011_G:0602142_G'!K14 ) -> 0 | L14: =SUM('0602011_G:0602142_G'!L14 ) -> 0 | M14: =SUM('0602011_G:0602142_G'!M14 ) -> 0 | N14: =SUM('0602011_G:0602142_G'!N14 ) -> 0 | O14: =SUM('0602011_G:0602142_G'!O14 ) -> 0 | P14: =SUM(G14:O14) -> 1 | Q14: =SUM('0602011_G:0602142_G'!Q14 ) -> 1 | R14: =SUM('0602011_G:0602142_G'!R14 ) -> 0 | S14: =SUM(Q14:R14) -> 1 | T14: =SUM('0602011_G:0602142_G'!T14 ) -> 0 | U14: =SUM('0602011_G:0602142_G'!U14 ) -> 0 | V14: =SUM('0602011_G:0602142_G'!V14 ) -> 1 | W14: =SUM('0602011_G:0602142_G'!W14 ) -> 0 | X14: =SUM('0602011_G:0602142_G'!X14 ) -> 0 | Y14: =SUM('0602011_G:0602142_G'!Y14 ) -> 0 | Z14: =SUM('0602011_G:0602142_G'!Z14 ) -> 1 | AA14: =SUM('0602011_G:0602142_G'!AA14 ) -> 0 | AB14: =SUM('0602011_G:0602142_G'!AB14 ) -> 0 | AC14: =SUM('0602011_G:0602142_G'!AC14 ) -> 0 | AD14: =SUM(T14:AC14) -> 2 | AE14: =SUM('0602011_G:0602142_G'!AE14 ) -> 0 | AF14: =SUM('0602011_G:0602142_G'!AF14 ) -> 0 | AG14: =SUM('0602011_G:0602142_G'!AG14 ) -> 0 | AH14: =SUM(AE14:AG14) -> 0 | AI14: =SUM('0602011_G:0602142_G'!AI14 ) -> 0 | AJ14: =SUM('0602011_G:0602142_G'!AJ14 ) -> 0
C15: Zasobu Własności Rolnej | D15: W | E15: =SUM(P15,S15,AD15,AH15,AI15,AJ15) -> 963 | F15: =SUM('0602011_G:0602142_G'!F15 ) -> 0 | G15: =SUM('0602011_G:0602142_G'!G15 ) -> 338 | H15: =SUM('0602011_G:0602142_G'!H15 ) -> 32 | I15: =SUM('0602011_G:0602142_G'!I15 ) -> 121 | J15: =SUM('0602011_G:0602142_G'!J15 ) -> 47 | K15: =SUM('0602011_G:0602142_G'!K15 ) -> 7 | L15: =SUM('0602011_G:0602142_G'!L15 ) -> 0 | M15: =SUM('0602011_G:0602142_G'!M15 ) -> 3 | N15: =SUM('0602011_G:0602142_G'!N15 ) -> 37 | O15: =SUM('0602011_G:0602142_G'!O15 ) -> 11 | P15: =SUM(G15:O15) -> 596 | Q15: =SUM('0602011_G:0602142_G'!Q15 ) -> 261 | R15: =SUM('0602011_G:0602142_G'!R15 ) -> 0 | S15: =SUM(Q15:R15) -> 261 | T15: =SUM('0602011_G:0602142_G'!T15 ) -> 0 | U15: =SUM('0602011_G:0602142_G'!U15 ) -> 2 | V15: =SUM('0602011_G:0602142_G'!V15 ) -> 0 | W15: =SUM('0602011_G:0602142_G'!W15 ) -> 0 | X15: =SUM('0602011_G:0602142_G'!X15 ) -> 0 | Y15: =SUM('0602011_G:0602142_G'!Y15 ) -> 0 | Z15: =SUM('0602011_G:0602142_G'!Z15 ) -> 35 | AA15: =SUM('0602011_G:0602142_G'!AA15 ) -> 0 | AB15: =SUM('0602011_G:0602142_G'!AB15 ) -> 0 | AC15: =SUM('0602011_G:0602142_G'!AC15 ) -> 0 | AD15: =SUM(T15:AC15) -> 37 | AE15: =SUM('0602011_G:0602142_G'!AE15 ) -> 0 | AF15: =SUM('0602011_G:0602142_G'!AF15 ) -> 67 | AG15: =SUM('0602011_G:0602142_G'!AG15 ) -> 0 | AH15: =SUM(AE15:AG15) -> 67 | AI15: =SUM('0602011_G:0602142_G'!AI15 ) -> 0 | AJ15: =SUM('0602011_G:0602142_G'!AJ15 ) -> 2
B16: 1.1 | C16: Skarbu Państwa | D16: Razem | E16: =SUM(E14,E15) -> 967 | F16: =SUM(F14,F15) -> 0 | G16: =SUM(G14,G15) -> 338 | H16: 32 | I16: 122 | J16: 47 | K16: 7 | L16: 0 | M16: =SUM(M14,M15) -> 3 | N16: =SUM(N14,N15) -> 37 | O16: =SUM(O14,O15) -> 11 | P16: =SUM(P14,P15) -> 597 | Q16: =SUM(Q14:Q15) -> 262 | R16: 0 | S16: 262 | T16: 0 | U16: 2 | V16: 1 | W16: =SUM(W14:W15) -> 0 | X16: =SUM(X14:X15) -> 0 | Y16: 0 | Z16: 36 | AA16: 0 | AB16: 0 | AC16: 0 | AD16: =SUM(AD14:AD15) -> 39 | AE16: 0 | AF16: 67 | AG16: 0 | AH16: =SUM(AH14:AH15) -> 67 | AI16: =SUM(AI14:AI15) -> 0 | AJ16: =SUM(AJ14:AJ15) -> 2
C17: Grunty w zarządzie | D17: M | E17: =SUM(P17,S17,AD17,AH17,AI17,AJ17) -> 30 | F17: =SUM('0602011_G:0602142_G'!F17 ) -> 0 | G17: =SUM('0602011_G:0602142_G'!G17 ) -> 13 | H17: =SUM('0602011_G:0602142_G'!H17 ) -> 1 | I17: =SUM('0602011_G:0602142_G'!I17 ) -> 5 | J17: =SUM('0602011_G:0602142_G'!J17 ) -> 0 | K17: =SUM('0602011_G:0602142_G'!K17 ) -> 2 | L17: =SUM('0602011_G:0602142_G'!L17 ) -> 0 | M17: =SUM('0602011_G:0602142_G'!M17 ) -> 0 | N17: =SUM('0602011_G:0602142_G'!N17 ) -> 0 | O17: =SUM('0602011_G:0602142_G'!O17 ) -> 0 | P17: =SUM(G17:O17) -> 21 | Q17: =SUM('0602011_G:0602142_G'!Q17 ) -> 9 | R17: =SUM('0602011_G:0602142_G'!R17 ) -> 0 | S17: =SUM(Q17:R17) -> 9 | T17: =SUM('0602011_G:0602142_G'!T17 ) -> 0 | U17: =SUM('0602011_G:0602142_G'!U17 ) -> 0 | V17: =SUM('0602011_G:0602142_G'!V17 ) -> 0 | W17: =SUM('0602011_G:0602142_G'!W17 ) -> 0 | X17: =SUM('0602011_G:0602142_G'!X17 ) -> 0 | Y17: =SUM('0602011_G:0602142_G'!Y17 ) -> 0 | Z17: =SUM('0602011_G:0602142_G'!Z17 ) -> 0 | AA17: =SUM('0602011_G:0602142_G'!AA17 ) -> 0 | AB17: =SUM('0602011_G:0602142_G'!AB17 ) -> 0 | AC17: =SUM('0602011_G:0602142_G'!AC17 ) -> 0 | AD17: =SUM(T17:AC17) -> 0 | AE17: =SUM('0602011_G:0602142_G'!AE17 ) -> 0 | AF17: =SUM('0602011_G:0602142_G'!AF17 ) -> 0 | AG17: =SUM('0602011_G:0602142_G'!AG17 ) -> 0 | AH17: =SUM(AE17:AG17) -> 0 | AI17: =SUM('0602011_G:0602142_G'!AI17 ) -> 0 | AJ17: =SUM('0602011_G:0602142_G'!AJ17 ) -> 0
C18: Państwowego Gospodarstwa | D18: W | E18: =SUM(P18,S18,AD18,AH18,AI18,AJ18) -> 34628 | F18: =SUM('0602011_G:0602142_G'!F18 ) -> 0 | G18: =SUM('0602011_G:0602142_G'!G18 ) -> 49 | H18: =SUM('0602011_G:0602142_G'!H18 ) -> 0 | I18: =SUM('0602011_G:0602142_G'!I18 ) -> 78 | J18: =SUM('0602011_G:0602142_G'!J18 ) -> 29 | K18: =SUM('0602011_G:0602142_G'!K18 ) -> 3 | L18: =SUM('0602011_G:0602142_G'!L18 ) -> 1 | M18: =SUM('0602011_G:0602142_G'!M18 ) -> 1 | N18: =SUM('0602011_G:0602142_G'!N18 ) -> 4 | O18: =SUM('0602011_G:0602142_G'!O18 ) -> 551 | P18: =SUM(G18:O18) -> 716 | Q18: =SUM('0602011_G:0602142_G'!Q18 ) -> 33772 | R18: =SUM('0602011_G:0602142_G'!R18 ) -> 0 | S18: =SUM(Q18:R18) -> 33772 | T18: =SUM('0602011_G:0602142_G'!T18 ) -> 0 | U18: =SUM('0602011_G:0602142_G'!U18 ) -> 0 | V18: =SUM('0602011_G:0602142_G'!V18 ) -> 2 | W18: =SUM('0602011_G:0602142_G'!W18 ) -> 0 | X18: =SUM('0602011_G:0602142_G'!X18 ) -> 0 | Y18: =SUM('0602011_G:0602142_G'!Y18 ) -> 0 | Z18: =SUM('0602011_G:0602142_G'!Z18 ) -> 2 | AA18: =SUM('0602011_G:0602142_G'!AA18 ) -> 0 | AB18: =SUM('0602011_G:0602142_G'!AB18 ) -> 0 | AC18: =SUM('0602011_G:0602142_G'!AC18 ) -> 0 | AD18: =SUM(T18:AC18) -> 4 | AE18: =SUM('0602011_G:0602142_G'!AE18 ) -> 0 | AF18: =SUM('0602011_G:0602142_G'!AF18 ) -> 11 | AG18: =SUM('0602011_G:0602142_G'!AG18 ) -> 2 | AH18: =SUM(AE18:AG18) -> 13 | AI18: =SUM('0602011_G:0602142_G'!AI18 ) -> 123 | AJ18: =SUM('0602011_G:0602142_G'!AJ18 ) -> 0
B19: 1.2 | C19: Leśnego Lasy Państwowe | D19: Razem | E19: =SUM(E17:E18) -> 34658 | F19: =SUM(F17:F18) -> 0 | G19: 62 | H19: 1 | I19: 83 | J19: 29 | K19: =SUM(K17:K18) -> 5 | L19: =SUM(L17:L18) -> 1 | M19: =SUM(M17:M18) -> 1 | N19: =SUM(N17:N18) -> 4 | O19: =SUM(O17:O18) -> 551 | P19: 737 | Q19: 33781 | R19: 0 | S19: =SUM(S17:S18) -> 33781 | T19: 0 | U19: 0 | V19: 2 | W19: =SUM(W17:W18) -> 0 | X19: =SUM(X17:X18) -> 0 | Y19: 0 | Z19: 2 | AA19: 0 | AB19: 0 | AC19: 0 | AD19: 4 | AE19: 0 | AF19: 11 | AG19: 2 | AH19: 13 | AI19: 123 | AJ19: =SUM(AJ17:AJ18) -> 0
C20: Grunty w trwałym zarządzie | D20: M | E20: =SUM(P20,S20,AD20,AH20,AI20,AJ20) -> 8 | F20: =SUM('0602011_G:0602142_G'!F20 ) -> 0 | G20: =SUM('0602011_G:0602142_G'!G20 ) -> 0 | H20: =SUM('0602011_G:0602142_G'!H20 ) -> 0 | I20: =SUM('0602011_G:0602142_G'!I20 ) -> 0 | J20: =SUM('0602011_G:0602142_G'!J20 ) -> 0 | K20: =SUM('0602011_G:0602142_G'!K20 ) -> 0 | L20: =SUM('0602011_G:0602142_G'!L20 ) -> 0 | M20: =SUM('0602011_G:0602142_G'!M20 ) -> 0 | N20: =SUM('0602011_G:0602142_G'!N20 ) -> 2 | O20: =SUM('0602011_G:0602142_G'!O20 ) -> 0 | P20: =SUM(G20:O20) -> 2 | Q20: =SUM('0602011_G:0602142_G'!Q20 ) -> 0 | R20: =SUM('0602011_G:0602142_G'!R20 ) -> 0 | S20: =SUM(Q20:R20) -> 0 | T20: =SUM('0602011_G:0602142_G'!T20 ) -> 0 | U20: =SUM('0602011_G:0602142_G'!U20 ) -> 0 | V20: =SUM('0602011_G:0602142_G'!V20 ) -> 6 | W20: =SUM('0602011_G:0602142_G'!W20 ) -> 0 | X20: =SUM('0602011_G:0602142_G'!X20 ) -> 0 | Y20: =SUM('0602011_G:0602142_G'!Y20 ) -> 0 | Z20: =SUM('0602011_G:0602142_G'!Z20 ) -> 0 | AA20: =SUM('0602011_G:0602142_G'!AA20 ) -> 0 | AB20: =SUM('0602011_G:0602142_G'!AB20 ) -> 0 | AC20: =SUM('0602011_G:0602142_G'!AC20 ) -> 0 | AD20: =SUM(T20:AC20) -> 6 | AE20: =SUM('0602011_G:0602142_G'!AE20 ) -> 0 | AF20: =SUM('0602011_G:0602142_G'!AF20 ) -> 0 | AG20: =SUM('0602011_G:0602142_G'!AG20 ) -> 0 | AH20: =SUM(AE20:AG20) -> 0 | AI20: =SUM('0602011_G:0602142_G'!AI20 ) -> 0 | AJ20: =SUM('0602011_G:0602142_G'!AJ20 ) -> 0
C21: państ. jedn. org. zgodnie | D21: W | E21: =SUM(P21,S21,AD21,AH21,AI21,AJ21) -> 163 | F21: =SUM('0602011_G:0602142_G'!F21 ) -> 0 | G21: =SUM('0602011_G:0602142_G'!G21 ) -> 32 | H21: =SUM('0602011_G:0602142_G'!H21 ) -> 0 | I21: =SUM('0602011_G:0602142_G'!I21 ) -> 0 | J21: =SUM('0602011_G:0602142_G'!J21 ) -> 1 | K21: =SUM('0602011_G:0602142_G'!K21 ) -> 2 | L21: =SUM('0602011_G:0602142_G'!L21 ) -> 1 | M21: =SUM('0602011_G:0602142_G'!M21 ) -> 1 | N21: =SUM('0602011_G:0602142_G'!N21 ) -> 5 | O21: =SUM('0602011_G:0602142_G'!O21 ) -> 0 | P21: =SUM(G21:O21) -> 42 | Q21: =SUM('0602011_G:0602142_G'!Q21 ) -> 7 | R21: =SUM('0602011_G:0602142_G'!R21 ) -> 0 | S21: =SUM(Q21:R21) -> 7 | T21: =SUM('0602011_G:0602142_G'!T21 ) -> 0 | U21: =SUM('0602011_G:0602142_G'!U21 ) -> 0 | V21: =SUM('0602011_G:0602142_G'!V21 ) -> 2 | W21: =SUM('0602011_G:0602142_G'!W21 ) -> 0 | X21: =SUM('0602011_G:0602142_G'!X21 ) -> 1 | Y21: =SUM('0602011_G:0602142_G'!Y21 ) -> 0 | Z21: =SUM('0602011_G:0602142_G'!Z21 ) -> 24 | AA21: =SUM('0602011_G:0602142_G'!AA21 ) -> 0 | AB21: =SUM('0602011_G:0602142_G'!AB21 ) -> 0 | AC21: =SUM('0602011_G:0602142_G'!AC21 ) -> 0 | AD21: =SUM(T21:AC21) -> 27 | AE21: =SUM('0602011_G:0602142_G'!AE21 ) -> 0 | AF21: =SUM('0602011_G:0602142_G'!AF21 ) -> 87 | AG21: =SUM('0602011_G:0602142_G'!AG21 ) -> 0 | AH21: =SUM(AE21:AG21) -> 87 | AI21: =SUM('0602011_G:0602142_G'!AI21 ) -> 0 | AJ21: =SUM('0602011_G:0602142_G'!AJ21 ) -> 0
B22: 1.3 | C22: z ustawą o gosp.nieruchom. | D22: Razem | E22: =SUM(E20:E21) -> 171 | F22: =SUM(F20:F21) -> 0 | G22: 32 | H22: 0 | I22: 0 | J22: 1 | K22: =SUM(K20:K21) -> 2 | L22: =SUM(L20:L21) -> 1 | M22: =SUM(M20:M21) -> 1 | N22: =SUM(N20:N21) -> 7 | O22: =SUM(O20:O21) -> 0 | P22: 44 | Q22: 7 | R22: 0 | S22: 7 | T22: 0 | U22: 0 | V22: 8 | W22: 0 | X22: 1 | Y22: 0 | Z22: 24 | AA22: 0 | AB22: 0 | AC22: 0 | AD22: =SUM(AD20:AD21) -> 33 | AE22: 0 | AF22: 87 | AG22: 0 | AH22: 87 | AI22: 0 | AJ22: 0
C23: Gr. wchodzące w skład zas. | D23: M | E23: =SUM(P23,S23,AD23,AH23,AI23,AJ23) -> 21 | F23: =SUM('0602011_G:0602142_G'!F23 ) -> 0 | G23: =SUM('0602011_G:0602142_G'!G23 ) -> 0 | H23: =SUM('0602011_G:0602142_G'!H23 ) -> 0 | I23: =SUM('0602011_G:0602142_G'!I23 ) -> 0 | J23: =SUM('0602011_G:0602142_G'!J23 ) -> 1 | K23: =SUM('0602011_G:0602142_G'!K23 ) -> 0 | L23: =SUM('0602011_G:0602142_G'!L23 ) -> 0 | M23: =SUM('0602011_G:0602142_G'!M23 ) -> 0 | N23: =SUM('0602011_G:0602142_G'!N23 ) -> 0 | O23: =SUM('0602011_G:0602142_G'!O23 ) -> 0 | P23: =SUM(G23:O23) -> 1 | Q23: =SUM('0602011_G:0602142_G'!Q23 ) -> 0 | R23: =SUM('0602011_G:0602142_G'!R23 ) -> 0 | S23: =SUM(Q23:R23) -> 0 | T23: =SUM('0602011_G:0602142_G'!T23 ) -> 0 | U23: =SUM('0602011_G:0602142_G'!U23 ) -> 0 | V23: =SUM('0602011_G:0602142_G'!V23 ) -> 3 | W23: =SUM('0602011_G:0602142_G'!W23 ) -> 0 | X23: =SUM('0602011_G:0602142_G'!X23 ) -> 0 | Y23: =SUM('0602011_G:0602142_G'!Y23 ) -> 0 | Z23: =SUM('0602011_G:0602142_G'!Z23 ) -> 16 | AA23: =SUM('0602011_G:0602142_G'!AA23 ) -> 1 | AB23: =SUM('0602011_G:0602142_G'!AB23 ) -> 0 | AC23: =SUM('0602011_G:0602142_G'!AC23 ) -> 0 | AD23: =SUM(T23:AC23) -> 20 | AE23: =SUM('0602011_G:0602142_G'!AE23 ) -> 0 | AF23: =SUM('0602011_G:0602142_G'!AF23 ) -> 0 | AG23: =SUM('0602011_G:0602142_G'!AG23 ) -> 0 | AH23: =SUM(AE23:AG23) -> 0 | AI23: =SUM('0602011_G:0602142_G'!AI23 ) -> 0 | AJ23: =SUM('0602011_G:0602142_G'!AJ23 ) -> 0
C24: nier. Skarbu Pańswa z wył. | D24: W | E24: =SUM(P24,S24,AD24,AH24,AI24,AJ24) -> 128 | F24: =SUM('0602011_G:0602142_G'!F24 ) -> 0 | G24: =SUM('0602011_G:0602142_G'!G24 ) -> 22 | H24: =SUM('0602011_G:0602142_G'!H24 ) -> 0 | I24: =SUM('0602011_G:0602142_G'!I24 ) -> 3 | J24: =SUM('0602011_G:0602142_G'!J24 ) -> 1 | K24: =SUM('0602011_G:0602142_G'!K24 ) -> 2 | L24: =SUM('0602011_G:0602142_G'!L24 ) -> 0 | M24: =SUM('0602011_G:0602142_G'!M24 ) -> 5 | N24: =SUM('0602011_G:0602142_G'!N24 ) -> 0 | O24: =SUM('0602011_G:0602142_G'!O24 ) -> 0 | P24: =SUM(G24:O24) -> 33 | Q24: =SUM('0602011_G:0602142_G'!Q24 ) -> 7 | R24: =SUM('0602011_G:0602142_G'!R24 ) -> 0 | S24: =SUM(Q24:R24) -> 7 | T24: =SUM('0602011_G:0602142_G'!T24 ) -> 0 | U24: =SUM('0602011_G:0602142_G'!U24 ) -> 0 | V24: =SUM('0602011_G:0602142_G'!V24 ) -> 0 | W24: =SUM('0602011_G:0602142_G'!W24 ) -> 0 | X24: =SUM('0602011_G:0602142_G'!X24 ) -> 1 | Y24: =SUM('0602011_G:0602142_G'!Y24 ) -> 0 | Z24: =SUM('0602011_G:0602142_G'!Z24 ) -> 80 | AA24: =SUM('0602011_G:0602142_G'!AA24 ) -> 2 | AB24: =SUM('0602011_G:0602142_G'!AB24 ) -> 0 | AC24: =SUM('0602011_G:0602142_G'!AC24 ) -> 0 | AD24: =SUM(T24:AC24) -> 83 | AE24: =SUM('0602011_G:0602142_G'!AE24 ) -> 0 | AF24: =SUM('0602011_G:0602142_G'!AF24 ) -> 5 | AG24: =SUM('0602011_G:0602142_G'!AG24 ) -> 0 | AH24: =SUM(AE24:AG24) -> 5 | AI24: =SUM('0602011_G:0602142_G'!AI24 ) -> 0 | AJ24: =SUM('0602011_G:0602142_G'!AJ24 ) -> 0
B25: 1.4 | C25: gr. przekaz. w trwały zarząd | D25: Razem | E25: =SUM(E23:E24) -> 149 | F25: =SUM(F23:F24) -> 0 | G25: 22 | H25: 0 | I25: 3 | J25: 2 | K25: =SUM(K23:K24) -> 2 | L25: =SUM(L23:L24) -> 0 | M25: =SUM(M23:M24) -> 5 | N25: =SUM(N23:N24) -> 0 | O25: =SUM(O23:O24) -> 0 | P25: 34 | Q25: 7 | R25: 0 | S25: 7 | T25: 0 | U25: 0 | V25: 3 | W25: 0 | X25: 1 | Y25: 0 | Z25: 96 | AA25: 3 | AB25: 0 | AC25: 0 | AD25: 103 | AE25: 0 | AF25: 5 | AG25: 0 | AH25: 5 | AI25: 0 | AJ25: 0
C26: Grunty Skarbu Państwa | D26: M | E26: =SUM(P26,S26,AD26,AH26,AI26,AJ26) -> 0 | F26: =SUM('0602011_G:0602142_G'!F26 ) -> 0 | G26: =SUM('0602011_G:0602142_G'!G26 ) -> 0 | H26: =SUM('0602011_G:0602142_G'!H26 ) -> 0 | I26: =SUM('0602011_G:0602142_G'!I26 ) -> 0 | J26: =SUM('0602011_G:0602142_G'!J26 ) -> 0 | K26: =SUM('0602011_G:0602142_G'!K26 ) -> 0 | L26: =SUM('0602011_G:0602142_G'!L26 ) -> 0 | M26: =SUM('0602011_G:0602142_G'!M26 ) -> 0 | N26: =SUM('0602011_G:0602142_G'!N26 ) -> 0 | O26: =SUM('0602011_G:0602142_G'!O26 ) -> 0 | P26: =SUM(G26:O26) -> 0 | Q26: =SUM('0602011_G:0602142_G'!Q26 ) -> 0 | R26: =SUM('0602011_G:0602142_G'!R26 ) -> 0 | S26: =SUM(Q26:R26) -> 0 | T26: =SUM('0602011_G:0602142_G'!T26 ) -> 0 | U26: =SUM('0602011_G:0602142_G'!U26 ) -> 0 | V26: =SUM('0602011_G:0602142_G'!V26 ) -> 0 | W26: =SUM('0602011_G:0602142_G'!W26 ) -> 0 | X26: =SUM('0602011_G:0602142_G'!X26 ) -> 0 | Y26: =SUM('0602011_G:0602142_G'!Y26 ) -> 0 | Z26: =SUM('0602011_G:0602142_G'!Z26 ) -> 0 | AA26: =SUM('0602011_G:0602142_G'!AA26 ) -> 0 | AB26: =SUM('0602011_G:0602142_G'!AB26 ) -> 0 | AC26: =SUM('0602011_G:0602142_G'!AC26 ) -> 0 | AD26: =SUM(T26:AC26) -> 0 | AE26: =SUM('0602011_G:0602142_G'!AE26 ) -> 0 | AF26: =SUM('0602011_G:0602142_G'!AF26 ) -> 0 | AG26: =SUM('0602011_G:0602142_G'!AG26 ) -> 0 | AH26: =SUM(AE26:AG26) -> 0 | AI26: =SUM('0602011_G:0602142_G'!AI26 ) -> 0 | AJ26: =SUM('0602011_G:0602142_G'!AJ26 ) -> 0
C27: przekazane do zagosp. | D27: W | E27: =SUM(P27,S27,AD27,AH27,AI27,AJ27) -> 0 | F27: =SUM('0602011_G:0602142_G'!F27 ) -> 0 | G27: =SUM('0602011_G:0602142_G'!G27 ) -> 0 | H27: =SUM('0602011_G:0602142_G'!H27 ) -> 0 | I27: =SUM('0602011_G:0602142_G'!I27 ) -> 0 | J27: =SUM('0602011_G:0602142_G'!J27 ) -> 0 | K27: =SUM('0602011_G:0602142_G'!K27 ) -> 0 | L27: =SUM('0602011_G:0602142_G'!L27 ) -> 0 | M27: =SUM('0602011_G:0602142_G'!M27 ) -> 0 | N27: =SUM('0602011_G:0602142_G'!N27 ) -> 0 | O27: =SUM('0602011_G:0602142_G'!O27 ) -> 0 | P27: =SUM(G27:O27) -> 0 | Q27: =SUM('0602011_G:0602142_G'!Q27 ) -> 0 | R27: =SUM('0602011_G:0602142_G'!R27 ) -> 0 | S27: =SUM(Q27:R27) -> 0 | T27: =SUM('0602011_G:0602142_G'!T27 ) -> 0 | U27: =SUM('0602011_G:0602142_G'!U27 ) -> 0 | V27: =SUM('0602011_G:0602142_G'!V27 ) -> 0 | W27: =SUM('0602011_G:0602142_G'!W27 ) -> 0 | X27: =SUM('0602011_G:0602142_G'!X27 ) -> 0 | Y27: =SUM('0602011_G:0602142_G'!Y27 ) -> 0 | Z27: =SUM('0602011_G:0602142_G'!Z27 ) -> 0 | AA27: =SUM('0602011_G:0602142_G'!AA27 ) -> 0 | AB27: =SUM('0602011_G:0602142_G'!AB27 ) -> 0 | AC27: =SUM('0602011_G:0602142_G'!AC27 ) -> 0 | AD27: =SUM(T27:AC27) -> 0 | AE27: =SUM('0602011_G:0602142_G'!AE27 ) -> 0 | AF27: =SUM('0602011_G:0602142_G'!AF27 ) -> 0 | AG27: =SUM('0602011_G:0602142_G'!AG27 ) -> 0 | AH27: =SUM(AE27:AG27) -> 0 | AI27: =SUM('0602011_G:0602142_G'!AI27 ) -> 0 | AJ27: =SUM('0602011_G:0602142_G'!AJ27 ) -> 0
B28: 1.5 | C28: Agencji Mienia Wojskowego | D28: Razem | E28: =SUM(E26:E27) -> 0 | F28: =SUM(F26:F27) -> 0 | G28: 0 | H28: 0 | I28: 0 | J28: 0 | K28: 0 | L28: 0 | M28: =SUM(M26:M27) -> 0 | N28: =SUM(N26:N27) -> 0 | O28: =SUM(O26:O27) -> 0 | P28: 0 | Q28: 0 | R28: 0 | S28: 0 | T28: 0 | U28: 0 | V28: 0 | W28: 0 | X28: 0 | Y28: 0 | Z28: 0 | AA28: 0 | AB28: 0 | AC28: 0 | AD28: 0 | AE28: 0 | AF28: 0 | AG28: 0 | AH28: 0 | AI28: 0 | AJ28: 0
C29: Grunty Skarbu Państwa | D29: M | E29: =SUM(P29,S29,AD29,AH29,AI29,AJ29) -> 0 | F29: =SUM('0602011_G:0602142_G'!F29 ) -> 0 | G29: =SUM('0602011_G:0602142_G'!G29 ) -> 0 | H29: =SUM('0602011_G:0602142_G'!H29 ) -> 0 | I29: =SUM('0602011_G:0602142_G'!I29 ) -> 0 | J29: =SUM('0602011_G:0602142_G'!J29 ) -> 0 | K29: =SUM('0602011_G:0602142_G'!K29 ) -> 0 | L29: =SUM('0602011_G:0602142_G'!L29 ) -> 0 | M29: =SUM('0602011_G:0602142_G'!M29 ) -> 0 | N29: =SUM('0602011_G:0602142_G'!N29 ) -> 0 | O29: =SUM('0602011_G:0602142_G'!O29 ) -> 0 | P29: =SUM(G29:O29) -> 0 | Q29: =SUM('0602011_G:0602142_G'!Q29 ) -> 0 | R29: =SUM('0602011_G:0602142_G'!R29 ) -> 0 | S29: =SUM(Q29:R29) -> 0 | T29: =SUM('0602011_G:0602142_G'!T29 ) -> 0 | U29: =SUM('0602011_G:0602142_G'!U29 ) -> 0 | V29: =SUM('0602011_G:0602142_G'!V29 ) -> 0 | W29: =SUM('0602011_G:0602142_G'!W29 ) -> 0 | X29: =SUM('0602011_G:0602142_G'!X29 ) -> 0 | Y29: =SUM('0602011_G:0602142_G'!Y29 ) -> 0 | Z29: =SUM('0602011_G:0602142_G'!Z29 ) -> 0 | AA29: =SUM('0602011_G:0602142_G'!AA29 ) -> 0 | AB29: =SUM('0602011_G:0602142_G'!AB29 ) -> 0 | AC29: =SUM('0602011_G:0602142_G'!AC29 ) -> 0 | AD29: =SUM(T29:AC29) -> 0 | AE29: =SUM('0602011_G:0602142_G'!AE29 ) -> 0 | AF29: =SUM('0602011_G:0602142_G'!AF29 ) -> 0 | AG29: =SUM('0602011_G:0602142_G'!AG29 ) -> 0 | AH29: =SUM(AE29:AG29) -> 0 | AI29: =SUM('0602011_G:0602142_G'!AI29 ) -> 0 | AJ29: =SUM('0602011_G:0602142_G'!AJ29 ) -> 0
C30: przekazane do zagosp. | D30: W | E30: =SUM(P30,S30,AD30,AH30,AI30,AJ30) -> 0 | F30: =SUM('0602011_G:0602142_G'!F30 ) -> 0 | G30: =SUM('0602011_G:0602142_G'!G30 ) -> 0 | H30: =SUM('0602011_G:0602142_G'!H30 ) -> 0 | I30: =SUM('0602011_G:0602142_G'!I30 ) -> 0 | J30: =SUM('0602011_G:0602142_G'!J30 ) -> 0 | K30: =SUM('0602011_G:0602142_G'!K30 ) -> 0 | L30: =SUM('0602011_G:0602142_G'!L30 ) -> 0 | M30: =SUM('0602011_G:0602142_G'!M30 ) -> 0 | N30: =SUM('0602011_G:0602142_G'!N30 ) -> 0 | O30: =SUM('0602011_G:0602142_G'!O30 ) -> 0 | P30: =SUM(G30:O30) -> 0 | Q30: =SUM('0602011_G:0602142_G'!Q30 ) -> 0 | R30: =SUM('0602011_G:0602142_G'!R30 ) -> 0 | S30: =SUM(Q30:R30) -> 0 | T30: =SUM('0602011_G:0602142_G'!T30 ) -> 0 | U30: =SUM('0602011_G:0602142_G'!U30 ) -> 0 | V30: =SUM('0602011_G:0602142_G'!V30 ) -> 0 | W30: =SUM('0602011_G:0602142_G'!W30 ) -> 0 | X30: =SUM('0602011_G:0602142_G'!X30 ) -> 0 | Y30: =SUM('0602011_G:0602142_G'!Y30 ) -> 0 | Z30: =SUM('0602011_G:0602142_G'!Z30 ) -> 0 | AA30: =SUM('0602011_G:0602142_G'!AA30 ) -> 0 | AB30: =SUM('0602011_G:0602142_G'!AB30 ) -> 0 | AC30: =SUM('0602011_G:0602142_G'!AC30 ) -> 0 | AD30: =SUM(T30:AC30) -> 0 | AE30: =SUM('0602011_G:0602142_G'!AE30 ) -> 0 | AF30: =SUM('0602011_G:0602142_G'!AF30 ) -> 0 | AG30: =SUM('0602011_G:0602142_G'!AG30 ) -> 0 | AH30: =SUM(AE30:AG30) -> 0 | AI30: =SUM('0602011_G:0602142_G'!AI30 ) -> 0 | AJ30: =SUM('0602011_G:0602142_G'!AJ30 ) -> 0
B31: 1.6 | C31: Wojskowej Agencji Mieszk. | D31: Razem | E31: =SUM(E29:E30) -> 0 | F31: =SUM(F29:F30) -> 0 | G31: 0 | H31: 0 | I31: 0 | J31: 0 | K31: 0 | L31: 0 | M31: =SUM(M29:M30) -> 0 | N31: =SUM(N29:N30) -> 0 | O31: =SUM(O29:O30) -> 0 | P31: 0 | Q31: 0 | R31: 0 | S31: 0 | T31: 0 | U31: 0 | V31: 0 | W31: 0 | X31: 0 | Y31: 0 | Z31: 0 | AA31: 0 | AB31: 0 | AC31: 0 | AD31: =SUM(AD29:AD30) -> 0 | AE31: 0 | AF31: 0 | AG31: 0 | AH31: 0 | AI31: 0 | AJ31: 0
C32: Grunty Skarbu Państwa | D32: M | E32: =SUM(P32,S32,AD32,AH32,AI32,AJ32) -> 22 | F32: =SUM('0602011_G:0602142_G'!F32 ) -> 0 | G32: =SUM('0602011_G:0602142_G'!G32 ) -> 0 | H32: =SUM('0602011_G:0602142_G'!H32 ) -> 0 | I32: =SUM('0602011_G:0602142_G'!I32 ) -> 0 | J32: =SUM('0602011_G:0602142_G'!J32 ) -> 0 | K32: =SUM('0602011_G:0602142_G'!K32 ) -> 0 | L32: =SUM('0602011_G:0602142_G'!L32 ) -> 0 | M32: =SUM('0602011_G:0602142_G'!M32 ) -> 0 | N32: =SUM('0602011_G:0602142_G'!N32 ) -> 0 | O32: =SUM('0602011_G:0602142_G'!O32 ) -> 0 | P32: =SUM(G32:O32) -> 0 | Q32: =SUM('0602011_G:0602142_G'!Q32 ) -> 0 | R32: =SUM('0602011_G:0602142_G'!R32 ) -> 0 | S32: =SUM(Q32:R32) -> 0 | T32: =SUM('0602011_G:0602142_G'!T32 ) -> 0 | U32: =SUM('0602011_G:0602142_G'!U32 ) -> 0 | V32: =SUM('0602011_G:0602142_G'!V32 ) -> 0 | W32: =SUM('0602011_G:0602142_G'!W32 ) -> 0 | X32: =SUM('0602011_G:0602142_G'!X32 ) -> 0 | Y32: =SUM('0602011_G:0602142_G'!Y32 ) -> 0 | Z32: =SUM('0602011_G:0602142_G'!Z32 ) -> 2 | AA32: =SUM('0602011_G:0602142_G'!AA32 ) -> 0 | AB32: =SUM('0602011_G:0602142_G'!AB32 ) -> 0 | AC32: =SUM('0602011_G:0602142_G'!AC32 ) -> 0 | AD32: =SUM(T32:AC32) -> 2 | AE32: =SUM('0602011_G:0602142_G'!AE32 ) -> 0 | AF32: =SUM('0602011_G:0602142_G'!AF32 ) -> 20 | AG32: =SUM('0602011_G:0602142_G'!AG32 ) -> 0 | AH32: =SUM(AE32:AG32) -> 20 | AI32: =SUM('0602011_G:0602142_G'!AI32 ) -> 0 | AJ32: =SUM('0602011_G:0602142_G'!AJ32 ) -> 0
C33: pokryte wodami | D33: W | E33: =SUM(P33,S33,AD33,AH33,AI33,AJ33) -> 341 | F33: =SUM('0602011_G:0602142_G'!F33 ) -> 0 | G33: =SUM('0602011_G:0602142_G'!G33 ) -> 5 | H33: =SUM('0602011_G:0602142_G'!H33 ) -> 0 | I33: =SUM('0602011_G:0602142_G'!I33 ) -> 1 | J33: =SUM('0602011_G:0602142_G'!J33 ) -> 2 | K33: =SUM('0602011_G:0602142_G'!K33 ) -> 0 | L33: =SUM('0602011_G:0602142_G'!L33 ) -> 0 | M33: =SUM('0602011_G:0602142_G'!M33 ) -> 20 | N33: =SUM('0602011_G:0602142_G'!N33 ) -> 0 | O33: =SUM('0602011_G:0602142_G'!O33 ) -> 0 | P33: =SUM(G33:O33) -> 28 | Q33: =SUM('0602011_G:0602142_G'!Q33 ) -> 4 | R33: =SUM('0602011_G:0602142_G'!R33 ) -> 0 | S33: =SUM(Q33:R33) -> 4 | T33: =SUM('0602011_G:0602142_G'!T33 ) -> 0 | U33: =SUM('0602011_G:0602142_G'!U33 ) -> 0 | V33: =SUM('0602011_G:0602142_G'!V33 ) -> 0 | W33: =SUM('0602011_G:0602142_G'!W33 ) -> 0 | X33: =SUM('0602011_G:0602142_G'!X33 ) -> 0 | Y33: =SUM('0602011_G:0602142_G'!Y33 ) -> 0 | Z33: =SUM('0602011_G:0602142_G'!Z33 ) -> 37 | AA33: =SUM('0602011_G:0602142_G'!AA33 ) -> 0 | AB33: =SUM('0602011_G:0602142_G'!AB33 ) -> 0 | AC33: =SUM('0602011_G:0602142_G'!AC33 ) -> 0 | AD33: =SUM(T33:AC33) -> 37 | AE33: =SUM('0602011_G:0602142_G'!AE33 ) -> 0 | AF33: =SUM('0602011_G:0602142_G'!AF33 ) -> 269 | AG33: =SUM('0602011_G:0602142_G'!AG33 ) -> 0 | AH33: =SUM(AE33:AG33) -> 269 | AI33: =SUM('0602011_G:0602142_G'!AI33 ) -> 0 | AJ33: =SUM('0602011_G:0602142_G'!AJ33 ) -> 3
B34: 1.7 | C34: powierzchniowymi | D34: Razem | E34: =SUM(E32:E33) -> 363 | F34: =SUM(F32:F33) -> 0 | G34: =SUM(G32:G33) -> 5 | H34: 0 | I34: 1 | J34: 2 | K34: 0 | L34: 0 | M34: 20 | N34: 0 | O34: 0 | P34: 28 | Q34: 4 | R34: 0 | S34: 4 | T34: 0 | U34: 0 | V34: 0 | W34: 0 | X34: 0 | Y34: 0 | Z34: 39 | AA34: 0 | AB34: 0 | AC34: 0 | AD34: 39 | AE34: 0 | AF34: 289 | AG34: 0 | AH34: 289 | AI34: 0 | AJ34: 3
C35: Gr. SP przekazane organom, | D35: M | E35: =SUM(P35,S35,AD35,AH35,AI35,AJ35) -> 6 | F35: =SUM('0602011_G:0602142_G'!F35 ) -> 0 | G35: =SUM('0602011_G:0602142_G'!G35 ) -> 0 | H35: =SUM('0602011_G:0602142_G'!H35 ) -> 0 | I35: =SUM('0602011_G:0602142_G'!I35 ) -> 0 | J35: =SUM('0602011_G:0602142_G'!J35 ) -> 0 | K35: =SUM('0602011_G:0602142_G'!K35 ) -> 0 | L35: =SUM('0602011_G:0602142_G'!L35 ) -> 0 | M35: =SUM('0602011_G:0602142_G'!M35 ) -> 0 | N35: =SUM('0602011_G:0602142_G'!N35 ) -> 0 | O35: =SUM('0602011_G:0602142_G'!O35 ) -> 0 | P35: =SUM(G35:O35) -> 0 | Q35: =SUM('0602011_G:0602142_G'!Q35 ) -> 0 | R35: =SUM('0602011_G:0602142_G'!R35 ) -> 0 | S35: =SUM(Q35:R35) -> 0 | T35: =SUM('0602011_G:0602142_G'!T35 ) -> 0 | U35: =SUM('0602011_G:0602142_G'!U35 ) -> 0 | V35: =SUM('0602011_G:0602142_G'!V35 ) -> 0 | W35: =SUM('0602011_G:0602142_G'!W35 ) -> 0 | X35: =SUM('0602011_G:0602142_G'!X35 ) -> 0 | Y35: =SUM('0602011_G:0602142_G'!Y35 ) -> 0 | Z35: =SUM('0602011_G:0602142_G'!Z35 ) -> 6 | AA35: =SUM('0602011_G:0602142_G'!AA35 ) -> 0 | AB35: =SUM('0602011_G:0602142_G'!AB35 ) -> 0 | AC35: =SUM('0602011_G:0602142_G'!AC35 ) -> 0 | AD35: =SUM(T35:AC35) -> 6 | AE35: =SUM('0602011_G:0602142_G'!AE35 ) -> 0 | AF35: =SUM('0602011_G:0602142_G'!AF35 ) -> 0 | AG35: =SUM('0602011_G:0602142_G'!AG35 ) -> 0 | AH35: =SUM(AE35:AG35) -> 0 | AI35: =SUM('0602011_G:0602142_G'!AI35 ) -> 0 | AJ35: =SUM('0602011_G:0602142_G'!AJ35 ) -> 0
C36: które wyk.zadania zarządcze | D36: W | E36: =SUM(P36,S36,AD36,AH36,AI36,AJ36) -> 83 | F36: =SUM('0602011_G:0602142_G'!F36 ) -> 0 | G36: =SUM('0602011_G:0602142_G'!G36 ) -> 1 | H36: =SUM('0602011_G:0602142_G'!H36 ) -> 0 | I36: =SUM('0602011_G:0602142_G'!I36 ) -> 0 | J36: =SUM('0602011_G:0602142_G'!J36 ) -> 0 | K36: =SUM('0602011_G:0602142_G'!K36 ) -> 0 | L36: =SUM('0602011_G:0602142_G'!L36 ) -> 0 | M36: =SUM('0602011_G:0602142_G'!M36 ) -> 0 | N36: =SUM('0602011_G:0602142_G'!N36 ) -> 0 | O36: =SUM('0602011_G:0602142_G'!O36 ) -> 0 | P36: =SUM(G36:O36) -> 1 | Q36: =SUM('0602011_G:0602142_G'!Q36 ) -> 0 | R36: =SUM('0602011_G:0602142_G'!R36 ) -> 0 | S36: =SUM(Q36:R36) -> 0 | T36: =SUM('0602011_G:0602142_G'!T36 ) -> 0 | U36: =SUM('0602011_G:0602142_G'!U36 ) -> 0 | V36: =SUM('0602011_G:0602142_G'!V36 ) -> 0 | W36: =SUM('0602011_G:0602142_G'!W36 ) -> 0 | X36: =SUM('0602011_G:0602142_G'!X36 ) -> 0 | Y36: =SUM('0602011_G:0602142_G'!Y36 ) -> 0 | Z36: =SUM('0602011_G:0602142_G'!Z36 ) -> 79 | AA36: =SUM('0602011_G:0602142_G'!AA36 ) -> 0 | AB36: =SUM('0602011_G:0602142_G'!AB36 ) -> 0 | AC36: =SUM('0602011_G:0602142_G'!AC36 ) -> 0 | AD36: =SUM(T36:AC36) -> 79 | AE36: =SUM('0602011_G:0602142_G'!AE36 ) -> 0 | AF36: =SUM('0602011_G:0602142_G'!AF36 ) -> 3 | AG36: =SUM('0602011_G:0602142_G'!AG36 ) -> 0 | AH36: =SUM(AE36:AG36) -> 3 | AI36: =SUM('0602011_G:0602142_G'!AI36 ) -> 0 | AJ36: =SUM('0602011_G:0602142_G'!AJ36 ) -> 0
B37: 1.8 | C37: w stosunku do dróg publicz. | D37: Razem | E37: =SUM(E35:E36) -> 89 | F37: =SUM(F35:F36) -> 0 | G37: =SUM(G35:G36) -> 1 | H37: 0 | I37: 0 | J37: 0 | K37: 0 | L37: =SUM(L35:L36) -> 0 | M37: =SUM(M35:M36) -> 0 | N37: =SUM(N35:N36) -> 0 | O37: =SUM(O35:O36) -> 0 | P37: =SUM(P35:P36) -> 1 | Q37: 0 | R37: 0 | S37: 0 | T37: 0 | U37: 0 | V37: 0 | W37: 0 | X37: 0 | Y37: 0 | Z37: 85 | AA37: 0 | AB37: 0 | AC37: 0 | AD37: 85 | AE37: 0 | AF37: 3 | AG37: 0 | AH37: 3 | AI37: 0 | AJ37: 0
B38: Razem | C38: Grunty SP z wyłącz. | D38: M | E38: =SUM(P38,S38,AD38,AH38,AI38,AJ38) -> 91 | F38: =SUM(F14,F17,F20,F23,F26,F29,F32,F35) -> 0 | G38: =SUM(G14,G17,G20,G23,G26,G29,G32,G35) -> 13 | H38: =SUM(H14,H17,H20,H23,H26,H29,H32,H35) -> 1 | I38: =SUM(I14,I17,I20,I23,I26,I29,I32,I35) -> 6 | J38: 1 | K38: 2 | L38: 0 | M38: 0 | N38: 2 | O38: =SUM(O14,O17,O20,O23,O26,O29,O32,O35) -> 0 | P38: =SUM(G38,H38,I38,J38,K38,L38,M38,N38,O38) -> 25 | Q38: =SUM(Q14,Q17,Q20,Q23,Q26,Q29,Q32,Q35) -> 10 | R38: =SUM(R14,R17,R20,R23,R26,R29,R32,R35) -> 0 | S38: =SUM(Q38:R38) -> 10 | T38: =SUM(T14,T17,T20,T23,T26,T29,T32,T35) -> 0 | U38: 0 | V38: 10 | W38: 0 | X38: 0 | Y38: 0 | Z38: 25 | AA38: 1 | AB38: 0 | AC38: =SUM(AC14,AC17,AC20,AC23,AC26,AC29,AC32,AC35) -> 0 | AD38: =SUM(T38:AC38) -> 36 | AE38: =SUM(AE14,AE17,AE20,AE23,AE26,AE29,AE32,AE35) -> 0 | AF38: 20 | AG38: 0 | AH38: =SUM(AE38:AG38) -> 20 | AI38: =SUM(AI14,AI17,AI20,AI23,AI26,AI29,AI32,AI35) -> 0 | AJ38: =SUM(AJ14,AJ17,AJ20,AJ23,AJ26,AJ29,AJ32,AJ35) -> 0
B39: 1.1 | C39: gruntów przekazanych | D39: W | E39: =SUM(P39,S39,AD39,AH39,AI39,AJ39) -> 36306 | F39: =SUM(F15,F18,F21,F24,F27,F30,F33,F36) -> 0 | G39: =SUM(G15,G18,G21,G24,G27,G30,G33,G36) -> 447 | H39: 32 | I39: 203 | J39: 80 | K39: 14 | L39: 2 | M39: 30 | N39: 46 | O39: 562 | P39: =SUM(G39,H39,I39,J39,K39,L39,M39,N39,O39) -> 1416 | Q39: =SUM(Q15,Q18,Q21,Q24,Q27,Q30,Q33,Q36) -> 34051 | R39: =SUM(R15,R18,R21,R24,R27,R30,R33,R36) -> 0 | S39: =SUM(Q39:R39) -> 34051 | T39: 0 | U39: 2 | V39: 4 | W39: 0 | X39: 2 | Y39: 0 | Z39: 257 | AA39: 2 | AB39: 0 | AC39: 0 | AD39: =SUM(T39:AC39) -> 267 | AE39: 0 | AF39: 442 | AG39: 2 | AH39: =SUM(AE39:AG39) -> 444 | AI39: =SUM(AI15,AI18,AI21,AI24,AI27,AI30,AI33,AI36) -> 123 | AJ39: =SUM(AJ15,AJ18,AJ21,AJ24,AJ27,AJ30,AJ33,AJ36) -> 5
B40: 1.8 | C40: w użytkowanie wieczyste | D40: Razem | E40: =SUM(E38:E39) -> 36397 | F40: =SUM(F38:F39) -> 0 | G40: =SUM(G38:G39) -> 460 | H40: 33 | I40: 209 | J40: 81 | K40: 16 | L40: 2 | M40: 30 | N40: 48 | O40: 562 | P40: 1441 | Q40: 34061 | R40: 0 | S40: 34061 | T40: 0 | U40: 2 | V40: 14 | W40: =SUM(W38:W39) -> 0 | X40: =SUM(X38:X39) -> 2 | Y40: 0 | Z40: 282 | AA40: 3 | AB40: 0 | AC40: 0 | AD40: 303 | AE40: 0 | AF40: 462 | AG40: 2 | AH40: 464 | AI40: 123 | AJ40: 5
A41: 2 | C41: Grunty SP w użytkowaniu | D41: M | E41: =SUM(P41,S41,AD41,AH41,AI41,AJ41) -> 4 | F41: =SUM('0602011_G:0602142_G'!F41 ) -> 0 | G41: =SUM('0602011_G:0602142_G'!G41 ) -> 0 | H41: =SUM('0602011_G:0602142_G'!H41 ) -> 0 | I41: =SUM('0602011_G:0602142_G'!I41 ) -> 0 | J41: =SUM('0602011_G:0602142_G'!J41 ) -> 0 | K41: =SUM('0602011_G:0602142_G'!K41 ) -> 0 | L41: =SUM('0602011_G:0602142_G'!L41 ) -> 0 | M41: =SUM('0602011_G:0602142_G'!M41 ) -> 0 | N41: =SUM('0602011_G:0602142_G'!N41 ) -> 0 | O41: =SUM('0602011_G:0602142_G'!O41 ) -> 0 | P41: =SUM(G41:O41) -> 0 | Q41: =SUM('0602011_G:0602142_G'!Q41 ) -> 0 | R41: =SUM('0602011_G:0602142_G'!R41 ) -> 0 | S41: =SUM(Q41:R41) -> 0 | T41: =SUM('0602011_G:0602142_G'!T41 ) -> 1 | U41: =SUM('0602011_G:0602142_G'!U41 ) -> 2 | V41: =SUM('0602011_G:0602142_G'!V41 ) -> 1 | W41: =SUM('0602011_G:0602142_G'!W41 ) -> 0 | X41: =SUM('0602011_G:0602142_G'!X41 ) -> 0 | Y41: =SUM('0602011_G:0602142_G'!Y41 ) -> 0 | Z41: =SUM('0602011_G:0602142_G'!Z41 ) -> 0 | AA41: =SUM('0602011_G:0602142_G'!AA41 ) -> 0 | AB41: =SUM('0602011_G:0602142_G'!AB41 ) -> 0 | AC41: =SUM('0602011_G:0602142_G'!AC41 ) -> 0 | AD41: =SUM(T41:AC41) -> 4 | AE41: =SUM('0602011_G:0602142_G'!AE41 ) -> 0 | AF41: =SUM('0602011_G:0602142_G'!AF41 ) -> 0 | AG41: =SUM('0602011_G:0602142_G'!AG41 ) -> 0 | AH41: =SUM(AE41:AG41) -> 0 | AI41: =SUM('0602011_G:0602142_G'!AI41 ) -> 0 | AJ41: =SUM('0602011_G:0602142_G'!AJ41 ) -> 0
C42: wieczystym | D42: W | E42: =SUM(P42,S42,AD42,AH42,AI42,AJ42) -> 24 | F42: =SUM('0602011_G:0602142_G'!F42 ) -> 0 | G42: =SUM('0602011_G:0602142_G'!G42 ) -> 6 | H42: =SUM('0602011_G:0602142_G'!H42 ) -> 0 | I42: =SUM('0602011_G:0602142_G'!I42 ) -> 2 | J42: =SUM('0602011_G:0602142_G'!J42 ) -> 0 | K42: =SUM('0602011_G:0602142_G'!K42 ) -> 7 | L42: =SUM('0602011_G:0602142_G'!L42 ) -> 0 | M42: =SUM('0602011_G:0602142_G'!M42 ) -> 0 | N42: =SUM('0602011_G:0602142_G'!N42 ) -> 0 | O42: =SUM('0602011_G:0602142_G'!O42 ) -> 0 | P42: =SUM(G42:O42) -> 15 | Q42: =SUM('0602011_G:0602142_G'!Q42 ) -> 2 | R42: =SUM('0602011_G:0602142_G'!R42 ) -> 0 | S42: =SUM(Q42:R42) -> 2 | T42: =SUM('0602011_G:0602142_G'!T42 ) -> 0 | U42: =SUM('0602011_G:0602142_G'!U42 ) -> 3 | V42: =SUM('0602011_G:0602142_G'!V42 ) -> 3 | W42: =SUM('0602011_G:0602142_G'!W42 ) -> 0 | X42: =SUM('0602011_G:0602142_G'!X42 ) -> 0 | Y42: =SUM('0602011_G:0602142_G'!Y42 ) -> 0 | Z42: =SUM('0602011_G:0602142_G'!Z42 ) -> 0 | AA42: =SUM('0602011_G:0602142_G'!AA42 ) -> 0 | AB42: =SUM('0602011_G:0602142_G'!AB42 ) -> 0 | AC42: =SUM('0602011_G:0602142_G'!AC42 ) -> 0 | AD42: =SUM(T42:AC42) -> 6 | AE42: =SUM('0602011_G:0602142_G'!AE42 ) -> 0 | AF42: =SUM('0602011_G:0602142_G'!AF42 ) -> 0 | AG42: =SUM('0602011_G:0602142_G'!AG42 ) -> 0 | AH42: =SUM(AE42:AG42) -> 0 | AI42: =SUM('0602011_G:0602142_G'!AI42 ) -> 0 | AJ42: =SUM('0602011_G:0602142_G'!AJ42 ) -> 1
B43: 2.1 | C43: osób fizycznych | D43: Razem | E43: =SUM(E41,E42) -> 28 | F43: 0 | G43: 6 | H43: 0 | I43: 2 | J43: 0 | K43: 7 | L43: 0 | M43: =SUM(M41,M42) -> 0 | N43: =SUM(N41,N42) -> 0 | O43: 0 | P43: 15 | Q43: =SUM(Q41:Q42) -> 2 | R43: 0 | S43: 2 | T43: 1 | U43: 5 | V43: 4 | W43: 0 | X43: 0 | Y43: 0 | Z43: 0 | AA43: 0 | AB43: 0 | AC43: 0 | AD43: 10 | AE43: 0 | AF43: 0 | AG43: 0 | AH43: 0 | AI43: 0 | AJ43: 1
C44: Grunty SP w użytkowaniu | D44: M | E44: =SUM(P44,S44,AD44,AH44,AI44,AJ44) -> 30 | F44: =SUM('0602011_G:0602142_G'!F44 ) -> 0 | G44: =SUM('0602011_G:0602142_G'!G44 ) -> 1 | H44: =SUM('0602011_G:0602142_G'!H44 ) -> 0 | I44: =SUM('0602011_G:0602142_G'!I44 ) -> 0 | J44: =SUM('0602011_G:0602142_G'!J44 ) -> 0 | K44: =SUM('0602011_G:0602142_G'!K44 ) -> 0 | L44: =SUM('0602011_G:0602142_G'!L44 ) -> 0 | M44: =SUM('0602011_G:0602142_G'!M44 ) -> 0 | N44: =SUM('0602011_G:0602142_G'!N44 ) -> 0 | O44: =SUM('0602011_G:0602142_G'!O44 ) -> 0 | P44: =SUM(G44:O44) -> 1 | Q44: =SUM('0602011_G:0602142_G'!Q44 ) -> 0 | R44: =SUM('0602011_G:0602142_G'!R44 ) -> 0 | S44: =SUM(Q44:R44) -> 0 | T44: =SUM('0602011_G:0602142_G'!T44 ) -> 0 | U44: =SUM('0602011_G:0602142_G'!U44 ) -> 0 | V44: =SUM('0602011_G:0602142_G'!V44 ) -> 1 | W44: =SUM('0602011_G:0602142_G'!W44 ) -> 0 | X44: =SUM('0602011_G:0602142_G'!X44 ) -> 0 | Y44: =SUM('0602011_G:0602142_G'!Y44 ) -> 0 | Z44: =SUM('0602011_G:0602142_G'!Z44 ) -> 0 | AA44: =SUM('0602011_G:0602142_G'!AA44 ) -> 28 | AB44: =SUM('0602011_G:0602142_G'!AB44 ) -> 0 | AC44: =SUM('0602011_G:0602142_G'!AC44 ) -> 0 | AD44: =SUM(T44:AC44) -> 29 | AE44: =SUM('0602011_G:0602142_G'!AE44 ) -> 0 | AF44: =SUM('0602011_G:0602142_G'!AF44 ) -> 0 | AG44: =SUM('0602011_G:0602142_G'!AG44 ) -> 0 | AH44: =SUM(AE44:AG44) -> 0 | AI44: =SUM('0602011_G:0602142_G'!AI44 ) -> 0 | AJ44: =SUM('0602011_G:0602142_G'!AJ44 ) -> 0
C45: wieczystym | D45: W | E45: =SUM(P45,S45,AD45,AH45,AI45,AJ45) -> 165 | F45: =SUM('0602011_G:0602142_G'!F45 ) -> 0 | G45: =SUM('0602011_G:0602142_G'!G45 ) -> 0 | H45: =SUM('0602011_G:0602142_G'!H45 ) -> 0 | I45: =SUM('0602011_G:0602142_G'!I45 ) -> 0 | J45: =SUM('0602011_G:0602142_G'!J45 ) -> 0 | K45: =SUM('0602011_G:0602142_G'!K45 ) -> 0 | L45: =SUM('0602011_G:0602142_G'!L45 ) -> 0 | M45: =SUM('0602011_G:0602142_G'!M45 ) -> 0 | N45: =SUM('0602011_G:0602142_G'!N45 ) -> 0 | O45: =SUM('0602011_G:0602142_G'!O45 ) -> 0 | P45: =SUM(G45:O45) -> 0 | Q45: =SUM('0602011_G:0602142_G'!Q45 ) -> 0 | R45: =SUM('0602011_G:0602142_G'!R45 ) -> 0 | S45: =SUM(Q45:R45) -> 0 | T45: =SUM('0602011_G:0602142_G'!T45 ) -> 0 | U45: =SUM('0602011_G:0602142_G'!U45 ) -> 0 | V45: =SUM('0602011_G:0602142_G'!V45 ) -> 0 | W45: =SUM('0602011_G:0602142_G'!W45 ) -> 0 | X45: =SUM('0602011_G:0602142_G'!X45 ) -> 0 | Y45: =SUM('0602011_G:0602142_G'!Y45 ) -> 0 | Z45: =SUM('0602011_G:0602142_G'!Z45 ) -> 2 | AA45: =SUM('0602011_G:0602142_G'!AA45 ) -> 162 | AB45: =SUM('0602011_G:0602142_G'!AB45 ) -> 0 | AC45: =SUM('0602011_G:0602142_G'!AC45 ) -> 0 | AD45: =SUM(T45:AC45) -> 164 | AE45: =SUM('0602011_G:0602142_G'!AE45 ) -> 0 | AF45: =SUM('0602011_G:0602142_G'!AF45 ) -> 1 | AG45: =SUM('0602011_G:0602142_G'!AG45 ) -> 0 | AH45: =SUM(AE45:AG45) -> 1 | AI45: =SUM('0602011_G:0602142_G'!AI45 ) -> 0 | AJ45: =SUM('0602011_G:0602142_G'!AJ45 ) -> 0
B46: 2.2 | C46: państwowych os. prawnych | D46: Razem | E46: =SUM(E44:E45) -> 195 | F46: 0 | G46: 1 | H46: 0 | I46: 0 | J46: 0 | K46: 0 | L46: 0 | M46: =SUM(M44:M45) -> 0 | N46: =SUM(N44:N45) -> 0 | O46: =SUM(O44:O45) -> 0 | P46: 1 | Q46: 0 | R46: 0 | S46: 0 | T46: 0 | U46: 0 | V46: 1 | W46: 0 | X46: 0 | Y46: 0 | Z46: 2 | AA46: 190 | AB46: 0 | AC46: 0 | AD46: 193 | AE46: 0 | AF46: 1 | AG46: 0 | AH46: 1 | AI46: 0 | AJ46: 0
C47: Grunty SP w użytkowaniu | D47: M | E47: =SUM(P47,S47,AD47,AH47,AI47,AJ47) -> 0 | F47: =SUM('0602011_G:0602142_G'!F47 ) -> 0 | G47: =SUM('0602011_G:0602142_G'!G47 ) -> 0 | H47: =SUM('0602011_G:0602142_G'!H47 ) -> 0 | I47: =SUM('0602011_G:0602142_G'!I47 ) -> 0 | J47: =SUM('0602011_G:0602142_G'!J47 ) -> 0 | K47: =SUM('0602011_G:0602142_G'!K47 ) -> 0 | L47: =SUM('0602011_G:0602142_G'!L47 ) -> 0 | M47: =SUM('0602011_G:0602142_G'!M47 ) -> 0 | N47: =SUM('0602011_G:0602142_G'!N47 ) -> 0 | O47: =SUM('0602011_G:0602142_G'!O47 ) -> 0 | P47: =SUM(G47:O47) -> 0 | Q47: =SUM('0602011_G:0602142_G'!Q47 ) -> 0 | R47: =SUM('0602011_G:0602142_G'!R47 ) -> 0 | S47: =SUM(Q47:R47) -> 0 | T47: =SUM('0602011_G:0602142_G'!T47 ) -> 0 | U47: =SUM('0602011_G:0602142_G'!U47 ) -> 0 | V47: =SUM('0602011_G:0602142_G'!V47 ) -> 0 | W47: =SUM('0602011_G:0602142_G'!W47 ) -> 0 | X47: =SUM('0602011_G:0602142_G'!X47 ) -> 0 | Y47: =SUM('0602011_G:0602142_G'!Y47 ) -> 0 | Z47: =SUM('0602011_G:0602142_G'!Z47 ) -> 0 | AA47: =SUM('0602011_G:0602142_G'!AA47 ) -> 0 | AB47: =SUM('0602011_G:0602142_G'!AB47 ) -> 0 | AC47: =SUM('0602011_G:0602142_G'!AC47 ) -> 0 | AD47: =SUM(T47:AC47) -> 0 | AE47: =SUM('0602011_G:0602142_G'!AE47 ) -> 0 | AF47: =SUM('0602011_G:0602142_G'!AF47 ) -> 0 | AG47: =SUM('0602011_G:0602142_G'!AG47 ) -> 0 | AH47: =SUM(AE47:AG47) -> 0 | AI47: =SUM('0602011_G:0602142_G'!AI47 ) -> 0 | AJ47: =SUM('0602011_G:0602142_G'!AJ47 ) -> 0
C48: wieczystym | D48: W | E48: =SUM(P48,S48,AD48,AH48,AI48,AJ48) -> 1 | F48: =SUM('0602011_G:0602142_G'!F48 ) -> 0 | G48: =SUM('0602011_G:0602142_G'!G48 ) -> 0 | H48: =SUM('0602011_G:0602142_G'!H48 ) -> 0 | I48: =SUM('0602011_G:0602142_G'!I48 ) -> 0 | J48: =SUM('0602011_G:0602142_G'!J48 ) -> 0 | K48: =SUM('0602011_G:0602142_G'!K48 ) -> 0 | L48: =SUM('0602011_G:0602142_G'!L48 ) -> 0 | M48: =SUM('0602011_G:0602142_G'!M48 ) -> 0 | N48: =SUM('0602011_G:0602142_G'!N48 ) -> 0 | O48: =SUM('0602011_G:0602142_G'!O48 ) -> 0 | P48: =SUM(G48:O48) -> 0 | Q48: =SUM('0602011_G:0602142_G'!Q48 ) -> 0 | R48: =SUM('0602011_G:0602142_G'!R48 ) -> 0 | S48: =SUM(Q48:R48) -> 0 | T48: =SUM('0602011_G:0602142_G'!T48 ) -> 1 | U48: =SUM('0602011_G:0602142_G'!U48 ) -> 0 | V48: =SUM('0602011_G:0602142_G'!V48 ) -> 0 | W48: =SUM('0602011_G:0602142_G'!W48 ) -> 0 | X48: =SUM('0602011_G:0602142_G'!X48 ) -> 0 | Y48: =SUM('0602011_G:0602142_G'!Y48 ) -> 0 | Z48: =SUM('0602011_G:0602142_G'!Z48 ) -> 0 | AA48: =SUM('0602011_G:0602142_G'!AA48 ) -> 0 | AB48: =SUM('0602011_G:0602142_G'!AB48 ) -> 0 | AC48: =SUM('0602011_G:0602142_G'!AC48 ) -> 0 | AD48: =SUM(T48:AC48) -> 1 | AE48: =SUM('0602011_G:0602142_G'!AE48 ) -> 0 | AF48: =SUM('0602011_G:0602142_G'!AF48 ) -> 0 | AG48: =SUM('0602011_G:0602142_G'!AG48 ) -> 0 | AH48: =SUM(AE48:AG48) -> 0 | AI48: =SUM('0602011_G:0602142_G'!AI48 ) -> 0 | AJ48: =SUM('0602011_G:0602142_G'!AJ48 ) -> 0
B49: 2.3 | C49: spółdzielni mieszkaniowych | D49: Razem | E49: =SUM(E47:E48) -> 1 | F49: 0 | G49: 0 | H49: 0 | I49: 0 | J49: 0 | K49: 0 | L49: 0 | M49: =SUM(M47:M48) -> 0 | N49: =SUM(N47:N48) -> 0 | O49: 0 | P49: 0 | Q49: 0 | R49: 0 | S49: 0 | T49: 1 | U49: 0 | V49: 0 | W49: 0 | X49: 0 | Y49: 0 | Z49: 0 | AA49: 0 | AB49: 0 | AC49: 0 | AD49: 1 | AE49: 0 | AF49: 0 | AG49: 0 | AH49: 0 | AI49: 0 | AJ49: 0
C50: Grunty SP w użytkowaniu | D50: M | E50: =SUM(P50,S50,AD50,AH50,AI50,AJ50) -> 38 | F50: =SUM('0602011_G:0602142_G'!F50 ) -> 0 | G50: =SUM('0602011_G:0602142_G'!G50 ) -> 0 | H50: =SUM('0602011_G:0602142_G'!H50 ) -> 0 | I50: =SUM('0602011_G:0602142_G'!I50 ) -> 0 | J50: =SUM('0602011_G:0602142_G'!J50 ) -> 0 | K50: =SUM('0602011_G:0602142_G'!K50 ) -> 0 | L50: =SUM('0602011_G:0602142_G'!L50 ) -> 0 | M50: =SUM('0602011_G:0602142_G'!M50 ) -> 0 | N50: =SUM('0602011_G:0602142_G'!N50 ) -> 0 | O50: =SUM('0602011_G:0602142_G'!O50 ) -> 0 | P50: =SUM(G50:O50) -> 0 | Q50: =SUM('0602011_G:0602142_G'!Q50 ) -> 0 | R50: =SUM('0602011_G:0602142_G'!R50 ) -> 0 | S50: =SUM(Q50:R50) -> 0 | T50: =SUM('0602011_G:0602142_G'!T50 ) -> 0 | U50: =SUM('0602011_G:0602142_G'!U50 ) -> 18 | V50: =SUM('0602011_G:0602142_G'!V50 ) -> 19 | W50: =SUM('0602011_G:0602142_G'!W50 ) -> 0 | X50: =SUM('0602011_G:0602142_G'!X50 ) -> 0 | Y50: =SUM('0602011_G:0602142_G'!Y50 ) -> 0 | Z50: =SUM('0602011_G:0602142_G'!Z50 ) -> 0 | AA50: =SUM('0602011_G:0602142_G'!AA50 ) -> 0 | AB50: =SUM('0602011_G:0602142_G'!AB50 ) -> 0 | AC50: =SUM('0602011_G:0602142_G'!AC50 ) -> 0 | AD50: =SUM(T50:AC50) -> 37 | AE50: =SUM('0602011_G:0602142_G'!AE50 ) -> 0 | AF50: =SUM('0602011_G:0602142_G'!AF50 ) -> 1 | AG50: =SUM('0602011_G:0602142_G'!AG50 ) -> 0 | AH50: =SUM(AE50:AG50) -> 1 | AI50: =SUM('0602011_G:0602142_G'!AI50 ) -> 0 | AJ50: =SUM('0602011_G:0602142_G'!AJ50 ) -> 0
C51: wieczystym | D51: W | E51: =SUM(P51,S51,AD51,AH51,AI51,AJ51) -> 229 | F51: =SUM('0602011_G:0602142_G'!F51 ) -> 0 | G51: =SUM('0602011_G:0602142_G'!G51 ) -> 27 | H51: =SUM('0602011_G:0602142_G'!H51 ) -> 0 | I51: =SUM('0602011_G:0602142_G'!I51 ) -> 0 | J51: =SUM('0602011_G:0602142_G'!J51 ) -> 11 | K51: =SUM('0602011_G:0602142_G'!K51 ) -> 10 | L51: =SUM('0602011_G:0602142_G'!L51 ) -> 0 | M51: =SUM('0602011_G:0602142_G'!M51 ) -> 0 | N51: =SUM('0602011_G:0602142_G'!N51 ) -> 0 | O51: =SUM('0602011_G:0602142_G'!O51 ) -> 0 | P51: =SUM(G51:O51) -> 48 | Q51: =SUM('0602011_G:0602142_G'!Q51 ) -> 143 | R51: =SUM('0602011_G:0602142_G'!R51 ) -> 0 | S51: =SUM(Q51:R51) -> 143 | T51: =SUM('0602011_G:0602142_G'!T51 ) -> 0 | U51: =SUM('0602011_G:0602142_G'!U51 ) -> 25 | V51: =SUM('0602011_G:0602142_G'!V51 ) -> 4 | W51: =SUM('0602011_G:0602142_G'!W51 ) -> 0 | X51: =SUM('0602011_G:0602142_G'!X51 ) -> 0 | Y51: =SUM('0602011_G:0602142_G'!Y51 ) -> 6 | Z51: =SUM('0602011_G:0602142_G'!Z51 ) -> 2 | AA51: =SUM('0602011_G:0602142_G'!AA51 ) -> 1 | AB51: =SUM('0602011_G:0602142_G'!AB51 ) -> 0 | AC51: =SUM('0602011_G:0602142_G'!AC51 ) -> 0 | AD51: =SUM(T51:AC51) -> 38 | AE51: =SUM('0602011_G:0602142_G'!AE51 ) -> 0 | AF51: =SUM('0602011_G:0602142_G'!AF51 ) -> 0 | AG51: =SUM('0602011_G:0602142_G'!AG51 ) -> 0 | AH51: =SUM(AE51:AG51) -> 0 | AI51: =SUM('0602011_G:0602142_G'!AI51 ) -> 0 | AJ51: =SUM('0602011_G:0602142_G'!AJ51 ) -> 0
B52: 2.4 | C52: pozostałych osób | D52: Razem | E52: =SUM(E50:E51) -> 267 | F52: 0 | G52: 27 | H52: 0 | I52: 0 | J52: 11 | K52: 10 | L52: 0 | M52: =SUM(M50:M51) -> 0 | N52: =SUM(N50:N51) -> 0 | O52: 0 | P52: 48 | Q52: 143 | R52: 0 | S52: 143 | T52: 0 | U52: 43 | V52: 23 | W52: 0 | X52: 0 | Y52: 6 | Z52: 2 | AA52: 1 | AB52: 0 | AC52: 0 | AD52: 75 | AE52: 0 | AF52: 1 | AG52: 0 | AH52: 1 | AI52: 0 | AJ52: 0
B53: Razem | D53: M | E53: =SUM(P53,S53,AD53,AH53,AI53,AJ53) -> 72 | F53: =SUM(F41,F44,F47,F50) -> 0 | G53: =SUM(G41,G44,G47,G50) -> 1 | H53: 0 | I53: 0 | J53: 0 | K53: 0 | L53: 0 | M53: 0 | N53: 0 | O53: 0 | P53: =SUM(G53,H53,I53,J53,K53,L53,M53,N53,O53) -> 1 | Q53: =SUM(Q41,Q44,Q47,Q50) -> 0 | R53: =SUM(R41,R44,R47,R50) -> 0 | S53: =SUM(Q53:R53) -> 0 | T53: =SUM(T41,T44,T47,T50) -> 1 | U53: 20 | V53: 21 | W53: 0 | X53: =SUM(X41,X44,X47,X50) -> 0 | Y53: 0 | Z53: 0 | AA53: 28 | AB53: 0 | AC53: 0 | AD53: =SUM(T53:AC53) -> 70 | AE53: =SUM(AE41,AE44,AE47,AE50) -> 0 | AF53: 1 | AG53: 0 | AH53: =SUM(AE53:AG53) -> 1 | AI53: =SUM(AI41,AI44,AI47,AI50) -> 0 | AJ53: =SUM(AJ41,AJ44,AJ47,AJ50) -> 0
B54: 2.1 | C54: Grunty SP przekazane | D54: W | E54: =SUM(P54,S54,AD54,AH54,AI54,AJ54) -> 419 | F54: =SUM(F42,F45,F48,F51) -> 0 | G54: 33 | H54: 0 | I54: 2 | J54: 11 | K54: 17 | L54: 0 | M54: 0 | N54: 0 | O54: 0 | P54: =SUM(G54,H54,I54,J54,K54,L54,M54,N54,O54) -> 63 | Q54: =SUM(Q42,Q45,Q48,Q51) -> 145 | R54: =SUM(R42,R45,R48,R51) -> 0 | S54: =SUM(Q54:R54) -> 145 | T54: 1 | U54: 28 | V54: 7 | W54: 0 | X54: =SUM(X42,X45,X48,X51) -> 0 | Y54: 6 | Z54: 4 | AA54: 163 | AB54: 0 | AC54: 0 | AD54: =SUM(T54:AC54) -> 209 | AE54: 0 | AF54: 1 | AG54: 0 | AH54: =SUM(AE54:AG54) -> 1 | AI54: =SUM(AI42,AI45,AI48,AI51) -> 0 | AJ54: =SUM(AJ42,AJ45,AJ48,AJ51) -> 1
B55: 2.4 | C55: w użytkowanie wieczyste | D55: Razem | E55: =SUM(E53:E54) -> 491 | F55: 0 | G55: 34 | H55: 0 | I55: 2 | J55: 11 | K55: 17 | L55: 0 | M55: =SUM(M53:M54) -> 0 | N55: =SUM(N53:N54) -> 0 | O55: 0 | P55: 64 | Q55: 145 | R55: 0 | S55: 145 | T55: 2 | U55: 48 | V55: 28 | W55: 0 | X55: 0 | Y55: 6 | Z55: 4 | AA55: 191 | AB55: 0 | AC55: 0 | AD55: 279 | AE55: 0 | AF55: 2 | AG55: 0 | AH55: 2 | AI55: 0 | AJ55: =SUM(AJ53:AJ54) -> 1
A56: 3 | C56: Grunty spółek SP, przeds. | D56: M | E56: =SUM(P56,S56,AD56,AH56,AI56,AJ56) -> 0 | F56: =SUM('0602011_G:0602142_G'!F56 ) -> 0 | G56: =SUM('0602011_G:0602142_G'!G56 ) -> 0 | H56: =SUM('0602011_G:0602142_G'!H56 ) -> 0 | I56: =SUM('0602011_G:0602142_G'!I56 ) -> 0 | J56: =SUM('0602011_G:0602142_G'!J56 ) -> 0 | K56: =SUM('0602011_G:0602142_G'!K56 ) -> 0 | L56: =SUM('0602011_G:0602142_G'!L56 ) -> 0 | M56: =SUM('0602011_G:0602142_G'!M56 ) -> 0 | N56: =SUM('0602011_G:0602142_G'!N56 ) -> 0 | O56: =SUM('0602011_G:0602142_G'!O56 ) -> 0 | P56: =SUM(G56:O56) -> 0 | Q56: =SUM('0602011_G:0602142_G'!Q56 ) -> 0 | R56: =SUM('0602011_G:0602142_G'!R56 ) -> 0 | S56: =SUM(Q56:R56) -> 0 | T56: =SUM('0602011_G:0602142_G'!T56 ) -> 0 | U56: =SUM('0602011_G:0602142_G'!U56 ) -> 0 | V56: =SUM('0602011_G:0602142_G'!V56 ) -> 0 | W56: =SUM('0602011_G:0602142_G'!W56 ) -> 0 | X56: =SUM('0602011_G:0602142_G'!X56 ) -> 0 | Y56: =SUM('0602011_G:0602142_G'!Y56 ) -> 0 | Z56: =SUM('0602011_G:0602142_G'!Z56 ) -> 0 | AA56: =SUM('0602011_G:0602142_G'!AA56 ) -> 0 | AB56: =SUM('0602011_G:0602142_G'!AB56 ) -> 0 | AC56: =SUM('0602011_G:0602142_G'!AC56 ) -> 0 | AD56: =SUM(T56:AC56) -> 0 | AE56: =SUM('0602011_G:0602142_G'!AE56 ) -> 0 | AF56: =SUM('0602011_G:0602142_G'!AF56 ) -> 0 | AG56: =SUM('0602011_G:0602142_G'!AG56 ) -> 0 | AH56: =SUM(AE56:AG56) -> 0 | AI56: =SUM('0602011_G:0602142_G'!AI56 ) -> 0 | AJ56: =SUM('0602011_G:0602142_G'!AJ56 ) -> 0
C57: państwowych i innych | D57: W | E57: =SUM(P57,S57,AD57,AH57,AI57,AJ57) -> 57 | F57: =SUM('0602011_G:0602142_G'!F57 ) -> 0 | G57: =SUM('0602011_G:0602142_G'!G57 ) -> 41 | H57: =SUM('0602011_G:0602142_G'!H57 ) -> 0 | I57: =SUM('0602011_G:0602142_G'!I57 ) -> 10 | J57: =SUM('0602011_G:0602142_G'!J57 ) -> 0 | K57: =SUM('0602011_G:0602142_G'!K57 ) -> 0 | L57: =SUM('0602011_G:0602142_G'!L57 ) -> 0 | M57: =SUM('0602011_G:0602142_G'!M57 ) -> 3 | N57: =SUM('0602011_G:0602142_G'!N57 ) -> 0 | O57: =SUM('0602011_G:0602142_G'!O57 ) -> 0 | P57: =SUM(G57:O57) -> 54 | Q57: =SUM('0602011_G:0602142_G'!Q57 ) -> 2 | R57: =SUM('0602011_G:0602142_G'!R57 ) -> 0 | S57: =SUM(Q57:R57) -> 2 | T57: =SUM('0602011_G:0602142_G'!T57 ) -> 0 | U57: =SUM('0602011_G:0602142_G'!U57 ) -> 1 | V57: =SUM('0602011_G:0602142_G'!V57 ) -> 0 | W57: =SUM('0602011_G:0602142_G'!W57 ) -> 0 | X57: =SUM('0602011_G:0602142_G'!X57 ) -> 0 | Y57: =SUM('0602011_G:0602142_G'!Y57 ) -> 0 | Z57: =SUM('0602011_G:0602142_G'!Z57 ) -> 0 | AA57: =SUM('0602011_G:0602142_G'!AA57 ) -> 0 | AB57: =SUM('0602011_G:0602142_G'!AB57 ) -> 0 | AC57: =SUM('0602011_G:0602142_G'!AC57 ) -> 0 | AD57: =SUM(T57:AC57) -> 1 | AE57: =SUM('0602011_G:0602142_G'!AE57 ) -> 0 | AF57: =SUM('0602011_G:0602142_G'!AF57 ) -> 0 | AG57: =SUM('0602011_G:0602142_G'!AG57 ) -> 0 | AH57: =SUM(AE57:AG57) -> 0 | AI57: =SUM('0602011_G:0602142_G'!AI57 ) -> 0 | AJ57: =SUM('0602011_G:0602142_G'!AJ57 ) -> 0
C58: państwowych osób prawnych | D58: Razem | E58: =SUM(E56:E57) -> 57 | F58: 0 | G58: 41 | H58: 0 | I58: 10 | J58: 0 | K58: =SUM(K56:K57) -> 0 | L58: =SUM(L56:L57) -> 0 | M58: =SUM(M56:M57) -> 3 | N58: =SUM(N56:N57) -> 0 | O58: =SUM(O56:O57) -> 0 | P58: 54 | Q58: 2 | R58: 0 | S58: 2 | T58: 0 | U58: 1 | V58: 0 | W58: 0 | X58: 0 | Y58: 0 | Z58: 0 | AA58: 0 | AB58: 0 | AC58: 0 | AD58: 1 | AE58: 0 | AF58: 0 | AG58: 0 | AH58: 0 | AI58: 0 | AJ58: 0
A59: 4 | C59: Gr. wchodzące w skład gm. | D59: M | E59: =SUM(P59,S59,AD59,AH59,AI59,AJ59) -> 291 | F59: =SUM('0602011_G:0602142_G'!F59 ) -> 0 | G59: =SUM('0602011_G:0602142_G'!G59 ) -> 39 | H59: =SUM('0602011_G:0602142_G'!H59 ) -> 0 | I59: =SUM('0602011_G:0602142_G'!I59 ) -> 35 | J59: =SUM('0602011_G:0602142_G'!J59 ) -> 18 | K59: =SUM('0602011_G:0602142_G'!K59 ) -> 0 | L59: =SUM('0602011_G:0602142_G'!L59 ) -> 3 | M59: =SUM('0602011_G:0602142_G'!M59 ) -> 2 | N59: =SUM('0602011_G:0602142_G'!N59 ) -> 18 | O59: =SUM('0602011_G:0602142_G'!O59 ) -> 6 | P59: =SUM(G59:O59) -> 121 | Q59: =SUM('0602011_G:0602142_G'!Q59 ) -> 8 | R59: =SUM('0602011_G:0602142_G'!R59 ) -> 0 | S59: =SUM(Q59:R59) -> 8 | T59: =SUM('0602011_G:0602142_G'!T59 ) -> 7 | U59: =SUM('0602011_G:0602142_G'!U59 ) -> 3 | V59: =SUM('0602011_G:0602142_G'!V59 ) -> 22 | W59: =SUM('0602011_G:0602142_G'!W59 ) -> 5 | X59: =SUM('0602011_G:0602142_G'!X59 ) -> 12 | Y59: =SUM('0602011_G:0602142_G'!Y59 ) -> 1 | Z59: =SUM('0602011_G:0602142_G'!Z59 ) -> 108 | AA59: =SUM('0602011_G:0602142_G'!AA59 ) -> 0 | AB59: =SUM('0602011_G:0602142_G'!AB59 ) -> 0 | AC59: =SUM('0602011_G:0602142_G'!AC59 ) -> 1 | AD59: =SUM(T59:AC59) -> 159 | AE59: =SUM('0602011_G:0602142_G'!AE59 ) -> 0 | AF59: =SUM('0602011_G:0602142_G'!AF59 ) -> 0 | AG59: =SUM('0602011_G:0602142_G'!AG59 ) -> 3 | AH59: =SUM(AE59:AG59) -> 3 | AI59: =SUM('0602011_G:0602142_G'!AI59 ) -> 0 | AJ59: =SUM('0602011_G:0602142_G'!AJ59 ) -> 0
C60: zas. nier. z wyłączeniem gr. | D60: W | E60: =SUM(P60,S60,AD60,AH60,AI60,AJ60) -> 1795 | F60: =SUM('0602011_G:0602142_G'!F60 ) -> 0 | G60: =SUM('0602011_G:0602142_G'!G60 ) -> 184 | H60: =SUM('0602011_G:0602142_G'!H60 ) -> 2 | I60: =SUM('0602011_G:0602142_G'!I60 ) -> 127 | J60: =SUM('0602011_G:0602142_G'!J60 ) -> 101 | K60: =SUM('0602011_G:0602142_G'!K60 ) -> 34 | L60: =SUM('0602011_G:0602142_G'!L60 ) -> 9 | M60: =SUM('0602011_G:0602142_G'!M60 ) -> 7 | N60: =SUM('0602011_G:0602142_G'!N60 ) -> 28 | O60: =SUM('0602011_G:0602142_G'!O60 ) -> 14 | P60: =SUM(G60:O60) -> 506 | Q60: =SUM('0602011_G:0602142_G'!Q60 ) -> 82 | R60: =SUM('0602011_G:0602142_G'!R60 ) -> 0 | S60: =SUM(Q60:R60) -> 82 | T60: =SUM('0602011_G:0602142_G'!T60 ) -> 7 | U60: =SUM('0602011_G:0602142_G'!U60 ) -> 5 | V60: =SUM('0602011_G:0602142_G'!V60 ) -> 28 | W60: =SUM('0602011_G:0602142_G'!W60 ) -> 3 | X60: =SUM('0602011_G:0602142_G'!X60 ) -> 16 | Y60: =SUM('0602011_G:0602142_G'!Y60 ) -> 1 | Z60: =SUM('0602011_G:0602142_G'!Z60 ) -> 1088 | AA60: =SUM('0602011_G:0602142_G'!AA60 ) -> 0 | AB60: =SUM('0602011_G:0602142_G'!AB60 ) -> 2 | AC60: =SUM('0602011_G:0602142_G'!AC60 ) -> 0 | AD60: =SUM(T60:AC60) -> 1150 | AE60: =SUM('0602011_G:0602142_G'!AE60 ) -> 0 | AF60: =SUM('0602011_G:0602142_G'!AF60 ) -> 0 | AG60: =SUM('0602011_G:0602142_G'!AG60 ) -> 54 | AH60: =SUM(AE60:AG60) -> 54 | AI60: =SUM('0602011_G:0602142_G'!AI60 ) -> 0 | AJ60: =SUM('0602011_G:0602142_G'!AJ60 ) -> 3
B61: 4.1 | C61: wykazanych w 4.2 i 4.3 | D61: Razem | E61: =SUM(E59:E60) -> 2086 | F61: 0 | G61: 223 | H61: 2 | I61: 162 | J61: 119 | K61: =SUM(K59:K60) -> 34 | L61: =SUM(L59:L60) -> 12 | M61: =SUM(M59:M60) -> 9 | N61: =SUM(N59:N60) -> 46 | O61: =SUM(O59:O60) -> 20 | P61: 627 | Q61: 90 | R61: 0 | S61: 90 | T61: 14 | U61: 8 | V61: 50 | W61: 8 | X61: 28 | Y61: 2 | Z61: 1196 | AA61: 0 | AB61: 2 | AC61: 1 | AD61: 1309 | AE61: 0 | AF61: 0 | AG61: 57 | AH61: 57 | AI61: 0 | AJ61: 3
C62: Grunty gmin i związków | D62: M | E62: =SUM(P62,S62,AD62,AH62,AI62,AJ62) -> 77 | F62: =SUM('0602011_G:0602142_G'!F62 ) -> 0 | G62: =SUM('0602011_G:0602142_G'!G62 ) -> 4 | H62: =SUM('0602011_G:0602142_G'!H62 ) -> 0 | I62: =SUM('0602011_G:0602142_G'!I62 ) -> 1 | J62: =SUM('0602011_G:0602142_G'!J62 ) -> 0 | K62: =SUM('0602011_G:0602142_G'!K62 ) -> 0 | L62: =SUM('0602011_G:0602142_G'!L62 ) -> 0 | M62: =SUM('0602011_G:0602142_G'!M62 ) -> 0 | N62: =SUM('0602011_G:0602142_G'!N62 ) -> 0 | O62: =SUM('0602011_G:0602142_G'!O62 ) -> 0 | P62: =SUM(G62:O62) -> 5 | Q62: =SUM('0602011_G:0602142_G'!Q62 ) -> 1 | R62: =SUM('0602011_G:0602142_G'!R62 ) -> 0 | S62: =SUM(Q62:R62) -> 1 | T62: =SUM('0602011_G:0602142_G'!T62 ) -> 0 | U62: =SUM('0602011_G:0602142_G'!U62 ) -> 0 | V62: =SUM('0602011_G:0602142_G'!V62 ) -> 13 | W62: =SUM('0602011_G:0602142_G'!W62 ) -> 0 | X62: =SUM('0602011_G:0602142_G'!X62 ) -> 9 | Y62: =SUM('0602011_G:0602142_G'!Y62 ) -> 0 | Z62: =SUM('0602011_G:0602142_G'!Z62 ) -> 42 | AA62: =SUM('0602011_G:0602142_G'!AA62 ) -> 0 | AB62: =SUM('0602011_G:0602142_G'!AB62 ) -> 0 | AC62: =SUM('0602011_G:0602142_G'!AC62 ) -> 0 | AD62: =SUM(T62:AC62) -> 64 | AE62: =SUM('0602011_G:0602142_G'!AE62 ) -> 0 | AF62: =SUM('0602011_G:0602142_G'!AF62 ) -> 0 | AG62: =SUM('0602011_G:0602142_G'!AG62 ) -> 7 | AH62: =SUM(AE62:AG62) -> 7 | AI62: =SUM('0602011_G:0602142_G'!AI62 ) -> 0 | AJ62: =SUM('0602011_G:0602142_G'!AJ62 ) -> 0
C63: międzygm przekaz. w trwały | D63: W | E63: =SUM(P63,S63,AD63,AH63,AI63,AJ63) -> 40 | F63: =SUM('0602011_G:0602142_G'!F63 ) -> 0 | G63: =SUM('0602011_G:0602142_G'!G63 ) -> 11 | H63: =SUM('0602011_G:0602142_G'!H63 ) -> 0 | I63: =SUM('0602011_G:0602142_G'!I63 ) -> 3 | J63: =SUM('0602011_G:0602142_G'!J63 ) -> 2 | K63: =SUM('0602011_G:0602142_G'!K63 ) -> 4 | L63: =SUM('0602011_G:0602142_G'!L63 ) -> 0 | M63: =SUM('0602011_G:0602142_G'!M63 ) -> 0 | N63: =SUM('0602011_G:0602142_G'!N63 ) -> 0 | O63: =SUM('0602011_G:0602142_G'!O63 ) -> 0 | P63: =SUM(G63:O63) -> 20 | Q63: =SUM('0602011_G:0602142_G'!Q63 ) -> 1 | R63: =SUM('0602011_G:0602142_G'!R63 ) -> 0 | S63: =SUM(Q63:R63) -> 1 | T63: =SUM('0602011_G:0602142_G'!T63 ) -> 1 | U63: =SUM('0602011_G:0602142_G'!U63 ) -> 0 | V63: =SUM('0602011_G:0602142_G'!V63 ) -> 16 | W63: =SUM('0602011_G:0602142_G'!W63 ) -> 0 | X63: =SUM('0602011_G:0602142_G'!X63 ) -> 2 | Y63: =SUM('0602011_G:0602142_G'!Y63 ) -> 0 | Z63: =SUM('0602011_G:0602142_G'!Z63 ) -> 0 | AA63: =SUM('0602011_G:0602142_G'!AA63 ) -> 0 | AB63: =SUM('0602011_G:0602142_G'!AB63 ) -> 0 | AC63: =SUM('0602011_G:0602142_G'!AC63 ) -> 0 | AD63: =SUM(T63:AC63) -> 19 | AE63: =SUM('0602011_G:0602142_G'!AE63 ) -> 0 | AF63: =SUM('0602011_G:0602142_G'!AF63 ) -> 0 | AG63: =SUM('0602011_G:0602142_G'!AG63 ) -> 0 | AH63: =SUM(AE63:AG63) -> 0 | AI63: =SUM('0602011_G:0602142_G'!AI63 ) -> 0 | AJ63: =SUM('0602011_G:0602142_G'!AJ63 ) -> 0
B64: 4.2 | C64: zarząd gminnym jedn. organ. | D64: Razem | E64: =SUM(E62:E63) -> 117 | F64: 0 | G64: 15 | H64: 0 | I64: 4 | J64: 2 | K64: =SUM(K62:K63) -> 4 | L64: =SUM(L62:L63) -> 0 | M64: =SUM(M62:M63) -> 0 | N64: =SUM(N62:N63) -> 0 | O64: =SUM(O62:O63) -> 0 | P64: 25 | Q64: 2 | R64: 0 | S64: 2 | T64: 1 | U64: 0 | V64: 29 | W64: 0 | X64: 11 | Y64: 0 | Z64: 42 | AA64: 0 | AB64: 0 | AC64: 0 | AD64: 83 | AE64: 0 | AF64: 0 | AG64: 7 | AH64: 7 | AI64: 0 | AJ64: 0
C65: Gr. gm. przekazane organom, | D65: M | E65: =SUM(P65,S65,AD65,AH65,AI65,AJ65) -> 10 | F65: =SUM('0602011_G:0602142_G'!F65 ) -> 0 | G65: =SUM('0602011_G:0602142_G'!G65 ) -> 0 | H65: =SUM('0602011_G:0602142_G'!H65 ) -> 0 | I65: =SUM('0602011_G:0602142_G'!I65 ) -> 0 | J65: =SUM('0602011_G:0602142_G'!J65 ) -> 0 | K65: =SUM('0602011_G:0602142_G'!K65 ) -> 0 | L65: =SUM('0602011_G:0602142_G'!L65 ) -> 0 | M65: =SUM('0602011_G:0602142_G'!M65 ) -> 0 | N65: =SUM('0602011_G:0602142_G'!N65 ) -> 0 | O65: =SUM('0602011_G:0602142_G'!O65 ) -> 0 | P65: =SUM(G65:O65) -> 0 | Q65: =SUM('0602011_G:0602142_G'!Q65 ) -> 0 | R65: =SUM('0602011_G:0602142_G'!R65 ) -> 0 | S65: =SUM(Q65:R65) -> 0 | T65: =SUM('0602011_G:0602142_G'!T65 ) -> 0 | U65: =SUM('0602011_G:0602142_G'!U65 ) -> 0 | V65: =SUM('0602011_G:0602142_G'!V65 ) -> 5 | W65: =SUM('0602011_G:0602142_G'!W65 ) -> 0 | X65: =SUM('0602011_G:0602142_G'!X65 ) -> 0 | Y65: =SUM('0602011_G:0602142_G'!Y65 ) -> 0 | Z65: =SUM('0602011_G:0602142_G'!Z65 ) -> 5 | AA65: =SUM('0602011_G:0602142_G'!AA65 ) -> 0 | AB65: =SUM('0602011_G:0602142_G'!AB65 ) -> 0 | AC65: =SUM('0602011_G:0602142_G'!AC65 ) -> 0 | AD65: =SUM(T65:AC65) -> 10 | AE65: =SUM('0602011_G:0602142_G'!AE65 ) -> 0 | AF65: =SUM('0602011_G:0602142_G'!AF65 ) -> 0 | AG65: =SUM('0602011_G:0602142_G'!AG65 ) -> 0 | AH65: =SUM(AE65:AG65) -> 0 | AI65: =SUM('0602011_G:0602142_G'!AI65 ) -> 0 | AJ65: =SUM('0602011_G:0602142_G'!AJ65 ) -> 0
C66: które wyk. zadania zarządcze | D66: W | E66: =SUM(P66,S66,AD66,AH66,AI66,AJ66) -> 861 | F66: =SUM('0602011_G:0602142_G'!F66 ) -> 0 | G66: =SUM('0602011_G:0602142_G'!G66 ) -> 7 | H66: =SUM('0602011_G:0602142_G'!H66 ) -> 0 | I66: =SUM('0602011_G:0602142_G'!I66 ) -> 1 | J66: =SUM('0602011_G:0602142_G'!J66 ) -> 4 | K66: =SUM('0602011_G:0602142_G'!K66 ) -> 2 | L66: =SUM('0602011_G:0602142_G'!L66 ) -> 0 | M66: =SUM('0602011_G:0602142_G'!M66 ) -> 1 | N66: =SUM('0602011_G:0602142_G'!N66 ) -> 0 | O66: =SUM('0602011_G:0602142_G'!O66 ) -> 0 | P66: =SUM(G66:O66) -> 15 | Q66: =SUM('0602011_G:0602142_G'!Q66 ) -> 4 | R66: =SUM('0602011_G:0602142_G'!R66 ) -> 0 | S66: =SUM(Q66:R66) -> 4 | T66: =SUM('0602011_G:0602142_G'!T66 ) -> 0 | U66: =SUM('0602011_G:0602142_G'!U66 ) -> 3 | V66: =SUM('0602011_G:0602142_G'!V66 ) -> 0 | W66: =SUM('0602011_G:0602142_G'!W66 ) -> 0 | X66: =SUM('0602011_G:0602142_G'!X66 ) -> 2 | Y66: =SUM('0602011_G:0602142_G'!Y66 ) -> 0 | Z66: =SUM('0602011_G:0602142_G'!Z66 ) -> 835 | AA66: =SUM('0602011_G:0602142_G'!AA66 ) -> 0 | AB66: =SUM('0602011_G:0602142_G'!AB66 ) -> 0 | AC66: =SUM('0602011_G:0602142_G'!AC66 ) -> 2 | AD66: =SUM(T66:AC66) -> 842 | AE66: =SUM('0602011_G:0602142_G'!AE66 ) -> 0 | AF66: =SUM('0602011_G:0602142_G'!AF66 ) -> 0 | AG66: =SUM('0602011_G:0602142_G'!AG66 ) -> 0 | AH66: =SUM(AE66:AG66) -> 0 | AI66: =SUM('0602011_G:0602142_G'!AI66 ) -> 0 | AJ66: =SUM('0602011_G:0602142_G'!AJ66 ) -> 0
B67: 4.3 | C67: w stosunku do dróg gminnych | D67: Razem | E67: =SUM(E65:E66) -> 871 | F67: 0 | G67: 7 | H67: 0 | I67: 1 | J67: 4 | K67: =SUM(K65:K66) -> 2 | L67: =SUM(L65:L66) -> 0 | M67: =SUM(M65:M66) -> 1 | N67: =SUM(N65:N66) -> 0 | O67: =SUM(O65:O66) -> 0 | P67: 15 | Q67: 4 | R67: 0 | S67: 4 | T67: 0 | U67: 3 | V67: 5 | W67: 0 | X67: 2 | Y67: 0 | Z67: 840 | AA67: 0 | AB67: 0 | AC67: 2 | AD67: 852 | AE67: 0 | AF67: 0 | AG67: 0 | AH67: 0 | AI67: 0 | AJ67: 0
B68: Razem | C68: Grunty gmin i zw. międzygm. | D68: M | E68: =SUM(P68,S68,AD68,AH68,AI68,AJ68) -> 378 | F68: =SUM(F59,F62,F65) -> 0 | G68: =SUM(G59,G62,G65) -> 43 | H68: 0 | I68: 36 | J68: 18 | K68: 0 | L68: 3 | M68: 2 | N68: 18 | O68: 6 | P68: =SUM(G68,H68,I68,J68,K68,L68,M68,N68,O68) -> 126 | Q68: =SUM(Q59,Q62,Q65) -> 9 | R68: =SUM(R59,R62,R65) -> 0 | S68: =SUM(Q68:R68) -> 9 | T68: =SUM(T59,T62,T65) -> 7 | U68: =SUM(U59,U62,U65) -> 3 | V68: =SUM(V59,V62,V65) -> 40 | W68: 5 | X68: =SUM(X59,X62,X65) -> 21 | Y68: 1 | Z68: 155 | AA68: 0 | AB68: 0 | AC68: =SUM(AC59,AC62,AC65) -> 1 | AD68: =SUM(T68:AC68) -> 233 | AE68: =SUM(AE59,AE62,AE65) -> 0 | AF68: 0 | AG68: 10 | AH68: =SUM(AE68:AG68) -> 10 | AI68: =SUM(AI59,AI62,AI65) -> 0 | AJ68: =SUM(AJ59,AJ62,AJ65) -> 0
B69: 4.1 | C69: z wyłączeniem gruntów | D69: W | E69: =SUM(P69,S69,AD69,AH69,AI69,AJ69) -> 2696 | F69: =SUM(F60,F63,F66) -> 0 | G69: 202 | H69: =SUM(H60,H63,H66) -> 2 | I69: 131 | J69: 107 | K69: 40 | L69: 9 | M69: 8 | N69: 28 | O69: 14 | P69: =SUM(G69,H69,I69,J69,K69,L69,M69,N69,O69) -> 541 | Q69: =SUM(Q60,Q63,Q66) -> 87 | R69: =SUM(R60,R63,R66) -> 0 | S69: =SUM(Q69:R69) -> 87 | T69: =SUM(T60,T63,T66) -> 8 | U69: =SUM(U60,U63,U66) -> 8 | V69: 44 | W69: 3 | X69: =SUM(X60,X63,X66) -> 20 | Y69: 1 | Z69: 1923 | AA69: 0 | AB69: 2 | AC69: =SUM(AC60,AC63,AC66) -> 2 | AD69: =SUM(T69:AC69) -> 2011 | AE69: 0 | AF69: 0 | AG69: 54 | AH69: =SUM(AE69:AG69) -> 54 | AI69: =SUM(AI60,AI63,AI66) -> 0 | AJ69: =SUM(AJ60,AJ63,AJ66) -> 3
B70: 4.3 | C70: przekaz. w użytkowanie | D70: Razem | E70: =SUM(E68:E69) -> 3074 | F70: 0 | G70: 245 | H70: 2 | I70: 167 | J70: 125 | K70: =SUM(K68:K69) -> 40 | L70: =SUM(L68:L69) -> 12 | M70: =SUM(M68:M69) -> 10 | N70: =SUM(N68:N69) -> 46 | O70: =SUM(O68:O69) -> 20 | P70: 667 | Q70: 96 | R70: 0 | S70: 96 | T70: 15 | U70: 11 | V70: 84 | W70: 8 | X70: 41 | Y70: 2 | Z70: 2078 | AA70: 0 | AB70: 2 | AC70: 3 | AD70: 2244 | AE70: 0 | AF70: 0 | AG70: 64 | AH70: 64 | AI70: 0 | AJ70: 3
A71: 5 | C71: Grunty gmin i ich związków | D71: M | E71: =SUM(P71,S71,AD71,AH71,AI71,AJ71) -> 6 | F71: =SUM('0602011_G:0602142_G'!F71 ) -> 0 | G71: =SUM('0602011_G:0602142_G'!G71 ) -> 1 | H71: =SUM('0602011_G:0602142_G'!H71 ) -> 0 | I71: =SUM('0602011_G:0602142_G'!I71 ) -> 0 | J71: =SUM('0602011_G:0602142_G'!J71 ) -> 0 | K71: =SUM('0602011_G:0602142_G'!K71 ) -> 0 | L71: =SUM('0602011_G:0602142_G'!L71 ) -> 0 | M71: =SUM('0602011_G:0602142_G'!M71 ) -> 0 | N71: =SUM('0602011_G:0602142_G'!N71 ) -> 0 | O71: =SUM('0602011_G:0602142_G'!O71 ) -> 0 | P71: =SUM(G71:O71) -> 1 | Q71: =SUM('0602011_G:0602142_G'!Q71 ) -> 0 | R71: =SUM('0602011_G:0602142_G'!R71 ) -> 0 | S71: =SUM(Q71:R71) -> 0 | T71: =SUM('0602011_G:0602142_G'!T71 ) -> 2 | U71: =SUM('0602011_G:0602142_G'!U71 ) -> 0 | V71: =SUM('0602011_G:0602142_G'!V71 ) -> 3 | W71: =SUM('0602011_G:0602142_G'!W71 ) -> 0 | X71: =SUM('0602011_G:0602142_G'!X71 ) -> 0 | Y71: =SUM('0602011_G:0602142_G'!Y71 ) -> 0 | Z71: =SUM('0602011_G:0602142_G'!Z71 ) -> 0 | AA71: =SUM('0602011_G:0602142_G'!AA71 ) -> 0 | AB71: =SUM('0602011_G:0602142_G'!AB71 ) -> 0 | AC71: =SUM('0602011_G:0602142_G'!AC71 ) -> 0 | AD71: =SUM(T71:AC71) -> 5 | AE71: =SUM('0602011_G:0602142_G'!AE71 ) -> 0 | AF71: =SUM('0602011_G:0602142_G'!AF71 ) -> 0 | AG71: =SUM('0602011_G:0602142_G'!AG71 ) -> 0 | AH71: =SUM(AE71:AG71) -> 0 | AI71: =SUM('0602011_G:0602142_G'!AI71 ) -> 0 | AJ71: =SUM('0602011_G:0602142_G'!AJ71 ) -> 0
C72: w użytkowaniu wieczystym | D72: W | E72: =SUM(P72,S72,AD72,AH72,AI72,AJ72) -> 19 | F72: =SUM('0602011_G:0602142_G'!F72 ) -> 0 | G72: =SUM('0602011_G:0602142_G'!G72 ) -> 2 | H72: =SUM('0602011_G:0602142_G'!H72 ) -> 0 | I72: =SUM('0602011_G:0602142_G'!I72 ) -> 0 | J72: =SUM('0602011_G:0602142_G'!J72 ) -> 1 | K72: =SUM('0602011_G:0602142_G'!K72 ) -> 4 | L72: =SUM('0602011_G:0602142_G'!L72 ) -> 0 | M72: =SUM('0602011_G:0602142_G'!M72 ) -> 0 | N72: =SUM('0602011_G:0602142_G'!N72 ) -> 0 | O72: =SUM('0602011_G:0602142_G'!O72 ) -> 1 | P72: =SUM(G72:O72) -> 8 | Q72: =SUM('0602011_G:0602142_G'!Q72 ) -> 8 | R72: =SUM('0602011_G:0602142_G'!R72 ) -> 0 | S72: =SUM(Q72:R72) -> 8 | T72: =SUM('0602011_G:0602142_G'!T72 ) -> 1 | U72: =SUM('0602011_G:0602142_G'!U72 ) -> 0 | V72: =SUM('0602011_G:0602142_G'!V72 ) -> 2 | W72: =SUM('0602011_G:0602142_G'!W72 ) -> 0 | X72: =SUM('0602011_G:0602142_G'!X72 ) -> 0 | Y72: =SUM('0602011_G:0602142_G'!Y72 ) -> 0 | Z72: =SUM('0602011_G:0602142_G'!Z72 ) -> 0 | AA72: =SUM('0602011_G:0602142_G'!AA72 ) -> 0 | AB72: =SUM('0602011_G:0602142_G'!AB72 ) -> 0 | AC72: =SUM('0602011_G:0602142_G'!AC72 ) -> 0 | AD72: =SUM(T72:AC72) -> 3 | AE72: =SUM('0602011_G:0602142_G'!AE72 ) -> 0 | AF72: =SUM('0602011_G:0602142_G'!AF72 ) -> 0 | AG72: =SUM('0602011_G:0602142_G'!AG72 ) -> 0 | AH72: =SUM(AE72:AG72) -> 0 | AI72: =SUM('0602011_G:0602142_G'!AI72 ) -> 0 | AJ72: =SUM('0602011_G:0602142_G'!AJ72 ) -> 0
B73: 5.1 | C73: osób fizycznych | D73: Razem | E73: =SUM(E71,E72) -> 25 | F73: 0 | G73: 3 | H73: 0 | I73: 0 | J73: 1 | K73: 4 | L73: 0 | M73: =SUM(M71,M72) -> 0 | N73: =SUM(N71,N72) -> 0 | O73: 1 | P73: 9 | Q73: =SUM(Q71:Q72) -> 8 | R73: 0 | S73: 8 | T73: 3 | U73: 0 | V73: 5 | W73: 0 | X73: 0 | Y73: 0 | Z73: 0 | AA73: 0 | AB73: 0 | AC73: 0 | AD73: 8 | AE73: 0 | AF73: 0 | AG73: 0 | AH73: 0 | AI73: 0 | AJ73: 0
C74: Grunty gmin i ich związków | D74: M | E74: =SUM(P74,S74,AD74,AH74,AI74,AJ74) -> 0 | F74: =SUM('0602011_G:0602142_G'!F74 ) -> 0 | G74: =SUM('0602011_G:0602142_G'!G74 ) -> 0 | H74: =SUM('0602011_G:0602142_G'!H74 ) -> 0 | I74: =SUM('0602011_G:0602142_G'!I74 ) -> 0 | J74: =SUM('0602011_G:0602142_G'!J74 ) -> 0 | K74: =SUM('0602011_G:0602142_G'!K74 ) -> 0 | L74: =SUM('0602011_G:0602142_G'!L74 ) -> 0 | M74: =SUM('0602011_G:0602142_G'!M74 ) -> 0 | N74: =SUM('0602011_G:0602142_G'!N74 ) -> 0 | O74: =SUM('0602011_G:0602142_G'!O74 ) -> 0 | P74: =SUM(G74:O74) -> 0 | Q74: =SUM('0602011_G:0602142_G'!Q74 ) -> 0 | R74: =SUM('0602011_G:0602142_G'!R74 ) -> 0 | S74: =SUM(Q74:R74) -> 0 | T74: =SUM('0602011_G:0602142_G'!T74 ) -> 0 | U74: =SUM('0602011_G:0602142_G'!U74 ) -> 0 | V74: =SUM('0602011_G:0602142_G'!V74 ) -> 0 | W74: =SUM('0602011_G:0602142_G'!W74 ) -> 0 | X74: =SUM('0602011_G:0602142_G'!X74 ) -> 0 | Y74: =SUM('0602011_G:0602142_G'!Y74 ) -> 0 | Z74: =SUM('0602011_G:0602142_G'!Z74 ) -> 0 | AA74: =SUM('0602011_G:0602142_G'!AA74 ) -> 0 | AB74: =SUM('0602011_G:0602142_G'!AB74 ) -> 0 | AC74: =SUM('0602011_G:0602142_G'!AC74 ) -> 0 | AD74: =SUM(T74:AC74) -> 0 | AE74: =SUM('0602011_G:0602142_G'!AE74 ) -> 0 | AF74: =SUM('0602011_G:0602142_G'!AF74 ) -> 0 | AG74: =SUM('0602011_G:0602142_G'!AG74 ) -> 0 | AH74: =SUM(AE74:AG74) -> 0 | AI74: =SUM('0602011_G:0602142_G'!AI74 ) -> 0 | AJ74: =SUM('0602011_G:0602142_G'!AJ74 ) -> 0
C75: w użytkowaniu wieczystym | D75: W | E75: =SUM(P75,S75,AD75,AH75,AI75,AJ75) -> 0 | F75: =SUM('0602011_G:0602142_G'!F75 ) -> 0 | G75: =SUM('0602011_G:0602142_G'!G75 ) -> 0 | H75: =SUM('0602011_G:0602142_G'!H75 ) -> 0 | I75: =SUM('0602011_G:0602142_G'!I75 ) -> 0 | J75: =SUM('0602011_G:0602142_G'!J75 ) -> 0 | K75: =SUM('0602011_G:0602142_G'!K75 ) -> 0 | L75: =SUM('0602011_G:0602142_G'!L75 ) -> 0 | M75: =SUM('0602011_G:0602142_G'!M75 ) -> 0 | N75: =SUM('0602011_G:0602142_G'!N75 ) -> 0 | O75: =SUM('0602011_G:0602142_G'!O75 ) -> 0 | P75: =SUM(G75:O75) -> 0 | Q75: =SUM('0602011_G:0602142_G'!Q75 ) -> 0 | R75: =SUM('0602011_G:0602142_G'!R75 ) -> 0 | S75: =SUM(Q75:R75) -> 0 | T75: =SUM('0602011_G:0602142_G'!T75 ) -> 0 | U75: =SUM('0602011_G:0602142_G'!U75 ) -> 0 | V75: =SUM('0602011_G:0602142_G'!V75 ) -> 0 | W75: =SUM('0602011_G:0602142_G'!W75 ) -> 0 | X75: =SUM('0602011_G:0602142_G'!X75 ) -> 0 | Y75: =SUM('0602011_G:0602142_G'!Y75 ) -> 0 | Z75: =SUM('0602011_G:0602142_G'!Z75 ) -> 0 | AA75: =SUM('0602011_G:0602142_G'!AA75 ) -> 0 | AB75: =SUM('0602011_G:0602142_G'!AB75 ) -> 0 | AC75: =SUM('0602011_G:0602142_G'!AC75 ) -> 0 | AD75: =SUM(T75:AC75) -> 0 | AE75: =SUM('0602011_G:0602142_G'!AE75 ) -> 0 | AF75: =SUM('0602011_G:0602142_G'!AF75 ) -> 0 | AG75: =SUM('0602011_G:0602142_G'!AG75 ) -> 0 | AH75: =SUM(AE75:AG75) -> 0 | AI75: =SUM('0602011_G:0602142_G'!AI75 ) -> 0 | AJ75: =SUM('0602011_G:0602142_G'!AJ75 ) -> 0
B76: 5.2 | C76: gminnych osób prawnych | D76: Razem | E76: =SUM(E74:E75) -> 0 | F76: 0 | G76: 0 | H76: 0 | I76: 0 | J76: 0 | K76: 0 | L76: 0 | M76: =SUM(M74:M75) -> 0 | N76: =SUM(N74:N75) -> 0 | O76: 0 | P76: 0 | Q76: 0 | R76: 0 | S76: 0 | T76: 0 | U76: 0 | V76: 0 | W76: 0 | X76: 0 | Y76: 0 | Z76: 0 | AA76: 0 | AB76: 0 | AC76: 0 | AD76: 0 | AE76: 0 | AF76: 0 | AG76: 0 | AH76: 0 | AI76: 0 | AJ76: 0
C77: Grunty gmin i ich związków | D77: M | E77: =SUM(P77,S77,AD77,AH77,AI77,AJ77) -> 3 | F77: =SUM('0602011_G:0602142_G'!F77 ) -> 0 | G77: =SUM('0602011_G:0602142_G'!G77 ) -> 0 | H77: =SUM('0602011_G:0602142_G'!H77 ) -> 0 | I77: =SUM('0602011_G:0602142_G'!I77 ) -> 0 | J77: =SUM('0602011_G:0602142_G'!J77 ) -> 0 | K77: =SUM('0602011_G:0602142_G'!K77 ) -> 0 | L77: =SUM('0602011_G:0602142_G'!L77 ) -> 0 | M77: =SUM('0602011_G:0602142_G'!M77 ) -> 0 | N77: =SUM('0602011_G:0602142_G'!N77 ) -> 0 | O77: =SUM('0602011_G:0602142_G'!O77 ) -> 0 | P77: =SUM(G77:O77) -> 0 | Q77: =SUM('0602011_G:0602142_G'!Q77 ) -> 0 | R77: =SUM('0602011_G:0602142_G'!R77 ) -> 0 | S77: =SUM(Q77:R77) -> 0 | T77: =SUM('0602011_G:0602142_G'!T77 ) -> 3 | U77: =SUM('0602011_G:0602142_G'!U77 ) -> 0 | V77: =SUM('0602011_G:0602142_G'!V77 ) -> 0 | W77: =SUM('0602011_G:0602142_G'!W77 ) -> 0 | X77: =SUM('0602011_G:0602142_G'!X77 ) -> 0 | Y77: =SUM('0602011_G:0602142_G'!Y77 ) -> 0 | Z77: =SUM('0602011_G:0602142_G'!Z77 ) -> 0 | AA77: =SUM('0602011_G:0602142_G'!AA77 ) -> 0 | AB77: =SUM('0602011_G:0602142_G'!AB77 ) -> 0 | AC77: =SUM('0602011_G:0602142_G'!AC77 ) -> 0 | AD77: =SUM(T77:AC77) -> 3 | AE77: =SUM('0602011_G:0602142_G'!AE77 ) -> 0 | AF77: =SUM('0602011_G:0602142_G'!AF77 ) -> 0 | AG77: =SUM('0602011_G:0602142_G'!AG77 ) -> 0 | AH77: =SUM(AE77:AG77) -> 0 | AI77: =SUM('0602011_G:0602142_G'!AI77 ) -> 0 | AJ77: =SUM('0602011_G:0602142_G'!AJ77 ) -> 0
C78: w użytkowaniu wieczystym | D78: W | E78: =SUM(P78,S78,AD78,AH78,AI78,AJ78) -> 0 | F78: =SUM('0602011_G:0602142_G'!F78 ) -> 0 | G78: =SUM('0602011_G:0602142_G'!G78 ) -> 0 | H78: =SUM('0602011_G:0602142_G'!H78 ) -> 0 | I78: =SUM('0602011_G:0602142_G'!I78 ) -> 0 | J78: =SUM('0602011_G:0602142_G'!J78 ) -> 0 | K78: =SUM('0602011_G:0602142_G'!K78 ) -> 0 | L78: =SUM('0602011_G:0602142_G'!L78 ) -> 0 | M78: =SUM('0602011_G:0602142_G'!M78 ) -> 0 | N78: =SUM('0602011_G:0602142_G'!N78 ) -> 0 | O78: =SUM('0602011_G:0602142_G'!O78 ) -> 0 | P78: =SUM(G78:O78) -> 0 | Q78: =SUM('0602011_G:0602142_G'!Q78 ) -> 0 | R78: =SUM('0602011_G:0602142_G'!R78 ) -> 0 | S78: =SUM(Q78:R78) -> 0 | T78: =SUM('0602011_G:0602142_G'!T78 ) -> 0 | U78: =SUM('0602011_G:0602142_G'!U78 ) -> 0 | V78: =SUM('0602011_G:0602142_G'!V78 ) -> 0 | W78: =SUM('0602011_G:0602142_G'!W78 ) -> 0 | X78: =SUM('0602011_G:0602142_G'!X78 ) -> 0 | Y78: =SUM('0602011_G:0602142_G'!Y78 ) -> 0 | Z78: =SUM('0602011_G:0602142_G'!Z78 ) -> 0 | AA78: =SUM('0602011_G:0602142_G'!AA78 ) -> 0 | AB78: =SUM('0602011_G:0602142_G'!AB78 ) -> 0 | AC78: =SUM('0602011_G:0602142_G'!AC78 ) -> 0 | AD78: =SUM(T78:AC78) -> 0 | AE78: =SUM('0602011_G:0602142_G'!AE78 ) -> 0 | AF78: =SUM('0602011_G:0602142_G'!AF78 ) -> 0 | AG78: =SUM('0602011_G:0602142_G'!AG78 ) -> 0 | AH78: =SUM(AE78:AG78) -> 0 | AI78: =SUM('0602011_G:0602142_G'!AI78 ) -> 0 | AJ78: =SUM('0602011_G:0602142_G'!AJ78 ) -> 0
B79: 5.3 | C79: spółdzielni mieszkaniowych | D79: Razem | E79: =SUM(E77:E78) -> 3 | F79: 0 | G79: 0 | H79: 0 | I79: 0 | J79: 0 | K79: 0 | L79: 0 | M79: =SUM(M77:M78) -> 0 | N79: =SUM(N77:N78) -> 0 | O79: 0 | P79: =SUM(P77:P78) -> 0 | Q79: 0 | R79: 0 | S79: 0 | T79: 3 | U79: 0 | V79: 0 | W79: 0 | X79: 0 | Y79: 0 | Z79: 0 | AA79: 0 | AB79: 0 | AC79: 0 | AD79: 3 | AE79: 0 | AF79: 0 | AG79: 0 | AH79: 0 | AI79: 0 | AJ79: 0
C80: Grunty gmin i ich związków | D80: M | E80: =SUM(P80,S80,AD80,AH80,AI80,AJ80) -> 41 | F80: =SUM('0602011_G:0602142_G'!F80 ) -> 0 | G80: =SUM('0602011_G:0602142_G'!G80 ) -> 26 | H80: =SUM('0602011_G:0602142_G'!H80 ) -> 0 | I80: =SUM('0602011_G:0602142_G'!I80 ) -> 1 | J80: =SUM('0602011_G:0602142_G'!J80 ) -> 0 | K80: =SUM('0602011_G:0602142_G'!K80 ) -> 0 | L80: =SUM('0602011_G:0602142_G'!L80 ) -> 0 | M80: =SUM('0602011_G:0602142_G'!M80 ) -> 0 | N80: =SUM('0602011_G:0602142_G'!N80 ) -> 0 | O80: =SUM('0602011_G:0602142_G'!O80 ) -> 0 | P80: =SUM(G80:O80) -> 27 | Q80: =SUM('0602011_G:0602142_G'!Q80 ) -> 0 | R80: =SUM('0602011_G:0602142_G'!R80 ) -> 0 | S80: =SUM(Q80:R80) -> 0 | T80: =SUM('0602011_G:0602142_G'!T80 ) -> 0 | U80: =SUM('0602011_G:0602142_G'!U80 ) -> 4 | V80: =SUM('0602011_G:0602142_G'!V80 ) -> 10 | W80: =SUM('0602011_G:0602142_G'!W80 ) -> 0 | X80: =SUM('0602011_G:0602142_G'!X80 ) -> 0 | Y80: =SUM('0602011_G:0602142_G'!Y80 ) -> 0 | Z80: =SUM('0602011_G:0602142_G'!Z80 ) -> 0 | AA80: =SUM('0602011_G:0602142_G'!AA80 ) -> 0 | AB80: =SUM('0602011_G:0602142_G'!AB80 ) -> 0 | AC80: =SUM('0602011_G:0602142_G'!AC80 ) -> 0 | AD80: =SUM(T80:AC80) -> 14 | AE80: =SUM('0602011_G:0602142_G'!AE80 ) -> 0 | AF80: =SUM('0602011_G:0602142_G'!AF80 ) -> 0 | AG80: =SUM('0602011_G:0602142_G'!AG80 ) -> 0 | AH80: =SUM(AE80:AG80) -> 0 | AI80: =SUM('0602011_G:0602142_G'!AI80 ) -> 0 | AJ80: =SUM('0602011_G:0602142_G'!AJ80 ) -> 0
C81: w użytkowaniu wieczystym | D81: W | E81: =SUM(P81,S81,AD81,AH81,AI81,AJ81) -> 14 | F81: =SUM('0602011_G:0602142_G'!F81 ) -> 0 | G81: =SUM('0602011_G:0602142_G'!G81 ) -> 0 | H81: =SUM('0602011_G:0602142_G'!H81 ) -> 0 | I81: =SUM('0602011_G:0602142_G'!I81 ) -> 0 | J81: =SUM('0602011_G:0602142_G'!J81 ) -> 0 | K81: =SUM('0602011_G:0602142_G'!K81 ) -> 2 | L81: =SUM('0602011_G:0602142_G'!L81 ) -> 0 | M81: =SUM('0602011_G:0602142_G'!M81 ) -> 0 | N81: =SUM('0602011_G:0602142_G'!N81 ) -> 0 | O81: =SUM('0602011_G:0602142_G'!O81 ) -> 0 | P81: =SUM(G81:O81) -> 2 | Q81: =SUM('0602011_G:0602142_G'!Q81 ) -> 0 | R81: =SUM('0602011_G:0602142_G'!R81 ) -> 0 | S81: =SUM(Q81:R81) -> 0 | T81: =SUM('0602011_G:0602142_G'!T81 ) -> 0 | U81: =SUM('0602011_G:0602142_G'!U81 ) -> 0 | V81: =SUM('0602011_G:0602142_G'!V81 ) -> 10 | W81: =SUM('0602011_G:0602142_G'!W81 ) -> 0 | X81: =SUM('0602011_G:0602142_G'!X81 ) -> 0 | Y81: =SUM('0602011_G:0602142_G'!Y81 ) -> 0 | Z81: =SUM('0602011_G:0602142_G'!Z81 ) -> 0 | AA81: =SUM('0602011_G:0602142_G'!AA81 ) -> 0 | AB81: =SUM('0602011_G:0602142_G'!AB81 ) -> 0 | AC81: =SUM('0602011_G:0602142_G'!AC81 ) -> 0 | AD81: =SUM(T81:AC81) -> 10 | AE81: =SUM('0602011_G:0602142_G'!AE81 ) -> 0 | AF81: =SUM('0602011_G:0602142_G'!AF81 ) -> 0 | AG81: =SUM('0602011_G:0602142_G'!AG81 ) -> 0 | AH81: =SUM(AE81:AG81) -> 0 | AI81: =SUM('0602011_G:0602142_G'!AI81 ) -> 0 | AJ81: =SUM('0602011_G:0602142_G'!AJ81 ) -> 2
B82: 5.4 | C82: pozostałych osób | D82: Razem | E82: =SUM(E80:E81) -> 55 | F82: 0 | G82: 26 | H82: 0 | I82: 1 | J82: 0 | K82: 2 | L82: 0 | M82: =SUM(M80:M81) -> 0 | N82: =SUM(N80:N81) -> 0 | O82: 0 | P82: 29 | Q82: 0 | R82: 0 | S82: 0 | T82: 0 | U82: 4 | V82: 20 | W82: 0 | X82: 0 | Y82: 0 | Z82: 0 | AA82: 0 | AB82: 0 | AC82: 0 | AD82: 24 | AE82: 0 | AF82: 0 | AG82: 0 | AH82: 0 | AI82: 0 | AJ82: 2
B83: Razem | C83: Grunty gmin i związków | D83: M | E83: =SUM(P83,S83,AD83,AH83,AI83,AJ83) -> 50 | F83: =SUM(F71,F74,F77,F80) -> 0 | G83: 27 | H83: 0 | I83: 1 | J83: 0 | K83: 0 | L83: 0 | M83: 0 | N83: 0 | O83: 0 | P83: =SUM(G83,H83,I83,J83,K83,L83,M83,N83,O83) -> 28 | Q83: =SUM(Q71,Q74,Q77,Q80) -> 0 | R83: =SUM(R71,R74,R77,R80) -> 0 | S83: =SUM(Q83:R83) -> 0 | T83: =SUM(T71,T74,T77,T80) -> 5 | U83: 4 | V83: 13 | W83: 0 | X83: =SUM(X71,X74,X77,X80) -> 0 | Y83: 0 | Z83: 0 | AA83: 0 | AB83: 0 | AC83: 0 | AD83: =SUM(T83:AC83) -> 22 | AE83: =SUM(AE71,AE74,AE77,AE80) -> 0 | AF83: 0 | AG83: 0 | AH83: =SUM(AE83:AG83) -> 0 | AI83: =SUM(AI71,AI74,AI77,AI80) -> 0 | AJ83: =SUM(AJ71,AJ74,AJ77,AJ80) -> 0
B84: 5.1 | C84: międzygminnych przekazane | D84: W | E84: =SUM(P84,S84,AD84,AH84,AI84,AJ84) -> 33 | F84: 0 | G84: 2 | H84: 0 | I84: 0 | J84: 1 | K84: 6 | L84: 0 | M84: 0 | N84: 0 | O84: 1 | P84: =SUM(G84,H84,I84,J84,K84,L84,M84,N84,O84) -> 10 | Q84: =SUM(Q72,Q75,Q78,Q81) -> 8 | R84: =SUM(R72,R75,R78,R81) -> 0 | S84: =SUM(Q84:R84) -> 8 | T84: 1 | U84: 0 | V84: 12 | W84: 0 | X84: =SUM(X72,X75,X78,X81) -> 0 | Y84: 0 | Z84: 0 | AA84: 0 | AB84: 0 | AC84: 0 | AD84: =SUM(T84:AC84) -> 13 | AE84: 0 | AF84: 0 | AG84: 0 | AH84: =SUM(AE84:AG84) -> 0 | AI84: =SUM(AI72,AI75,AI78,AI81) -> 0 | AJ84: =SUM(AJ72,AJ75,AJ78,AJ81) -> 2
B85: 5.4 | C85: w uż. wieczyste | D85: Razem | E85: =SUM(E83:E84) -> 83 | F85: 0 | G85: 29 | H85: 0 | I85: 1 | J85: 1 | K85: 6 | L85: 0 | M85: =SUM(M83:M84) -> 0 | N85: =SUM(N83:N84) -> 0 | O85: 1 | P85: 38 | Q85: 8 | R85: 0 | S85: 8 | T85: 6 | U85: 4 | V85: 25 | W85: 0 | X85: 0 | Y85: 0 | Z85: 0 | AA85: 0 | AB85: 0 | AC85: 0 | AD85: 35 | AE85: 0 | AF85: 0 | AG85: 0 | AH85: 0 | AI85: 0 | AJ85: 2
A86: 6 | C86: Grunty, które są wł. gm. | D86: M | E86: =SUM(P86,S86,AD86,AH86,AI86,AJ86) -> 0 | F86: =SUM('0602011_G:0602142_G'!F86 ) -> 0 | G86: =SUM('0602011_G:0602142_G'!G86 ) -> 0 | H86: =SUM('0602011_G:0602142_G'!H86 ) -> 0 | I86: =SUM('0602011_G:0602142_G'!I86 ) -> 0 | J86: =SUM('0602011_G:0602142_G'!J86 ) -> 0 | K86: =SUM('0602011_G:0602142_G'!K86 ) -> 0 | L86: =SUM('0602011_G:0602142_G'!L86 ) -> 0 | M86: =SUM('0602011_G:0602142_G'!M86 ) -> 0 | N86: =SUM('0602011_G:0602142_G'!N86 ) -> 0 | O86: =SUM('0602011_G:0602142_G'!O86 ) -> 0 | P86: =SUM(G86:O86) -> 0 | Q86: =SUM('0602011_G:0602142_G'!Q86 ) -> 0 | R86: =SUM('0602011_G:0602142_G'!R86 ) -> 0 | S86: =SUM(Q86:R86) -> 0 | T86: =SUM('0602011_G:0602142_G'!T86 ) -> 0 | U86: =SUM('0602011_G:0602142_G'!U86 ) -> 0 | V86: =SUM('0602011_G:0602142_G'!V86 ) -> 0 | W86: =SUM('0602011_G:0602142_G'!W86 ) -> 0 | X86: =SUM('0602011_G:0602142_G'!X86 ) -> 0 | Y86: =SUM('0602011_G:0602142_G'!Y86 ) -> 0 | Z86: =SUM('0602011_G:0602142_G'!Z86 ) -> 0 | AA86: =SUM('0602011_G:0602142_G'!AA86 ) -> 0 | AB86: =SUM('0602011_G:0602142_G'!AB86 ) -> 0 | AC86: =SUM('0602011_G:0602142_G'!AC86 ) -> 0 | AD86: =SUM(T86:AC86) -> 0 | AE86: =SUM('0602011_G:0602142_G'!AE86 ) -> 0 | AF86: =SUM('0602011_G:0602142_G'!AF86 ) -> 0 | AG86: =SUM('0602011_G:0602142_G'!AG86 ) -> 0 | AH86: =SUM(AE86:AG86) -> 0 | AI86: =SUM('0602011_G:0602142_G'!AI86 ) -> 0 | AJ86: =SUM('0602011_G:0602142_G'!AJ86 ) -> 0
C87: osób prawnych, oraz grunty, | D87: W | E87: =SUM(P87,S87,AD87,AH87,AI87,AJ87) -> 106 | F87: =SUM('0602011_G:0602142_G'!F87 ) -> 0 | G87: =SUM('0602011_G:0602142_G'!G87 ) -> 9 | H87: =SUM('0602011_G:0602142_G'!H87 ) -> 0 | I87: =SUM('0602011_G:0602142_G'!I87 ) -> 3 | J87: =SUM('0602011_G:0602142_G'!J87 ) -> 3 | K87: =SUM('0602011_G:0602142_G'!K87 ) -> 0 | L87: =SUM('0602011_G:0602142_G'!L87 ) -> 0 | M87: =SUM('0602011_G:0602142_G'!M87 ) -> 0 | N87: =SUM('0602011_G:0602142_G'!N87 ) -> 3 | O87: =SUM('0602011_G:0602142_G'!O87 ) -> 0 | P87: =SUM(G87:O87) -> 18 | Q87: =SUM('0602011_G:0602142_G'!Q87 ) -> 18 | R87: =SUM('0602011_G:0602142_G'!R87 ) -> 0 | S87: =SUM(Q87:R87) -> 18 | T87: =SUM('0602011_G:0602142_G'!T87 ) -> 0 | U87: =SUM('0602011_G:0602142_G'!U87 ) -> 2 | V87: =SUM('0602011_G:0602142_G'!V87 ) -> 4 | W87: =SUM('0602011_G:0602142_G'!W87 ) -> 0 | X87: =SUM('0602011_G:0602142_G'!X87 ) -> 1 | Y87: =SUM('0602011_G:0602142_G'!Y87 ) -> 0 | Z87: =SUM('0602011_G:0602142_G'!Z87 ) -> 58 | AA87: =SUM('0602011_G:0602142_G'!AA87 ) -> 0 | AB87: =SUM('0602011_G:0602142_G'!AB87 ) -> 0 | AC87: =SUM('0602011_G:0602142_G'!AC87 ) -> 0 | AD87: =SUM(T87:AC87) -> 65 | AE87: =SUM('0602011_G:0602142_G'!AE87 ) -> 0 | AF87: =SUM('0602011_G:0602142_G'!AF87 ) -> 5 | AG87: =SUM('0602011_G:0602142_G'!AG87 ) -> 0 | AH87: =SUM(AE87:AG87) -> 5 | AI87: =SUM('0602011_G:0602142_G'!AI87 ) -> 0 | AJ87: =SUM('0602011_G:0602142_G'!AJ87 ) -> 0
B88: 6.1 | C88: których wł. są nieznani | D88: Razem | E88: =SUM(E86:E87) -> 106 | F88: 0 | G88: 9 | H88: 0 | I88: 3 | J88: 3 | K88: 0 | L88: 0 | M88: =SUM(M86:M87) -> 0 | N88: =SUM(N86:N87) -> 3 | O88: 0 | P88: 18 | Q88: 18 | R88: 0 | S88: 18 | T88: 0 | U88: 2 | V88: 4 | W88: 0 | X88: 1 | Y88: 0 | Z88: 58 | AA88: 0 | AB88: 0 | AC88: 0 | AD88: 65 | AE88: 0 | AF88: 5 | AG88: 0 | AH88: 5 | AI88: 0 | AJ88: 0
C89: Grunty, które są wł. powiat. | D89: M | E89: =SUM(P89,S89,AD89,AH89,AI89,AJ89) -> 0 | F89: =SUM('0602011_G:0602142_G'!F89 ) -> 0 | G89: =SUM('0602011_G:0602142_G'!G89 ) -> 0 | H89: =SUM('0602011_G:0602142_G'!H89 ) -> 0 | I89: =SUM('0602011_G:0602142_G'!I89 ) -> 0 | J89: =SUM('0602011_G:0602142_G'!J89 ) -> 0 | K89: =SUM('0602011_G:0602142_G'!K89 ) -> 0 | L89: =SUM('0602011_G:0602142_G'!L89 ) -> 0 | M89: =SUM('0602011_G:0602142_G'!M89 ) -> 0 | N89: =SUM('0602011_G:0602142_G'!N89 ) -> 0 | O89: =SUM('0602011_G:0602142_G'!O89 ) -> 0 | P89: =SUM(G89:O89) -> 0 | Q89: =SUM('0602011_G:0602142_G'!Q89 ) -> 0 | R89: =SUM('0602011_G:0602142_G'!R89 ) -> 0 | S89: =SUM(Q89:R89) -> 0 | T89: =SUM('0602011_G:0602142_G'!T89 ) -> 0 | U89: =SUM('0602011_G:0602142_G'!U89 ) -> 0 | V89: =SUM('0602011_G:0602142_G'!V89 ) -> 0 | W89: =SUM('0602011_G:0602142_G'!W89 ) -> 0 | X89: =SUM('0602011_G:0602142_G'!X89 ) -> 0 | Y89: =SUM('0602011_G:0602142_G'!Y89 ) -> 0 | Z89: =SUM('0602011_G:0602142_G'!Z89 ) -> 0 | AA89: =SUM('0602011_G:0602142_G'!AA89 ) -> 0 | AB89: =SUM('0602011_G:0602142_G'!AB89 ) -> 0 | AC89: =SUM('0602011_G:0602142_G'!AC89 ) -> 0 | AD89: =SUM(T89:AC89) -> 0 | AE89: =SUM('0602011_G:0602142_G'!AE89 ) -> 0 | AF89: =SUM('0602011_G:0602142_G'!AF89 ) -> 0 | AG89: =SUM('0602011_G:0602142_G'!AG89 ) -> 0 | AH89: =SUM(AE89:AG89) -> 0 | AI89: =SUM('0602011_G:0602142_G'!AI89 ) -> 0 | AJ89: =SUM('0602011_G:0602142_G'!AJ89 ) -> 0
C90: osób prawnych, oraz grunty, | D90: W | E90: =SUM(P90,S90,AD90,AH90,AI90,AJ90) -> 4 | F90: =SUM('0602011_G:0602142_G'!F90 ) -> 0 | G90: =SUM('0602011_G:0602142_G'!G90 ) -> 0 | H90: =SUM('0602011_G:0602142_G'!H90 ) -> 0 | I90: =SUM('0602011_G:0602142_G'!I90 ) -> 0 | J90: =SUM('0602011_G:0602142_G'!J90 ) -> 0 | K90: =SUM('0602011_G:0602142_G'!K90 ) -> 0 | L90: =SUM('0602011_G:0602142_G'!L90 ) -> 0 | M90: =SUM('0602011_G:0602142_G'!M90 ) -> 0 | N90: =SUM('0602011_G:0602142_G'!N90 ) -> 0 | O90: =SUM('0602011_G:0602142_G'!O90 ) -> 0 | P90: =SUM(G90:O90) -> 0 | Q90: =SUM('0602011_G:0602142_G'!Q90 ) -> 0 | R90: =SUM('0602011_G:0602142_G'!R90 ) -> 0 | S90: =SUM(Q90:R90) -> 0 | T90: =SUM('0602011_G:0602142_G'!T90 ) -> 0 | U90: =SUM('0602011_G:0602142_G'!U90 ) -> 0 | V90: =SUM('0602011_G:0602142_G'!V90 ) -> 0 | W90: =SUM('0602011_G:0602142_G'!W90 ) -> 0 | X90: =SUM('0602011_G:0602142_G'!X90 ) -> 0 | Y90: =SUM('0602011_G:0602142_G'!Y90 ) -> 0 | Z90: =SUM('0602011_G:0602142_G'!Z90 ) -> 4 | AA90: =SUM('0602011_G:0602142_G'!AA90 ) -> 0 | AB90: =SUM('0602011_G:0602142_G'!AB90 ) -> 0 | AC90: =SUM('0602011_G:0602142_G'!AC90 ) -> 0 | AD90: =SUM(T90:AC90) -> 4 | AE90: =SUM('0602011_G:0602142_G'!AE90 ) -> 0 | AF90: =SUM('0602011_G:0602142_G'!AF90 ) -> 0 | AG90: =SUM('0602011_G:0602142_G'!AG90 ) -> 0 | AH90: =SUM(AE90:AG90) -> 0 | AI90: =SUM('0602011_G:0602142_G'!AI90 ) -> 0 | AJ90: =SUM('0602011_G:0602142_G'!AJ90 ) -> 0
B91: 6.2 | C91: których wł. są nieznani | D91: Razem | E91: =SUM(E89:E90) -> 4 | F91: =SUM(F89:F90) -> 0 | G91: 0 | H91: 0 | I91: 0 | J91: 0 | K91: 0 | L91: 0 | M91: =SUM(M89:M90) -> 0 | N91: =SUM(N89:N90) -> 0 | O91: 0 | P91: 0 | Q91: 0 | R91: 0 | S91: 0 | T91: 0 | U91: 0 | V91: 0 | W91: 0 | X91: 0 | Y91: 0 | Z91: 4 | AA91: 0 | AB91: 0 | AC91: 0 | AD91: 4 | AE91: 0 | AF91: 0 | AG91: 0 | AH91: 0 | AI91: 0 | AJ91: 0
C92: Grunty, które są wł. woj. | D92: M | E92: =SUM(P92,S92,AD92,AH92,AI92,AJ92) -> 0 | F92: =SUM('0602011_G:0602142_G'!F92 ) -> 0 | G92: =SUM('0602011_G:0602142_G'!G92 ) -> 0 | H92: =SUM('0602011_G:0602142_G'!H92 ) -> 0 | I92: =SUM('0602011_G:0602142_G'!I92 ) -> 0 | J92: =SUM('0602011_G:0602142_G'!J92 ) -> 0 | K92: =SUM('0602011_G:0602142_G'!K92 ) -> 0 | L92: =SUM('0602011_G:0602142_G'!L92 ) -> 0 | M92: =SUM('0602011_G:0602142_G'!M92 ) -> 0 | N92: =SUM('0602011_G:0602142_G'!N92 ) -> 0 | O92: =SUM('0602011_G:0602142_G'!O92 ) -> 0 | P92: =SUM(G92:O92) -> 0 | Q92: =SUM('0602011_G:0602142_G'!Q92 ) -> 0 | R92: =SUM('0602011_G:0602142_G'!R92 ) -> 0 | S92: =SUM(Q92:R92) -> 0 | T92: =SUM('0602011_G:0602142_G'!T92 ) -> 0 | U92: =SUM('0602011_G:0602142_G'!U92 ) -> 0 | V92: =SUM('0602011_G:0602142_G'!V92 ) -> 0 | W92: =SUM('0602011_G:0602142_G'!W92 ) -> 0 | X92: =SUM('0602011_G:0602142_G'!X92 ) -> 0 | Y92: =SUM('0602011_G:0602142_G'!Y92 ) -> 0 | Z92: =SUM('0602011_G:0602142_G'!Z92 ) -> 0 | AA92: =SUM('0602011_G:0602142_G'!AA92 ) -> 0 | AB92: =SUM('0602011_G:0602142_G'!AB92 ) -> 0 | AC92: =SUM('0602011_G:0602142_G'!AC92 ) -> 0 | AD92: =SUM(T92:AC92) -> 0 | AE92: =SUM('0602011_G:0602142_G'!AE92 ) -> 0 | AF92: =SUM('0602011_G:0602142_G'!AF92 ) -> 0 | AG92: =SUM('0602011_G:0602142_G'!AG92 ) -> 0 | AH92: =SUM(AE92:AG92) -> 0 | AI92: =SUM('0602011_G:0602142_G'!AI92 ) -> 0 | AJ92: =SUM('0602011_G:0602142_G'!AJ92 ) -> 0
C93: osób prawnych, oraz grunty, | D93: W | E93: =SUM(P93,S93,AD93,AH93,AI93,AJ93) -> 18 | F93: =SUM('0602011_G:0602142_G'!F93 ) -> 0 | G93: =SUM('0602011_G:0602142_G'!G93 ) -> 0 | H93: =SUM('0602011_G:0602142_G'!H93 ) -> 0 | I93: =SUM('0602011_G:0602142_G'!I93 ) -> 0 | J93: =SUM('0602011_G:0602142_G'!J93 ) -> 0 | K93: =SUM('0602011_G:0602142_G'!K93 ) -> 0 | L93: =SUM('0602011_G:0602142_G'!L93 ) -> 0 | M93: =SUM('0602011_G:0602142_G'!M93 ) -> 0 | N93: =SUM('0602011_G:0602142_G'!N93 ) -> 0 | O93: =SUM('0602011_G:0602142_G'!O93 ) -> 0 | P93: =SUM(G93:O93) -> 0 | Q93: =SUM('0602011_G:0602142_G'!Q93 ) -> 0 | R93: =SUM('0602011_G:0602142_G'!R93 ) -> 0 | S93: =SUM(Q93:R93) -> 0 | T93: =SUM('0602011_G:0602142_G'!T93 ) -> 0 | U93: =SUM('0602011_G:0602142_G'!U93 ) -> 0 | V93: =SUM('0602011_G:0602142_G'!V93 ) -> 0 | W93: =SUM('0602011_G:0602142_G'!W93 ) -> 0 | X93: =SUM('0602011_G:0602142_G'!X93 ) -> 0 | Y93: =SUM('0602011_G:0602142_G'!Y93 ) -> 0 | Z93: =SUM('0602011_G:0602142_G'!Z93 ) -> 18 | AA93: =SUM('0602011_G:0602142_G'!AA93 ) -> 0 | AB93: =SUM('0602011_G:0602142_G'!AB93 ) -> 0 | AC93: =SUM('0602011_G:0602142_G'!AC93 ) -> 0 | AD93: =SUM(T93:AC93) -> 18 | AE93: =SUM('0602011_G:0602142_G'!AE93 ) -> 0 | AF93: =SUM('0602011_G:0602142_G'!AF93 ) -> 0 | AG93: =SUM('0602011_G:0602142_G'!AG93 ) -> 0 | AH93: =SUM(AE93:AG93) -> 0 | AI93: =SUM('0602011_G:0602142_G'!AI93 ) -> 0 | AJ93: =SUM('0602011_G:0602142_G'!AJ93 ) -> 0
B94: 6.3 | C94: których wł. są nieznani | D94: Razem | E94: =SUM(E92:E93) -> 18 | F94: 0 | G94: 0 | H94: 0 | I94: 0 | J94: 0 | K94: 0 | L94: 0 | M94: =SUM(M92:M93) -> 0 | N94: =SUM(N92:N93) -> 0 | O94: 0 | P94: 0 | Q94: 0 | R94: 0 | S94: 0 | T94: 0 | U94: 0 | V94: 0 | W94: 0 | X94: 0 | Y94: 0 | Z94: 18 | AA94: 0 | AB94: 0 | AC94: 0 | AD94: 18 | AE94: 0 | AF94: 0 | AG94: 0 | AH94: 0 | AI94: 0 | AJ94: 0
B95: Razem | C95: Grunty, które są własnością | D95: M | E95: =SUM(P95,S95,AD95,AH95,AI95,AJ95) -> 0 | F95: =SUM(F86,F89,F92) -> 0 | G95: =SUM(G86,G89,G92) -> 0 | H95: 0 | I95: 0 | J95: 0 | K95: 0 | L95: 0 | M95: 0 | N95: 0 | O95: 0 | P95: =SUM(G95,H95,I95,J95,K95,L95,M95,N95,O95) -> 0 | Q95: =SUM(Q86,Q89,Q92) -> 0 | R95: =SUM(R86,R89,R92) -> 0 | S95: =SUM(Q95:R95) -> 0 | T95: =SUM(T86,T89,T92) -> 0 | U95: =SUM(U86,U89,U92) -> 0 | V95: =SUM(V86,V89,V92) -> 0 | W95: 0 | X95: =SUM(X86,X89,X92) -> 0 | Y95: 0 | Z95: 0 | AA95: 0 | AB95: 0 | AC95: =SUM(AC86,AC89,AC92) -> 0 | AD95: =SUM(T95:AC95) -> 0 | AE95: =SUM(AE86,AE89,AE92) -> 0 | AF95: 0 | AG95: 0 | AH95: =SUM(AE95:AG95) -> 0 | AI95: =SUM(AI86,AI89,AI92) -> 0 | AJ95: =SUM(AJ86,AJ89,AJ92) -> 0
B96: 6.1 | C96: samorządowych os. prawnych | D96: W | E96: =SUM(P96,S96,AD96,AH96,AI96,AJ96) -> 128 | F96: =SUM(F87,F90,F93) -> 0 | G96: 9 | H96: 0 | I96: 3 | J96: 3 | K96: 0 | L96: 0 | M96: 0 | N96: 3 | O96: 0 | P96: =SUM(G96,H96,I96,J96,K96,L96,M96,N96,O96) -> 18 | Q96: =SUM(Q87,Q90,Q93) -> 18 | R96: =SUM(R87,R90,R93) -> 0 | S96: =SUM(Q96:R96) -> 18 | T96: =SUM(T87,T90,T93) -> 0 | U96: =SUM(U87,U90,U93) -> 2 | V96: 4 | W96: 0 | X96: =SUM(X87,X90,X93) -> 1 | Y96: 0 | Z96: 80 | AA96: 0 | AB96: 0 | AC96: =SUM(AC87,AC90,AC93) -> 0 | AD96: =SUM(T96:AC96) -> 87 | AE96: 0 | AF96: 5 | AG96: 0 | AH96: =SUM(AE96:AG96) -> 5 | AI96: =SUM(AI87,AI90,AI93) -> 0 | AJ96: =SUM(AJ87,AJ90,AJ93) -> 0
B97: 6.3 | C97: oraz gr.,których wł. są nieznani | D97: Razem | E97: =SUM(E95:E96) -> 128 | F97: 0 | G97: 9 | H97: 0 | I97: 3 | J97: 3 | K97: 0 | L97: 0 | M97: =SUM(M95:M96) -> 0 | N97: =SUM(N95:N96) -> 3 | O97: 0 | P97: 18 | Q97: 18 | R97: 0 | S97: 18 | T97: 0 | U97: 2 | V97: 4 | W97: 0 | X97: 1 | Y97: 0 | Z97: 80 | AA97: 0 | AB97: 0 | AC97: 0 | AD97: 87 | AE97: 0 | AF97: 5 | AG97: 0 | AH97: 5 | AI97: 0 | AJ97: 0
A98: 7 | C98: Grunty osób fizycznych | D98: M | E98: =SUM(P98,S98,AD98,AH98,AI98,AJ98) -> 1435 | F98: =SUM('0602011_G:0602142_G'!F98 ) -> 0 | G98: =SUM('0602011_G:0602142_G'!G98 ) -> 856 | H98: =SUM('0602011_G:0602142_G'!H98 ) -> 10 | I98: =SUM('0602011_G:0602142_G'!I98 ) -> 195 | J98: =SUM('0602011_G:0602142_G'!J98 ) -> 99 | K98: =SUM('0602011_G:0602142_G'!K98 ) -> 81 | L98: =SUM('0602011_G:0602142_G'!L98 ) -> 1 | M98: =SUM('0602011_G:0602142_G'!M98 ) -> 3 | N98: =SUM('0602011_G:0602142_G'!N98 ) -> 26 | O98: =SUM('0602011_G:0602142_G'!O98 ) -> 4 | P98: =SUM(G98:O98) -> 1275 | Q98: =SUM('0602011_G:0602142_G'!Q98 ) -> 124 | R98: =SUM('0602011_G:0602142_G'!R98 ) -> 0 | S98: =SUM(Q98:R98) -> 124 | T98: =SUM('0602011_G:0602142_G'!T98 ) -> 27 | U98: =SUM('0602011_G:0602142_G'!U98 ) -> 2 | V98: =SUM('0602011_G:0602142_G'!V98 ) -> 1 | W98: =SUM('0602011_G:0602142_G'!W98 ) -> 1 | X98: =SUM('0602011_G:0602142_G'!X98 ) -> 0 | Y98: =SUM('0602011_G:0602142_G'!Y98 ) -> 4 | Z98: =SUM('0602011_G:0602142_G'!Z98 ) -> 1 | AA98: =SUM('0602011_G:0602142_G'!AA98 ) -> 0 | AB98: =SUM('0602011_G:0602142_G'!AB98 ) -> 0 | AC98: =SUM('0602011_G:0602142_G'!AC98 ) -> 0 | AD98: =SUM(T98:AC98) -> 36 | AE98: =SUM('0602011_G:0602142_G'!AE98 ) -> 0 | AF98: =SUM('0602011_G:0602142_G'!AF98 ) -> 0 | AG98: =SUM('0602011_G:0602142_G'!AG98 ) -> 0 | AH98: =SUM(AE98:AG98) -> 0 | AI98: =SUM('0602011_G:0602142_G'!AI98 ) -> 0 | AJ98: =SUM('0602011_G:0602142_G'!AJ98 ) -> 0
C99: wchodzące w skład | D99: W | E99: =SUM(P99,S99,AD99,AH99,AI99,AJ99) -> 101865 | F99: =SUM('0602011_G:0602142_G'!F99 ) -> 0 | G99: =SUM('0602011_G:0602142_G'!G99 ) -> 56646 | H99: =SUM('0602011_G:0602142_G'!H99 ) -> 422 | I99: =SUM('0602011_G:0602142_G'!I99 ) -> 10212 | J99: =SUM('0602011_G:0602142_G'!J99 ) -> 4666 | K99: =SUM('0602011_G:0602142_G'!K99 ) -> 2543 | L99: =SUM('0602011_G:0602142_G'!L99 ) -> 92 | M99: =SUM('0602011_G:0602142_G'!M99 ) -> 125 | N99: =SUM('0602011_G:0602142_G'!N99 ) -> 732 | O99: =SUM('0602011_G:0602142_G'!O99 ) -> 499 | P99: =SUM(G99:O99) -> 75937 | Q99: =SUM('0602011_G:0602142_G'!Q99 ) -> 25801 | R99: =SUM('0602011_G:0602142_G'!R99 ) -> 0 | S99: =SUM(Q99:R99) -> 25801 | T99: =SUM('0602011_G:0602142_G'!T99 ) -> 27 | U99: =SUM('0602011_G:0602142_G'!U99 ) -> 7 | V99: =SUM('0602011_G:0602142_G'!V99 ) -> 11 | W99: =SUM('0602011_G:0602142_G'!W99 ) -> 4 | X99: =SUM('0602011_G:0602142_G'!X99 ) -> 1 | Y99: =SUM('0602011_G:0602142_G'!Y99 ) -> 0 | Z99: =SUM('0602011_G:0602142_G'!Z99 ) -> 19 | AA99: =SUM('0602011_G:0602142_G'!AA99 ) -> 0 | AB99: =SUM('0602011_G:0602142_G'!AB99 ) -> 0 | AC99: =SUM('0602011_G:0602142_G'!AC99 ) -> 0 | AD99: =SUM(T99:AC99) -> 69 | AE99: =SUM('0602011_G:0602142_G'!AE99 ) -> 0 | AF99: =SUM('0602011_G:0602142_G'!AF99 ) -> 7 | AG99: =SUM('0602011_G:0602142_G'!AG99 ) -> 14 | AH99: =SUM(AE99:AG99) -> 21 | AI99: =SUM('0602011_G:0602142_G'!AI99 ) -> 0 | AJ99: =SUM('0602011_G:0602142_G'!AJ99 ) -> 37
B100: 7.1 | C100: gospodarstw rolnych | D100: Razem | E100: =SUM(E98:E99) -> 103300 | F100: 0 | G100: 57502 | H100: 432 | I100: 10407 | J100: 4765 | K100: =SUM(K98:K99) -> 2624 | L100: =SUM(L98:L99) -> 93 | M100: =SUM(M98:M99) -> 128 | N100: =SUM(N98:N99) -> 758 | O100: =SUM(O98:O99) -> 503 | P100: 77212 | Q100: 25925 | R100: 0 | S100: 25925 | T100: 54 | U100: 9 | V100: 12 | W100: 5 | X100: 1 | Y100: 4 | Z100: 20 | AA100: 0 | AB100: 0 | AC100: 0 | AD100: 105 | AE100: 0 | AF100: 7 | AG100: 14 | AH100: 21 | AI100: 0 | AJ100: 37
C101: Grunty osób fizycznych | D101: M | E101: =SUM(P101,S101,AD101,AH101,AI101,AJ101) -> 1694 | F101: =SUM('0602011_G:0602142_G'!F101 ) -> 0 | G101: =SUM('0602011_G:0602142_G'!G101 ) -> 753 | H101: =SUM('0602011_G:0602142_G'!H101 ) -> 10 | I101: =SUM('0602011_G:0602142_G'!I101 ) -> 218 | J101: =SUM('0602011_G:0602142_G'!J101 ) -> 66 | K101: =SUM('0602011_G:0602142_G'!K101 ) -> 90 | L101: =SUM('0602011_G:0602142_G'!L101 ) -> 26 | M101: =SUM('0602011_G:0602142_G'!M101 ) -> 6 | N101: =SUM('0602011_G:0602142_G'!N101 ) -> 25 | O101: =SUM('0602011_G:0602142_G'!O101 ) -> 2 | P101: =SUM(G101:O101) -> 1196 | Q101: =SUM('0602011_G:0602142_G'!Q101 ) -> 58 | R101: =SUM('0602011_G:0602142_G'!R101 ) -> 0 | S101: =SUM(Q101:R101) -> 58 | T101: =SUM('0602011_G:0602142_G'!T101 ) -> 372 | U101: =SUM('0602011_G:0602142_G'!U101 ) -> 10 | V101: =SUM('0602011_G:0602142_G'!V101 ) -> 29 | W101: =SUM('0602011_G:0602142_G'!W101 ) -> 10 | X101: =SUM('0602011_G:0602142_G'!X101 ) -> 1 | Y101: =SUM('0602011_G:0602142_G'!Y101 ) -> 15 | Z101: =SUM('0602011_G:0602142_G'!Z101 ) -> 2 | AA101: =SUM('0602011_G:0602142_G'!AA101 ) -> 0 | AB101: =SUM('0602011_G:0602142_G'!AB101 ) -> 0 | AC101: =SUM('0602011_G:0602142_G'!AC101 ) -> 0 | AD101: =SUM(T101:AC101) -> 439 | AE101: =SUM('0602011_G:0602142_G'!AE101 ) -> 0 | AF101: =SUM('0602011_G:0602142_G'!AF101 ) -> 1 | AG101: =SUM('0602011_G:0602142_G'!AG101 ) -> 0 | AH101: =SUM(AE101:AG101) -> 1 | AI101: =SUM('0602011_G:0602142_G'!AI101 ) -> 0 | AJ101: =SUM('0602011_G:0602142_G'!AJ101 ) -> 0
C102: nie wchodzące w skład | D102: W | E102: =SUM(P102,S102,AD102,AH102,AI102,AJ102) -> 19405 | F102: =SUM('0602011_G:0602142_G'!F102 ) -> 0 | G102: =SUM('0602011_G:0602142_G'!G102 ) -> 10702 | H102: =SUM('0602011_G:0602142_G'!H102 ) -> 83 | I102: =SUM('0602011_G:0602142_G'!I102 ) -> 1498 | J102: =SUM('0602011_G:0602142_G'!J102 ) -> 672 | K102: =SUM('0602011_G:0602142_G'!K102 ) -> 558 | L102: =SUM('0602011_G:0602142_G'!L102 ) -> 25 | M102: =SUM('0602011_G:0602142_G'!M102 ) -> 191 | N102: =SUM('0602011_G:0602142_G'!N102 ) -> 204 | O102: =SUM('0602011_G:0602142_G'!O102 ) -> 83 | P102: =SUM(G102:O102) -> 14016 | Q102: =SUM('0602011_G:0602142_G'!Q102 ) -> 5294 | R102: =SUM('0602011_G:0602142_G'!R102 ) -> 0 | S102: =SUM(Q102:R102) -> 5294 | T102: =SUM('0602011_G:0602142_G'!T102 ) -> 48 | U102: =SUM('0602011_G:0602142_G'!U102 ) -> 7 | V102: =SUM('0602011_G:0602142_G'!V102 ) -> 10 | W102: =SUM('0602011_G:0602142_G'!W102 ) -> 4 | X102: =SUM('0602011_G:0602142_G'!X102 ) -> 3 | Y102: =SUM('0602011_G:0602142_G'!Y102 ) -> 0 | Z102: =SUM('0602011_G:0602142_G'!Z102 ) -> 0 | AA102: =SUM('0602011_G:0602142_G'!AA102 ) -> 0 | AB102: =SUM('0602011_G:0602142_G'!AB102 ) -> 0 | AC102: =SUM('0602011_G:0602142_G'!AC102 ) -> 0 | AD102: =SUM(T102:AC102) -> 72 | AE102: =SUM('0602011_G:0602142_G'!AE102 ) -> 0 | AF102: =SUM('0602011_G:0602142_G'!AF102 ) -> 22 | AG102: =SUM('0602011_G:0602142_G'!AG102 ) -> 0 | AH102: =SUM(AE102:AG102) -> 22 | AI102: =SUM('0602011_G:0602142_G'!AI102 ) -> 0 | AJ102: =SUM('0602011_G:0602142_G'!AJ102 ) -> 1
B103: 7.2 | C103: gospodarstw rolnych | D103: Razem | E103: =SUM(E101:E102) -> 21099 | F103: 0 | G103: 11455 | H103: 93 | I103: 1716 | J103: 738 | K103: =SUM(K101:K102) -> 648 | L103: =SUM(L101:L102) -> 51 | M103: =SUM(M101:M102) -> 197 | N103: =SUM(N101:N102) -> 229 | O103: =SUM(O101:O102) -> 85 | P103: 15212 | Q103: 5352 | R103: 0 | S103: 5352 | T103: 420 | U103: 17 | V103: 39 | W103: 14 | X103: 4 | Y103: 15 | Z103: 2 | AA103: 0 | AB103: 0 | AC103: 0 | AD103: 511 | AE103: 0 | AF103: 23 | AG103: 0 | AH103: 23 | AI103: 0 | AJ103: 1
B104: Razem | D104: M | E104: =SUM(P104,S104,AD104,AH104,AI104,AJ104) -> 3129 | F104: =SUM(F98,F101) -> 0 | G104: =SUM(G98,G101) -> 1609 | H104: 20 | I104: 413 | J104: 165 | K104: 171 | L104: 27 | M104: 9 | N104: 51 | O104: 6 | P104: =SUM(G104,H104,I104,J104,K104,L104,M104,N104,O104) -> 2471 | Q104: =SUM(Q98,Q101) -> 182 | R104: =SUM(R98,R101) -> 0 | S104: =SUM(Q104:R104) -> 182 | T104: =SUM(T98,T101) -> 399 | U104: 12 | V104: 30 | W104: 11 | X104: =SUM(X98,X101) -> 1 | Y104: 19 | Z104: 3 | AA104: 0 | AB104: 0 | AC104: =SUM(AC98,AC101) -> 0 | AD104: =SUM(T104:AC104) -> 475 | AE104: =SUM(AE98,AE101) -> 0 | AF104: 1 | AG104: 0 | AH104: =SUM(AE104:AG104) -> 1 | AI104: =SUM(AI98,AI101) -> 0 | AJ104: =SUM(AJ98,AJ101) -> 0
B105: 7.1 | D105: W | E105: =SUM(P105,S105,AD105,AH105,AI105,AJ105) -> 121270 | F105: =SUM(F99,F102) -> 0 | G105: 67348 | H105: 505 | I105: 11710 | J105: 5338 | K105: 3101 | L105: 117 | M105: 316 | N105: 936 | O105: 582 | P105: =SUM(G105,H105,I105,J105,K105,L105,M105,N105,O105) -> 89953 | Q105: =SUM(Q99,Q102) -> 31095 | R105: =SUM(R99,R102) -> 0 | S105: =SUM(Q105:R105) -> 31095 | T105: 75 | U105: 14 | V105: 21 | W105: 8 | X105: =SUM(X99,X102) -> 4 | Y105: 0 | Z105: 19 | AA105: 0 | AB105: 0 | AC105: =SUM(AC99,AC102) -> 0 | AD105: =SUM(T105:AC105) -> 141 | AE105: 0 | AF105: 29 | AG105: 14 | AH105: =SUM(AE105:AG105) -> 43 | AI105: =SUM(AI99,AI102) -> 0 | AJ105: =SUM(AJ99,AJ102) -> 38
B106: 7.2 | C106: Grunty osób fizycznych | D106: Razem | E106: =SUM(E104:E105) -> 124399 | F106: 0 | G106: 68957 | H106: 525 | I106: 12123 | J106: 5503 | K106: =SUM(K104:K105) -> 3272 | L106: =SUM(L104:L105) -> 144 | M106: =SUM(M104:M105) -> 325 | N106: =SUM(N104:N105) -> 987 | O106: =SUM(O104:O105) -> 588 | P106: 92424 | Q106: 31277 | R106: 0 | S106: 31277 | T106: 474 | U106: 26 | V106: 51 | W106: 19 | X106: 5 | Y106: 19 | Z106: 22 | AA106: 0 | AB106: 0 | AC106: 0 | AD106: 616 | AE106: 0 | AF106: 30 | AG106: 14 | AH106: 44 | AI106: 0 | AJ106: 38
A107: 8 | C107: Grunty, które są wł. roln. | D107: M | E107: =SUM(P107,S107,AD107,AH107,AI107,AJ107) -> 0 | F107: =SUM('0602011_G:0602142_G'!F107 ) -> 0 | G107: =SUM('0602011_G:0602142_G'!G107 ) -> 0 | H107: =SUM('0602011_G:0602142_G'!H107 ) -> 0 | I107: =SUM('0602011_G:0602142_G'!I107 ) -> 0 | J107: =SUM('0602011_G:0602142_G'!J107 ) -> 0 | K107: =SUM('0602011_G:0602142_G'!K107 ) -> 0 | L107: =SUM('0602011_G:0602142_G'!L107 ) -> 0 | M107: =SUM('0602011_G:0602142_G'!M107 ) -> 0 | N107: =SUM('0602011_G:0602142_G'!N107 ) -> 0 | O107: =SUM('0602011_G:0602142_G'!O107 ) -> 0 | P107: =SUM(G107:O107) -> 0 | Q107: =SUM('0602011_G:0602142_G'!Q107 ) -> 0 | R107: =SUM('0602011_G:0602142_G'!R107 ) -> 0 | S107: =SUM(Q107:R107) -> 0 | T107: =SUM('0602011_G:0602142_G'!T107 ) -> 0 | U107: =SUM('0602011_G:0602142_G'!U107 ) -> 0 | V107: =SUM('0602011_G:0602142_G'!V107 ) -> 0 | W107: =SUM('0602011_G:0602142_G'!W107 ) -> 0 | X107: =SUM('0602011_G:0602142_G'!X107 ) -> 0 | Y107: =SUM('0602011_G:0602142_G'!Y107 ) -> 0 | Z107: =SUM('0602011_G:0602142_G'!Z107 ) -> 0 | AA107: =SUM('0602011_G:0602142_G'!AA107 ) -> 0 | AB107: =SUM('0602011_G:0602142_G'!AB107 ) -> 0 | AC107: =SUM('0602011_G:0602142_G'!AC107 ) -> 0 | AD107: =SUM(T107:AC107) -> 0 | AE107: =SUM('0602011_G:0602142_G'!AE107 ) -> 0 | AF107: =SUM('0602011_G:0602142_G'!AF107 ) -> 0 | AG107: =SUM('0602011_G:0602142_G'!AG107 ) -> 0 | AH107: =SUM(AE107:AG107) -> 0 | AI107: =SUM('0602011_G:0602142_G'!AI107 ) -> 0 | AJ107: =SUM('0602011_G:0602142_G'!AJ107 ) -> 0
C108: spółdz. produkc. i ich zw. oraz | D108: W | E108: =SUM(P108,S108,AD108,AH108,AI108,AJ108) -> 5 | F108: =SUM('0602011_G:0602142_G'!F108 ) -> 0 | G108: =SUM('0602011_G:0602142_G'!G108 ) -> 3 | H108: =SUM('0602011_G:0602142_G'!H108 ) -> 0 | I108: =SUM('0602011_G:0602142_G'!I108 ) -> 0 | J108: =SUM('0602011_G:0602142_G'!J108 ) -> 0 | K108: =SUM('0602011_G:0602142_G'!K108 ) -> 0 | L108: =SUM('0602011_G:0602142_G'!L108 ) -> 0 | M108: =SUM('0602011_G:0602142_G'!M108 ) -> 0 | N108: =SUM('0602011_G:0602142_G'!N108 ) -> 1 | O108: =SUM('0602011_G:0602142_G'!O108 ) -> 0 | P108: =SUM(G108:O108) -> 4 | Q108: =SUM('0602011_G:0602142_G'!Q108 ) -> 0 | R108: =SUM('0602011_G:0602142_G'!R108 ) -> 0 | S108: =SUM(Q108:R108) -> 0 | T108: =SUM('0602011_G:0602142_G'!T108 ) -> 0 | U108: =SUM('0602011_G:0602142_G'!U108 ) -> 0 | V108: =SUM('0602011_G:0602142_G'!V108 ) -> 1 | W108: =SUM('0602011_G:0602142_G'!W108 ) -> 0 | X108: =SUM('0602011_G:0602142_G'!X108 ) -> 0 | Y108: =SUM('0602011_G:0602142_G'!Y108 ) -> 0 | Z108: =SUM('0602011_G:0602142_G'!Z108 ) -> 0 | AA108: =SUM('0602011_G:0602142_G'!AA108 ) -> 0 | AB108: =SUM('0602011_G:0602142_G'!AB108 ) -> 0 | AC108: =SUM('0602011_G:0602142_G'!AC108 ) -> 0 | AD108: =SUM(T108:AC108) -> 1 | AE108: =SUM('0602011_G:0602142_G'!AE108 ) -> 0 | AF108: =SUM('0602011_G:0602142_G'!AF108 ) -> 0 | AG108: =SUM('0602011_G:0602142_G'!AG108 ) -> 0 | AH108: =SUM(AE108:AG108) -> 0 | AI108: =SUM('0602011_G:0602142_G'!AI108 ) -> 0 | AJ108: =SUM('0602011_G:0602142_G'!AJ108 ) -> 0
B109: 8.1 | C109: grunty których wł. nie są znani | D109: Razem | E109: =SUM(E107:E108) -> 5 | F109: 0 | G109: 3 | H109: 0 | I109: 0 | J109: 0 | K109: 0 | L109: 0 | M109: =SUM(M107:M108) -> 0 | N109: =SUM(N107:N108) -> 1 | O109: 0 | P109: 4 | Q109: 0 | R109: 0 | S109: 0 | T109: 0 | U109: 0 | V109: 1 | W109: 0 | X109: 0 | Y109: 0 | Z109: 0 | AA109: 0 | AB109: 0 | AC109: 0 | AD109: 1 | AE109: 0 | AF109: 0 | AG109: 0 | AH109: 0 | AI109: 0 | AJ109: 0
C110: Grunty, które są własnością | D110: M | E110: =SUM(P110,S110,AD110,AH110,AI110,AJ110) -> 10 | F110: =SUM('0602011_G:0602142_G'!F110 ) -> 0 | G110: =SUM('0602011_G:0602142_G'!G110 ) -> 0 | H110: =SUM('0602011_G:0602142_G'!H110 ) -> 0 | I110: =SUM('0602011_G:0602142_G'!I110 ) -> 0 | J110: =SUM('0602011_G:0602142_G'!J110 ) -> 0 | K110: =SUM('0602011_G:0602142_G'!K110 ) -> 0 | L110: =SUM('0602011_G:0602142_G'!L110 ) -> 0 | M110: =SUM('0602011_G:0602142_G'!M110 ) -> 0 | N110: =SUM('0602011_G:0602142_G'!N110 ) -> 0 | O110: =SUM('0602011_G:0602142_G'!O110 ) -> 0 | P110: =SUM(G110:O110) -> 0 | Q110: =SUM('0602011_G:0602142_G'!Q110 ) -> 0 | R110: =SUM('0602011_G:0602142_G'!R110 ) -> 0 | S110: =SUM(Q110:R110) -> 0 | T110: =SUM('0602011_G:0602142_G'!T110 ) -> 9 | U110: =SUM('0602011_G:0602142_G'!U110 ) -> 0 | V110: =SUM('0602011_G:0602142_G'!V110 ) -> 1 | W110: =SUM('0602011_G:0602142_G'!W110 ) -> 0 | X110: =SUM('0602011_G:0602142_G'!X110 ) -> 0 | Y110: =SUM('0602011_G:0602142_G'!Y110 ) -> 0 | Z110: =SUM('0602011_G:0602142_G'!Z110 ) -> 0 | AA110: =SUM('0602011_G:0602142_G'!AA110 ) -> 0 | AB110: =SUM('0602011_G:0602142_G'!AB110 ) -> 0 | AC110: =SUM('0602011_G:0602142_G'!AC110 ) -> 0 | AD110: =SUM(T110:AC110) -> 10 | AE110: =SUM('0602011_G:0602142_G'!AE110 ) -> 0 | AF110: =SUM('0602011_G:0602142_G'!AF110 ) -> 0 | AG110: =SUM('0602011_G:0602142_G'!AG110 ) -> 0 | AH110: =SUM(AE110:AG110) -> 0 | AI110: =SUM('0602011_G:0602142_G'!AI110 ) -> 0 | AJ110: =SUM('0602011_G:0602142_G'!AJ110 ) -> 0
C111: spółdz. mieszk. i ich zw. oraz | D111: W | E111: =SUM(P111,S111,AD111,AH111,AI111,AJ111) -> 3 | F111: =SUM('0602011_G:0602142_G'!F111 ) -> 0 | G111: =SUM('0602011_G:0602142_G'!G111 ) -> 2 | H111: =SUM('0602011_G:0602142_G'!H111 ) -> 0 | I111: =SUM('0602011_G:0602142_G'!I111 ) -> 0 | J111: =SUM('0602011_G:0602142_G'!J111 ) -> 0 | K111: =SUM('0602011_G:0602142_G'!K111 ) -> 1 | L111: =SUM('0602011_G:0602142_G'!L111 ) -> 0 | M111: =SUM('0602011_G:0602142_G'!M111 ) -> 0 | N111: =SUM('0602011_G:0602142_G'!N111 ) -> 0 | O111: =SUM('0602011_G:0602142_G'!O111 ) -> 0 | P111: =SUM(G111:O111) -> 3 | Q111: =SUM('0602011_G:0602142_G'!Q111 ) -> 0 | R111: =SUM('0602011_G:0602142_G'!R111 ) -> 0 | S111: =SUM(Q111:R111) -> 0 | T111: =SUM('0602011_G:0602142_G'!T111 ) -> 0 | U111: =SUM('0602011_G:0602142_G'!U111 ) -> 0 | V111: =SUM('0602011_G:0602142_G'!V111 ) -> 0 | W111: =SUM('0602011_G:0602142_G'!W111 ) -> 0 | X111: =SUM('0602011_G:0602142_G'!X111 ) -> 0 | Y111: =SUM('0602011_G:0602142_G'!Y111 ) -> 0 | Z111: =SUM('0602011_G:0602142_G'!Z111 ) -> 0 | AA111: =SUM('0602011_G:0602142_G'!AA111 ) -> 0 | AB111: =SUM('0602011_G:0602142_G'!AB111 ) -> 0 | AC111: =SUM('0602011_G:0602142_G'!AC111 ) -> 0 | AD111: =SUM(T111:AC111) -> 0 | AE111: =SUM('0602011_G:0602142_G'!AE111 ) -> 0 | AF111: =SUM('0602011_G:0602142_G'!AF111 ) -> 0 | AG111: =SUM('0602011_G:0602142_G'!AG111 ) -> 0 | AH111: =SUM(AE111:AG111) -> 0 | AI111: =SUM('0602011_G:0602142_G'!AI111 ) -> 0 | AJ111: =SUM('0602011_G:0602142_G'!AJ111 ) -> 0
B112: 8.2 | C112: grunty których wł. nie są znani | D112: Razem | E112: =SUM(E110:E111) -> 13 | F112: 0 | G112: 2 | H112: 0 | I112: 0 | J112: 0 | K112: 1 | L112: 0 | M112: =SUM(M110:M111) -> 0 | N112: =SUM(N110:N111) -> 0 | O112: 0 | P112: 3 | Q112: 0 | R112: 0 | S112: 0 | T112: 9 | U112: 0 | V112: 1 | W112: 0 | X112: 0 | Y112: 0 | Z112: 0 | AA112: 0 | AB112: 0 | AC112: 0 | AD112: 10 | AE112: 0 | AF112: 0 | AG112: 0 | AH112: 0 | AI112: 0 | AJ112: 0
C113: Pozostałe grunty spośród | D113: M | E113: =SUM(P113,S113,AD113,AH113,AI113,AJ113) -> 2 | F113: =SUM('0602011_G:0602142_G'!F113 ) -> 0 | G113: =SUM('0602011_G:0602142_G'!G113 ) -> 0 | H113: =SUM('0602011_G:0602142_G'!H113 ) -> 0 | I113: =SUM('0602011_G:0602142_G'!I113 ) -> 0 | J113: =SUM('0602011_G:0602142_G'!J113 ) -> 0 | K113: =SUM('0602011_G:0602142_G'!K113 ) -> 0 | L113: =SUM('0602011_G:0602142_G'!L113 ) -> 0 | M113: =SUM('0602011_G:0602142_G'!M113 ) -> 0 | N113: =SUM('0602011_G:0602142_G'!N113 ) -> 0 | O113: =SUM('0602011_G:0602142_G'!O113 ) -> 0 | P113: =SUM(G113:O113) -> 0 | Q113: =SUM('0602011_G:0602142_G'!Q113 ) -> 0 | R113: =SUM('0602011_G:0602142_G'!R113 ) -> 0 | S113: =SUM(Q113:R113) -> 0 | T113: =SUM('0602011_G:0602142_G'!T113 ) -> 0 | U113: =SUM('0602011_G:0602142_G'!U113 ) -> 0 | V113: =SUM('0602011_G:0602142_G'!V113 ) -> 2 | W113: =SUM('0602011_G:0602142_G'!W113 ) -> 0 | X113: =SUM('0602011_G:0602142_G'!X113 ) -> 0 | Y113: =SUM('0602011_G:0602142_G'!Y113 ) -> 0 | Z113: =SUM('0602011_G:0602142_G'!Z113 ) -> 0 | AA113: =SUM('0602011_G:0602142_G'!AA113 ) -> 0 | AB113: =SUM('0602011_G:0602142_G'!AB113 ) -> 0 | AC113: =SUM('0602011_G:0602142_G'!AC113 ) -> 0 | AD113: =SUM(T113:AC113) -> 2 | AE113: =SUM('0602011_G:0602142_G'!AE113 ) -> 0 | AF113: =SUM('0602011_G:0602142_G'!AF113 ) -> 0 | AG113: =SUM('0602011_G:0602142_G'!AG113 ) -> 0 | AH113: =SUM(AE113:AG113) -> 0 | AI113: =SUM('0602011_G:0602142_G'!AI113 ) -> 0 | AJ113: =SUM('0602011_G:0602142_G'!AJ113 ) -> 0
C114: gruntów zaliczanych | D114: W | E114: =SUM(P114,S114,AD114,AH114,AI114,AJ114) -> 71 | F114: =SUM('0602011_G:0602142_G'!F114 ) -> 0 | G114: =SUM('0602011_G:0602142_G'!G114 ) -> 13 | H114: =SUM('0602011_G:0602142_G'!H114 ) -> 0 | I114: =SUM('0602011_G:0602142_G'!I114 ) -> 1 | J114: =SUM('0602011_G:0602142_G'!J114 ) -> 8 | K114: =SUM('0602011_G:0602142_G'!K114 ) -> 3 | L114: =SUM('0602011_G:0602142_G'!L114 ) -> 35 | M114: =SUM('0602011_G:0602142_G'!M114 ) -> 5 | N114: =SUM('0602011_G:0602142_G'!N114 ) -> 2 | O114: =SUM('0602011_G:0602142_G'!O114 ) -> 1 | P114: =SUM(G114:O114) -> 68 | Q114: =SUM('0602011_G:0602142_G'!Q114 ) -> 0 | R114: =SUM('0602011_G:0602142_G'!R114 ) -> 0 | S114: =SUM(Q114:R114) -> 0 | T114: =SUM('0602011_G:0602142_G'!T114 ) -> 0 | U114: =SUM('0602011_G:0602142_G'!U114 ) -> 0 | V114: =SUM('0602011_G:0602142_G'!V114 ) -> 0 | W114: =SUM('0602011_G:0602142_G'!W114 ) -> 0 | X114: =SUM('0602011_G:0602142_G'!X114 ) -> 0 | Y114: =SUM('0602011_G:0602142_G'!Y114 ) -> 0 | Z114: =SUM('0602011_G:0602142_G'!Z114 ) -> 3 | AA114: =SUM('0602011_G:0602142_G'!AA114 ) -> 0 | AB114: =SUM('0602011_G:0602142_G'!AB114 ) -> 0 | AC114: =SUM('0602011_G:0602142_G'!AC114 ) -> 0 | AD114: =SUM(T114:AC114) -> 3 | AE114: =SUM('0602011_G:0602142_G'!AE114 ) -> 0 | AF114: =SUM('0602011_G:0602142_G'!AF114 ) -> 0 | AG114: =SUM('0602011_G:0602142_G'!AG114 ) -> 0 | AH114: =SUM(AE114:AG114) -> 0 | AI114: =SUM('0602011_G:0602142_G'!AI114 ) -> 0 | AJ114: =SUM('0602011_G:0602142_G'!AJ114 ) -> 0
B115: 8.3 | C115: do 8 grupy | D115: Razem | E115: =SUM(E113:E114) -> 73 | F115: 0 | G115: 13 | H115: 0 | I115: 1 | J115: 8 | K115: 3 | L115: 35 | M115: =SUM(M113:M114) -> 5 | N115: =SUM(N113:N114) -> 2 | O115: 1 | P115: 68 | Q115: 0 | R115: 0 | S115: 0 | T115: 0 | U115: 0 | V115: 2 | W115: 0 | X115: 0 | Y115: 0 | Z115: 3 | AA115: 0 | AB115: 0 | AC115: 0 | AD115: 5 | AE115: 0 | AF115: 0 | AG115: 0 | AH115: 0 | AI115: 0 | AJ115: 0
B116: Razem | D116: M | E116: =SUM(P116,S116,AD116,AH116,AI116,AJ116) -> 12 | F116: =SUM(F107,F110,F113) -> 0 | G116: =SUM(G107,G110,G113) -> 0 | H116: 0 | I116: 0 | J116: 0 | K116: 0 | L116: 0 | M116: 0 | N116: 0 | O116: 0 | P116: =SUM(G116,H116,I116,J116,K116,L116,M116,N116,O116) -> 0 | Q116: =SUM(Q107,Q110,Q113) -> 0 | R116: =SUM(R107,R110,R113) -> 0 | S116: =SUM(Q116:R116) -> 0 | T116: =SUM(T107,T110,T113) -> 9 | U116: =SUM(U107,U110,U113) -> 0 | V116: =SUM(V107,V110,V113) -> 3 | W116: 0 | X116: =SUM(X107,X110,X113) -> 0 | Y116: 0 | Z116: 0 | AA116: 0 | AB116: 0 | AC116: =SUM(AC107,AC110,AC113) -> 0 | AD116: =SUM(T116:AC116) -> 12 | AE116: =SUM(AE107,AE110,AE113) -> 0 | AF116: 0 | AG116: 0 | AH116: =SUM(AE116:AG116) -> 0 | AI116: =SUM(AI107,AI110,AI113) -> 0 | AJ116: =SUM(AJ107,AJ110,AJ113) -> 0
B117: 8.1 | D117: W | E117: =SUM(P117,S117,AD117,AH117,AI117,AJ117) -> 79 | F117: =SUM(F108,F111,F114) -> 0 | G117: 18 | H117: 0 | I117: 1 | J117: 8 | K117: 4 | L117: 35 | M117: 5 | N117: 3 | O117: 1 | P117: =SUM(G117,H117,I117,J117,K117,L117,M117,N117,O117) -> 75 | Q117: =SUM(Q108,Q111,Q114) -> 0 | R117: =SUM(R108,R111,R114) -> 0 | S117: =SUM(Q117:R117) -> 0 | T117: =SUM(T108,T111,T114) -> 0 | U117: =SUM(U108,U111,U114) -> 0 | V117: 1 | W117: 0 | X117: =SUM(X108,X111,X114) -> 0 | Y117: 0 | Z117: 3 | AA117: 0 | AB117: 0 | AC117: =SUM(AC108,AC111,AC114) -> 0 | AD117: =SUM(T117:AC117) -> 4 | AE117: 0 | AF117: 0 | AG117: 0 | AH117: =SUM(AE117:AG117) -> 0 | AI117: =SUM(AI108,AI111,AI114) -> 0 | AJ117: =SUM(AJ108,AJ111,AJ114) -> 0
B118: 8.3 | C118: Grunty spółdzielni | D118: Razem | E118: =SUM(E116:E117) -> 91 | F118: 0 | G118: 18 | H118: 0 | I118: 1 | J118: 8 | K118: 4 | L118: 35 | M118: =SUM(M116:M117) -> 5 | N118: =SUM(N116:N117) -> 3 | O118: 1 | P118: 75 | Q118: 0 | R118: 0 | S118: 0 | T118: 9 | U118: 0 | V118: 4 | W118: 0 | X118: 0 | Y118: 0 | Z118: 3 | AA118: 0 | AB118: 0 | AC118: 0 | AD118: 16 | AE118: 0 | AF118: 0 | AG118: 0 | AH118: 0 | AI118: 0 | AJ118: 0
A119: 9 | D119: M | E119: =SUM(P119,S119,AD119,AH119,AI119,AJ119) -> 37 | F119: =SUM('0602011_G:0602142_G'!F119 ) -> 0 | G119: =SUM('0602011_G:0602142_G'!G119 ) -> 12 | H119: =SUM('0602011_G:0602142_G'!H119 ) -> 0 | I119: =SUM('0602011_G:0602142_G'!I119 ) -> 1 | J119: =SUM('0602011_G:0602142_G'!J119 ) -> 3 | K119: =SUM('0602011_G:0602142_G'!K119 ) -> 1 | L119: =SUM('0602011_G:0602142_G'!L119 ) -> 0 | M119: =SUM('0602011_G:0602142_G'!M119 ) -> 0 | N119: =SUM('0602011_G:0602142_G'!N119 ) -> 1 | O119: =SUM('0602011_G:0602142_G'!O119 ) -> 0 | P119: =SUM(G119:O119) -> 18 | Q119: =SUM('0602011_G:0602142_G'!Q119 ) -> 0 | R119: =SUM('0602011_G:0602142_G'!R119 ) -> 0 | S119: =SUM(Q119:R119) -> 0 | T119: =SUM('0602011_G:0602142_G'!T119 ) -> 0 | U119: =SUM('0602011_G:0602142_G'!U119 ) -> 0 | V119: =SUM('0602011_G:0602142_G'!V119 ) -> 18 | W119: =SUM('0602011_G:0602142_G'!W119 ) -> 0 | X119: =SUM('0602011_G:0602142_G'!X119 ) -> 1 | Y119: =SUM('0602011_G:0602142_G'!Y119 ) -> 0 | Z119: =SUM('0602011_G:0602142_G'!Z119 ) -> 0 | AA119: =SUM('0602011_G:0602142_G'!AA119 ) -> 0 | AB119: =SUM('0602011_G:0602142_G'!AB119 ) -> 0 | AC119: =SUM('0602011_G:0602142_G'!AC119 ) -> 0 | AD119: =SUM(T119:AC119) -> 19 | AE119: =SUM('0602011_G:0602142_G'!AE119 ) -> 0 | AF119: =SUM('0602011_G:0602142_G'!AF119 ) -> 0 | AG119: =SUM('0602011_G:0602142_G'!AG119 ) -> 0 | AH119: =SUM(AE119:AG119) -> 0 | AI119: =SUM('0602011_G:0602142_G'!AI119 ) -> 0 | AJ119: =SUM('0602011_G:0602142_G'!AJ119 ) -> 0
C120: Grunty kościołów | D120: W | E120: =SUM(P120,S120,AD120,AH120,AI120,AJ120) -> 279 | F120: =SUM('0602011_G:0602142_G'!F120 ) -> 0 | G120: =SUM('0602011_G:0602142_G'!G120 ) -> 148 | H120: =SUM('0602011_G:0602142_G'!H120 ) -> 1 | I120: =SUM('0602011_G:0602142_G'!I120 ) -> 40 | J120: =SUM('0602011_G:0602142_G'!J120 ) -> 22 | K120: =SUM('0602011_G:0602142_G'!K120 ) -> 11 | L120: =SUM('0602011_G:0602142_G'!L120 ) -> 0 | M120: =SUM('0602011_G:0602142_G'!M120 ) -> 0 | N120: =SUM('0602011_G:0602142_G'!N120 ) -> 1 | O120: =SUM('0602011_G:0602142_G'!O120 ) -> 3 | P120: =SUM(G120:O120) -> 226 | Q120: =SUM('0602011_G:0602142_G'!Q120 ) -> 10 | R120: =SUM('0602011_G:0602142_G'!R120 ) -> 0 | S120: =SUM(Q120:R120) -> 10 | T120: =SUM('0602011_G:0602142_G'!T120 ) -> 2 | U120: =SUM('0602011_G:0602142_G'!U120 ) -> 0 | V120: =SUM('0602011_G:0602142_G'!V120 ) -> 27 | W120: =SUM('0602011_G:0602142_G'!W120 ) -> 0 | X120: =SUM('0602011_G:0602142_G'!X120 ) -> 4 | Y120: =SUM('0602011_G:0602142_G'!Y120 ) -> 0 | Z120: =SUM('0602011_G:0602142_G'!Z120 ) -> 0 | AA120: =SUM('0602011_G:0602142_G'!AA120 ) -> 0 | AB120: =SUM('0602011_G:0602142_G'!AB120 ) -> 0 | AC120: =SUM('0602011_G:0602142_G'!AC120 ) -> 0 | AD120: =SUM(T120:AC120) -> 33 | AE120: =SUM('0602011_G:0602142_G'!AE120 ) -> 0 | AF120: =SUM('0602011_G:0602142_G'!AF120 ) -> 0 | AG120: =SUM('0602011_G:0602142_G'!AG120 ) -> 0 | AH120: =SUM(AE120:AG120) -> 0 | AI120: =SUM('0602011_G:0602142_G'!AI120 ) -> 0 | AJ120: =SUM('0602011_G:0602142_G'!AJ120 ) -> 10
C121: i związków wyznaniowych | D121: Razem | E121: =SUM(E119:E120) -> 316 | F121: 0 | G121: 160 | H121: 1 | I121: 41 | J121: 25 | K121: =SUM(K119:K120) -> 12 | L121: =SUM(L119:L120) -> 0 | M121: =SUM(M119:M120) -> 0 | N121: =SUM(N119:N120) -> 2 | O121: =SUM(O119:O120) -> 3 | P121: 244 | Q121: 10 | R121: 0 | S121: 10 | T121: 2 | U121: 0 | V121: 45 | W121: 0 | X121: 5 | Y121: 0 | Z121: 0 | AA121: 0 | AB121: 0 | AC121: 0 | AD121: 52 | AE121: 0 | AF121: 0 | AG121: 0 | AH121: 0 | AI121: 0 | AJ121: 10
A122: 10 | D122: M | E122: =SUM(P122,S122,AD122,AH122,AI122,AJ122) -> 146 | F122: =SUM('0602011_G:0602142_G'!F122 ) -> 0 | G122: =SUM('0602011_G:0602142_G'!G122 ) -> 1 | H122: =SUM('0602011_G:0602142_G'!H122 ) -> 0 | I122: =SUM('0602011_G:0602142_G'!I122 ) -> 6 | J122: =SUM('0602011_G:0602142_G'!J122 ) -> 38 | K122: =SUM('0602011_G:0602142_G'!K122 ) -> 0 | L122: =SUM('0602011_G:0602142_G'!L122 ) -> 0 | M122: =SUM('0602011_G:0602142_G'!M122 ) -> 1 | N122: =SUM('0602011_G:0602142_G'!N122 ) -> 5 | O122: =SUM('0602011_G:0602142_G'!O122 ) -> 2 | P122: =SUM(G122:O122) -> 53 | Q122: =SUM('0602011_G:0602142_G'!Q122 ) -> 84 | R122: =SUM('0602011_G:0602142_G'!R122 ) -> 0 | S122: =SUM(Q122:R122) -> 84 | T122: =SUM('0602011_G:0602142_G'!T122 ) -> 0 | U122: =SUM('0602011_G:0602142_G'!U122 ) -> 0 | V122: =SUM('0602011_G:0602142_G'!V122 ) -> 2 | W122: =SUM('0602011_G:0602142_G'!W122 ) -> 0 | X122: =SUM('0602011_G:0602142_G'!X122 ) -> 1 | Y122: =SUM('0602011_G:0602142_G'!Y122 ) -> 0 | Z122: =SUM('0602011_G:0602142_G'!Z122 ) -> 1 | AA122: =SUM('0602011_G:0602142_G'!AA122 ) -> 0 | AB122: =SUM('0602011_G:0602142_G'!AB122 ) -> 0 | AC122: =SUM('0602011_G:0602142_G'!AC122 ) -> 0 | AD122: =SUM(T122:AC122) -> 4 | AE122: =SUM('0602011_G:0602142_G'!AE122 ) -> 0 | AF122: =SUM('0602011_G:0602142_G'!AF122 ) -> 2 | AG122: =SUM('0602011_G:0602142_G'!AG122 ) -> 3 | AH122: =SUM(AE122:AG122) -> 5 | AI122: =SUM('0602011_G:0602142_G'!AI122 ) -> 0 | AJ122: =SUM('0602011_G:0602142_G'!AJ122 ) -> 0
D123: W | E123: =SUM(P123,S123,AD123,AH123,AI123,AJ123) -> 1043 | F123: =SUM('0602011_G:0602142_G'!F123 ) -> 0 | G123: =SUM('0602011_G:0602142_G'!G123 ) -> 67 | H123: =SUM('0602011_G:0602142_G'!H123 ) -> 0 | I123: =SUM('0602011_G:0602142_G'!I123 ) -> 77 | J123: =SUM('0602011_G:0602142_G'!J123 ) -> 329 | K123: =SUM('0602011_G:0602142_G'!K123 ) -> 1 | L123: =SUM('0602011_G:0602142_G'!L123 ) -> 0 | M123: =SUM('0602011_G:0602142_G'!M123 ) -> 5 | N123: =SUM('0602011_G:0602142_G'!N123 ) -> 20 | O123: =SUM('0602011_G:0602142_G'!O123 ) -> 51 | P123: =SUM(G123:O123) -> 550 | Q123: =SUM('0602011_G:0602142_G'!Q123 ) -> 485 | R123: =SUM('0602011_G:0602142_G'!R123 ) -> 0 | S123: =SUM(Q123:R123) -> 485 | T123: =SUM('0602011_G:0602142_G'!T123 ) -> 0 | U123: =SUM('0602011_G:0602142_G'!U123 ) -> 0 | V123: =SUM('0602011_G:0602142_G'!V123 ) -> 0 | W123: =SUM('0602011_G:0602142_G'!W123 ) -> 0 | X123: =SUM('0602011_G:0602142_G'!X123 ) -> 0 | Y123: =SUM('0602011_G:0602142_G'!Y123 ) -> 0 | Z123: =SUM('0602011_G:0602142_G'!Z123 ) -> 4 | AA123: =SUM('0602011_G:0602142_G'!AA123 ) -> 0 | AB123: =SUM('0602011_G:0602142_G'!AB123 ) -> 0 | AC123: =SUM('0602011_G:0602142_G'!AC123 ) -> 0 | AD123: =SUM(T123:AC123) -> 4 | AE123: =SUM('0602011_G:0602142_G'!AE123 ) -> 0 | AF123: =SUM('0602011_G:0602142_G'!AF123 ) -> 0 | AG123: =SUM('0602011_G:0602142_G'!AG123 ) -> 2 | AH123: =SUM(AE123:AG123) -> 2 | AI123: =SUM('0602011_G:0602142_G'!AI123 ) -> 0 | AJ123: =SUM('0602011_G:0602142_G'!AJ123 ) -> 2
C124: Wspólnoty gruntowe | D124: Razem | E124: =SUM(E122:E123) -> 1189 | F124: 0 | G124: 68 | H124: 0 | I124: 83 | J124: 367 | K124: =SUM(K122:K123) -> 1 | L124: =SUM(L122:L123) -> 0 | M124: =SUM(M122:M123) -> 6 | N124: =SUM(N122:N123) -> 25 | O124: =SUM(O122:O123) -> 53 | P124: 603 | Q124: 569 | R124: 0 | S124: 569 | T124: 0 | U124: 0 | V124: 2 | W124: 0 | X124: 1 | Y124: 0 | Z124: 5 | AA124: 0 | AB124: 0 | AC124: 0 | AD124: 8 | AE124: 0 | AF124: 2 | AG124: 5 | AH124: 7 | AI124: 0 | AJ124: 2
A125: 11 | C125: Gr. wchodzące w skład pow. | D125: M | E125: =SUM(P125,S125,AD125,AH125,AI125,AJ125) -> 21 | F125: =SUM('0602011_G:0602142_G'!F125 ) -> 0 | G125: =SUM('0602011_G:0602142_G'!G125 ) -> 0 | H125: =SUM('0602011_G:0602142_G'!H125 ) -> 0 | I125: =SUM('0602011_G:0602142_G'!I125 ) -> 0 | J125: =SUM('0602011_G:0602142_G'!J125 ) -> 0 | K125: =SUM('0602011_G:0602142_G'!K125 ) -> 0 | L125: =SUM('0602011_G:0602142_G'!L125 ) -> 0 | M125: =SUM('0602011_G:0602142_G'!M125 ) -> 0 | N125: =SUM('0602011_G:0602142_G'!N125 ) -> 0 | O125: =SUM('0602011_G:0602142_G'!O125 ) -> 0 | P125: =SUM(G125:O125) -> 0 | Q125: =SUM('0602011_G:0602142_G'!Q125 ) -> 0 | R125: =SUM('0602011_G:0602142_G'!R125 ) -> 0 | S125: =SUM(Q125:R125) -> 0 | T125: =SUM('0602011_G:0602142_G'!T125 ) -> 1 | U125: =SUM('0602011_G:0602142_G'!U125 ) -> 0 | V125: =SUM('0602011_G:0602142_G'!V125 ) -> 4 | W125: =SUM('0602011_G:0602142_G'!W125 ) -> 0 | X125: =SUM('0602011_G:0602142_G'!X125 ) -> 0 | Y125: =SUM('0602011_G:0602142_G'!Y125 ) -> 0 | Z125: =SUM('0602011_G:0602142_G'!Z125 ) -> 16 | AA125: =SUM('0602011_G:0602142_G'!AA125 ) -> 0 | AB125: =SUM('0602011_G:0602142_G'!AB125 ) -> 0 | AC125: =SUM('0602011_G:0602142_G'!AC125 ) -> 0 | AD125: =SUM(T125:AC125) -> 21 | AE125: =SUM('0602011_G:0602142_G'!AE125 ) -> 0 | AF125: =SUM('0602011_G:0602142_G'!AF125 ) -> 0 | AG125: =SUM('0602011_G:0602142_G'!AG125 ) -> 0 | AH125: =SUM(AE125:AG125) -> 0 | AI125: =SUM('0602011_G:0602142_G'!AI125 ) -> 0 | AJ125: =SUM('0602011_G:0602142_G'!AJ125 ) -> 0
C126: zas. nier. z wyłączeniem | D126: W | E126: =SUM(P126,S126,AD126,AH126,AI126,AJ126) -> 47 | F126: =SUM('0602011_G:0602142_G'!F126 ) -> 0 | G126: =SUM('0602011_G:0602142_G'!G126 ) -> 5 | H126: =SUM('0602011_G:0602142_G'!H126 ) -> 0 | I126: =SUM('0602011_G:0602142_G'!I126 ) -> 0 | J126: =SUM('0602011_G:0602142_G'!J126 ) -> 0 | K126: =SUM('0602011_G:0602142_G'!K126 ) -> 0 | L126: =SUM('0602011_G:0602142_G'!L126 ) -> 0 | M126: =SUM('0602011_G:0602142_G'!M126 ) -> 0 | N126: =SUM('0602011_G:0602142_G'!N126 ) -> 0 | O126: =SUM('0602011_G:0602142_G'!O126 ) -> 0 | P126: =SUM(G126:O126) -> 5 | Q126: =SUM('0602011_G:0602142_G'!Q126 ) -> 0 | R126: =SUM('0602011_G:0602142_G'!R126 ) -> 0 | S126: =SUM(Q126:R126) -> 0 | T126: =SUM('0602011_G:0602142_G'!T126 ) -> 0 | U126: =SUM('0602011_G:0602142_G'!U126 ) -> 0 | V126: =SUM('0602011_G:0602142_G'!V126 ) -> 0 | W126: =SUM('0602011_G:0602142_G'!W126 ) -> 0 | X126: =SUM('0602011_G:0602142_G'!X126 ) -> 0 | Y126: =SUM('0602011_G:0602142_G'!Y126 ) -> 0 | Z126: =SUM('0602011_G:0602142_G'!Z126 ) -> 42 | AA126: =SUM('0602011_G:0602142_G'!AA126 ) -> 0 | AB126: =SUM('0602011_G:0602142_G'!AB126 ) -> 0 | AC126: =SUM('0602011_G:0602142_G'!AC126 ) -> 0 | AD126: =SUM(T126:AC126) -> 42 | AE126: =SUM('0602011_G:0602142_G'!AE126 ) -> 0 | AF126: =SUM('0602011_G:0602142_G'!AF126 ) -> 0 | AG126: =SUM('0602011_G:0602142_G'!AG126 ) -> 0 | AH126: =SUM(AE126:AG126) -> 0 | AI126: =SUM('0602011_G:0602142_G'!AI126 ) -> 0 | AJ126: =SUM('0602011_G:0602142_G'!AJ126 ) -> 0
B127: 11.1 | C127: gr. wykazanych w 11.2 i 11.3 | D127: Razem | E127: =SUM(E125:E126) -> 68 | F127: 0 | G127: 5 | H127: 0 | I127: 0 | J127: 0 | K127: 0 | L127: 0 | M127: =SUM(M125:M126) -> 0 | N127: =SUM(N125:N126) -> 0 | O127: 0 | P127: 5 | Q127: 0 | R127: 0 | S127: 0 | T127: 1 | U127: 0 | V127: 4 | W127: 0 | X127: 0 | Y127: 0 | Z127: 58 | AA127: 0 | AB127: 0 | AC127: 0 | AD127: 63 | AE127: 0 | AF127: 0 | AG127: 0 | AH127: 0 | AI127: 0 | AJ127: 0
C128: Grunty powiatów przekazane | D128: M | E128: =SUM(P128,S128,AD128,AH128,AI128,AJ128) -> 72 | F128: =SUM('0602011_G:0602142_G'!F128 ) -> 0 | G128: =SUM('0602011_G:0602142_G'!G128 ) -> 0 | H128: =SUM('0602011_G:0602142_G'!H128 ) -> 0 | I128: =SUM('0602011_G:0602142_G'!I128 ) -> 0 | J128: =SUM('0602011_G:0602142_G'!J128 ) -> 0 | K128: =SUM('0602011_G:0602142_G'!K128 ) -> 0 | L128: =SUM('0602011_G:0602142_G'!L128 ) -> 0 | M128: =SUM('0602011_G:0602142_G'!M128 ) -> 0 | N128: =SUM('0602011_G:0602142_G'!N128 ) -> 0 | O128: =SUM('0602011_G:0602142_G'!O128 ) -> 0 | P128: =SUM(G128:O128) -> 0 | Q128: =SUM('0602011_G:0602142_G'!Q128 ) -> 0 | R128: =SUM('0602011_G:0602142_G'!R128 ) -> 0 | S128: =SUM(Q128:R128) -> 0 | T128: =SUM('0602011_G:0602142_G'!T128 ) -> 0 | U128: =SUM('0602011_G:0602142_G'!U128 ) -> 1 | V128: =SUM('0602011_G:0602142_G'!V128 ) -> 23 | W128: =SUM('0602011_G:0602142_G'!W128 ) -> 0 | X128: =SUM('0602011_G:0602142_G'!X128 ) -> 0 | Y128: =SUM('0602011_G:0602142_G'!Y128 ) -> 0 | Z128: =SUM('0602011_G:0602142_G'!Z128 ) -> 48 | AA128: =SUM('0602011_G:0602142_G'!AA128 ) -> 0 | AB128: =SUM('0602011_G:0602142_G'!AB128 ) -> 0 | AC128: =SUM('0602011_G:0602142_G'!AC128 ) -> 0 | AD128: =SUM(T128:AC128) -> 72 | AE128: =SUM('0602011_G:0602142_G'!AE128 ) -> 0 | AF128: =SUM('0602011_G:0602142_G'!AF128 ) -> 0 | AG128: =SUM('0602011_G:0602142_G'!AG128 ) -> 0 | AH128: =SUM(AE128:AG128) -> 0 | AI128: =SUM('0602011_G:0602142_G'!AI128 ) -> 0 | AJ128: =SUM('0602011_G:0602142_G'!AJ128 ) -> 0
C129: w trwały zarząd oraz grunty, | D129: W | E129: =SUM(P129,S129,AD129,AH129,AI129,AJ129) -> 305 | F129: =SUM('0602011_G:0602142_G'!F129 ) -> 0 | G129: =SUM('0602011_G:0602142_G'!G129 ) -> 2 | H129: =SUM('0602011_G:0602142_G'!H129 ) -> 0 | I129: =SUM('0602011_G:0602142_G'!I129 ) -> 0 | J129: =SUM('0602011_G:0602142_G'!J129 ) -> 0 | K129: =SUM('0602011_G:0602142_G'!K129 ) -> 0 | L129: =SUM('0602011_G:0602142_G'!L129 ) -> 0 | M129: =SUM('0602011_G:0602142_G'!M129 ) -> 0 | N129: =SUM('0602011_G:0602142_G'!N129 ) -> 0 | O129: =SUM('0602011_G:0602142_G'!O129 ) -> 0 | P129: =SUM(G129:O129) -> 2 | Q129: =SUM('0602011_G:0602142_G'!Q129 ) -> 0 | R129: =SUM('0602011_G:0602142_G'!R129 ) -> 0 | S129: =SUM(Q129:R129) -> 0 | T129: =SUM('0602011_G:0602142_G'!T129 ) -> 0 | U129: =SUM('0602011_G:0602142_G'!U129 ) -> 0 | V129: =SUM('0602011_G:0602142_G'!V129 ) -> 0 | W129: =SUM('0602011_G:0602142_G'!W129 ) -> 0 | X129: =SUM('0602011_G:0602142_G'!X129 ) -> 0 | Y129: =SUM('0602011_G:0602142_G'!Y129 ) -> 0 | Z129: =SUM('0602011_G:0602142_G'!Z129 ) -> 303 | AA129: =SUM('0602011_G:0602142_G'!AA129 ) -> 0 | AB129: =SUM('0602011_G:0602142_G'!AB129 ) -> 0 | AC129: =SUM('0602011_G:0602142_G'!AC129 ) -> 0 | AD129: =SUM(T129:AC129) -> 303 | AE129: =SUM('0602011_G:0602142_G'!AE129 ) -> 0 | AF129: =SUM('0602011_G:0602142_G'!AF129 ) -> 0 | AG129: =SUM('0602011_G:0602142_G'!AG129 ) -> 0 | AH129: =SUM(AE129:AG129) -> 0 | AI129: =SUM('0602011_G:0602142_G'!AI129 ) -> 0 | AJ129: =SUM('0602011_G:0602142_G'!AJ129 ) -> 0
B130: 11.2 | C130: których wł. nie są znani | D130: Razem | E130: =SUM(E128:E129) -> 377 | F130: 0 | G130: 2 | H130: 0 | I130: 0 | J130: 0 | K130: 0 | L130: 0 | M130: =SUM(M128:M129) -> 0 | N130: =SUM(N128:N129) -> 0 | O130: 0 | P130: 2 | Q130: 0 | R130: 0 | S130: 0 | T130: 0 | U130: 1 | V130: 23 | W130: 0 | X130: 0 | Y130: 0 | Z130: 351 | AA130: 0 | AB130: 0 | AC130: 0 | AD130: 375 | AE130: 0 | AF130: 0 | AG130: 0 | AH130: 0 | AI130: 0 | AJ130: 0
C131: Gr. powiat. przekazane org. | D131: M | E131: =SUM(P131,S131,AD131,AH131,AI131,AJ131) -> 1 | F131: =SUM('0602011_G:0602142_G'!F131 ) -> 0 | G131: =SUM('0602011_G:0602142_G'!G131 ) -> 0 | H131: =SUM('0602011_G:0602142_G'!H131 ) -> 0 | I131: =SUM('0602011_G:0602142_G'!I131 ) -> 0 | J131: =SUM('0602011_G:0602142_G'!J131 ) -> 0 | K131: =SUM('0602011_G:0602142_G'!K131 ) -> 0 | L131: =SUM('0602011_G:0602142_G'!L131 ) -> 0 | M131: =SUM('0602011_G:0602142_G'!M131 ) -> 0 | N131: =SUM('0602011_G:0602142_G'!N131 ) -> 0 | O131: =SUM('0602011_G:0602142_G'!O131 ) -> 0 | P131: =SUM(G131:O131) -> 0 | Q131: =SUM('0602011_G:0602142_G'!Q131 ) -> 0 | R131: =SUM('0602011_G:0602142_G'!R131 ) -> 0 | S131: =SUM(Q131:R131) -> 0 | T131: =SUM('0602011_G:0602142_G'!T131 ) -> 0 | U131: =SUM('0602011_G:0602142_G'!U131 ) -> 1 | V131: =SUM('0602011_G:0602142_G'!V131 ) -> 0 | W131: =SUM('0602011_G:0602142_G'!W131 ) -> 0 | X131: =SUM('0602011_G:0602142_G'!X131 ) -> 0 | Y131: =SUM('0602011_G:0602142_G'!Y131 ) -> 0 | Z131: =SUM('0602011_G:0602142_G'!Z131 ) -> 0 | AA131: =SUM('0602011_G:0602142_G'!AA131 ) -> 0 | AB131: =SUM('0602011_G:0602142_G'!AB131 ) -> 0 | AC131: =SUM('0602011_G:0602142_G'!AC131 ) -> 0 | AD131: =SUM(T131:AC131) -> 1 | AE131: =SUM('0602011_G:0602142_G'!AE131 ) -> 0 | AF131: =SUM('0602011_G:0602142_G'!AF131 ) -> 0 | AG131: =SUM('0602011_G:0602142_G'!AG131 ) -> 0 | AH131: =SUM(AE131:AG131) -> 0 | AI131: =SUM('0602011_G:0602142_G'!AI131 ) -> 0 | AJ131: =SUM('0602011_G:0602142_G'!AJ131 ) -> 0
C132: które wyk. zadania zarządcze | D132: W | E132: =SUM(P132,S132,AD132,AH132,AI132,AJ132) -> 203 | F132: =SUM('0602011_G:0602142_G'!F132 ) -> 0 | G132: =SUM('0602011_G:0602142_G'!G132 ) -> 0 | H132: =SUM('0602011_G:0602142_G'!H132 ) -> 0 | I132: =SUM('0602011_G:0602142_G'!I132 ) -> 0 | J132: =SUM('0602011_G:0602142_G'!J132 ) -> 0 | K132: =SUM('0602011_G:0602142_G'!K132 ) -> 0 | L132: =SUM('0602011_G:0602142_G'!L132 ) -> 0 | M132: =SUM('0602011_G:0602142_G'!M132 ) -> 0 | N132: =SUM('0602011_G:0602142_G'!N132 ) -> 0 | O132: =SUM('0602011_G:0602142_G'!O132 ) -> 0 | P132: =SUM(G132:O132) -> 0 | Q132: =SUM('0602011_G:0602142_G'!Q132 ) -> 0 | R132: =SUM('0602011_G:0602142_G'!R132 ) -> 0 | S132: =SUM(Q132:R132) -> 0 | T132: =SUM('0602011_G:0602142_G'!T132 ) -> 0 | U132: =SUM('0602011_G:0602142_G'!U132 ) -> 0 | V132: =SUM('0602011_G:0602142_G'!V132 ) -> 0 | W132: =SUM('0602011_G:0602142_G'!W132 ) -> 0 | X132: =SUM('0602011_G:0602142_G'!X132 ) -> 0 | Y132: =SUM('0602011_G:0602142_G'!Y132 ) -> 0 | Z132: =SUM('0602011_G:0602142_G'!Z132 ) -> 203 | AA132: =SUM('0602011_G:0602142_G'!AA132 ) -> 0 | AB132: =SUM('0602011_G:0602142_G'!AB132 ) -> 0 | AC132: =SUM('0602011_G:0602142_G'!AC132 ) -> 0 | AD132: =SUM(T132:AC132) -> 203 | AE132: =SUM('0602011_G:0602142_G'!AE132 ) -> 0 | AF132: =SUM('0602011_G:0602142_G'!AF132 ) -> 0 | AG132: =SUM('0602011_G:0602142_G'!AG132 ) -> 0 | AH132: =SUM(AE132:AG132) -> 0 | AI132: =SUM('0602011_G:0602142_G'!AI132 ) -> 0 | AJ132: =SUM('0602011_G:0602142_G'!AJ132 ) -> 0
B133: 11.3 | C133: w stosunku do dróg powiato. | D133: Razem | E133: =SUM(E131:E132) -> 204 | F133: 0 | G133: 0 | H133: 0 | I133: 0 | J133: 0 | K133: 0 | L133: 0 | M133: =SUM(M131:M132) -> 0 | N133: =SUM(N131:N132) -> 0 | O133: 0 | P133: 0 | Q133: 0 | R133: 0 | S133: 0 | T133: 0 | U133: 1 | V133: 0 | W133: 0 | X133: 0 | Y133: 0 | Z133: 203 | AA133: 0 | AB133: 0 | AC133: 0 | AD133: 204 | AE133: 0 | AF133: 0 | AG133: 0 | AH133: 0 | AI133: 0 | AJ133: 0
B134: Razem | C134: Grunty powiatów | D134: M | E134: =SUM(P134,S134,AD134,AH134,AI134,AJ134) -> 94 | F134: =SUM(F125,F128,F131) -> 0 | G134: =SUM(G125,G128,G131) -> 0 | H134: 0 | I134: 0 | J134: 0 | K134: 0 | L134: 0 | M134: 0 | N134: 0 | O134: 0 | P134: =SUM(G134,H134,I134,J134,K134,L134,M134,N134,O134) -> 0 | Q134: =SUM(Q125,Q128,Q131) -> 0 | R134: =SUM(R125,R128,R131) -> 0 | S134: =SUM(Q134:R134) -> 0 | T134: =SUM(T125,T128,T131) -> 1 | U134: =SUM(U125,U128,U131) -> 2 | V134: =SUM(V125,V128,V131) -> 27 | W134: 0 | X134: =SUM(X125,X128,X131) -> 0 | Y134: 0 | Z134: 64 | AA134: 0 | AB134: 0 | AC134: =SUM(AC125,AC128,AC131) -> 0 | AD134: =SUM(T134:AC134) -> 94 | AE134: =SUM(AE125,AE128,AE131) -> 0 | AF134: 0 | AG134: 0 | AH134: =SUM(AE134:AG134) -> 0 | AI134: =SUM(AI125,AI128,AI131) -> 0 | AJ134: =SUM(AJ125,AJ128,AJ131) -> 0
B135: 11.1 | C135: z wyłączeniem gruntów | D135: W | E135: =SUM(P135,S135,AD135,AH135,AI135,AJ135) -> 555 | F135: =SUM(F126,F129,F132) -> 0 | G135: 7 | H135: 0 | I135: 0 | J135: 0 | K135: 0 | L135: 0 | M135: 0 | N135: 0 | O135: 0 | P135: =SUM(G135,H135,I135,J135,K135,L135,M135,N135,O135) -> 7 | Q135: =SUM(Q126,Q129,Q132) -> 0 | R135: =SUM(R126,R129,R132) -> 0 | S135: =SUM(Q135:R135) -> 0 | T135: =SUM(T126,T129,T132) -> 0 | U135: =SUM(U126,U129,U132) -> 0 | V135: 0 | W135: 0 | X135: =SUM(X126,X129,X132) -> 0 | Y135: 0 | Z135: 548 | AA135: 0 | AB135: 0 | AC135: =SUM(AC126,AC129,AC132) -> 0 | AD135: =SUM(T135:AC135) -> 548 | AE135: 0 | AF135: 0 | AG135: 0 | AH135: =SUM(AE135:AG135) -> 0 | AI135: =SUM(AI126,AI129,AI132) -> 0 | AJ135: =SUM(AJ126,AJ129,AJ132) -> 0
B136: 11.3 | C136: przekaz. w użytk. wiecz. | D136: Razem | E136: =SUM(E134:E135) -> 649 | F136: 0 | G136: 7 | H136: 0 | I136: 0 | J136: 0 | K136: 0 | L136: 0 | M136: =SUM(M134:M135) -> 0 | N136: =SUM(N134:N135) -> 0 | O136: 0 | P136: 7 | Q136: 0 | R136: 0 | S136: 0 | T136: 1 | U136: 2 | V136: 27 | W136: 0 | X136: 0 | Y136: 0 | Z136: 612 | AA136: 0 | AB136: 0 | AC136: 0 | AD136: 642 | AE136: 0 | AF136: 0 | AG136: 0 | AH136: 0 | AI136: 0 | AJ136: 0
A137: 12 | C137: Grunty powiatów | D137: M | E137: =SUM(P137,S137,AD137,AH137,AI137,AJ137) -> 0 | F137: =SUM('0602011_G:0602142_G'!F137 ) -> 0 | G137: =SUM('0602011_G:0602142_G'!G137 ) -> 0 | H137: =SUM('0602011_G:0602142_G'!H137 ) -> 0 | I137: =SUM('0602011_G:0602142_G'!I137 ) -> 0 | J137: =SUM('0602011_G:0602142_G'!J137 ) -> 0 | K137: =SUM('0602011_G:0602142_G'!K137 ) -> 0 | L137: =SUM('0602011_G:0602142_G'!L137 ) -> 0 | M137: =SUM('0602011_G:0602142_G'!M137 ) -> 0 | N137: =SUM('0602011_G:0602142_G'!N137 ) -> 0 | O137: =SUM('0602011_G:0602142_G'!O137 ) -> 0 | P137: =SUM(G137:O137) -> 0 | Q137: =SUM('0602011_G:0602142_G'!Q137 ) -> 0 | R137: =SUM('0602011_G:0602142_G'!R137 ) -> 0 | S137: =SUM(Q137:R137) -> 0 | T137: =SUM('0602011_G:0602142_G'!T137 ) -> 0 | U137: =SUM('0602011_G:0602142_G'!U137 ) -> 0 | V137: =SUM('0602011_G:0602142_G'!V137 ) -> 0 | W137: =SUM('0602011_G:0602142_G'!W137 ) -> 0 | X137: =SUM('0602011_G:0602142_G'!X137 ) -> 0 | Y137: =SUM('0602011_G:0602142_G'!Y137 ) -> 0 | Z137: =SUM('0602011_G:0602142_G'!Z137 ) -> 0 | AA137: =SUM('0602011_G:0602142_G'!AA137 ) -> 0 | AB137: =SUM('0602011_G:0602142_G'!AB137 ) -> 0 | AC137: =SUM('0602011_G:0602142_G'!AC137 ) -> 0 | AD137: =SUM(T137:AC137) -> 0 | AE137: =SUM('0602011_G:0602142_G'!AE137 ) -> 0 | AF137: =SUM('0602011_G:0602142_G'!AF137 ) -> 0 | AG137: =SUM('0602011_G:0602142_G'!AG137 ) -> 0 | AH137: =SUM(AE137:AG137) -> 0 | AI137: =SUM('0602011_G:0602142_G'!AI137 ) -> 0 | AJ137: =SUM('0602011_G:0602142_G'!AJ137 ) -> 0
C138: w użytkowaniu wieczystym | D138: W | E138: =SUM(P138,S138,AD138,AH138,AI138,AJ138) -> 0 | F138: =SUM('0602011_G:0602142_G'!F138 ) -> 0 | G138: =SUM('0602011_G:0602142_G'!G138 ) -> 0 | H138: =SUM('0602011_G:0602142_G'!H138 ) -> 0 | I138: =SUM('0602011_G:0602142_G'!I138 ) -> 0 | J138: =SUM('0602011_G:0602142_G'!J138 ) -> 0 | K138: =SUM('0602011_G:0602142_G'!K138 ) -> 0 | L138: =SUM('0602011_G:0602142_G'!L138 ) -> 0 | M138: =SUM('0602011_G:0602142_G'!M138 ) -> 0 | N138: =SUM('0602011_G:0602142_G'!N138 ) -> 0 | O138: =SUM('0602011_G:0602142_G'!O138 ) -> 0 | P138: =SUM(G138:O138) -> 0 | Q138: =SUM('0602011_G:0602142_G'!Q138 ) -> 0 | R138: =SUM('0602011_G:0602142_G'!R138 ) -> 0 | S138: =SUM(Q138:R138) -> 0 | T138: =SUM('0602011_G:0602142_G'!T138 ) -> 0 | U138: =SUM('0602011_G:0602142_G'!U138 ) -> 0 | V138: =SUM('0602011_G:0602142_G'!V138 ) -> 0 | W138: =SUM('0602011_G:0602142_G'!W138 ) -> 0 | X138: =SUM('0602011_G:0602142_G'!X138 ) -> 0 | Y138: =SUM('0602011_G:0602142_G'!Y138 ) -> 0 | Z138: =SUM('0602011_G:0602142_G'!Z138 ) -> 0 | AA138: =SUM('0602011_G:0602142_G'!AA138 ) -> 0 | AB138: =SUM('0602011_G:0602142_G'!AB138 ) -> 0 | AC138: =SUM('0602011_G:0602142_G'!AC138 ) -> 0 | AD138: =SUM(T138:AC138) -> 0 | AE138: =SUM('0602011_G:0602142_G'!AE138 ) -> 0 | AF138: =SUM('0602011_G:0602142_G'!AF138 ) -> 0 | AG138: =SUM('0602011_G:0602142_G'!AG138 ) -> 0 | AH138: =SUM(AE138:AG138) -> 0 | AI138: =SUM('0602011_G:0602142_G'!AI138 ) -> 0 | AJ138: =SUM('0602011_G:0602142_G'!AJ138 ) -> 0
B139: 12.1 | C139: osób fizycznych | D139: Razem | E139: =SUM(E137,E138) -> 0 | F139: 0 | G139: 0 | H139: 0 | I139: 0 | J139: 0 | K139: 0 | L139: 0 | M139: =SUM(M137,M138) -> 0 | N139: =SUM(N137,N138) -> 0 | O139: 0 | P139: 0 | Q139: =SUM(Q137:Q138) -> 0 | R139: 0 | S139: 0 | T139: 0 | U139: 0 | V139: 0 | W139: 0 | X139: 0 | Y139: 0 | Z139: 0 | AA139: 0 | AB139: 0 | AC139: 0 | AD139: 0 | AE139: 0 | AF139: 0 | AG139: 0 | AH139: 0 | AI139: 0 | AJ139: 0
C140: Grunty powiatów | D140: M | E140: =SUM(P140,S140,AD140,AH140,AI140,AJ140) -> 0 | F140: =SUM('0602011_G:0602142_G'!F140 ) -> 0 | G140: =SUM('0602011_G:0602142_G'!G140 ) -> 0 | H140: =SUM('0602011_G:0602142_G'!H140 ) -> 0 | I140: =SUM('0602011_G:0602142_G'!I140 ) -> 0 | J140: =SUM('0602011_G:0602142_G'!J140 ) -> 0 | K140: =SUM('0602011_G:0602142_G'!K140 ) -> 0 | L140: =SUM('0602011_G:0602142_G'!L140 ) -> 0 | M140: =SUM('0602011_G:0602142_G'!M140 ) -> 0 | N140: =SUM('0602011_G:0602142_G'!N140 ) -> 0 | O140: =SUM('0602011_G:0602142_G'!O140 ) -> 0 | P140: =SUM(G140:O140) -> 0 | Q140: =SUM('0602011_G:0602142_G'!Q140 ) -> 0 | R140: =SUM('0602011_G:0602142_G'!R140 ) -> 0 | S140: =SUM(Q140:R140) -> 0 | T140: =SUM('0602011_G:0602142_G'!T140 ) -> 0 | U140: =SUM('0602011_G:0602142_G'!U140 ) -> 0 | V140: =SUM('0602011_G:0602142_G'!V140 ) -> 0 | W140: =SUM('0602011_G:0602142_G'!W140 ) -> 0 | X140: =SUM('0602011_G:0602142_G'!X140 ) -> 0 | Y140: =SUM('0602011_G:0602142_G'!Y140 ) -> 0 | Z140: =SUM('0602011_G:0602142_G'!Z140 ) -> 0 | AA140: =SUM('0602011_G:0602142_G'!AA140 ) -> 0 | AB140: =SUM('0602011_G:0602142_G'!AB140 ) -> 0 | AC140: =SUM('0602011_G:0602142_G'!AC140 ) -> 0 | AD140: =SUM(T140:AC140) -> 0 | AE140: =SUM('0602011_G:0602142_G'!AE140 ) -> 0 | AF140: =SUM('0602011_G:0602142_G'!AF140 ) -> 0 | AG140: =SUM('0602011_G:0602142_G'!AG140 ) -> 0 | AH140: =SUM(AE140:AG140) -> 0 | AI140: =SUM('0602011_G:0602142_G'!AI140 ) -> 0 | AJ140: =SUM('0602011_G:0602142_G'!AJ140 ) -> 0
C141: w użytkowaniu wieczystym | D141: W | E141: =SUM(P141,S141,AD141,AH141,AI141,AJ141) -> 0 | F141: =SUM('0602011_G:0602142_G'!F141 ) -> 0 | G141: =SUM('0602011_G:0602142_G'!G141 ) -> 0 | H141: =SUM('0602011_G:0602142_G'!H141 ) -> 0 | I141: =SUM('0602011_G:0602142_G'!I141 ) -> 0 | J141: =SUM('0602011_G:0602142_G'!J141 ) -> 0 | K141: =SUM('0602011_G:0602142_G'!K141 ) -> 0 | L141: =SUM('0602011_G:0602142_G'!L141 ) -> 0 | M141: =SUM('0602011_G:0602142_G'!M141 ) -> 0 | N141: =SUM('0602011_G:0602142_G'!N141 ) -> 0 | O141: =SUM('0602011_G:0602142_G'!O141 ) -> 0 | P141: =SUM(G141:O141) -> 0 | Q141: =SUM('0602011_G:0602142_G'!Q141 ) -> 0 | R141: =SUM('0602011_G:0602142_G'!R141 ) -> 0 | S141: =SUM(Q141:R141) -> 0 | T141: =SUM('0602011_G:0602142_G'!T141 ) -> 0 | U141: =SUM('0602011_G:0602142_G'!U141 ) -> 0 | V141: =SUM('0602011_G:0602142_G'!V141 ) -> 0 | W141: =SUM('0602011_G:0602142_G'!W141 ) -> 0 | X141: =SUM('0602011_G:0602142_G'!X141 ) -> 0 | Y141: =SUM('0602011_G:0602142_G'!Y141 ) -> 0 | Z141: =SUM('0602011_G:0602142_G'!Z141 ) -> 0 | AA141: =SUM('0602011_G:0602142_G'!AA141 ) -> 0 | AB141: =SUM('0602011_G:0602142_G'!AB141 ) -> 0 | AC141: =SUM('0602011_G:0602142_G'!AC141 ) -> 0 | AD141: =SUM(T141:AC141) -> 0 | AE141: =SUM('0602011_G:0602142_G'!AE141 ) -> 0 | AF141: =SUM('0602011_G:0602142_G'!AF141 ) -> 0 | AG141: =SUM('0602011_G:0602142_G'!AG141 ) -> 0 | AH141: =SUM(AE141:AG141) -> 0 | AI141: =SUM('0602011_G:0602142_G'!AI141 ) -> 0 | AJ141: =SUM('0602011_G:0602142_G'!AJ141 ) -> 0
B142: 12.2 | C142: powiatowych osób prawnych | D142: Razem | E142: =SUM(E140:E141) -> 0 | F142: 0 | G142: 0 | H142: 0 | I142: 0 | J142: 0 | K142: 0 | L142: 0 | M142: =SUM(M140:M141) -> 0 | N142: =SUM(N140:N141) -> 0 | O142: 0 | P142: 0 | Q142: 0 | R142: 0 | S142: 0 | T142: 0 | U142: 0 | V142: 0 | W142: 0 | X142: 0 | Y142: 0 | Z142: 0 | AA142: 0 | AB142: 0 | AC142: 0 | AD142: 0 | AE142: 0 | AF142: 0 | AG142: 0 | AH142: 0 | AI142: 0 | AJ142: 0
C143: Grunty powiatów | D143: M | E143: =SUM(P143,S143,AD143,AH143,AI143,AJ143) -> 0 | F143: =SUM('0602011_G:0602142_G'!F143 ) -> 0 | G143: =SUM('0602011_G:0602142_G'!G143 ) -> 0 | H143: =SUM('0602011_G:0602142_G'!H143 ) -> 0 | I143: =SUM('0602011_G:0602142_G'!I143 ) -> 0 | J143: =SUM('0602011_G:0602142_G'!J143 ) -> 0 | K143: =SUM('0602011_G:0602142_G'!K143 ) -> 0 | L143: =SUM('0602011_G:0602142_G'!L143 ) -> 0 | M143: =SUM('0602011_G:0602142_G'!M143 ) -> 0 | N143: =SUM('0602011_G:0602142_G'!N143 ) -> 0 | O143: =SUM('0602011_G:0602142_G'!O143 ) -> 0 | P143: =SUM(G143:O143) -> 0 | Q143: =SUM('0602011_G:0602142_G'!Q143 ) -> 0 | R143: =SUM('0602011_G:0602142_G'!R143 ) -> 0 | S143: =SUM(Q143:R143) -> 0 | T143: =SUM('0602011_G:0602142_G'!T143 ) -> 0 | U143: =SUM('0602011_G:0602142_G'!U143 ) -> 0 | V143: =SUM('0602011_G:0602142_G'!V143 ) -> 0 | W143: =SUM('0602011_G:0602142_G'!W143 ) -> 0 | X143: =SUM('0602011_G:0602142_G'!X143 ) -> 0 | Y143: =SUM('0602011_G:0602142_G'!Y143 ) -> 0 | Z143: =SUM('0602011_G:0602142_G'!Z143 ) -> 0 | AA143: =SUM('0602011_G:0602142_G'!AA143 ) -> 0 | AB143: =SUM('0602011_G:0602142_G'!AB143 ) -> 0 | AC143: =SUM('0602011_G:0602142_G'!AC143 ) -> 0 | AD143: =SUM(T143:AC143) -> 0 | AE143: =SUM('0602011_G:0602142_G'!AE143 ) -> 0 | AF143: =SUM('0602011_G:0602142_G'!AF143 ) -> 0 | AG143: =SUM('0602011_G:0602142_G'!AG143 ) -> 0 | AH143: =SUM(AE143:AG143) -> 0 | AI143: =SUM('0602011_G:0602142_G'!AI143 ) -> 0 | AJ143: =SUM('0602011_G:0602142_G'!AJ143 ) -> 0
C144: w użytkowaniu wieczystym | D144: W | E144: =SUM(P144,S144,AD144,AH144,AI144,AJ144) -> 0 | F144: =SUM('0602011_G:0602142_G'!F144 ) -> 0 | G144: =SUM('0602011_G:0602142_G'!G144 ) -> 0 | H144: =SUM('0602011_G:0602142_G'!H144 ) -> 0 | I144: =SUM('0602011_G:0602142_G'!I144 ) -> 0 | J144: =SUM('0602011_G:0602142_G'!J144 ) -> 0 | K144: =SUM('0602011_G:0602142_G'!K144 ) -> 0 | L144: =SUM('0602011_G:0602142_G'!L144 ) -> 0 | M144: =SUM('0602011_G:0602142_G'!M144 ) -> 0 | N144: =SUM('0602011_G:0602142_G'!N144 ) -> 0 | O144: =SUM('0602011_G:0602142_G'!O144 ) -> 0 | P144: =SUM(G144:O144) -> 0 | Q144: =SUM('0602011_G:0602142_G'!Q144 ) -> 0 | R144: =SUM('0602011_G:0602142_G'!R144 ) -> 0 | S144: =SUM(Q144:R144) -> 0 | T144: =SUM('0602011_G:0602142_G'!T144 ) -> 0 | U144: =SUM('0602011_G:0602142_G'!U144 ) -> 0 | V144: =SUM('0602011_G:0602142_G'!V144 ) -> 0 | W144: =SUM('0602011_G:0602142_G'!W144 ) -> 0 | X144: =SUM('0602011_G:0602142_G'!X144 ) -> 0 | Y144: =SUM('0602011_G:0602142_G'!Y144 ) -> 0 | Z144: =SUM('0602011_G:0602142_G'!Z144 ) -> 0 | AA144: =SUM('0602011_G:0602142_G'!AA144 ) -> 0 | AB144: =SUM('0602011_G:0602142_G'!AB144 ) -> 0 | AC144: =SUM('0602011_G:0602142_G'!AC144 ) -> 0 | AD144: =SUM(T144:AC144) -> 0 | AE144: =SUM('0602011_G:0602142_G'!AE144 ) -> 0 | AF144: =SUM('0602011_G:0602142_G'!AF144 ) -> 0 | AG144: =SUM('0602011_G:0602142_G'!AG144 ) -> 0 | AH144: =SUM(AE144:AG144) -> 0 | AI144: =SUM('0602011_G:0602142_G'!AI144 ) -> 0 | AJ144: =SUM('0602011_G:0602142_G'!AJ144 ) -> 0
B145: 12.3 | C145: spółdzielni mieszkaniowych | D145: Razem | E145: =SUM(E143:E144) -> 0 | F145: 0 | G145: 0 | H145: 0 | I145: 0 | J145: 0 | K145: 0 | L145: 0 | M145: =SUM(M143:M144) -> 0 | N145: =SUM(N143:N144) -> 0 | O145: 0 | P145: 0 | Q145: 0 | R145: 0 | S145: 0 | T145: 0 | U145: 0 | V145: 0 | W145: 0 | X145: 0 | Y145: 0 | Z145: 0 | AA145: 0 | AB145: 0 | AC145: 0 | AD145: 0 | AE145: 0 | AF145: 0 | AG145: 0 | AH145: 0 | AI145: 0 | AJ145: 0
C146: Grunty powiatów | D146: M | E146: =SUM(P146,S146,AD146,AH146,AI146,AJ146) -> 0 | F146: =SUM('0602011_G:0602142_G'!F146 ) -> 0 | G146: =SUM('0602011_G:0602142_G'!G146 ) -> 0 | H146: =SUM('0602011_G:0602142_G'!H146 ) -> 0 | I146: =SUM('0602011_G:0602142_G'!I146 ) -> 0 | J146: =SUM('0602011_G:0602142_G'!J146 ) -> 0 | K146: =SUM('0602011_G:0602142_G'!K146 ) -> 0 | L146: =SUM('0602011_G:0602142_G'!L146 ) -> 0 | M146: =SUM('0602011_G:0602142_G'!M146 ) -> 0 | N146: =SUM('0602011_G:0602142_G'!N146 ) -> 0 | O146: =SUM('0602011_G:0602142_G'!O146 ) -> 0 | P146: =SUM(G146:O146) -> 0 | Q146: =SUM('0602011_G:0602142_G'!Q146 ) -> 0 | R146: =SUM('0602011_G:0602142_G'!R146 ) -> 0 | S146: =SUM(Q146:R146) -> 0 | T146: =SUM('0602011_G:0602142_G'!T146 ) -> 0 | U146: =SUM('0602011_G:0602142_G'!U146 ) -> 0 | V146: =SUM('0602011_G:0602142_G'!V146 ) -> 0 | W146: =SUM('0602011_G:0602142_G'!W146 ) -> 0 | X146: =SUM('0602011_G:0602142_G'!X146 ) -> 0 | Y146: =SUM('0602011_G:0602142_G'!Y146 ) -> 0 | Z146: =SUM('0602011_G:0602142_G'!Z146 ) -> 0 | AA146: =SUM('0602011_G:0602142_G'!AA146 ) -> 0 | AB146: =SUM('0602011_G:0602142_G'!AB146 ) -> 0 | AC146: =SUM('0602011_G:0602142_G'!AC146 ) -> 0 | AD146: =SUM(T146:AC146) -> 0 | AE146: =SUM('0602011_G:0602142_G'!AE146 ) -> 0 | AF146: =SUM('0602011_G:0602142_G'!AF146 ) -> 0 | AG146: =SUM('0602011_G:0602142_G'!AG146 ) -> 0 | AH146: =SUM(AE146:AG146) -> 0 | AI146: =SUM('0602011_G:0602142_G'!AI146 ) -> 0 | AJ146: =SUM('0602011_G:0602142_G'!AJ146 ) -> 0
C147: w użytkowaniu wieczystym | D147: W | E147: =SUM(P147,S147,AD147,AH147,AI147,AJ147) -> 0 | F147: =SUM('0602011_G:0602142_G'!F147 ) -> 0 | G147: =SUM('0602011_G:0602142_G'!G147 ) -> 0 | H147: =SUM('0602011_G:0602142_G'!H147 ) -> 0 | I147: =SUM('0602011_G:0602142_G'!I147 ) -> 0 | J147: =SUM('0602011_G:0602142_G'!J147 ) -> 0 | K147: =SUM('0602011_G:0602142_G'!K147 ) -> 0 | L147: =SUM('0602011_G:0602142_G'!L147 ) -> 0 | M147: =SUM('0602011_G:0602142_G'!M147 ) -> 0 | N147: =SUM('0602011_G:0602142_G'!N147 ) -> 0 | O147: =SUM('0602011_G:0602142_G'!O147 ) -> 0 | P147: =SUM(G147:O147) -> 0 | Q147: =SUM('0602011_G:0602142_G'!Q147 ) -> 0 | R147: =SUM('0602011_G:0602142_G'!R147 ) -> 0 | S147: =SUM(Q147:R147) -> 0 | T147: =SUM('0602011_G:0602142_G'!T147 ) -> 0 | U147: =SUM('0602011_G:0602142_G'!U147 ) -> 0 | V147: =SUM('0602011_G:0602142_G'!V147 ) -> 0 | W147: =SUM('0602011_G:0602142_G'!W147 ) -> 0 | X147: =SUM('0602011_G:0602142_G'!X147 ) -> 0 | Y147: =SUM('0602011_G:0602142_G'!Y147 ) -> 0 | Z147: =SUM('0602011_G:0602142_G'!Z147 ) -> 0 | AA147: =SUM('0602011_G:0602142_G'!AA147 ) -> 0 | AB147: =SUM('0602011_G:0602142_G'!AB147 ) -> 0 | AC147: =SUM('0602011_G:0602142_G'!AC147 ) -> 0 | AD147: =SUM(T147:AC147) -> 0 | AE147: =SUM('0602011_G:0602142_G'!AE147 ) -> 0 | AF147: =SUM('0602011_G:0602142_G'!AF147 ) -> 0 | AG147: =SUM('0602011_G:0602142_G'!AG147 ) -> 0 | AH147: =SUM(AE147:AG147) -> 0 | AI147: =SUM('0602011_G:0602142_G'!AI147 ) -> 0 | AJ147: =SUM('0602011_G:0602142_G'!AJ147 ) -> 0
B148: 12.4 | C148: pozostałych osób | D148: Razem | E148: =SUM(E146:E147) -> 0 | F148: 0 | G148: 0 | H148: 0 | I148: 0 | J148: 0 | K148: 0 | L148: 0 | M148: =SUM(M146:M147) -> 0 | N148: =SUM(N146:N147) -> 0 | O148: 0 | P148: 0 | Q148: 0 | R148: 0 | S148: 0 | T148: 0 | U148: 0 | V148: 0 | W148: 0 | X148: 0 | Y148: 0 | Z148: 0 | AA148: 0 | AB148: 0 | AC148: 0 | AD148: 0 | AE148: 0 | AF148: 0 | AG148: 0 | AH148: 0 | AI148: 0 | AJ148: 0
B149: Razem | D149: M | E149: =SUM(P149,S149,AD149,AH149,AI149,AJ149) -> 0 | F149: =SUM(F137,F140,F143,F146) -> 0 | G149: 0 | H149: 0 | I149: 0 | J149: 0 | K149: 0 | L149: 0 | M149: 0 | N149: 0 | O149: 0 | P149: =SUM(G149,H149,I149,J149,K149,L149,M149,N149,O149) -> 0 | Q149: =SUM(Q137,Q140,Q143,Q146) -> 0 | R149: =SUM(R137,R140,R143,R146) -> 0 | S149: =SUM(Q149:R149) -> 0 | T149: =SUM(T137,T140,T143,T146) -> 0 | U149: 0 | V149: 0 | W149: 0 | X149: =SUM(X137,X140,X143,X146) -> 0 | Y149: 0 | Z149: 0 | AA149: 0 | AB149: 0 | AC149: 0 | AD149: =SUM(T149:AC149) -> 0 | AE149: =SUM(AE137,AE140,AE143,AE146) -> 0 | AF149: 0 | AG149: 0 | AH149: =SUM(AE149:AG149) -> 0 | AI149: =SUM(AI137,AI140,AI143,AI146) -> 0 | AJ149: =SUM(AJ137,AJ140,AJ143,AJ146) -> 0
B150: 12.1 | C150: Grunty powiatów przekazane | D150: W | E150: =SUM(P150,S150,AD150,AH150,AI150,AJ150) -> 0 | F150: 0 | G150: 0 | H150: 0 | I150: 0 | J150: 0 | K150: 0 | L150: 0 | M150: 0 | N150: 0 | O150: 0 | P150: =SUM(G150,H150,I150,J150,K150,L150,M150,N150,O150) -> 0 | Q150: =SUM(Q138,Q141,Q144,Q147) -> 0 | R150: =SUM(R138,R141,R144,R147) -> 0 | S150: =SUM(Q150:R150) -> 0 | T150: 0 | U150: 0 | V150: 0 | W150: 0 | X150: =SUM(X138,X141,X144,X147) -> 0 | Y150: 0 | Z150: 0 | AA150: 0 | AB150: 0 | AC150: 0 | AD150: =SUM(T150:AC150) -> 0 | AE150: 0 | AF150: 0 | AG150: 0 | AH150: =SUM(AE150:AG150) -> 0 | AI150: =SUM(AI138,AI141,AI144,AI147) -> 0 | AJ150: =SUM(AJ138,AJ141,AJ144,AJ147) -> 0
B151: 12.4 | C151: w użytkowanie wieczyste | D151: Razem | E151: =SUM(E149:E150) -> 0 | F151: 0 | G151: 0 | H151: 0 | I151: 0 | J151: 0 | K151: 0 | L151: 0 | M151: =SUM(M149:M150) -> 0 | N151: =SUM(N149:N150) -> 0 | O151: 0 | P151: 0 | Q151: 0 | R151: 0 | S151: 0 | T151: 0 | U151: 0 | V151: 0 | W151: 0 | X151: 0 | Y151: 0 | Z151: 0 | AA151: 0 | AB151: 0 | AC151: 0 | AD151: 0 | AE151: 0 | AF151: 0 | AG151: 0 | AH151: 0 | AI151: 0 | AJ151: 0
A152: 13 | C152: Gr. wchodzące w skład woj. | D152: M | E152: =SUM(P152,S152,AD152,AH152,AI152,AJ152) -> 6 | F152: =SUM('0602011_G:0602142_G'!F152 ) -> 0 | G152: =SUM('0602011_G:0602142_G'!G152 ) -> 0 | H152: =SUM('0602011_G:0602142_G'!H152 ) -> 0 | I152: =SUM('0602011_G:0602142_G'!I152 ) -> 0 | J152: =SUM('0602011_G:0602142_G'!J152 ) -> 0 | K152: =SUM('0602011_G:0602142_G'!K152 ) -> 0 | L152: =SUM('0602011_G:0602142_G'!L152 ) -> 0 | M152: =SUM('0602011_G:0602142_G'!M152 ) -> 0 | N152: =SUM('0602011_G:0602142_G'!N152 ) -> 0 | O152: =SUM('0602011_G:0602142_G'!O152 ) -> 0 | P152: =SUM(G152:O152) -> 0 | Q152: =SUM('0602011_G:0602142_G'!Q152 ) -> 0 | R152: =SUM('0602011_G:0602142_G'!R152 ) -> 0 | S152: =SUM(Q152:R152) -> 0 | T152: =SUM('0602011_G:0602142_G'!T152 ) -> 0 | U152: =SUM('0602011_G:0602142_G'!U152 ) -> 0 | V152: =SUM('0602011_G:0602142_G'!V152 ) -> 0 | W152: =SUM('0602011_G:0602142_G'!W152 ) -> 0 | X152: =SUM('0602011_G:0602142_G'!X152 ) -> 0 | Y152: =SUM('0602011_G:0602142_G'!Y152 ) -> 0 | Z152: =SUM('0602011_G:0602142_G'!Z152 ) -> 6 | AA152: =SUM('0602011_G:0602142_G'!AA152 ) -> 0 | AB152: =SUM('0602011_G:0602142_G'!AB152 ) -> 0 | AC152: =SUM('0602011_G:0602142_G'!AC152 ) -> 0 | AD152: =SUM(T152:AC152) -> 6 | AE152: =SUM('0602011_G:0602142_G'!AE152 ) -> 0 | AF152: =SUM('0602011_G:0602142_G'!AF152 ) -> 0 | AG152: =SUM('0602011_G:0602142_G'!AG152 ) -> 0 | AH152: =SUM(AE152:AG152) -> 0 | AI152: =SUM('0602011_G:0602142_G'!AI152 ) -> 0 | AJ152: =SUM('0602011_G:0602142_G'!AJ152 ) -> 0
C153: zas. nier. z wyłączeniem | D153: W | E153: =SUM(P153,S153,AD153,AH153,AI153,AJ153) -> 114 | F153: =SUM('0602011_G:0602142_G'!F153 ) -> 0 | G153: =SUM('0602011_G:0602142_G'!G153 ) -> 0 | H153: =SUM('0602011_G:0602142_G'!H153 ) -> 0 | I153: =SUM('0602011_G:0602142_G'!I153 ) -> 0 | J153: =SUM('0602011_G:0602142_G'!J153 ) -> 0 | K153: =SUM('0602011_G:0602142_G'!K153 ) -> 0 | L153: =SUM('0602011_G:0602142_G'!L153 ) -> 0 | M153: =SUM('0602011_G:0602142_G'!M153 ) -> 0 | N153: =SUM('0602011_G:0602142_G'!N153 ) -> 0 | O153: =SUM('0602011_G:0602142_G'!O153 ) -> 0 | P153: =SUM(G153:O153) -> 0 | Q153: =SUM('0602011_G:0602142_G'!Q153 ) -> 0 | R153: =SUM('0602011_G:0602142_G'!R153 ) -> 0 | S153: =SUM(Q153:R153) -> 0 | T153: =SUM('0602011_G:0602142_G'!T153 ) -> 0 | U153: =SUM('0602011_G:0602142_G'!U153 ) -> 0 | V153: =SUM('0602011_G:0602142_G'!V153 ) -> 0 | W153: =SUM('0602011_G:0602142_G'!W153 ) -> 0 | X153: =SUM('0602011_G:0602142_G'!X153 ) -> 0 | Y153: =SUM('0602011_G:0602142_G'!Y153 ) -> 0 | Z153: =SUM('0602011_G:0602142_G'!Z153 ) -> 108 | AA153: =SUM('0602011_G:0602142_G'!AA153 ) -> 0 | AB153: =SUM('0602011_G:0602142_G'!AB153 ) -> 0 | AC153: =SUM('0602011_G:0602142_G'!AC153 ) -> 0 | AD153: =SUM(T153:AC153) -> 108 | AE153: =SUM('0602011_G:0602142_G'!AE153 ) -> 0 | AF153: =SUM('0602011_G:0602142_G'!AF153 ) -> 6 | AG153: =SUM('0602011_G:0602142_G'!AG153 ) -> 0 | AH153: =SUM(AE153:AG153) -> 6 | AI153: =SUM('0602011_G:0602142_G'!AI153 ) -> 0 | AJ153: =SUM('0602011_G:0602142_G'!AJ153 ) -> 0
B154: 13.1 | C154: gr. wykazanych w 13.2 i 13.3 | D154: Razem | E154: =SUM(E152:E153) -> 120 | F154: 0 | G154: 0 | H154: 0 | I154: 0 | J154: 0 | K154: 0 | L154: 0 | M154: =SUM(M152:M153) -> 0 | N154: =SUM(N152:N153) -> 0 | O154: 0 | P154: 0 | Q154: 0 | R154: 0 | S154: 0 | T154: 0 | U154: 0 | V154: 0 | W154: 0 | X154: 0 | Y154: 0 | Z154: 114 | AA154: 0 | AB154: 0 | AC154: 0 | AD154: 114 | AE154: 0 | AF154: 6 | AG154: 0 | AH154: 6 | AI154: 0 | AJ154: 0
C155: Grunty wojew. przekazane | D155: M | E155: =SUM(P155,S155,AD155,AH155,AI155,AJ155) -> 1 | F155: =SUM('0602011_G:0602142_G'!F155 ) -> 0 | G155: =SUM('0602011_G:0602142_G'!G155 ) -> 0 | H155: =SUM('0602011_G:0602142_G'!H155 ) -> 0 | I155: =SUM('0602011_G:0602142_G'!I155 ) -> 0 | J155: =SUM('0602011_G:0602142_G'!J155 ) -> 0 | K155: =SUM('0602011_G:0602142_G'!K155 ) -> 0 | L155: =SUM('0602011_G:0602142_G'!L155 ) -> 0 | M155: =SUM('0602011_G:0602142_G'!M155 ) -> 0 | N155: =SUM('0602011_G:0602142_G'!N155 ) -> 0 | O155: =SUM('0602011_G:0602142_G'!O155 ) -> 0 | P155: =SUM(G155:O155) -> 0 | Q155: =SUM('0602011_G:0602142_G'!Q155 ) -> 0 | R155: =SUM('0602011_G:0602142_G'!R155 ) -> 0 | S155: =SUM(Q155:R155) -> 0 | T155: =SUM('0602011_G:0602142_G'!T155 ) -> 0 | U155: =SUM('0602011_G:0602142_G'!U155 ) -> 0 | V155: =SUM('0602011_G:0602142_G'!V155 ) -> 1 | W155: =SUM('0602011_G:0602142_G'!W155 ) -> 0 | X155: =SUM('0602011_G:0602142_G'!X155 ) -> 0 | Y155: =SUM('0602011_G:0602142_G'!Y155 ) -> 0 | Z155: =SUM('0602011_G:0602142_G'!Z155 ) -> 0 | AA155: =SUM('0602011_G:0602142_G'!AA155 ) -> 0 | AB155: =SUM('0602011_G:0602142_G'!AB155 ) -> 0 | AC155: =SUM('0602011_G:0602142_G'!AC155 ) -> 0 | AD155: =SUM(T155:AC155) -> 1 | AE155: =SUM('0602011_G:0602142_G'!AE155 ) -> 0 | AF155: =SUM('0602011_G:0602142_G'!AF155 ) -> 0 | AG155: =SUM('0602011_G:0602142_G'!AG155 ) -> 0 | AH155: =SUM(AE155:AG155) -> 0 | AI155: =SUM('0602011_G:0602142_G'!AI155 ) -> 0 | AJ155: =SUM('0602011_G:0602142_G'!AJ155 ) -> 0
C156: w trwały zarząd oraz grunty, | D156: W | E156: =SUM(P156,S156,AD156,AH156,AI156,AJ156) -> 24 | F156: =SUM('0602011_G:0602142_G'!F156 ) -> 0 | G156: =SUM('0602011_G:0602142_G'!G156 ) -> 0 | H156: =SUM('0602011_G:0602142_G'!H156 ) -> 0 | I156: =SUM('0602011_G:0602142_G'!I156 ) -> 0 | J156: =SUM('0602011_G:0602142_G'!J156 ) -> 0 | K156: =SUM('0602011_G:0602142_G'!K156 ) -> 0 | L156: =SUM('0602011_G:0602142_G'!L156 ) -> 0 | M156: =SUM('0602011_G:0602142_G'!M156 ) -> 0 | N156: =SUM('0602011_G:0602142_G'!N156 ) -> 0 | O156: =SUM('0602011_G:0602142_G'!O156 ) -> 0 | P156: =SUM(G156:O156) -> 0 | Q156: =SUM('0602011_G:0602142_G'!Q156 ) -> 0 | R156: =SUM('0602011_G:0602142_G'!R156 ) -> 0 | S156: =SUM(Q156:R156) -> 0 | T156: =SUM('0602011_G:0602142_G'!T156 ) -> 0 | U156: =SUM('0602011_G:0602142_G'!U156 ) -> 0 | V156: =SUM('0602011_G:0602142_G'!V156 ) -> 0 | W156: =SUM('0602011_G:0602142_G'!W156 ) -> 0 | X156: =SUM('0602011_G:0602142_G'!X156 ) -> 0 | Y156: =SUM('0602011_G:0602142_G'!Y156 ) -> 0 | Z156: =SUM('0602011_G:0602142_G'!Z156 ) -> 24 | AA156: =SUM('0602011_G:0602142_G'!AA156 ) -> 0 | AB156: =SUM('0602011_G:0602142_G'!AB156 ) -> 0 | AC156: =SUM('0602011_G:0602142_G'!AC156 ) -> 0 | AD156: =SUM(T156:AC156) -> 24 | AE156: =SUM('0602011_G:0602142_G'!AE156 ) -> 0 | AF156: =SUM('0602011_G:0602142_G'!AF156 ) -> 0 | AG156: =SUM('0602011_G:0602142_G'!AG156 ) -> 0 | AH156: =SUM(AE156:AG156) -> 0 | AI156: =SUM('0602011_G:0602142_G'!AI156 ) -> 0 | AJ156: =SUM('0602011_G:0602142_G'!AJ156 ) -> 0
B157: 13.2 | C157: których wł. nie są znani | D157: Razem | E157: =SUM(E155:E156) -> 25 | F157: 0 | G157: 0 | H157: 0 | I157: 0 | J157: 0 | K157: 0 | L157: 0 | M157: =SUM(M155:M156) -> 0 | N157: =SUM(N155:N156) -> 0 | O157: 0 | P157: 0 | Q157: 0 | R157: 0 | S157: 0 | T157: 0 | U157: 0 | V157: 1 | W157: 0 | X157: 0 | Y157: 0 | Z157: 24 | AA157: 0 | AB157: 0 | AC157: 0 | AD157: 25 | AE157: 0 | AF157: 0 | AG157: 0 | AH157: 0 | AI157: 0 | AJ157: 0
C158: Gr. wojew. przekazane org., | D158: M | E158: =SUM(P158,S158,AD158,AH158,AI158,AJ158) -> 38 | F158: =SUM('0602011_G:0602142_G'!F158 ) -> 0 | G158: =SUM('0602011_G:0602142_G'!G158 ) -> 0 | H158: =SUM('0602011_G:0602142_G'!H158 ) -> 0 | I158: =SUM('0602011_G:0602142_G'!I158 ) -> 0 | J158: =SUM('0602011_G:0602142_G'!J158 ) -> 0 | K158: =SUM('0602011_G:0602142_G'!K158 ) -> 0 | L158: =SUM('0602011_G:0602142_G'!L158 ) -> 0 | M158: =SUM('0602011_G:0602142_G'!M158 ) -> 0 | N158: =SUM('0602011_G:0602142_G'!N158 ) -> 0 | O158: =SUM('0602011_G:0602142_G'!O158 ) -> 0 | P158: =SUM(G158:O158) -> 0 | Q158: =SUM('0602011_G:0602142_G'!Q158 ) -> 0 | R158: =SUM('0602011_G:0602142_G'!R158 ) -> 0 | S158: =SUM(Q158:R158) -> 0 | T158: =SUM('0602011_G:0602142_G'!T158 ) -> 0 | U158: =SUM('0602011_G:0602142_G'!U158 ) -> 0 | V158: =SUM('0602011_G:0602142_G'!V158 ) -> 0 | W158: =SUM('0602011_G:0602142_G'!W158 ) -> 0 | X158: =SUM('0602011_G:0602142_G'!X158 ) -> 0 | Y158: =SUM('0602011_G:0602142_G'!Y158 ) -> 0 | Z158: =SUM('0602011_G:0602142_G'!Z158 ) -> 38 | AA158: =SUM('0602011_G:0602142_G'!AA158 ) -> 0 | AB158: =SUM('0602011_G:0602142_G'!AB158 ) -> 0 | AC158: =SUM('0602011_G:0602142_G'!AC158 ) -> 0 | AD158: =SUM(T158:AC158) -> 38 | AE158: =SUM('0602011_G:0602142_G'!AE158 ) -> 0 | AF158: =SUM('0602011_G:0602142_G'!AF158 ) -> 0 | AG158: =SUM('0602011_G:0602142_G'!AG158 ) -> 0 | AH158: =SUM(AE158:AG158) -> 0 | AI158: =SUM('0602011_G:0602142_G'!AI158 ) -> 0 | AJ158: =SUM('0602011_G:0602142_G'!AJ158 ) -> 0
C159: które wyk. zadania zarządcze | D159: W | E159: =SUM(P159,S159,AD159,AH159,AI159,AJ159) -> 196 | F159: =SUM('0602011_G:0602142_G'!F159 ) -> 0 | G159: =SUM('0602011_G:0602142_G'!G159 ) -> 0 | H159: =SUM('0602011_G:0602142_G'!H159 ) -> 0 | I159: =SUM('0602011_G:0602142_G'!I159 ) -> 0 | J159: =SUM('0602011_G:0602142_G'!J159 ) -> 0 | K159: =SUM('0602011_G:0602142_G'!K159 ) -> 0 | L159: =SUM('0602011_G:0602142_G'!L159 ) -> 0 | M159: =SUM('0602011_G:0602142_G'!M159 ) -> 0 | N159: =SUM('0602011_G:0602142_G'!N159 ) -> 0 | O159: =SUM('0602011_G:0602142_G'!O159 ) -> 0 | P159: =SUM(G159:O159) -> 0 | Q159: =SUM('0602011_G:0602142_G'!Q159 ) -> 0 | R159: =SUM('0602011_G:0602142_G'!R159 ) -> 0 | S159: =SUM(Q159:R159) -> 0 | T159: =SUM('0602011_G:0602142_G'!T159 ) -> 0 | U159: =SUM('0602011_G:0602142_G'!U159 ) -> 0 | V159: =SUM('0602011_G:0602142_G'!V159 ) -> 0 | W159: =SUM('0602011_G:0602142_G'!W159 ) -> 0 | X159: =SUM('0602011_G:0602142_G'!X159 ) -> 0 | Y159: =SUM('0602011_G:0602142_G'!Y159 ) -> 0 | Z159: =SUM('0602011_G:0602142_G'!Z159 ) -> 196 | AA159: =SUM('0602011_G:0602142_G'!AA159 ) -> 0 | AB159: =SUM('0602011_G:0602142_G'!AB159 ) -> 0 | AC159: =SUM('0602011_G:0602142_G'!AC159 ) -> 0 | AD159: =SUM(T159:AC159) -> 196 | AE159: =SUM('0602011_G:0602142_G'!AE159 ) -> 0 | AF159: =SUM('0602011_G:0602142_G'!AF159 ) -> 0 | AG159: =SUM('0602011_G:0602142_G'!AG159 ) -> 0 | AH159: =SUM(AE159:AG159) -> 0 | AI159: =SUM('0602011_G:0602142_G'!AI159 ) -> 0 | AJ159: =SUM('0602011_G:0602142_G'!AJ159 ) -> 0
B160: 13.3 | C160: w stosunku do dróg wojewódz. | D160: Razem | E160: =SUM(E158:E159) -> 234 | F160: 0 | G160: 0 | H160: 0 | I160: 0 | J160: 0 | K160: 0 | L160: 0 | M160: =SUM(M158:M159) -> 0 | N160: =SUM(N158:N159) -> 0 | O160: 0 | P160: 0 | Q160: 0 | R160: 0 | S160: 0 | T160: 0 | U160: 0 | V160: 0 | W160: 0 | X160: 0 | Y160: 0 | Z160: 234 | AA160: 0 | AB160: 0 | AC160: 0 | AD160: 234 | AE160: 0 | AF160: 0 | AG160: 0 | AH160: 0 | AI160: 0 | AJ160: 0
B161: Razem | C161: Grunty województw | D161: M | E161: =SUM(P161,S161,AD161,AH161,AI161,AJ161) -> 45 | F161: =SUM(F152,F155,F158) -> 0 | G161: =SUM(G152,G155,G158) -> 0 | H161: 0 | I161: 0 | J161: 0 | K161: 0 | L161: 0 | M161: 0 | N161: 0 | O161: 0 | P161: =SUM(G161,H161,I161,J161,K161,L161,M161,N161,O161) -> 0 | Q161: =SUM(Q152,Q155,Q158) -> 0 | R161: =SUM(R152,R155,R158) -> 0 | S161: =SUM(Q161:R161) -> 0 | T161: =SUM(T152,T155,T158) -> 0 | U161: =SUM(U152,U155,U158) -> 0 | V161: =SUM(V152,V155,V158) -> 1 | W161: 0 | X161: =SUM(X152,X155,X158) -> 0 | Y161: 0 | Z161: 44 | AA161: 0 | AB161: 0 | AC161: =SUM(AC152,AC155,AC158) -> 0 | AD161: =SUM(T161:AC161) -> 45 | AE161: =SUM(AE152,AE155,AE158) -> 0 | AF161: 0 | AG161: 0 | AH161: =SUM(AE161:AG161) -> 0 | AI161: =SUM(AI152,AI155,AI158) -> 0 | AJ161: =SUM(AJ152,AJ155,AJ158) -> 0
B162: 13.1 | C162: z wyłączeniem gruntów | D162: W | E162: =SUM(P162,S162,AD162,AH162,AI162,AJ162) -> 334 | F162: =SUM(F153,F156,F159) -> 0 | G162: 0 | H162: 0 | I162: 0 | J162: 0 | K162: 0 | L162: 0 | M162: 0 | N162: 0 | O162: 0 | P162: =SUM(G162,H162,I162,J162,K162,L162,M162,N162,O162) -> 0 | Q162: =SUM(Q153,Q156,Q159) -> 0 | R162: =SUM(R153,R156,R159) -> 0 | S162: =SUM(Q162:R162) -> 0 | T162: =SUM(T153,T156,T159) -> 0 | U162: =SUM(U153,U156,U159) -> 0 | V162: 0 | W162: 0 | X162: =SUM(X153,X156,X159) -> 0 | Y162: 0 | Z162: 328 | AA162: 0 | AB162: 0 | AC162: =SUM(AC153,AC156,AC159) -> 0 | AD162: =SUM(T162:AC162) -> 328 | AE162: 0 | AF162: 6 | AG162: 0 | AH162: =SUM(AE162:AG162) -> 6 | AI162: =SUM(AI153,AI156,AI159) -> 0 | AJ162: =SUM(AJ153,AJ156,AJ159) -> 0
B163: 13.3 | C163: przekaz. w użytkowanie | D163: Razem | E163: =SUM(E161:E162) -> 379 | F163: 0 | G163: 0 | H163: 0 | I163: 0 | J163: 0 | K163: 0 | L163: 0 | M163: =SUM(M161:M162) -> 0 | N163: =SUM(N161:N162) -> 0 | O163: 0 | P163: 0 | Q163: 0 | R163: 0 | S163: 0 | T163: 0 | U163: 0 | V163: 1 | W163: 0 | X163: 0 | Y163: 0 | Z163: 372 | AA163: 0 | AB163: 0 | AC163: 0 | AD163: 373 | AE163: 0 | AF163: 6 | AG163: 0 | AH163: 6 | AI163: 0 | AJ163: 0
A164: 14 | C164: Grunty województw | D164: M | E164: =SUM(P164,S164,AD164,AH164,AI164,AJ164) -> 0 | F164: =SUM('0602011_G:0602142_G'!F164 ) -> 0 | G164: =SUM('0602011_G:0602142_G'!G164 ) -> 0 | H164: =SUM('0602011_G:0602142_G'!H164 ) -> 0 | I164: =SUM('0602011_G:0602142_G'!I164 ) -> 0 | J164: =SUM('0602011_G:0602142_G'!J164 ) -> 0 | K164: =SUM('0602011_G:0602142_G'!K164 ) -> 0 | L164: =SUM('0602011_G:0602142_G'!L164 ) -> 0 | M164: =SUM('0602011_G:0602142_G'!M164 ) -> 0 | N164: =SUM('0602011_G:0602142_G'!N164 ) -> 0 | O164: =SUM('0602011_G:0602142_G'!O164 ) -> 0 | P164: =SUM(G164:O164) -> 0 | Q164: =SUM('0602011_G:0602142_G'!Q164 ) -> 0 | R164: =SUM('0602011_G:0602142_G'!R164 ) -> 0 | S164: =SUM(Q164:R164) -> 0 | T164: =SUM('0602011_G:0602142_G'!T164 ) -> 0 | U164: =SUM('0602011_G:0602142_G'!U164 ) -> 0 | V164: =SUM('0602011_G:0602142_G'!V164 ) -> 0 | W164: =SUM('0602011_G:0602142_G'!W164 ) -> 0 | X164: =SUM('0602011_G:0602142_G'!X164 ) -> 0 | Y164: =SUM('0602011_G:0602142_G'!Y164 ) -> 0 | Z164: =SUM('0602011_G:0602142_G'!Z164 ) -> 0 | AA164: =SUM('0602011_G:0602142_G'!AA164 ) -> 0 | AB164: =SUM('0602011_G:0602142_G'!AB164 ) -> 0 | AC164: =SUM('0602011_G:0602142_G'!AC164 ) -> 0 | AD164: =SUM(T164:AC164) -> 0 | AE164: =SUM('0602011_G:0602142_G'!AE164 ) -> 0 | AF164: =SUM('0602011_G:0602142_G'!AF164 ) -> 0 | AG164: =SUM('0602011_G:0602142_G'!AG164 ) -> 0 | AH164: =SUM(AE164:AG164) -> 0 | AI164: =SUM('0602011_G:0602142_G'!AI164 ) -> 0 | AJ164: =SUM('0602011_G:0602142_G'!AJ164 ) -> 0
C165: w użytkowaniu wieczystym | D165: W | E165: =SUM(P165,S165,AD165,AH165,AI165,AJ165) -> 0 | F165: =SUM('0602011_G:0602142_G'!F165 ) -> 0 | G165: =SUM('0602011_G:0602142_G'!G165 ) -> 0 | H165: =SUM('0602011_G:0602142_G'!H165 ) -> 0 | I165: =SUM('0602011_G:0602142_G'!I165 ) -> 0 | J165: =SUM('0602011_G:0602142_G'!J165 ) -> 0 | K165: =SUM('0602011_G:0602142_G'!K165 ) -> 0 | L165: =SUM('0602011_G:0602142_G'!L165 ) -> 0 | M165: =SUM('0602011_G:0602142_G'!M165 ) -> 0 | N165: =SUM('0602011_G:0602142_G'!N165 ) -> 0 | O165: =SUM('0602011_G:0602142_G'!O165 ) -> 0 | P165: =SUM(G165:O165) -> 0 | Q165: =SUM('0602011_G:0602142_G'!Q165 ) -> 0 | R165: =SUM('0602011_G:0602142_G'!R165 ) -> 0 | S165: =SUM(Q165:R165) -> 0 | T165: =SUM('0602011_G:0602142_G'!T165 ) -> 0 | U165: =SUM('0602011_G:0602142_G'!U165 ) -> 0 | V165: =SUM('0602011_G:0602142_G'!V165 ) -> 0 | W165: =SUM('0602011_G:0602142_G'!W165 ) -> 0 | X165: =SUM('0602011_G:0602142_G'!X165 ) -> 0 | Y165: =SUM('0602011_G:0602142_G'!Y165 ) -> 0 | Z165: =SUM('0602011_G:0602142_G'!Z165 ) -> 0 | AA165: =SUM('0602011_G:0602142_G'!AA165 ) -> 0 | AB165: =SUM('0602011_G:0602142_G'!AB165 ) -> 0 | AC165: =SUM('0602011_G:0602142_G'!AC165 ) -> 0 | AD165: =SUM(T165:AC165) -> 0 | AE165: =SUM('0602011_G:0602142_G'!AE165 ) -> 0 | AF165: =SUM('0602011_G:0602142_G'!AF165 ) -> 0 | AG165: =SUM('0602011_G:0602142_G'!AG165 ) -> 0 | AH165: =SUM(AE165:AG165) -> 0 | AI165: =SUM('0602011_G:0602142_G'!AI165 ) -> 0 | AJ165: =SUM('0602011_G:0602142_G'!AJ165 ) -> 0
B166: 14.1 | C166: osób fizycznych | D166: Razem | E166: =SUM(E164,E165) -> 0 | F166: 0 | G166: 0 | H166: 0 | I166: 0 | J166: 0 | K166: 0 | L166: 0 | M166: =SUM(M164,M165) -> 0 | N166: =SUM(N164,N165) -> 0 | O166: 0 | P166: 0 | Q166: =SUM(Q164:Q165) -> 0 | R166: 0 | S166: 0 | T166: 0 | U166: 0 | V166: 0 | W166: 0 | X166: 0 | Y166: 0 | Z166: 0 | AA166: 0 | AB166: 0 | AC166: 0 | AD166: 0 | AE166: 0 | AF166: 0 | AG166: 0 | AH166: 0 | AI166: 0 | AJ166: 0
C167: Grunty województw | D167: M | E167: =SUM(P167,S167,AD167,AH167,AI167,AJ167) -> 0 | F167: =SUM('0602011_G:0602142_G'!F167 ) -> 0 | G167: =SUM('0602011_G:0602142_G'!G167 ) -> 0 | H167: =SUM('0602011_G:0602142_G'!H167 ) -> 0 | I167: =SUM('0602011_G:0602142_G'!I167 ) -> 0 | J167: =SUM('0602011_G:0602142_G'!J167 ) -> 0 | K167: =SUM('0602011_G:0602142_G'!K167 ) -> 0 | L167: =SUM('0602011_G:0602142_G'!L167 ) -> 0 | M167: =SUM('0602011_G:0602142_G'!M167 ) -> 0 | N167: =SUM('0602011_G:0602142_G'!N167 ) -> 0 | O167: =SUM('0602011_G:0602142_G'!O167 ) -> 0 | P167: =SUM(G167:O167) -> 0 | Q167: =SUM('0602011_G:0602142_G'!Q167 ) -> 0 | R167: =SUM('0602011_G:0602142_G'!R167 ) -> 0 | S167: =SUM(Q167:R167) -> 0 | T167: =SUM('0602011_G:0602142_G'!T167 ) -> 0 | U167: =SUM('0602011_G:0602142_G'!U167 ) -> 0 | V167: =SUM('0602011_G:0602142_G'!V167 ) -> 0 | W167: =SUM('0602011_G:0602142_G'!W167 ) -> 0 | X167: =SUM('0602011_G:0602142_G'!X167 ) -> 0 | Y167: =SUM('0602011_G:0602142_G'!Y167 ) -> 0 | Z167: =SUM('0602011_G:0602142_G'!Z167 ) -> 0 | AA167: =SUM('0602011_G:0602142_G'!AA167 ) -> 0 | AB167: =SUM('0602011_G:0602142_G'!AB167 ) -> 0 | AC167: =SUM('0602011_G:0602142_G'!AC167 ) -> 0 | AD167: =SUM(T167:AC167) -> 0 | AE167: =SUM('0602011_G:0602142_G'!AE167 ) -> 0 | AF167: =SUM('0602011_G:0602142_G'!AF167 ) -> 0 | AG167: =SUM('0602011_G:0602142_G'!AG167 ) -> 0 | AH167: =SUM(AE167:AG167) -> 0 | AI167: =SUM('0602011_G:0602142_G'!AI167 ) -> 0 | AJ167: =SUM('0602011_G:0602142_G'!AJ167 ) -> 0
C168: w użytkowaniu wieczystym | D168: W | E168: =SUM(P168,S168,AD168,AH168,AI168,AJ168) -> 0 | F168: =SUM('0602011_G:0602142_G'!F168 ) -> 0 | G168: =SUM('0602011_G:0602142_G'!G168 ) -> 0 | H168: =SUM('0602011_G:0602142_G'!H168 ) -> 0 | I168: =SUM('0602011_G:0602142_G'!I168 ) -> 0 | J168: =SUM('0602011_G:0602142_G'!J168 ) -> 0 | K168: =SUM('0602011_G:0602142_G'!K168 ) -> 0 | L168: =SUM('0602011_G:0602142_G'!L168 ) -> 0 | M168: =SUM('0602011_G:0602142_G'!M168 ) -> 0 | N168: =SUM('0602011_G:0602142_G'!N168 ) -> 0 | O168: =SUM('0602011_G:0602142_G'!O168 ) -> 0 | P168: =SUM(G168:O168) -> 0 | Q168: =SUM('0602011_G:0602142_G'!Q168 ) -> 0 | R168: =SUM('0602011_G:0602142_G'!R168 ) -> 0 | S168: =SUM(Q168:R168) -> 0 | T168: =SUM('0602011_G:0602142_G'!T168 ) -> 0 | U168: =SUM('0602011_G:0602142_G'!U168 ) -> 0 | V168: =SUM('0602011_G:0602142_G'!V168 ) -> 0 | W168: =SUM('0602011_G:0602142_G'!W168 ) -> 0 | X168: =SUM('0602011_G:0602142_G'!X168 ) -> 0 | Y168: =SUM('0602011_G:0602142_G'!Y168 ) -> 0 | Z168: =SUM('0602011_G:0602142_G'!Z168 ) -> 0 | AA168: =SUM('0602011_G:0602142_G'!AA168 ) -> 0 | AB168: =SUM('0602011_G:0602142_G'!AB168 ) -> 0 | AC168: =SUM('0602011_G:0602142_G'!AC168 ) -> 0 | AD168: =SUM(T168:AC168) -> 0 | AE168: =SUM('0602011_G:0602142_G'!AE168 ) -> 0 | AF168: =SUM('0602011_G:0602142_G'!AF168 ) -> 0 | AG168: =SUM('0602011_G:0602142_G'!AG168 ) -> 0 | AH168: =SUM(AE168:AG168) -> 0 | AI168: =SUM('0602011_G:0602142_G'!AI168 ) -> 0 | AJ168: =SUM('0602011_G:0602142_G'!AJ168 ) -> 0
B169: 14.2 | C169: wojew. osób prawnych | D169: Razem | E169: =SUM(E167:E168) -> 0 | F169: 0 | G169: 0 | H169: 0 | I169: 0 | J169: 0 | K169: 0 | L169: 0 | M169: =SUM(M167:M168) -> 0 | N169: =SUM(N167:N168) -> 0 | O169: 0 | P169: 0 | Q169: 0 | R169: 0 | S169: 0 | T169: 0 | U169: 0 | V169: 0 | W169: 0 | X169: 0 | Y169: 0 | Z169: 0 | AA169: 0 | AB169: 0 | AC169: 0 | AD169: 0 | AE169: 0 | AF169: 0 | AG169: 0 | AH169: 0 | AI169: 0 | AJ169: 0
C170: Grunty województw | D170: M | E170: =SUM(P170,S170,AD170,AH170,AI170,AJ170) -> 0 | F170: =SUM('0602011_G:0602142_G'!F170 ) -> 0 | G170: =SUM('0602011_G:0602142_G'!G170 ) -> 0 | H170: =SUM('0602011_G:0602142_G'!H170 ) -> 0 | I170: =SUM('0602011_G:0602142_G'!I170 ) -> 0 | J170: =SUM('0602011_G:0602142_G'!J170 ) -> 0 | K170: =SUM('0602011_G:0602142_G'!K170 ) -> 0 | L170: =SUM('0602011_G:0602142_G'!L170 ) -> 0 | M170: =SUM('0602011_G:0602142_G'!M170 ) -> 0 | N170: =SUM('0602011_G:0602142_G'!N170 ) -> 0 | O170: =SUM('0602011_G:0602142_G'!O170 ) -> 0 | P170: =SUM(G170:O170) -> 0 | Q170: =SUM('0602011_G:0602142_G'!Q170 ) -> 0 | R170: =SUM('0602011_G:0602142_G'!R170 ) -> 0 | S170: =SUM(Q170:R170) -> 0 | T170: =SUM('0602011_G:0602142_G'!T170 ) -> 0 | U170: =SUM('0602011_G:0602142_G'!U170 ) -> 0 | V170: =SUM('0602011_G:0602142_G'!V170 ) -> 0 | W170: =SUM('0602011_G:0602142_G'!W170 ) -> 0 | X170: =SUM('0602011_G:0602142_G'!X170 ) -> 0 | Y170: =SUM('0602011_G:0602142_G'!Y170 ) -> 0 | Z170: =SUM('0602011_G:0602142_G'!Z170 ) -> 0 | AA170: =SUM('0602011_G:0602142_G'!AA170 ) -> 0 | AB170: =SUM('0602011_G:0602142_G'!AB170 ) -> 0 | AC170: =SUM('0602011_G:0602142_G'!AC170 ) -> 0 | AD170: =SUM(T170:AC170) -> 0 | AE170: =SUM('0602011_G:0602142_G'!AE170 ) -> 0 | AF170: =SUM('0602011_G:0602142_G'!AF170 ) -> 0 | AG170: =SUM('0602011_G:0602142_G'!AG170 ) -> 0 | AH170: =SUM(AE170:AG170) -> 0 | AI170: =SUM('0602011_G:0602142_G'!AI170 ) -> 0 | AJ170: =SUM('0602011_G:0602142_G'!AJ170 ) -> 0
C171: w użytkowaniu wieczystym | D171: W | E171: =SUM(P171,S171,AD171,AH171,AI171,AJ171) -> 0 | F171: =SUM('0602011_G:0602142_G'!F171 ) -> 0 | G171: =SUM('0602011_G:0602142_G'!G171 ) -> 0 | H171: =SUM('0602011_G:0602142_G'!H171 ) -> 0 | I171: =SUM('0602011_G:0602142_G'!I171 ) -> 0 | J171: =SUM('0602011_G:0602142_G'!J171 ) -> 0 | K171: =SUM('0602011_G:0602142_G'!K171 ) -> 0 | L171: =SUM('0602011_G:0602142_G'!L171 ) -> 0 | M171: =SUM('0602011_G:0602142_G'!M171 ) -> 0 | N171: =SUM('0602011_G:0602142_G'!N171 ) -> 0 | O171: =SUM('0602011_G:0602142_G'!O171 ) -> 0 | P171: =SUM(G171:O171) -> 0 | Q171: =SUM('0602011_G:0602142_G'!Q171 ) -> 0 | R171: =SUM('0602011_G:0602142_G'!R171 ) -> 0 | S171: =SUM(Q171:R171) -> 0 | T171: =SUM('0602011_G:0602142_G'!T171 ) -> 0 | U171: =SUM('0602011_G:0602142_G'!U171 ) -> 0 | V171: =SUM('0602011_G:0602142_G'!V171 ) -> 0 | W171: =SUM('0602011_G:0602142_G'!W171 ) -> 0 | X171: =SUM('0602011_G:0602142_G'!X171 ) -> 0 | Y171: =SUM('0602011_G:0602142_G'!Y171 ) -> 0 | Z171: =SUM('0602011_G:0602142_G'!Z171 ) -> 0 | AA171: =SUM('0602011_G:0602142_G'!AA171 ) -> 0 | AB171: =SUM('0602011_G:0602142_G'!AB171 ) -> 0 | AC171: =SUM('0602011_G:0602142_G'!AC171 ) -> 0 | AD171: =SUM(T171:AC171) -> 0 | AE171: =SUM('0602011_G:0602142_G'!AE171 ) -> 0 | AF171: =SUM('0602011_G:0602142_G'!AF171 ) -> 0 | AG171: =SUM('0602011_G:0602142_G'!AG171 ) -> 0 | AH171: =SUM(AE171:AG171) -> 0 | AI171: =SUM('0602011_G:0602142_G'!AI171 ) -> 0 | AJ171: =SUM('0602011_G:0602142_G'!AJ171 ) -> 0
B172: 14.3 | C172: spółdzielni mieszkaniowych | D172: Razem | E172: =SUM(E170:E171) -> 0 | F172: 0 | G172: 0 | H172: 0 | I172: 0 | J172: 0 | K172: 0 | L172: 0 | M172: =SUM(M170:M171) -> 0 | N172: =SUM(N170:N171) -> 0 | O172: 0 | P172: 0 | Q172: 0 | R172: 0 | S172: 0 | T172: 0 | U172: 0 | V172: 0 | W172: 0 | X172: 0 | Y172: 0 | Z172: 0 | AA172: 0 | AB172: 0 | AC172: 0 | AD172: 0 | AE172: 0 | AF172: 0 | AG172: 0 | AH172: 0 | AI172: 0 | AJ172: 0
C173: Grunty województw | D173: M | E173: =SUM(P173,S173,AD173,AH173,AI173,AJ173) -> 0 | F173: =SUM('0602011_G:0602142_G'!F173 ) -> 0 | G173: =SUM('0602011_G:0602142_G'!G173 ) -> 0 | H173: =SUM('0602011_G:0602142_G'!H173 ) -> 0 | I173: =SUM('0602011_G:0602142_G'!I173 ) -> 0 | J173: =SUM('0602011_G:0602142_G'!J173 ) -> 0 | K173: =SUM('0602011_G:0602142_G'!K173 ) -> 0 | L173: =SUM('0602011_G:0602142_G'!L173 ) -> 0 | M173: =SUM('0602011_G:0602142_G'!M173 ) -> 0 | N173: =SUM('0602011_G:0602142_G'!N173 ) -> 0 | O173: =SUM('0602011_G:0602142_G'!O173 ) -> 0 | P173: =SUM(G173:O173) -> 0 | Q173: =SUM('0602011_G:0602142_G'!Q173 ) -> 0 | R173: =SUM('0602011_G:0602142_G'!R173 ) -> 0 | S173: =SUM(Q173:R173) -> 0 | T173: =SUM('0602011_G:0602142_G'!T173 ) -> 0 | U173: =SUM('0602011_G:0602142_G'!U173 ) -> 0 | V173: =SUM('0602011_G:0602142_G'!V173 ) -> 0 | W173: =SUM('0602011_G:0602142_G'!W173 ) -> 0 | X173: =SUM('0602011_G:0602142_G'!X173 ) -> 0 | Y173: =SUM('0602011_G:0602142_G'!Y173 ) -> 0 | Z173: =SUM('0602011_G:0602142_G'!Z173 ) -> 0 | AA173: =SUM('0602011_G:0602142_G'!AA173 ) -> 0 | AB173: =SUM('0602011_G:0602142_G'!AB173 ) -> 0 | AC173: =SUM('0602011_G:0602142_G'!AC173 ) -> 0 | AD173: =SUM(T173:AC173) -> 0 | AE173: =SUM('0602011_G:0602142_G'!AE173 ) -> 0 | AF173: =SUM('0602011_G:0602142_G'!AF173 ) -> 0 | AG173: =SUM('0602011_G:0602142_G'!AG173 ) -> 0 | AH173: =SUM(AE173:AG173) -> 0 | AI173: =SUM('0602011_G:0602142_G'!AI173 ) -> 0 | AJ173: =SUM('0602011_G:0602142_G'!AJ173 ) -> 0
C174: w użytkowaniu wieczystym | D174: W | E174: =SUM(P174,S174,AD174,AH174,AI174,AJ174) -> 0 | F174: =SUM('0602011_G:0602142_G'!F174 ) -> 0 | G174: =SUM('0602011_G:0602142_G'!G174 ) -> 0 | H174: =SUM('0602011_G:0602142_G'!H174 ) -> 0 | I174: =SUM('0602011_G:0602142_G'!I174 ) -> 0 | J174: =SUM('0602011_G:0602142_G'!J174 ) -> 0 | K174: =SUM('0602011_G:0602142_G'!K174 ) -> 0 | L174: =SUM('0602011_G:0602142_G'!L174 ) -> 0 | M174: =SUM('0602011_G:0602142_G'!M174 ) -> 0 | N174: =SUM('0602011_G:0602142_G'!N174 ) -> 0 | O174: =SUM('0602011_G:0602142_G'!O174 ) -> 0 | P174: =SUM(G174:O174) -> 0 | Q174: =SUM('0602011_G:0602142_G'!Q174 ) -> 0 | R174: =SUM('0602011_G:0602142_G'!R174 ) -> 0 | S174: =SUM(Q174:R174) -> 0 | T174: =SUM('0602011_G:0602142_G'!T174 ) -> 0 | U174: =SUM('0602011_G:0602142_G'!U174 ) -> 0 | V174: =SUM('0602011_G:0602142_G'!V174 ) -> 0 | W174: =SUM('0602011_G:0602142_G'!W174 ) -> 0 | X174: =SUM('0602011_G:0602142_G'!X174 ) -> 0 | Y174: =SUM('0602011_G:0602142_G'!Y174 ) -> 0 | Z174: =SUM('0602011_G:0602142_G'!Z174 ) -> 0 | AA174: =SUM('0602011_G:0602142_G'!AA174 ) -> 0 | AB174: =SUM('0602011_G:0602142_G'!AB174 ) -> 0 | AC174: =SUM('0602011_G:0602142_G'!AC174 ) -> 0 | AD174: =SUM(T174:AC174) -> 0 | AE174: =SUM('0602011_G:0602142_G'!AE174 ) -> 0 | AF174: =SUM('0602011_G:0602142_G'!AF174 ) -> 0 | AG174: =SUM('0602011_G:0602142_G'!AG174 ) -> 0 | AH174: =SUM(AE174:AG174) -> 0 | AI174: =SUM('0602011_G:0602142_G'!AI174 ) -> 0 | AJ174: =SUM('0602011_G:0602142_G'!AJ174 ) -> 0
B175: 14.4 | C175: pozostałych osób | D175: Razem | E175: =SUM(E173:E174) -> 0 | F175: 0 | G175: 0 | H175: 0 | I175: 0 | J175: 0 | K175: 0 | L175: 0 | M175: =SUM(M173:M174) -> 0 | N175: =SUM(N173:N174) -> 0 | O175: 0 | P175: 0 | Q175: 0 | R175: 0 | S175: 0 | T175: 0 | U175: 0 | V175: 0 | W175: 0 | X175: 0 | Y175: 0 | Z175: 0 | AA175: 0 | AB175: 0 | AC175: 0 | AD175: 0 | AE175: 0 | AF175: 0 | AG175: 0 | AH175: 0 | AI175: 0 | AJ175: 0
B176: Razem | C176: Grunty województw | D176: M | E176: =SUM(P176,S176,AD176,AH176,AI176,AJ176) -> 0 | F176: =SUM(F164,F167,F170,F173) -> 0 | G176: 0 | H176: 0 | I176: 0 | J176: 0 | K176: 0 | L176: 0 | M176: 0 | N176: 0 | O176: 0 | P176: =SUM(G176,H176,I176,J176,K176,L176,M176,N176,O176) -> 0 | Q176: =SUM(Q164,Q167,Q170,Q173) -> 0 | R176: =SUM(R164,R167,R170,R173) -> 0 | S176: =SUM(Q176:R176) -> 0 | T176: =SUM(T164,T167,T170,T173) -> 0 | U176: 0 | V176: 0 | W176: 0 | X176: =SUM(X164,X167,X170,X173) -> 0 | Y176: 0 | Z176: 0 | AA176: 0 | AB176: 0 | AC176: 0 | AD176: =SUM(T176:AC176) -> 0 | AE176: =SUM(AE164,AE167,AE170,AE173) -> 0 | AF176: 0 | AG176: 0 | AH176: =SUM(AE176:AG176) -> 0 | AI176: =SUM(AI164,AI167,AI170,AI173) -> 0 | AJ176: =SUM(AJ164,AJ167,AJ170,AJ173) -> 0
B177: 14.1 | C177: przekazane w użytkowanie | D177: W | E177: =SUM(P177,S177,AD177,AH177,AI177,AJ177) -> 0 | F177: 0 | G177: 0 | H177: 0 | I177: 0 | J177: 0 | K177: 0 | L177: 0 | M177: 0 | N177: 0 | O177: 0 | P177: =SUM(G177,H177,I177,J177,K177,L177,M177,N177,O177) -> 0 | Q177: =SUM(Q165,Q168,Q171,Q174) -> 0 | R177: =SUM(R165,R168,R171,R174) -> 0 | S177: =SUM(Q177:R177) -> 0 | T177: 0 | U177: 0 | V177: 0 | W177: 0 | X177: =SUM(X165,X168,X171,X174) -> 0 | Y177: 0 | Z177: 0 | AA177: 0 | AB177: 0 | AC177: 0 | AD177: =SUM(T177:AC177) -> 0 | AE177: 0 | AF177: 0 | AG177: 0 | AH177: =SUM(AE177:AG177) -> 0 | AI177: =SUM(AI165,AI168,AI171,AI174) -> 0 | AJ177: =SUM(AJ165,AJ168,AJ171,AJ174) -> 0
B178: 14.4 | C178: wieczyste | D178: Razem | E178: =SUM(E176:E177) -> 0 | F178: 0 | G178: 0 | H178: 0 | I178: 0 | J178: 0 | K178: 0 | L178: 0 | M178: =SUM(M176:M177) -> 0 | N178: =SUM(N176:N177) -> 0 | O178: 0 | P178: 0 | Q178: 0 | R178: 0 | S178: 0 | T178: 0 | U178: 0 | V178: 0 | W178: 0 | X178: 0 | Y178: 0 | Z178: 0 | AA178: 0 | AB178: 0 | AC178: 0 | AD178: 0 | AE178: 0 | AF178: 0 | AG178: 0 | AH178: 0 | AI178: 0 | AJ178: 0
A179: 15 | D179: M | E179: =SUM(P179,S179,AD179,AH179,AI179,AJ179) -> 40 | F179: =SUM('0602011_G:0602142_G'!F179 ) -> 0 | G179: =SUM('0602011_G:0602142_G'!G179 ) -> 0 | H179: =SUM('0602011_G:0602142_G'!H179 ) -> 0 | I179: =SUM('0602011_G:0602142_G'!I179 ) -> 3 | J179: =SUM('0602011_G:0602142_G'!J179 ) -> 1 | K179: =SUM('0602011_G:0602142_G'!K179 ) -> 0 | L179: =SUM('0602011_G:0602142_G'!L179 ) -> 0 | M179: =SUM('0602011_G:0602142_G'!M179 ) -> 0 | N179: =SUM('0602011_G:0602142_G'!N179 ) -> 0 | O179: =SUM('0602011_G:0602142_G'!O179 ) -> 1 | P179: =SUM(G179:O179) -> 5 | Q179: =SUM('0602011_G:0602142_G'!Q179 ) -> 1 | R179: =SUM('0602011_G:0602142_G'!R179 ) -> 0 | S179: =SUM(Q179:R179) -> 1 | T179: =SUM('0602011_G:0602142_G'!T179 ) -> 0 | U179: =SUM('0602011_G:0602142_G'!U179 ) -> 8 | V179: =SUM('0602011_G:0602142_G'!V179 ) -> 15 | W179: =SUM('0602011_G:0602142_G'!W179 ) -> 11 | X179: =SUM('0602011_G:0602142_G'!X179 ) -> 0 | Y179: =SUM('0602011_G:0602142_G'!Y179 ) -> 0 | Z179: =SUM('0602011_G:0602142_G'!Z179 ) -> 0 | AA179: =SUM('0602011_G:0602142_G'!AA179 ) -> 0 | AB179: =SUM('0602011_G:0602142_G'!AB179 ) -> 0 | AC179: =SUM('0602011_G:0602142_G'!AC179 ) -> 0 | AD179: =SUM(T179:AC179) -> 34 | AE179: =SUM('0602011_G:0602142_G'!AE179 ) -> 0 | AF179: =SUM('0602011_G:0602142_G'!AF179 ) -> 0 | AG179: =SUM('0602011_G:0602142_G'!AG179 ) -> 0 | AH179: =SUM(AE179:AG179) -> 0 | AI179: =SUM('0602011_G:0602142_G'!AI179 ) -> 0 | AJ179: =SUM('0602011_G:0602142_G'!AJ179 ) -> 0
C180: Grunty spółek prawa | D180: W | E180: =SUM(P180,S180,AD180,AH180,AI180,AJ180) -> 211 | F180: =SUM('0602011_G:0602142_G'!F180 ) -> 0 | G180: =SUM('0602011_G:0602142_G'!G180 ) -> 175 | H180: =SUM('0602011_G:0602142_G'!H180 ) -> 0 | I180: =SUM('0602011_G:0602142_G'!I180 ) -> 8 | J180: =SUM('0602011_G:0602142_G'!J180 ) -> 5 | K180: =SUM('0602011_G:0602142_G'!K180 ) -> 4 | L180: =SUM('0602011_G:0602142_G'!L180 ) -> 0 | M180: =SUM('0602011_G:0602142_G'!M180 ) -> 1 | N180: =SUM('0602011_G:0602142_G'!N180 ) -> 3 | O180: =SUM('0602011_G:0602142_G'!O180 ) -> 0 | P180: =SUM(G180:O180) -> 196 | Q180: =SUM('0602011_G:0602142_G'!Q180 ) -> 10 | R180: =SUM('0602011_G:0602142_G'!R180 ) -> 0 | S180: =SUM(Q180:R180) -> 10 | T180: =SUM('0602011_G:0602142_G'!T180 ) -> 0 | U180: =SUM('0602011_G:0602142_G'!U180 ) -> 3 | V180: =SUM('0602011_G:0602142_G'!V180 ) -> 2 | W180: =SUM('0602011_G:0602142_G'!W180 ) -> 0 | X180: =SUM('0602011_G:0602142_G'!X180 ) -> 0 | Y180: =SUM('0602011_G:0602142_G'!Y180 ) -> 0 | Z180: =SUM('0602011_G:0602142_G'!Z180 ) -> 0 | AA180: =SUM('0602011_G:0602142_G'!AA180 ) -> 0 | AB180: =SUM('0602011_G:0602142_G'!AB180 ) -> 0 | AC180: =SUM('0602011_G:0602142_G'!AC180 ) -> 0 | AD180: =SUM(T180:AC180) -> 5 | AE180: =SUM('0602011_G:0602142_G'!AE180 ) -> 0 | AF180: =SUM('0602011_G:0602142_G'!AF180 ) -> 0 | AG180: =SUM('0602011_G:0602142_G'!AG180 ) -> 0 | AH180: =SUM(AE180:AG180) -> 0 | AI180: =SUM('0602011_G:0602142_G'!AI180 ) -> 0 | AJ180: =SUM('0602011_G:0602142_G'!AJ180 ) -> 0
B181: 15.1 | C181: handlowego | D181: Razem | E181: =SUM(E179:E180) -> 251 | F181: 0 | G181: 175 | H181: 0 | I181: 11 | J181: 6 | K181: 4 | L181: 0 | M181: =SUM(M179:M180) -> 1 | N181: =SUM(N179:N180) -> 3 | O181: 1 | P181: 201 | Q181: 11 | R181: 0 | S181: 11 | T181: 0 | U181: 11 | V181: 17 | W181: 11 | X181: 0 | Y181: 0 | Z181: 0 | AA181: 0 | AB181: 0 | AC181: 0 | AD181: 39 | AE181: 0 | AF181: 0 | AG181: 0 | AH181: 0 | AI181: 0 | AJ181: 0
D182: M | E182: =SUM(P182,S182,AD182,AH182,AI182,AJ182) -> 5 | F182: =SUM('0602011_G:0602142_G'!F182 ) -> 0 | G182: =SUM('0602011_G:0602142_G'!G182 ) -> 0 | H182: =SUM('0602011_G:0602142_G'!H182 ) -> 0 | I182: =SUM('0602011_G:0602142_G'!I182 ) -> 0 | J182: =SUM('0602011_G:0602142_G'!J182 ) -> 0 | K182: =SUM('0602011_G:0602142_G'!K182 ) -> 0 | L182: =SUM('0602011_G:0602142_G'!L182 ) -> 0 | M182: =SUM('0602011_G:0602142_G'!M182 ) -> 0 | N182: =SUM('0602011_G:0602142_G'!N182 ) -> 0 | O182: =SUM('0602011_G:0602142_G'!O182 ) -> 0 | P182: =SUM(G182:O182) -> 0 | Q182: =SUM('0602011_G:0602142_G'!Q182 ) -> 0 | R182: =SUM('0602011_G:0602142_G'!R182 ) -> 0 | S182: =SUM(Q182:R182) -> 0 | T182: =SUM('0602011_G:0602142_G'!T182 ) -> 2 | U182: =SUM('0602011_G:0602142_G'!U182 ) -> 0 | V182: =SUM('0602011_G:0602142_G'!V182 ) -> 2 | W182: =SUM('0602011_G:0602142_G'!W182 ) -> 1 | X182: =SUM('0602011_G:0602142_G'!X182 ) -> 0 | Y182: =SUM('0602011_G:0602142_G'!Y182 ) -> 0 | Z182: =SUM('0602011_G:0602142_G'!Z182 ) -> 0 | AA182: =SUM('0602011_G:0602142_G'!AA182 ) -> 0 | AB182: =SUM('0602011_G:0602142_G'!AB182 ) -> 0 | AC182: =SUM('0602011_G:0602142_G'!AC182 ) -> 0 | AD182: =SUM(T182:AC182) -> 5 | AE182: =SUM('0602011_G:0602142_G'!AE182 ) -> 0 | AF182: =SUM('0602011_G:0602142_G'!AF182 ) -> 0 | AG182: =SUM('0602011_G:0602142_G'!AG182 ) -> 0 | AH182: =SUM(AE182:AG182) -> 0 | AI182: =SUM('0602011_G:0602142_G'!AI182 ) -> 0 | AJ182: =SUM('0602011_G:0602142_G'!AJ182 ) -> 0
C183: Grunty partii politycznych | D183: W | E183: =SUM(P183,S183,AD183,AH183,AI183,AJ183) -> 45 | F183: =SUM('0602011_G:0602142_G'!F183 ) -> 0 | G183: =SUM('0602011_G:0602142_G'!G183 ) -> 8 | H183: =SUM('0602011_G:0602142_G'!H183 ) -> 0 | I183: =SUM('0602011_G:0602142_G'!I183 ) -> 27 | J183: =SUM('0602011_G:0602142_G'!J183 ) -> 1 | K183: =SUM('0602011_G:0602142_G'!K183 ) -> 1 | L183: =SUM('0602011_G:0602142_G'!L183 ) -> 0 | M183: =SUM('0602011_G:0602142_G'!M183 ) -> 0 | N183: =SUM('0602011_G:0602142_G'!N183 ) -> 1 | O183: =SUM('0602011_G:0602142_G'!O183 ) -> 1 | P183: =SUM(G183:O183) -> 39 | Q183: =SUM('0602011_G:0602142_G'!Q183 ) -> 5 | R183: =SUM('0602011_G:0602142_G'!R183 ) -> 0 | S183: =SUM(Q183:R183) -> 5 | T183: =SUM('0602011_G:0602142_G'!T183 ) -> 0 | U183: =SUM('0602011_G:0602142_G'!U183 ) -> 0 | V183: =SUM('0602011_G:0602142_G'!V183 ) -> 0 | W183: =SUM('0602011_G:0602142_G'!W183 ) -> 0 | X183: =SUM('0602011_G:0602142_G'!X183 ) -> 0 | Y183: =SUM('0602011_G:0602142_G'!Y183 ) -> 0 | Z183: =SUM('0602011_G:0602142_G'!Z183 ) -> 0 | AA183: =SUM('0602011_G:0602142_G'!AA183 ) -> 0 | AB183: =SUM('0602011_G:0602142_G'!AB183 ) -> 0 | AC183: =SUM('0602011_G:0602142_G'!AC183 ) -> 0 | AD183: =SUM(T183:AC183) -> 0 | AE183: =SUM('0602011_G:0602142_G'!AE183 ) -> 0 | AF183: =SUM('0602011_G:0602142_G'!AF183 ) -> 0 | AG183: =SUM('0602011_G:0602142_G'!AG183 ) -> 0 | AH183: =SUM(AE183:AG183) -> 0 | AI183: =SUM('0602011_G:0602142_G'!AI183 ) -> 0 | AJ183: =SUM('0602011_G:0602142_G'!AJ183 ) -> 1
B184: 15.2 | C184: i stowarzyszeń | D184: Razem | E184: =SUM(E182:E183) -> 50 | F184: 0 | G184: 8 | H184: 0 | I184: 27 | J184: 1 | K184: 1 | L184: 0 | M184: =SUM(M182:M183) -> 0 | N184: =SUM(N182:N183) -> 1 | O184: 1 | P184: 39 | Q184: 5 | R184: 0 | S184: 5 | T184: 2 | U184: 0 | V184: 2 | W184: 1 | X184: 0 | Y184: 0 | Z184: 0 | AA184: 0 | AB184: 0 | AC184: 0 | AD184: 5 | AE184: 0 | AF184: 0 | AG184: 0 | AH184: 0 | AI184: 0 | AJ184: 1
C185: Pozostałe grunty spośród | D185: M | E185: =SUM(P185,S185,AD185,AH185,AI185,AJ185) -> 47 | F185: =SUM('0602011_G:0602142_G'!F185 ) -> 0 | G185: =SUM('0602011_G:0602142_G'!G185 ) -> 6 | H185: =SUM('0602011_G:0602142_G'!H185 ) -> 0 | I185: =SUM('0602011_G:0602142_G'!I185 ) -> 8 | J185: =SUM('0602011_G:0602142_G'!J185 ) -> 2 | K185: =SUM('0602011_G:0602142_G'!K185 ) -> 0 | L185: =SUM('0602011_G:0602142_G'!L185 ) -> 0 | M185: =SUM('0602011_G:0602142_G'!M185 ) -> 0 | N185: =SUM('0602011_G:0602142_G'!N185 ) -> 0 | O185: =SUM('0602011_G:0602142_G'!O185 ) -> 0 | P185: =SUM(G185:O185) -> 16 | Q185: =SUM('0602011_G:0602142_G'!Q185 ) -> 0 | R185: =SUM('0602011_G:0602142_G'!R185 ) -> 0 | S185: =SUM(Q185:R185) -> 0 | T185: =SUM('0602011_G:0602142_G'!T185 ) -> 1 | U185: =SUM('0602011_G:0602142_G'!U185 ) -> 15 | V185: =SUM('0602011_G:0602142_G'!V185 ) -> 8 | W185: =SUM('0602011_G:0602142_G'!W185 ) -> 1 | X185: =SUM('0602011_G:0602142_G'!X185 ) -> 0 | Y185: =SUM('0602011_G:0602142_G'!Y185 ) -> 0 | Z185: =SUM('0602011_G:0602142_G'!Z185 ) -> 6 | AA185: =SUM('0602011_G:0602142_G'!AA185 ) -> 0 | AB185: =SUM('0602011_G:0602142_G'!AB185 ) -> 0 | AC185: =SUM('0602011_G:0602142_G'!AC185 ) -> 0 | AD185: =SUM(T185:AC185) -> 31 | AE185: =SUM('0602011_G:0602142_G'!AE185 ) -> 0 | AF185: =SUM('0602011_G:0602142_G'!AF185 ) -> 0 | AG185: =SUM('0602011_G:0602142_G'!AG185 ) -> 0 | AH185: =SUM(AE185:AG185) -> 0 | AI185: =SUM('0602011_G:0602142_G'!AI185 ) -> 0 | AJ185: =SUM('0602011_G:0602142_G'!AJ185 ) -> 0
C186: gruntów zaliczanych | D186: W | E186: =SUM(P186,S186,AD186,AH186,AI186,AJ186) -> 509 | F186: =SUM('0602011_G:0602142_G'!F186 ) -> 0 | G186: =SUM('0602011_G:0602142_G'!G186 ) -> 239 | H186: =SUM('0602011_G:0602142_G'!H186 ) -> 0 | I186: =SUM('0602011_G:0602142_G'!I186 ) -> 21 | J186: =SUM('0602011_G:0602142_G'!J186 ) -> 10 | K186: =SUM('0602011_G:0602142_G'!K186 ) -> 4 | L186: =SUM('0602011_G:0602142_G'!L186 ) -> 0 | M186: =SUM('0602011_G:0602142_G'!M186 ) -> 19 | N186: =SUM('0602011_G:0602142_G'!N186 ) -> 4 | O186: =SUM('0602011_G:0602142_G'!O186 ) -> 1 | P186: =SUM(G186:O186) -> 298 | Q186: =SUM('0602011_G:0602142_G'!Q186 ) -> 178 | R186: =SUM('0602011_G:0602142_G'!R186 ) -> 0 | S186: =SUM(Q186:R186) -> 178 | T186: =SUM('0602011_G:0602142_G'!T186 ) -> 1 | U186: =SUM('0602011_G:0602142_G'!U186 ) -> 4 | V186: =SUM('0602011_G:0602142_G'!V186 ) -> 3 | W186: =SUM('0602011_G:0602142_G'!W186 ) -> 0 | X186: =SUM('0602011_G:0602142_G'!X186 ) -> 0 | Y186: =SUM('0602011_G:0602142_G'!Y186 ) -> 0 | Z186: =SUM('0602011_G:0602142_G'!Z186 ) -> 23 | AA186: =SUM('0602011_G:0602142_G'!AA186 ) -> 1 | AB186: =SUM('0602011_G:0602142_G'!AB186 ) -> 0 | AC186: =SUM('0602011_G:0602142_G'!AC186 ) -> 0 | AD186: =SUM(T186:AC186) -> 32 | AE186: =SUM('0602011_G:0602142_G'!AE186 ) -> 0 | AF186: =SUM('0602011_G:0602142_G'!AF186 ) -> 0 | AG186: =SUM('0602011_G:0602142_G'!AG186 ) -> 0 | AH186: =SUM(AE186:AG186) -> 0 | AI186: =SUM('0602011_G:0602142_G'!AI186 ) -> 0 | AJ186: =SUM('0602011_G:0602142_G'!AJ186 ) -> 1
B187: 15.3 | C187: do 15 grupy | D187: Razem | E187: =SUM(E185:E186) -> 556 | F187: 0 | G187: 245 | H187: 0 | I187: 29 | J187: 12 | K187: 4 | L187: 0 | M187: =SUM(M185:M186) -> 19 | N187: =SUM(N185:N186) -> 4 | O187: 1 | P187: =SUM(P185:P186) -> 314 | Q187: 178 | R187: 0 | S187: 178 | T187: 2 | U187: 19 | V187: 11 | W187: 1 | X187: 0 | Y187: 0 | Z187: 29 | AA187: 1 | AB187: 0 | AC187: 0 | AD187: 63 | AE187: 0 | AF187: 0 | AG187: 0 | AH187: 0 | AI187: 0 | AJ187: 1
B188: Razem | C188: Grunty będące przedmiotem | D188: M | E188: =SUM(P188,S188,AD188,AH188,AI188,AJ188) -> 92 | F188: =SUM(F179,F182,F185) -> 0 | G188: =SUM(G179,G182,G185) -> 6 | H188: =SUM(H179,H182,H185) -> 0 | I188: 11 | J188: 3 | K188: 0 | L188: 0 | M188: 0 | N188: 0 | O188: 1 | P188: =SUM(G188,H188,I188,J188,K188,L188,M188,N188,O188) -> 21 | Q188: =SUM(Q179,Q182,Q185) -> 1 | R188: =SUM(R179,R182,R185) -> 0 | S188: =SUM(Q188:R188) -> 1 | T188: =SUM(T179,T182,T185) -> 3 | U188: =SUM(U179,U182,U185) -> 23 | V188: =SUM(V179,V182,V185) -> 25 | W188: 13 | X188: =SUM(X179,X182,X185) -> 0 | Y188: 0 | Z188: 6 | AA188: 0 | AB188: 0 | AC188: =SUM(AC179,AC182,AC185) -> 0 | AD188: =SUM(T188:AC188) -> 70 | AE188: =SUM(AE179,AE182,AE185) -> 0 | AF188: 0 | AG188: 0 | AH188: =SUM(AE188:AG188) -> 0 | AI188: =SUM(AI179,AI182,AI185) -> 0 | AJ188: =SUM(AJ179,AJ182,AJ185) -> 0
B189: 15.1 | C189: własności i władania osób | D189: W | E189: =SUM(P189,S189,AD189,AH189,AI189,AJ189) -> 765 | F189: =SUM(F180,F183,F186) -> 0 | G189: =SUM(G180,G183,G186) -> 422 | H189: 0 | I189: 56 | J189: 16 | K189: 9 | L189: =SUM(L180,L183,L186) -> 0 | M189: =SUM(M180,M183,M186) -> 20 | N189: =SUM(N180,N183,N186) -> 8 | O189: 2 | P189: =SUM(G189,H189,I189,J189,K189,L189,M189,N189,O189) -> 533 | Q189: =SUM(Q180,Q183,Q186) -> 193 | R189: =SUM(R180,R183,R186) -> 0 | S189: =SUM(Q189:R189) -> 193 | T189: =SUM(T180,T183,T186) -> 1 | U189: =SUM(U180,U183,U186) -> 7 | V189: 5 | W189: 0 | X189: =SUM(X180,X183,X186) -> 0 | Y189: 0 | Z189: 23 | AA189: 1 | AB189: 0 | AC189: =SUM(AC180,AC183,AC186) -> 0 | AD189: =SUM(T189:AC189) -> 37 | AE189: 0 | AF189: 0 | AG189: 0 | AH189: =SUM(AE189:AG189) -> 0 | AI189: =SUM(AI180,AI183,AI186) -> 0 | AJ189: =SUM(AJ180,AJ183,AJ186) -> 2
B190: 15.3 | C190: niewymienionych w grupach 1 - 14 | D190: Razem | E190: =SUM(E188:E189) -> 857 | F190: =SUM(F188:F189) -> 0 | G190: 428 | H190: 0 | I190: 67 | J190: 19 | K190: 9 | L190: 0 | M190: =SUM(M188:M189) -> 20 | N190: =SUM(N188:N189) -> 8 | O190: 3 | P190: =SUM(P188:P189) -> 554 | Q190: 194 | R190: 0 | S190: 194 | T190: 4 | U190: 30 | V190: 30 | W190: 13 | X190: 0 | Y190: 0 | Z190: 29 | AA190: 1 | AB190: 0 | AC190: 0 | AD190: 107 | AE190: 0 | AF190: 0 | AG190: 0 | AH190: 0 | AI190: 0 | AJ190: 2
A191: Razem | C191: Powierzchnia ewidencyjna | D191: M | E191: =SUM(P191,S191,AD191,AH191,AI191,AJ191) -> 4146 | F191: =SUM(F38,F53,F56,F68,F83,F95,F104,F116,F119,F122,F134,F149,F161,F176,F188) -> 0 | G191: =SUM(G38,G53,G56,G68,G83,G95,G104,G116,G119,G122,G134,G149,G161,G176,G188) -> 1712 | H191: 21 | I191: 474 | J191: 228 | K191: 174 | L191: 30 | M191: 12 | N191: 77 | O191: 15 | P191: =SUM(G191:O191) -> 2743 | Q191: =SUM(Q38,Q53,Q56,Q68,Q83,Q95,Q104,Q116,Q119,Q122,Q134,Q149,Q161,Q176,Q188) -> 286 | R191: =SUM(R38,R53,R56,R68,R83,R95,R104,R116,R119,R122,R134,R149,R161,R176,R188) -> 0 | S191: =SUM(Q191:R191) -> 286 | T191: =SUM(T38,T53,T56,T68,T83,T95,T104,T116,T119,T122,T134,T149,T161,T176,T188) -> 425 | U191: 64 | V191: 190 | W191: 29 | X191: =SUM(X38,X53,X56,X68,X83,X95,X104,X116,X119,X122,X134,X149,X161,X176,X188) -> 24 | Y191: 20 | Z191: 298 | AA191: 29 | AB191: 0 | AC191: 1 | AD191: =SUM(T191:AC191) -> 1080 | AE191: =SUM(AE38,AE53,AE56,AE68,AE83,AE95,AE104,AE116,AE119,AE122,AE134,AE149,AE161,AE176,AE188) -> 0 | AF191: 24 | AG191: 13 | AH191: =SUM(AE191:AG191) -> 37 | AI191: =SUM(AI38,AI53,AI56,AI68,AI83,AI95,AI104,AI116,AI119,AI122,AI134,AI149,AI161,AI176,AI188) -> 0 | AJ191: =SUM(AJ38,AJ53,AJ56,AJ68,AJ83,AJ95,AJ104,AJ116,AJ119,AJ122,AJ134,AJ149,AJ161,AJ176,AJ188) -> 0
A192: grupy | D192: W | E192: =SUM(P192,S192,AD192,AH192,AI192,AJ192) -> 163964 | F192: =SUM(F39,F54,F57,F69,F84,F96,F105,F117,F120,F123,F135,F150,F162,F177,F189) -> 0 | G192: 68744 | H192: 540 | I192: 12233 | J192: 5915 | K192: 3203 | L192: 163 | M192: 387 | N192: 1045 | O192: 1216 | P192: =SUM(G192:O192) -> 93446 | Q192: =SUM(Q39,Q54,Q57,Q69,Q84,Q96,Q105,Q117,Q120,Q123,Q135,Q150,Q162,Q177,Q189) -> 66094 | R192: =SUM(R39,R54,R57,R69,R84,R96,R105,R117,R120,R123,R135,R150,R162,R177,R189) -> 0 | S192: =SUM(Q192:R192) -> 66094 | T192: 88 | U192: 62 | V192: 125 | W192: =SUM(W39,W54,W57,W69,W84,W96,W105,W117,W120,W123,W135,W150,W162,W177,W189) -> 11 | X192: =SUM(X39,X54,X57,X69,X84,X96,X105,X117,X120,X123,X135,X150,X162,X177,X189) -> 31 | Y192: 7 | Z192: 3189 | AA192: 166 | AB192: 2 | AC192: 2 | AD192: =SUM(T192:AC192) -> 3683 | AE192: 0 | AF192: 483 | AG192: 72 | AH192: =SUM(AE192:AG192) -> 555 | AI192: =SUM(AI39,AI54,AI57,AI69,AI84,AI96,AI105,AI117,AI120,AI123,AI135,AI150,AI162,AI177,AI189) -> 123 | AJ192: =SUM(AJ39,AJ54,AJ57,AJ69,AJ84,AJ96,AJ105,AJ117,AJ120,AJ123,AJ135,AJ150,AJ162,AJ177,AJ189) -> 63
A193: 1~15 | D193: Razem | E193: =SUM(E191:E192) -> 168110 | F193: =SUM(F191:F192) -> 0 | G193: 70456 | H193: 561 | I193: 12707 | J193: 6143 | K193: 3377 | L193: 193 | M193: 399 | N193: 1122 | O193: 1231 | P193: 96189 | Q193: 66380 | R193: 0 | S193: 66380 | T193: 513 | U193: 126 | V193: 315 | W193: 40 | X193: 55 | Y193: 27 | Z193: 3487 | AA193: 195 | AB193: 2 | AC193: 3 | AD193: 4763 | AE193: 0 | AF193: 507 | AG193: 85 | AH193: 592 | AI193: 123 | AJ193: 63
C194: Powierzchnia wyrównawcza | D194: M | E194: =E197-E191 -> 0
D195: W | E195: =E198-E192 -> 0
D196: Razem | E196: =SUM(E194:E195) -> 0
C197: Powierzchnia geodezyjna | D197: M | E197: =SUM(P197,S197,AD197,AH197,AI197,AJ197) -> 4146 | G197: =SUM('0602011_G:0602142_G'!G197 ) -> 1712 | H197: =SUM('0602011_G:0602142_G'!H197 ) -> 21 | I197: =SUM('0602011_G:0602142_G'!I197 ) -> 474 | J197: =SUM('0602011_G:0602142_G'!J197 ) -> 228 | K197: =SUM('0602011_G:0602142_G'!K197 ) -> 174 | L197: =SUM('0602011_G:0602142_G'!L197 ) -> 30 | M197: =SUM('0602011_G:0602142_G'!M197 ) -> 12 | N197: =SUM('0602011_G:0602142_G'!N197 ) -> 77 | O197: =SUM('0602011_G:0602142_G'!O197 ) -> 15 | P197: =SUM(G197:O197) -> 2743 | Q197: =SUM('0602011_G:0602142_G'!Q197 ) -> 286 | R197: =SUM('0602011_G:0602142_G'!R197 ) -> 0 | S197: =SUM(Q197:R197) -> 286 | T197: =SUM('0602011_G:0602142_G'!T197 ) -> 425 | U197: =SUM('0602011_G:0602142_G'!U197 ) -> 64 | V197: =SUM('0602011_G:0602142_G'!V197 ) -> 190 | W197: =SUM('0602011_G:0602142_G'!W197 ) -> 29 | X197: =SUM('0602011_G:0602142_G'!X197 ) -> 24 | Y197: =SUM('0602011_G:0602142_G'!Y197 ) -> 20 | Z197: =SUM('0602011_G:0602142_G'!Z197 ) -> 298 | AA197: =SUM('0602011_G:0602142_G'!AA197 ) -> 29 | AB197: =SUM('0602011_G:0602142_G'!AB197 ) -> 0 | AC197: =SUM('0602011_G:0602142_G'!AC197 ) -> 1 | AD197: =SUM(T197:AC197) -> 1080 | AE197: =SUM('0602011_G:0602142_G'!AE197 ) -> 0 | AF197: =SUM('0602011_G:0602142_G'!AF197 ) -> 24 | AG197: =SUM('0602011_G:0602142_G'!AG197 ) -> 13 | AH197: =SUM(AE197:AG197) -> 37 | AI197: =SUM('0602011_G:0602142_G'!AI197 ) -> 0 | AJ197: =SUM('0602011_G:0602142_G'!AJ197 ) -> 0
D198: W | E198: =SUM(P198,S198,AD198,AH198,AI198,AJ198) -> 163964 | G198: =SUM('0602011_G:0602142_G'!G198 ) -> 68744 | H198: =SUM('0602011_G:0602142_G'!H198 ) -> 540 | I198: =SUM('0602011_G:0602142_G'!I198 ) -> 12233 | J198: =SUM('0602011_G:0602142_G'!J198 ) -> 5915 | K198: =SUM('0602011_G:0602142_G'!K198 ) -> 3203 | L198: =SUM('0602011_G:0602142_G'!L198 ) -> 163 | M198: =SUM('0602011_G:0602142_G'!M198 ) -> 387 | N198: =SUM('0602011_G:0602142_G'!N198 ) -> 1045 | O198: =SUM('0602011_G:0602142_G'!O198 ) -> 1216 | P198: =SUM(G198:O198) -> 93446 | Q198: =SUM('0602011_G:0602142_G'!Q198 ) -> 66094 | R198: =SUM('0602011_G:0602142_G'!R198 ) -> 0 | S198: =SUM(Q198:R198) -> 66094 | T198: =SUM('0602011_G:0602142_G'!T198 ) -> 88 | U198: =SUM('0602011_G:0602142_G'!U198 ) -> 62 | V198: =SUM('0602011_G:0602142_G'!V198 ) -> 125 | W198: =SUM('0602011_G:0602142_G'!W198 ) -> 11 | X198: =SUM('0602011_G:0602142_G'!X198 ) -> 31 | Y198: =SUM('0602011_G:0602142_G'!Y198 ) -> 7 | Z198: =SUM('0602011_G:0602142_G'!Z198 ) -> 3189 | AA198: =SUM('0602011_G:0602142_G'!AA198 ) -> 166 | AB198: =SUM('0602011_G:0602142_G'!AB198 ) -> 2 | AC198: =SUM('0602011_G:0602142_G'!AC198 ) -> 2 | AD198: =SUM(T198:AC198) -> 3683 | AE198: =SUM('0602011_G:0602142_G'!AE198 ) -> 0 | AF198: =SUM('0602011_G:0602142_G'!AF198 ) -> 483 | AG198: =SUM('0602011_G:0602142_G'!AG198 ) -> 72 | AH198: =SUM(AE198:AG198) -> 555 | AI198: =SUM('0602011_G:0602142_G'!AI198 ) -> 123 | AJ198: =SUM('0602011_G:0602142_G'!AJ198 ) -> 63
D199: Razem | E199: =SUM(E197:E198) -> 168110 | G199: =SUM('0602011_G:0602142_G'!G199 ) -> 70456 | H199: =SUM('0602011_G:0602142_G'!H199 ) -> 561 | I199: =SUM('0602011_G:0602142_G'!I199 ) -> 12707 | J199: =SUM('0602011_G:0602142_G'!J199 ) -> 6143 | K199: =SUM('0602011_G:0602142_G'!K199 ) -> 3377 | L199: =SUM('0602011_G:0602142_G'!L199 ) -> 193 | M199: =SUM('0602011_G:0602142_G'!M199 ) -> 399 | N199: =SUM('0602011_G:0602142_G'!N199 ) -> 1122 | O199: =SUM('0602011_G:0602142_G'!O199 ) -> 1231 | P199: =SUM(P197:P198) -> 96189 | Q199: =SUM('0602011_G:0602142_G'!Q199 ) -> 66380 | R199: =SUM('0602011_G:0602142_G'!R199 ) -> 0 | S199: 66380 | T199: =SUM('0602011_G:0602142_G'!T199 ) -> 513 | U199: =SUM('0602011_G:0602142_G'!U199 ) -> 126 | V199: =SUM('0602011_G:0602142_G'!V199 ) -> 315 | W199: =SUM('0602011_G:0602142_G'!W199 ) -> 40 | X199: =SUM('0602011_G:0602142_G'!X199 ) -> 55 | Y199: =SUM('0602011_G:0602142_G'!Y199 ) -> 27 | Z199: =SUM('0602011_G:0602142_G'!Z199 ) -> 3487 | AA199: =SUM('0602011_G:0602142_G'!AA199 ) -> 195 | AB199: =SUM('0602011_G:0602142_G'!AB199 ) -> 2 | AC199: =SUM('0602011_G:0602142_G'!AC199 ) -> 3 | AD199: 4763 | AE199: =SUM('0602011_G:0602142_G'!AE199 ) -> 0 | AF199: =SUM('0602011_G:0602142_G'!AF199 ) -> 507 | AG199: =SUM('0602011_G:0602142_G'!AG199 ) -> 85 | AH199: =SUM(AH197:AH198) -> 592 | AI199: =SUM('0602011_G:0602142_G'!AI199 ) -> 123 | AJ199: =SUM('0602011_G:0602142_G'!AJ199 ) -> 63

Sheet 0602_U
A1: Województwo: LUBELSKIE (06) | I1: Załącznik do powiatowego zbiorczego zestawienia gruntów
A2: Powiat: biłgorajski (0602)
A5: ="Powiatowy wykaz użytków rolnych oraz lasów z podziałem na klasy gleboznawcze oraz grupy i podgrupy rejestrowe stan na dzień 1 stycznia "&Start!G9 -> Powiatowy wykaz użytków rolnych oraz lasów z podziałem na klasy gleboznawcze oraz grupy i podgrupy rejestrowe stan na dzień 1 stycznia 2017
A7: Nr grupy | B7: Nr podgrupy | C7: SUMA w ha | D7: Użytki rolne | AD7: Lasy
D8: RI | E8: RII | F8: RIIIa | G8: RIIIb | H8: RIVa | I8: RIVb | J8: RV | K8: RVI | L8: RVIz | M8: Razem RI-RVIz | N8: ŁI | O8: ŁII | P8: ŁIII | Q8: ŁIV | R8: ŁV | S8: ŁVI | T8: Razem ŁI-ŁVI | U8: Ps I | V8: PsII | W8: Ps III | X8: Ps IV | Y8: Ps V | Z8: Ps VI | AA8: Razem Ps I-Ps VI | AB8: Użytki rolne nieobjęte klasyfikacją | AC8: Razem użytki rolne | AD8: Ls I | AE8: Ls II | AF8: Ls III | AG8: Ls IV | AH8: Ls V | AI8: Ls VI | AJ8: Lasy nieobjęte klasyfikacją | AK8: Razem lasy
A9: 1 | B9: 2 | C9: 3 | D9: 4 | E9: 5 | F9: 6 | G9: 7 | H9: 8 | I9: 9 | J9: 10 | K9: 11 | L9: 12 | M9: 13 | N9: 14 | O9: 15 | P9: 16 | Q9: 17 | R9: 18 | S9: 19 | T9: 20 | U9: 21 | V9: 22 | W9: 23 | X9: 24 | Y9: 25 | Z9: 26 | AA9: 27 | AB9: 28 | AC9: 29 | AD9: 30 | AE9: 31 | AF9: 32 | AG9: 33 | AH9: 34 | AI9: 35 | AJ9: 36 | AK9: 37
A10: 1 | B10: 1.1 | C10: =AC10+AK10 -> 810 | D10: =SUM('0602011_U:0602142_U'!D10 ) -> 0 | E10: =SUM('0602011_U:0602142_U'!E10 ) -> 1 | F10: =SUM('0602011_U:0602142_U'!F10 ) -> 17 | G10: =SUM('0602011_U:0602142_U'!G10 ) -> 57 | H10: =SUM('0602011_U:0602142_U'!H10 ) -> 70 | I10: =SUM('0602011_U:0602142_U'!I10 ) -> 70 | J10: =SUM('0602011_U:0602142_U'!J10 ) -> 100 | K10: =SUM('0602011_U:0602142_U'!K10 ) -> 64 | L10: =SUM('0602011_U:0602142_U'!L10 ) -> 0 | M10: =SUM(D10:L10) -> 379 | N10: =SUM('0602011_U:0602142_U'!N10 ) -> 0 | O10: =SUM('0602011_U:0602142_U'!O10 ) -> 0 | P10: =SUM('0602011_U:0602142_U'!P10 ) -> 4 | Q10: =SUM('0602011_U:0602142_U'!Q10 ) -> 55 | R10: =SUM('0602011_U:0602142_U'!R10 ) -> 51 | S10: =SUM('0602011_U:0602142_U'!S10 ) -> 14 | T10: =SUM(N10:S10) -> 124 | U10: =SUM('0602011_U:0602142_U'!U10 ) -> 0 | V10: =SUM('0602011_U:0602142_U'!V10 ) -> 0 | W10: =SUM('0602011_U:0602142_U'!W10 ) -> 0 | X10: =SUM('0602011_U:0602142_U'!X10 ) -> 17 | Y10: =SUM('0602011_U:0602142_U'!Y10 ) -> 17 | Z10: =SUM('0602011_U:0602142_U'!Z10 ) -> 22 | AA10: =SUM(U10:Z10) -> 56 | AB10: =SUM('0602011_U:0602142_U'!AB10 ) -> 2 | AC10: =AB10+AA10+T10+M10 -> 561 | AD10: =SUM('0602011_U:0602142_U'!AD10 ) -> 0 | AE10: =SUM('0602011_U:0602142_U'!AE10 ) -> 0 | AF10: =SUM('0602011_U:0602142_U'!AF10 ) -> 12 | AG10: =SUM('0602011_U:0602142_U'!AG10 ) -> 53 | AH10: =SUM('0602011_U:0602142_U'!AH10 ) -> 145 | AI10: =SUM('0602011_U:0602142_U'!AI10 ) -> 13 | AJ10: =SUM('0602011_U:0602142_U'!AJ10 ) -> 26 | AK10: =SUM(AD10:AJ10) -> 249
B11: 1.2 | C11: =AC11+AK11 -> 33213 | D11: =SUM('0602011_U:0602142_U'!D11 ) -> 0 | E11: =SUM('0602011_U:0602142_U'!E11 ) -> 0 | F11: =SUM('0602011_U:0602142_U'!F11 ) -> 0 | G11: =SUM('0602011_U:0602142_U'!G11 ) -> 0 | H11: =SUM('0602011_U:0602142_U'!H11 ) -> 7 | I11: =SUM('0602011_U:0602142_U'!I11 ) -> 10 | J11: =SUM('0602011_U:0602142_U'!J11 ) -> 28 | K11: =SUM('0602011_U:0602142_U'!K11 ) -> 28 | L11: =SUM('0602011_U:0602142_U'!L11 ) -> 0 | M11: =SUM(D11:L11) -> 73 | N11: =SUM('0602011_U:0602142_U'!N11 ) -> 0 | O11: =SUM('0602011_U:0602142_U'!O11 ) -> 0 | P11: =SUM('0602011_U:0602142_U'!P11 ) -> 1 | Q11: =SUM('0602011_U:0602142_U'!Q11 ) -> 10 | R11: =SUM('0602011_U:0602142_U'!R11 ) -> 28 | S11: =SUM('0602011_U:0602142_U'!S11 ) -> 44 | T11: =SUM(N11:S11) -> 83 | U11: =SUM('0602011_U:0602142_U'!U11 ) -> 0 | V11: =SUM('0602011_U:0602142_U'!V11 ) -> 0 | W11: =SUM('0602011_U:0602142_U'!W11 ) -> 0 | X11: =SUM('0602011_U:0602142_U'!X11 ) -> 3 | Y11: =SUM('0602011_U:0602142_U'!Y11 ) -> 5 | Z11: =SUM('0602011_U:0602142_U'!Z11 ) -> 24 | AA11: =SUM(U11:Z11) -> 32 | AB11: =SUM('0602011_U:0602142_U'!AB11 ) -> 1 | AC11: =AB11+AA11+T11+M11 -> 189 | AD11: =SUM('0602011_U:0602142_U'!AD11 ) -> 0 | AE11: =SUM('0602011_U:0602142_U'!AE11 ) -> 4 | AF11: =SUM('0602011_U:0602142_U'!AF11 ) -> 324 | AG11: =SUM('0602011_U:0602142_U'!AG11 ) -> 1623 | AH11: =SUM('0602011_U:0602142_U'!AH11 ) -> 2827 | AI11: =SUM('0602011_U:0602142_U'!AI11 ) -> 291 | AJ11: =SUM('0602011_U:0602142_U'!AJ11 ) -> 27955 | AK11: =SUM(AD11:AJ11) -> 33024
B12: 1.3 | C12: 47 | D12: =SUM('0602011_U:0602142_U'!D12 ) -> 0 | E12: =SUM('0602011_U:0602142_U'!E12 ) -> 0 | F12: =SUM('0602011_U:0602142_U'!F12 ) -> 1 | G12: =SUM('0602011_U:0602142_U'!G12 ) -> 19 | H12: =SUM('0602011_U:0602142_U'!H12 ) -> 11 | I12: =SUM('0602011_U:0602142_U'!I12 ) -> 2 | J12: =SUM('0602011_U:0602142_U'!J12 ) -> 0 | K12: =SUM('0602011_U:0602142_U'!K12 ) -> 0 | L12: =SUM('0602011_U:0602142_U'!L12 ) -> 0 | M12: 33 | N12: =SUM('0602011_U:0602142_U'!N12 ) -> 0 | O12: =SUM('0602011_U:0602142_U'!O12 ) -> 0 | P12: =SUM('0602011_U:0602142_U'!P12 ) -> 0 | Q12: =SUM('0602011_U:0602142_U'!Q12 ) -> 1 | R12: =SUM('0602011_U:0602142_U'!R12 ) -> 4 | S12: =SUM('0602011_U:0602142_U'!S12 ) -> 0 | T12: 5 | U12: =SUM('0602011_U:0602142_U'!U12 ) -> 0 | V12: =SUM('0602011_U:0602142_U'!V12 ) -> 0 | W12: =SUM('0602011_U:0602142_U'!W12 ) -> 0 | X12: =SUM('0602011_U:0602142_U'!X12 ) -> 2 | Y12: =SUM('0602011_U:0602142_U'!Y12 ) -> 0 | Z12: =SUM('0602011_U:0602142_U'!Z12 ) -> 0 | AA12: 2 | AB12: =SUM('0602011_U:0602142_U'!AB12 ) -> 0 | AC12: 40 | AD12: =SUM('0602011_U:0602142_U'!AD12 ) -> 0 | AE12: =SUM('0602011_U:0602142_U'!AE12 ) -> 0 | AF12: =SUM('0602011_U:0602142_U'!AF12 ) -> 2 | AG12: =SUM('0602011_U:0602142_U'!AG12 ) -> 5 | AH12: =SUM('0602011_U:0602142_U'!AH12 ) -> 0 | AI12: =SUM('0602011_U:0602142_U'!AI12 ) -> 0 | AJ12: =SUM('0602011_U:0602142_U'!AJ12 ) -> 0 | AK12: 7
B13: 1.4 | C13: 28 | D13: =SUM('0602011_U:0602142_U'!D13 ) -> 0 | E13: =SUM('0602011_U:0602142_U'!E13 ) -> 1 | F13: =SUM('0602011_U:0602142_U'!F13 ) -> 3 | G13: =SUM('0602011_U:0602142_U'!G13 ) -> 5 | H13: =SUM('0602011_U:0602142_U'!H13 ) -> 3 | I13: =SUM('0602011_U:0602142_U'!I13 ) -> 2 | J13: =SUM('0602011_U:0602142_U'!J13 ) -> 5 | K13: =SUM('0602011_U:0602142_U'!K13 ) -> 2 | L13: =SUM('0602011_U:0602142_U'!L13 ) -> 0 | M13: 21 | N13: =SUM('0602011_U:0602142_U'!N13 ) -> 0 | O13: =SUM('0602011_U:0602142_U'!O13 ) -> 0 | P13: =SUM('0602011_U:0602142_U'!P13 ) -> 0 | Q13: =SUM('0602011_U:0602142_U'!Q13 ) -> 0 | R13: =SUM('0602011_U:0602142_U'!R13 ) -> 1 | S13: =SUM('0602011_U:0602142_U'!S13 ) -> 0 | T13: 1 | U13: =SUM('0602011_U:0602142_U'!U13 ) -> 0 | V13: =SUM('0602011_U:0602142_U'!V13 ) -> 0 | W13: =SUM('0602011_U:0602142_U'!W13 ) -> 0 | X13: =SUM('0602011_U:0602142_U'!X13 ) -> 0 | Y13: =SUM('0602011_U:0602142_U'!Y13 ) -> 0 | Z13: =SUM('0602011_U:0602142_U'!Z13 ) -> 0 | AA13: 0 | AB13: =SUM('0602011_U:0602142_U'!AB13 ) -> 0 | AC13: 22 | AD13: =SUM('0602011_U:0602142_U'!AD13 ) -> 0 | AE13: =SUM('0602011_U:0602142_U'!AE13 ) -> 0 | AF13: =SUM('0602011_U:0602142_U'!AF13 ) -> 0 | AG13: =SUM('0602011_U:0602142_U'!AG13 ) -> 1 | AH13: =SUM('0602011_U:0602142_U'!AH13 ) -> 4 | AI13: =SUM('0602011_U:0602142_U'!AI13 ) -> 1 | AJ13: =SUM('0602011_U:0602142_U'!AJ13 ) -> 0 | AK13: 6
B14: 1.5 | C14: 0 | D14: =SUM('0602011_U:0602142_U'!D14 ) -> 0 | E14: =SUM('0602011_U:0602142_U'!E14 ) -> 0 | F14: =SUM('0602011_U:0602142_U'!F14 ) -> 0 | G14: =SUM('0602011_U:0602142_U'!G14 ) -> 0 | H14: =SUM('0602011_U:0602142_U'!H14 ) -> 0 | I14: =SUM('0602011_U:0602142_U'!I14 ) -> 0 | J14: =SUM('0602011_U:0602142_U'!J14 ) -> 0 | K14: =SUM('0602011_U:0602142_U'!K14 ) -> 0 | L14: =SUM('0602011_U:0602142_U'!L14 ) -> 0 | M14: 0 | N14: =SUM('0602011_U:0602142_U'!N14 ) -> 0 | O14: =SUM('0602011_U:0602142_U'!O14 ) -> 0 | P14: =SUM('0602011_U:0602142_U'!P14 ) -> 0 | Q14: =SUM('0602011_U:0602142_U'!Q14 ) -> 0 | R14: =SUM('0602011_U:0602142_U'!R14 ) -> 0 | S14: =SUM('0602011_U:0602142_U'!S14 ) -> 0 | T14: 0 | U14: =SUM('0602011_U:0602142_U'!U14 ) -> 0 | V14: =SUM('0602011_U:0602142_U'!V14 ) -> 0 | W14: =SUM('0602011_U:0602142_U'!W14 ) -> 0 | X14: =SUM('0602011_U:0602142_U'!X14 ) -> 0 | Y14: =SUM('0602011_U:0602142_U'!Y14 ) -> 0 | Z14: =SUM('0602011_U:0602142_U'!Z14 ) -> 0 | AA14: 0 | AB14: =SUM('0602011_U:0602142_U'!AB14 ) -> 0 | AC14: 0 | AD14: =SUM('0602011_U:0602142_U'!AD14 ) -> 0 | AE14: =SUM('0602011_U:0602142_U'!AE14 ) -> 0 | AF14: =SUM('0602011_U:0602142_U'!AF14 ) -> 0 | AG14: =SUM('0602011_U:0602142_U'!AG14 ) -> 0 | AH14: =SUM('0602011_U:0602142_U'!AH14 ) -> 0 | AI14: =SUM('0602011_U:0602142_U'!AI14 ) -> 0 | AJ14: =SUM('0602011_U:0602142_U'!AJ14 ) -> 0 | AK14: 0
B15: 1.6 | C15: 0 | D15: =SUM('0602011_U:0602142_U'!D15 ) -> 0 | E15: =SUM('0602011_U:0602142_U'!E15 ) -> 0 | F15: =SUM('0602011_U:0602142_U'!F15 ) -> 0 | G15: =SUM('0602011_U:0602142_U'!G15 ) -> 0 | H15: =SUM('0602011_U:0602142_U'!H15 ) -> 0 | I15: =SUM('0602011_U:0602142_U'!I15 ) -> 0 | J15: =SUM('0602011_U:0602142_U'!J15 ) -> 0 | K15: =SUM('0602011_U:0602142_U'!K15 ) -> 0 | L15: =SUM('0602011_U:0602142_U'!L15 ) -> 0 | M15: 0 | N15: =SUM('0602011_U:0602142_U'!N15 ) -> 0 | O15: =SUM('0602011_U:0602142_U'!O15 ) -> 0 | P15: =SUM('0602011_U:0602142_U'!P15 ) -> 0 | Q15: =SUM('0602011_U:0602142_U'!Q15 ) -> 0 | R15: =SUM('0602011_U:0602142_U'!R15 ) -> 0 | S15: =SUM('0602011_U:0602142_U'!S15 ) -> 0 | T15: 0 | U15: =SUM('0602011_U:0602142_U'!U15 ) -> 0 | V15: =SUM('0602011_U:0602142_U'!V15 ) -> 0 | W15: =SUM('0602011_U:0602142_U'!W15 ) -> 0 | X15: =SUM('0602011_U:0602142_U'!X15 ) -> 0 | Y15: =SUM('0602011_U:0602142_U'!Y15 ) -> 0 | Z15: =SUM('0602011_U:0602142_U'!Z15 ) -> 0 | AA15: 0 | AB15: =SUM('0602011_U:0602142_U'!AB15 ) -> 0 | AC15: 0 | AD15: =SUM('0602011_U:0602142_U'!AD15 ) -> 0 | AE15: =SUM('0602011_U:0602142_U'!AE15 ) -> 0 | AF15: =SUM('0602011_U:0602142_U'!AF15 ) -> 0 | AG15: =SUM('0602011_U:0602142_U'!AG15 ) -> 0 | AH15: =SUM('0602011_U:0602142_U'!AH15 ) -> 0 | AI15: =SUM('0602011_U:0602142_U'!AI15 ) -> 0 | AJ15: =SUM('0602011_U:0602142_U'!AJ15 ) -> 0 | AK15: 0
B16: 1.7 | C16: 29 | D16: =SUM('0602011_U:0602142_U'!D16 ) -> 0 | E16: =SUM('0602011_U:0602142_U'!E16 ) -> 0 | F16: =SUM('0602011_U:0602142_U'!F16 ) -> 0 | G16: =SUM('0602011_U:0602142_U'!G16 ) -> 0 | H16: =SUM('0602011_U:0602142_U'!H16 ) -> 1 | I16: =SUM('0602011_U:0602142_U'!I16 ) -> 0 | J16: =SUM('0602011_U:0602142_U'!J16 ) -> 1 | K16: =SUM('0602011_U:0602142_U'!K16 ) -> 3 | L16: =SUM('0602011_U:0602142_U'!L16 ) -> 0 | M16: 5 | N16: =SUM('0602011_U:0602142_U'!N16 ) -> 0 | O16: =SUM('0602011_U:0602142_U'!O16 ) -> 0 | P16: =SUM('0602011_U:0602142_U'!P16 ) -> 0 | Q16: =SUM('0602011_U:0602142_U'!Q16 ) -> 0 | R16: =SUM('0602011_U:0602142_U'!R16 ) -> 1 | S16: =SUM('0602011_U:0602142_U'!S16 ) -> 0 | T16: 1 | U16: =SUM('0602011_U:0602142_U'!U16 ) -> 0 | V16: =SUM('0602011_U:0602142_U'!V16 ) -> 0 | W16: =SUM('0602011_U:0602142_U'!W16 ) -> 0 | X16: =SUM('0602011_U:0602142_U'!X16 ) -> 0 | Y16: =SUM('0602011_U:0602142_U'!Y16 ) -> 1 | Z16: =SUM('0602011_U:0602142_U'!Z16 ) -> 1 | AA16: 2 | AB16: =SUM('0602011_U:0602142_U'!AB16 ) -> 19 | AC16: 27 | AD16: =SUM('0602011_U:0602142_U'!AD16 ) -> 0 | AE16: =SUM('0602011_U:0602142_U'!AE16 ) -> 0 | AF16: =SUM('0602011_U:0602142_U'!AF16 ) -> 2 | AG16: =SUM('0602011_U:0602142_U'!AG16 ) -> 0 | AH16: =SUM('0602011_U:0602142_U'!AH16 ) -> 0 | AI16: =SUM('0602011_U:0602142_U'!AI16 ) -> 0 | AJ16: =SUM('0602011_U:0602142_U'!AJ16 ) -> 0 | AK16: 2
B17: 1.8 | C17: 0 | D17: =SUM('0602011_U:0602142_U'!D17 ) -> 0 | E17: =SUM('0602011_U:0602142_U'!E17 ) -> 0 | F17: =SUM('0602011_U:0602142_U'!F17 ) -> 0 | G17: =SUM('0602011_U:0602142_U'!G17 ) -> 0 | H17: =SUM('0602011_U:0602142_U'!H17 ) -> 0 | I17: =SUM('0602011_U:0602142_U'!I17 ) -> 0 | J17: =SUM('0602011_U:0602142_U'!J17 ) -> 0 | K17: =SUM('0602011_U:0602142_U'!K17 ) -> 0 | L17: =SUM('0602011_U:0602142_U'!L17 ) -> 0 | M17: 0 | N17: =SUM('0602011_U:0602142_U'!N17 ) -> 0 | O17: =SUM('0602011_U:0602142_U'!O17 ) -> 0 | P17: =SUM('0602011_U:0602142_U'!P17 ) -> 0 | Q17: =SUM('0602011_U:0602142_U'!Q17 ) -> 0 | R17: =SUM('0602011_U:0602142_U'!R17 ) -> 0 | S17: =SUM('0602011_U:0602142_U'!S17 ) -> 0 | T17: 0 | U17: =SUM('0602011_U:0602142_U'!U17 ) -> 0 | V17: =SUM('0602011_U:0602142_U'!V17 ) -> 0 | W17: =SUM('0602011_U:0602142_U'!W17 ) -> 0 | X17: =SUM('0602011_U:0602142_U'!X17 ) -> 0 | Y17: =SUM('0602011_U:0602142_U'!Y17 ) -> 0 | Z17: =SUM('0602011_U:0602142_U'!Z17 ) -> 0 | AA17: 0 | AB17: =SUM('0602011_U:0602142_U'!AB17 ) -> 0 | AC17: 0 | AD17: =SUM('0602011_U:0602142_U'!AD17 ) -> 0 | AE17: =SUM('0602011_U:0602142_U'!AE17 ) -> 0 | AF17: =SUM('0602011_U:0602142_U'!AF17 ) -> 0 | AG17: =SUM('0602011_U:0602142_U'!AG17 ) -> 0 | AH17: =SUM('0602011_U:0602142_U'!AH17 ) -> 0 | AI17: =SUM('0602011_U:0602142_U'!AI17 ) -> 0 | AJ17: =SUM('0602011_U:0602142_U'!AJ17 ) -> 0 | AK17: 0
A18: Razem grupa 1 | C18: =AC18+AK18 -> 34127 | D18: =SUM(D10:D17) -> 0 | E18: 2 | F18: 21 | G18: 81 | H18: 92 | I18: 84 | J18: 134 | K18: 97 | L18: 0 | M18: 511 | N18: 0 | O18: 0 | P18: 5 | Q18: 66 | R18: 85 | S18: 58 | T18: 214 | U18: 0 | V18: 0 | W18: 0 | X18: 22 | Y18: 23 | Z18: 47 | AA18: 92 | AB18: 22 | AC18: 839 | AD18: 0 | AE18: 4 | AF18: 340 | AG18: 1682 | AH18: 2976 | AI18: 305 | AJ18: 27981 | AK18: 33288
A19: 2 | B19: 2.1 | C19: 15 | D19: =SUM('0602011_U:0602142_U'!D19 ) -> 0 | E19: =SUM('0602011_U:0602142_U'!E19 ) -> 0 | F19: =SUM('0602011_U:0602142_U'!F19 ) -> 1 | G19: =SUM('0602011_U:0602142_U'!G19 ) -> 3 | H19: =SUM('0602011_U:0602142_U'!H19 ) -> 2 | I19: =SUM('0602011_U:0602142_U'!I19 ) -> 0 | J19: =SUM('0602011_U:0602142_U'!J19 ) -> 1 | K19: =SUM('0602011_U:0602142_U'!K19 ) -> 1 | L19: =SUM('0602011_U:0602142_U'!L19 ) -> 0 | M19: 8 | N19: =SUM('0602011_U:0602142_U'!N19 ) -> 0 | O19: =SUM('0602011_U:0602142_U'!O19 ) -> 0 | P19: =SUM('0602011_U:0602142_U'!P19 ) -> 1 | Q19: =SUM('0602011_U:0602142_U'!Q19 ) -> 1 | R19: =SUM('0602011_U:0602142_U'!R19 ) -> 0 | S19: =SUM('0602011_U:0602142_U'!S19 ) -> 0 | T19: 2 | U19: =SUM('0602011_U:0602142_U'!U19 ) -> 0 | V19: =SUM('0602011_U:0602142_U'!V19 ) -> 0 | W19: =SUM('0602011_U:0602142_U'!W19 ) -> 0 | X19: =SUM('0602011_U:0602142_U'!X19 ) -> 0 | Y19: =SUM('0602011_U:0602142_U'!Y19 ) -> 0 | Z19: =SUM('0602011_U:0602142_U'!Z19 ) -> 0 | AA19: 0 | AB19: =SUM('0602011_U:0602142_U'!AB19 ) -> 0 | AC19: 10 | AD19: =SUM('0602011_U:0602142_U'!AD19 ) -> 0 | AE19: =SUM('0602011_U:0602142_U'!AE19 ) -> 0 | AF19: =SUM('0602011_U:0602142_U'!AF19 ) -> 0 | AG19: =SUM('0602011_U:0602142_U'!AG19 ) -> 0 | AH19: =SUM('0602011_U:0602142_U'!AH19 ) -> 4 | AI19: =SUM('0602011_U:0602142_U'!AI19 ) -> 0 | AJ19: =SUM('0602011_U:0602142_U'!AJ19 ) -> 1 | AK19: =SUM(AD19:AJ19) -> 5
B20: 2.2 | C20: 1 | D20: =SUM('0602011_U:0602142_U'!D20 ) -> 0 | E20: =SUM('0602011_U:0602142_U'!E20 ) -> 0 | F20: =SUM('0602011_U:0602142_U'!F20 ) -> 0 | G20: =SUM('0602011_U:0602142_U'!G20 ) -> 0 | H20: =SUM('0602011_U:0602142_U'!H20 ) -> 0 | I20: =SUM('0602011_U:0602142_U'!I20 ) -> 1 | J20: =SUM('0602011_U:0602142_U'!J20 ) -> 0 | K20: =SUM('0602011_U:0602142_U'!K20 ) -> 0 | L20: =SUM('0602011_U:0602142_U'!L20 ) -> 0 | M20: 1 | N20: =SUM('0602011_U:0602142_U'!N20 ) -> 0 | O20: =SUM('0602011_U:0602142_U'!O20 ) -> 0 | P20: =SUM('0602011_U:0602142_U'!P20 ) -> 0 | Q20: =SUM('0602011_U:0602142_U'!Q20 ) -> 0 | R20: =SUM('0602011_U:0602142_U'!R20 ) -> 0 | S20: =SUM('0602011_U:0602142_U'!S20 ) -> 0 | T20: 0 | U20: =SUM('0602011_U:0602142_U'!U20 ) -> 0 | V20: =SUM('0602011_U:0602142_U'!V20 ) -> 0 | W20: =SUM('0602011_U:0602142_U'!W20 ) -> 0 | X20: =SUM('0602011_U:0602142_U'!X20 ) -> 0 | Y20: =SUM('0602011_U:0602142_U'!Y20 ) -> 0 | Z20: =SUM('0602011_U:0602142_U'!Z20 ) -> 0 | AA20: 0 | AB20: =SUM('0602011_U:0602142_U'!AB20 ) -> 0 | AC20: 1 | AD20: =SUM('0602011_U:0602142_U'!AD20 ) -> 0 | AE20: =SUM('0602011_U:0602142_U'!AE20 ) -> 0 | AF20: =SUM('0602011_U:0602142_U'!AF20 ) -> 0 | AG20: =SUM('0602011_U:0602142_U'!AG20 ) -> 0 | AH20: =SUM('0602011_U:0602142_U'!AH20 ) -> 0 | AI20: =SUM('0602011_U:0602142_U'!AI20 ) -> 0 | AJ20: =SUM('0602011_U:0602142_U'!AJ20 ) -> 0 | AK20: =SUM(AD20:AJ20) -> 0
B21: 2.3 | C21: 0 | D21: =SUM('0602011_U:0602142_U'!D21 ) -> 0 | E21: =SUM('0602011_U:0602142_U'!E21 ) -> 0 | F21: =SUM('0602011_U:0602142_U'!F21 ) -> 0 | G21: =SUM('0602011_U:0602142_U'!G21 ) -> 0 | H21: =SUM('0602011_U:0602142_U'!H21 ) -> 0 | I21: =SUM('0602011_U:0602142_U'!I21 ) -> 0 | J21: =SUM('0602011_U:0602142_U'!J21 ) -> 0 | K21: =SUM('0602011_U:0602142_U'!K21 ) -> 0 | L21: =SUM('0602011_U:0602142_U'!L21 ) -> 0 | M21: 0 | N21: =SUM('0602011_U:0602142_U'!N21 ) -> 0 | O21: =SUM('0602011_U:0602142_U'!O21 ) -> 0 | P21: =SUM('0602011_U:0602142_U'!P21 ) -> 0 | Q21: =SUM('0602011_U:0602142_U'!Q21 ) -> 0 | R21: =SUM('0602011_U:0602142_U'!R21 ) -> 0 | S21: =SUM('0602011_U:0602142_U'!S21 ) -> 0 | T21: 0 | U21: =SUM('0602011_U:0602142_U'!U21 ) -> 0 | V21: =SUM('0602011_U:0602142_U'!V21 ) -> 0 | W21: =SUM('0602011_U:0602142_U'!W21 ) -> 0 | X21: =SUM('0602011_U:0602142_U'!X21 ) -> 0 | Y21: =SUM('0602011_U:0602142_U'!Y21 ) -> 0 | Z21: =SUM('0602011_U:0602142_U'!Z21 ) -> 0 | AA21: 0 | AB21: =SUM('0602011_U:0602142_U'!AB21 ) -> 0 | AC21: 0 | AD21: =SUM('0602011_U:0602142_U'!AD21 ) -> 0 | AE21: =SUM('0602011_U:0602142_U'!AE21 ) -> 0 | AF21: =SUM('0602011_U:0602142_U'!AF21 ) -> 0 | AG21: =SUM('0602011_U:0602142_U'!AG21 ) -> 0 | AH21: =SUM('0602011_U:0602142_U'!AH21 ) -> 0 | AI21: =SUM('0602011_U:0602142_U'!AI21 ) -> 0 | AJ21: =SUM('0602011_U:0602142_U'!AJ21 ) -> 0 | AK21: =SUM(AD21:AJ21) -> 0
B22: 2.4 | C22: 191 | D22: =SUM('0602011_U:0602142_U'!D22 ) -> 0 | E22: =SUM('0602011_U:0602142_U'!E22 ) -> 0 | F22: =SUM('0602011_U:0602142_U'!F22 ) -> 0 | G22: =SUM('0602011_U:0602142_U'!G22 ) -> 0 | H22: =SUM('0602011_U:0602142_U'!H22 ) -> 20 | I22: =SUM('0602011_U:0602142_U'!I22 ) -> 4 | J22: =SUM('0602011_U:0602142_U'!J22 ) -> 0 | K22: =SUM('0602011_U:0602142_U'!K22 ) -> 11 | L22: =SUM('0602011_U:0602142_U'!L22 ) -> 0 | M22: 35 | N22: =SUM('0602011_U:0602142_U'!N22 ) -> 0 | O22: =SUM('0602011_U:0602142_U'!O22 ) -> 0 | P22: =SUM('0602011_U:0602142_U'!P22 ) -> 0 | Q22: =SUM('0602011_U:0602142_U'!Q22 ) -> 0 | R22: =SUM('0602011_U:0602142_U'!R22 ) -> 0 | S22: =SUM('0602011_U:0602142_U'!S22 ) -> 0 | T22: 0 | U22: =SUM('0602011_U:0602142_U'!U22 ) -> 0 | V22: =SUM('0602011_U:0602142_U'!V22 ) -> 0 | W22: =SUM('0602011_U:0602142_U'!W22 ) -> 0 | X22: =SUM('0602011_U:0602142_U'!X22 ) -> 9 | Y22: =SUM('0602011_U:0602142_U'!Y22 ) -> 2 | Z22: =SUM('0602011_U:0602142_U'!Z22 ) -> 2 | AA22: 13 | AB22: =SUM('0602011_U:0602142_U'!AB22 ) -> 0 | AC22: 48 | AD22: =SUM('0602011_U:0602142_U'!AD22 ) -> 0 | AE22: =SUM('0602011_U:0602142_U'!AE22 ) -> 0 | AF22: =SUM('0602011_U:0602142_U'!AF22 ) -> 0 | AG22: =SUM('0602011_U:0602142_U'!AG22 ) -> 0 | AH22: =SUM('0602011_U:0602142_U'!AH22 ) -> 1 | AI22: =SUM('0602011_U:0602142_U'!AI22 ) -> 0 | AJ22: =SUM('0602011_U:0602142_U'!AJ22 ) -> 142 | AK22: =SUM(AD22:AJ22) -> 143
A23: Razem grupa 2 | C23: 207 | D23: =SUM(D19:D22) -> 0 | E23: 0 | F23: 1 | G23: 3 | H23: 22 | I23: 5 | J23: 1 | K23: 12 | L23: 0 | M23: 44 | N23: 0 | O23: 0 | P23: 1 | Q23: 1 | R23: 0 | S23: 0 | T23: 2 | U23: 0 | V23: 0 | W23: 0 | X23: 9 | Y23: 2 | Z23: 2 | AA23: 13 | AB23: 0 | AC23: 59 | AD23: 0 | AE23: 0 | AF23: 0 | AG23: 0 | AH23: 5 | AI23: 0 | AJ23: 143 | AK23: 148
A24: 3 | B24: - | C24: 56 | D24: =SUM('0602011_U:0602142_U'!D24 ) -> 0 | E24: =SUM('0602011_U:0602142_U'!E24 ) -> 0 | F24: =SUM('0602011_U:0602142_U'!F24 ) -> 0 | G24: =SUM('0602011_U:0602142_U'!G24 ) -> 0 | H24: =SUM('0602011_U:0602142_U'!H24 ) -> 2 | I24: =SUM('0602011_U:0602142_U'!I24 ) -> 10 | J24: =SUM('0602011_U:0602142_U'!J24 ) -> 29 | K24: =SUM('0602011_U:0602142_U'!K24 ) -> 0 | L24: =SUM('0602011_U:0602142_U'!L24 ) -> 0 | M24: 41 | N24: =SUM('0602011_U:0602142_U'!N24 ) -> 0 | O24: =SUM('0602011_U:0602142_U'!O24 ) -> 0 | P24: =SUM('0602011_U:0602142_U'!P24 ) -> 0 | Q24: =SUM('0602011_U:0602142_U'!Q24 ) -> 0 | R24: =SUM('0602011_U:0602142_U'!R24 ) -> 10 | S24: =SUM('0602011_U:0602142_U'!S24 ) -> 0 | T24: 10 | U24: =SUM('0602011_U:0602142_U'!U24 ) -> 0 | V24: =SUM('0602011_U:0602142_U'!V24 ) -> 0 | W24: =SUM('0602011_U:0602142_U'!W24 ) -> 0 | X24: =SUM('0602011_U:0602142_U'!X24 ) -> 0 | Y24: =SUM('0602011_U:0602142_U'!Y24 ) -> 0 | Z24: =SUM('0602011_U:0602142_U'!Z24 ) -> 0 | AA24: 0 | AB24: =SUM('0602011_U:0602142_U'!AB24 ) -> 3 | AC24: 54 | AD24: =SUM('0602011_U:0602142_U'!AD24 ) -> 0 | AE24: =SUM('0602011_U:0602142_U'!AE24 ) -> 0 | AF24: =SUM('0602011_U:0602142_U'!AF24 ) -> 2 | AG24: =SUM('0602011_U:0602142_U'!AG24 ) -> 0 | AH24: =SUM('0602011_U:0602142_U'!AH24 ) -> 0 | AI24: =SUM('0602011_U:0602142_U'!AI24 ) -> 0 | AJ24: =SUM('0602011_U:0602142_U'!AJ24 ) -> 0 | AK24: =SUM(AD24:AJ24) -> 2
A25: Razem grupa 3 | C25: 56 | D25: =D24 -> 0 | E25: 0 | F25: 0 | G25: 0 | H25: 2 | I25: 10 | J25: 29 | K25: 0 | L25: 0 | M25: 41 | N25: 0 | O25: 0 | P25: 0 | Q25: 0 | R25: 10 | S25: 0 | T25: 10 | U25: 0 | V25: 0 | W25: 0 | X25: 0 | Y25: 0 | Z25: 0 | AA25: 0 | AB25: 3 | AC25: 54 | AD25: 0 | AE25: 0 | AF25: 2 | AG25: 0 | AH25: 0 | AI25: 0 | AJ25: 0 | AK25: 2
A26: 4 | B26: 4.1 | C26: 645 | D26: =SUM('0602011_U:0602142_U'!D26 ) -> 0 | E26: =SUM('0602011_U:0602142_U'!E26 ) -> 3 | F26: =SUM('0602011_U:0602142_U'!F26 ) -> 11 | G26: =SUM('0602011_U:0602142_U'!G26 ) -> 25 | H26: =SUM('0602011_U:0602142_U'!H26 ) -> 39 | I26: =SUM('0602011_U:0602142_U'!I26 ) -> 44 | J26: =SUM('0602011_U:0602142_U'!J26 ) -> 51 | K26: =SUM('0602011_U:0602142_U'!K26 ) -> 44 | L26: =SUM('0602011_U:0602142_U'!L26 ) -> 0 | M26: 217 | N26: =SUM('0602011_U:0602142_U'!N26 ) -> 0 | O26: =SUM('0602011_U:0602142_U'!O26 ) -> 0 | P26: =SUM('0602011_U:0602142_U'!P26 ) -> 17 | Q26: =SUM('0602011_U:0602142_U'!Q26 ) -> 119 | R26: =SUM('0602011_U:0602142_U'!R26 ) -> 30 | S26: =SUM('0602011_U:0602142_U'!S26 ) -> 16 | T26: 182 | U26: =SUM('0602011_U:0602142_U'!U26 ) -> 0 | V26: =SUM('0602011_U:0602142_U'!V26 ) -> 0 | W26: =SUM('0602011_U:0602142_U'!W26 ) -> 12 | X26: =SUM('0602011_U:0602142_U'!X26 ) -> 53 | Y26: =SUM('0602011_U:0602142_U'!Y26 ) -> 35 | Z26: =SUM('0602011_U:0602142_U'!Z26 ) -> 60 | AA26: 160 | AB26: =SUM('0602011_U:0602142_U'!AB26 ) -> 6 | AC26: 565 | AD26: =SUM('0602011_U:0602142_U'!AD26 ) -> 0 | AE26: =SUM('0602011_U:0602142_U'!AE26 ) -> 0 | AF26: =SUM('0602011_U:0602142_U'!AF26 ) -> 3 | AG26: =SUM('0602011_U:0602142_U'!AG26 ) -> 19 | AH26: =SUM('0602011_U:0602142_U'!AH26 ) -> 46 | AI26: =SUM('0602011_U:0602142_U'!AI26 ) -> 11 | AJ26: =SUM('0602011_U:0602142_U'!AJ26 ) -> 1 | AK26: =SUM(AD26:AJ26) -> 80
B27: 4.2 | C27: 19 | D27: =SUM('0602011_U:0602142_U'!D27 ) -> 0 | E27: =SUM('0602011_U:0602142_U'!E27 ) -> 0 | F27: =SUM('0602011_U:0602142_U'!F27 ) -> 0 | G27: =SUM('0602011_U:0602142_U'!G27 ) -> 2 | H27: =SUM('0602011_U:0602142_U'!H27 ) -> 3 | I27: =SUM('0602011_U:0602142_U'!I27 ) -> 1 | J27: =SUM('0602011_U:0602142_U'!J27 ) -> 3 | K27: =SUM('0602011_U:0602142_U'!K27 ) -> 3 | L27: =SUM('0602011_U:0602142_U'!L27 ) -> 0 | M27: 12 | N27: =SUM('0602011_U:0602142_U'!N27 ) -> 0 | O27: =SUM('0602011_U:0602142_U'!O27 ) -> 0 | P27: =SUM('0602011_U:0602142_U'!P27 ) -> 0 | Q27: =SUM('0602011_U:0602142_U'!Q27 ) -> 1 | R27: =SUM('0602011_U:0602142_U'!R27 ) -> 2 | S27: =SUM('0602011_U:0602142_U'!S27 ) -> 0 | T27: 3 | U27: =SUM('0602011_U:0602142_U'!U27 ) -> 0 | V27: =SUM('0602011_U:0602142_U'!V27 ) -> 0 | W27: =SUM('0602011_U:0602142_U'!W27 ) -> 1 | X27: =SUM('0602011_U:0602142_U'!X27 ) -> 1 | Y27: =SUM('0602011_U:0602142_U'!Y27 ) -> 0 | Z27: =SUM('0602011_U:0602142_U'!Z27 ) -> 0 | AA27: 2 | AB27: =SUM('0602011_U:0602142_U'!AB27 ) -> 0 | AC27: 17 | AD27: =SUM('0602011_U:0602142_U'!AD27 ) -> 0 | AE27: =SUM('0602011_U:0602142_U'!AE27 ) -> 0 | AF27: =SUM('0602011_U:0602142_U'!AF27 ) -> 0 | AG27: =SUM('0602011_U:0602142_U'!AG27 ) -> 0 | AH27: =SUM('0602011_U:0602142_U'!AH27 ) -> 2 | AI27: =SUM('0602011_U:0602142_U'!AI27 ) -> 0 | AJ27: =SUM('0602011_U:0602142_U'!AJ27 ) -> 0 | AK27: =SUM(AD27:AJ27) -> 2
B28: 4.3 | C28: 12 | D28: =SUM('0602011_U:0602142_U'!D28 ) -> 0 | E28: =SUM('0602011_U:0602142_U'!E28 ) -> 0 | F28: =SUM('0602011_U:0602142_U'!F28 ) -> 0 | G28: =SUM('0602011_U:0602142_U'!G28 ) -> 1 | H28: =SUM('0602011_U:0602142_U'!H28 ) -> 2 | I28: =SUM('0602011_U:0602142_U'!I28 ) -> 1 | J28: =SUM('0602011_U:0602142_U'!J28 ) -> 0 | K28: =SUM('0602011_U:0602142_U'!K28 ) -> 2 | L28: =SUM('0602011_U:0602142_U'!L28 ) -> 0 | M28: 6 | N28: =SUM('0602011_U:0602142_U'!N28 ) -> 0 | O28: =SUM('0602011_U:0602142_U'!O28 ) -> 0 | P28: =SUM('0602011_U:0602142_U'!P28 ) -> 0 | Q28: =SUM('0602011_U:0602142_U'!Q28 ) -> 0 | R28: =SUM('0602011_U:0602142_U'!R28 ) -> 0 | S28: =SUM('0602011_U:0602142_U'!S28 ) -> 0 | T28: 0 | U28: =SUM('0602011_U:0602142_U'!U28 ) -> 0 | V28: =SUM('0602011_U:0602142_U'!V28 ) -> 0 | W28: =SUM('0602011_U:0602142_U'!W28 ) -> 0 | X28: =SUM('0602011_U:0602142_U'!X28 ) -> 3 | Y28: =SUM('0602011_U:0602142_U'!Y28 ) -> 0 | Z28: =SUM('0602011_U:0602142_U'!Z28 ) -> 0 | AA28: 3 | AB28: =SUM('0602011_U:0602142_U'!AB28 ) -> 0 | AC28: 9 | AD28: =SUM('0602011_U:0602142_U'!AD28 ) -> 0 | AE28: =SUM('0602011_U:0602142_U'!AE28 ) -> 0 | AF28: =SUM('0602011_U:0602142_U'!AF28 ) -> 1 | AG28: =SUM('0602011_U:0602142_U'!AG28 ) -> 1 | AH28: =SUM('0602011_U:0602142_U'!AH28 ) -> 1 | AI28: =SUM('0602011_U:0602142_U'!AI28 ) -> 0 | AJ28: =SUM('0602011_U:0602142_U'!AJ28 ) -> 0 | AK28: =SUM(AD28:AJ28) -> 3
A29: Razem grupa 4 | C29: 676 | D29: =SUM(D26:D28) -> 0 | E29: 3 | F29: 11 | G29: 28 | H29: 44 | I29: 46 | J29: 54 | K29: 49 | L29: 0 | M29: 235 | N29: 0 | O29: 0 | P29: 17 | Q29: 120 | R29: 32 | S29: 16 | T29: 185 | U29: 0 | V29: 0 | W29: 13 | X29: 57 | Y29: 35 | Z29: 60 | AA29: 165 | AB29: 6 | AC29: 591 | AD29: 0 | AE29: 0 | AF29: 4 | AG29: 20 | AH29: 49 | AI29: 11 | AJ29: 1 | AK29: 85
A30: 5 | B30: 5.1 | C30: 13 | D30: =SUM('0602011_U:0602142_U'!D30 ) -> 0 | E30: =SUM('0602011_U:0602142_U'!E30 ) -> 0 | F30: =SUM('0602011_U:0602142_U'!F30 ) -> 0 | G30: =SUM('0602011_U:0602142_U'!G30 ) -> 0 | H30: =SUM('0602011_U:0602142_U'!H30 ) -> 2 | I30: =SUM('0602011_U:0602142_U'!I30 ) -> 1 | J30: =SUM('0602011_U:0602142_U'!J30 ) -> 0 | K30: =SUM('0602011_U:0602142_U'!K30 ) -> 2 | L30: =SUM('0602011_U:0602142_U'!L30 ) -> 0 | M30: 5 | N30: =SUM('0602011_U:0602142_U'!N30 ) -> 0 | O30: =SUM('0602011_U:0602142_U'!O30 ) -> 0 | P30: =SUM('0602011_U:0602142_U'!P30 ) -> 0 | Q30: =SUM('0602011_U:0602142_U'!Q30 ) -> 0 | R30: =SUM('0602011_U:0602142_U'!R30 ) -> 0 | S30: =SUM('0602011_U:0602142_U'!S30 ) -> 0 | T30: 0 | U30: =SUM('0602011_U:0602142_U'!U30 ) -> 0 | V30: =SUM('0602011_U:0602142_U'!V30 ) -> 0 | W30: =SUM('0602011_U:0602142_U'!W30 ) -> 0 | X30: =SUM('0602011_U:0602142_U'!X30 ) -> 1 | Y30: =SUM('0602011_U:0602142_U'!Y30 ) -> 0 | Z30: =SUM('0602011_U:0602142_U'!Z30 ) -> 0 | AA30: 1 | AB30: =SUM('0602011_U:0602142_U'!AB30 ) -> 0 | AC30: 6 | AD30: =SUM('0602011_U:0602142_U'!AD30 ) -> 0 | AE30: =SUM('0602011_U:0602142_U'!AE30 ) -> 0 | AF30: =SUM('0602011_U:0602142_U'!AF30 ) -> 0 | AG30: =SUM('0602011_U:0602142_U'!AG30 ) -> 4 | AH30: =SUM('0602011_U:0602142_U'!AH30 ) -> 3 | AI30: =SUM('0602011_U:0602142_U'!AI30 ) -> 0 | AJ30: =SUM('0602011_U:0602142_U'!AJ30 ) -> 0 | AK30: =SUM(AD30:AJ30) -> 7
B31: 5.2 | C31: 0 | D31: =SUM('0602011_U:0602142_U'!D31 ) -> 0 | E31: =SUM('0602011_U:0602142_U'!E31 ) -> 0 | F31: =SUM('0602011_U:0602142_U'!F31 ) -> 0 | G31: =SUM('0602011_U:0602142_U'!G31 ) -> 0 | H31: =SUM('0602011_U:0602142_U'!H31 ) -> 0 | I31: =SUM('0602011_U:0602142_U'!I31 ) -> 0 | J31: =SUM('0602011_U:0602142_U'!J31 ) -> 0 | K31: =SUM('0602011_U:0602142_U'!K31 ) -> 0 | L31: =SUM('0602011_U:0602142_U'!L31 ) -> 0 | M31: 0 | N31: =SUM('0602011_U:0602142_U'!N31 ) -> 0 | O31: =SUM('0602011_U:0602142_U'!O31 ) -> 0 | P31: =SUM('0602011_U:0602142_U'!P31 ) -> 0 | Q31: =SUM('0602011_U:0602142_U'!Q31 ) -> 0 | R31: =SUM('0602011_U:0602142_U'!R31 ) -> 0 | S31: =SUM('0602011_U:0602142_U'!S31 ) -> 0 | T31: 0 | U31: =SUM('0602011_U:0602142_U'!U31 ) -> 0 | V31: =SUM('0602011_U:0602142_U'!V31 ) -> 0 | W31: =SUM('0602011_U:0602142_U'!W31 ) -> 0 | X31: =SUM('0602011_U:0602142_U'!X31 ) -> 0 | Y31: =SUM('0602011_U:0602142_U'!Y31 ) -> 0 | Z31: =SUM('0602011_U:0602142_U'!Z31 ) -> 0 | AA31: 0 | AB31: =SUM('0602011_U:0602142_U'!AB31 ) -> 0 | AC31: 0 | AD31: =SUM('0602011_U:0602142_U'!AD31 ) -> 0 | AE31: =SUM('0602011_U:0602142_U'!AE31 ) -> 0 | AF31: =SUM('0602011_U:0602142_U'!AF31 ) -> 0 | AG31: =SUM('0602011_U:0602142_U'!AG31 ) -> 0 | AH31: =SUM('0602011_U:0602142_U'!AH31 ) -> 0 | AI31: =SUM('0602011_U:0602142_U'!AI31 ) -> 0 | AJ31: =SUM('0602011_U:0602142_U'!AJ31 ) -> 0 | AK31: =SUM(AD31:AJ31) -> 0
B32: 5.3 | C32: 0 | D32: =SUM('0602011_U:0602142_U'!D32 ) -> 0 | E32: =SUM('0602011_U:0602142_U'!E32 ) -> 0 | F32: =SUM('0602011_U:0602142_U'!F32 ) -> 0 | G32: =SUM('0602011_U:0602142_U'!G32 ) -> 0 | H32: =SUM('0602011_U:0602142_U'!H32 ) -> 0 | I32: =SUM('0602011_U:0602142_U'!I32 ) -> 0 | J32: =SUM('0602011_U:0602142_U'!J32 ) -> 0 | K32: =SUM('0602011_U:0602142_U'!K32 ) -> 0 | L32: =SUM('0602011_U:0602142_U'!L32 ) -> 0 | M32: 0 | N32: =SUM('0602011_U:0602142_U'!N32 ) -> 0 | O32: =SUM('0602011_U:0602142_U'!O32 ) -> 0 | P32: =SUM('0602011_U:0602142_U'!P32 ) -> 0 | Q32: =SUM('0602011_U:0602142_U'!Q32 ) -> 0 | R32: =SUM('0602011_U:0602142_U'!R32 ) -> 0 | S32: =SUM('0602011_U:0602142_U'!S32 ) -> 0 | T32: 0 | U32: =SUM('0602011_U:0602142_U'!U32 ) -> 0 | V32: =SUM('0602011_U:0602142_U'!V32 ) -> 0 | W32: =SUM('0602011_U:0602142_U'!W32 ) -> 0 | X32: =SUM('0602011_U:0602142_U'!X32 ) -> 0 | Y32: =SUM('0602011_U:0602142_U'!Y32 ) -> 0 | Z32: =SUM('0602011_U:0602142_U'!Z32 ) -> 0 | AA32: 0 | AB32: =SUM('0602011_U:0602142_U'!AB32 ) -> 0 | AC32: 0 | AD32: =SUM('0602011_U:0602142_U'!AD32 ) -> 0 | AE32: =SUM('0602011_U:0602142_U'!AE32 ) -> 0 | AF32: =SUM('0602011_U:0602142_U'!AF32 ) -> 0 | AG32: =SUM('0602011_U:0602142_U'!AG32 ) -> 0 | AH32: =SUM('0602011_U:0602142_U'!AH32 ) -> 0 | AI32: =SUM('0602011_U:0602142_U'!AI32 ) -> 0 | AJ32: =SUM('0602011_U:0602142_U'!AJ32 ) -> 0 | AK32: =SUM(AD32:AJ32) -> 0
B33: 5.4 | C33: 27 | D33: =SUM('0602011_U:0602142_U'!D33 ) -> 0 | E33: =SUM('0602011_U:0602142_U'!E33 ) -> 0 | F33: =SUM('0602011_U:0602142_U'!F33 ) -> 0 | G33: =SUM('0602011_U:0602142_U'!G33 ) -> 1 | H33: =SUM('0602011_U:0602142_U'!H33 ) -> 9 | I33: =SUM('0602011_U:0602142_U'!I33 ) -> 15 | J33: =SUM('0602011_U:0602142_U'!J33 ) -> 1 | K33: =SUM('0602011_U:0602142_U'!K33 ) -> 0 | L33: =SUM('0602011_U:0602142_U'!L33 ) -> 0 | M33: 26 | N33: =SUM('0602011_U:0602142_U'!N33 ) -> 0 | O33: =SUM('0602011_U:0602142_U'!O33 ) -> 0 | P33: =SUM('0602011_U:0602142_U'!P33 ) -> 0 | Q33: =SUM('0602011_U:0602142_U'!Q33 ) -> 1 | R33: =SUM('0602011_U:0602142_U'!R33 ) -> 0 | S33: =SUM('0602011_U:0602142_U'!S33 ) -> 0 | T33: 1 | U33: =SUM('0602011_U:0602142_U'!U33 ) -> 0 | V33: =SUM('0602011_U:0602142_U'!V33 ) -> 0 | W33: =SUM('0602011_U:0602142_U'!W33 ) -> 0 | X33: =SUM('0602011_U:0602142_U'!X33 ) -> 0 | Y33: =SUM('0602011_U:0602142_U'!Y33 ) -> 0 | Z33: =SUM('0602011_U:0602142_U'!Z33 ) -> 0 | AA33: 0 | AB33: =SUM('0602011_U:0602142_U'!AB33 ) -> 0 | AC33: 27 | AD33: =SUM('0602011_U:0602142_U'!AD33 ) -> 0 | AE33: =SUM('0602011_U:0602142_U'!AE33 ) -> 0 | AF33: =SUM('0602011_U:0602142_U'!AF33 ) -> 0 | AG33: =SUM('0602011_U:0602142_U'!AG33 ) -> 0 | AH33: =SUM('0602011_U:0602142_U'!AH33 ) -> 0 | AI33: =SUM('0602011_U:0602142_U'!AI33 ) -> 0 | AJ33: =SUM('0602011_U:0602142_U'!AJ33 ) -> 0 | AK33: =SUM(AD33:AJ33) -> 0
A34: Razem grupa 5 | C34: 40 | D34: =SUM(D30:D33) -> 0 | E34: 0 | F34: 0 | G34: 1 | H34: 11 | I34: 16 | J34: 1 | K34: 2 | L34: 0 | M34: 31 | N34: 0 | O34: 0 | P34: 0 | Q34: 1 | R34: 0 | S34: 0 | T34: 1 | U34: 0 | V34: 0 | W34: 0 | X34: 1 | Y34: 0 | Z34: 0 | AA34: 1 | AB34: 0 | AC34: 33 | AD34: 0 | AE34: 0 | AF34: 0 | AG34: 4 | AH34: 3 | AI34: 0 | AJ34: 0 | AK34: 7
A35: 6 | B35: 6.1 | C35: 35 | D35: =SUM('0602011_U:0602142_U'!D35 ) -> 0 | E35: =SUM('0602011_U:0602142_U'!E35 ) -> 0 | F35: =SUM('0602011_U:0602142_U'!F35 ) -> 0 | G35: =SUM('0602011_U:0602142_U'!G35 ) -> 0 | H35: =SUM('0602011_U:0602142_U'!H35 ) -> 3 | I35: =SUM('0602011_U:0602142_U'!I35 ) -> 1 | J35: =SUM('0602011_U:0602142_U'!J35 ) -> 2 | K35: =SUM('0602011_U:0602142_U'!K35 ) -> 3 | L35: =SUM('0602011_U:0602142_U'!L35 ) -> 0 | M35: 9 | N35: =SUM('0602011_U:0602142_U'!N35 ) -> 0 | O35: =SUM('0602011_U:0602142_U'!O35 ) -> 0 | P35: =SUM('0602011_U:0602142_U'!P35 ) -> 0 | Q35: =SUM('0602011_U:0602142_U'!Q35 ) -> 1 | R35: =SUM('0602011_U:0602142_U'!R35 ) -> 3 | S35: =SUM('0602011_U:0602142_U'!S35 ) -> 0 | T35: 4 | U35: =SUM('0602011_U:0602142_U'!U35 ) -> 0 | V35: =SUM('0602011_U:0602142_U'!V35 ) -> 0 | W35: =SUM('0602011_U:0602142_U'!W35 ) -> 0 | X35: =SUM('0602011_U:0602142_U'!X35 ) -> 2 | Y35: =SUM('0602011_U:0602142_U'!Y35 ) -> 2 | Z35: =SUM('0602011_U:0602142_U'!Z35 ) -> 0 | AA35: 4 | AB35: =SUM('0602011_U:0602142_U'!AB35 ) -> 0 | AC35: 17 | AD35: =SUM('0602011_U:0602142_U'!AD35 ) -> 0 | AE35: =SUM('0602011_U:0602142_U'!AE35 ) -> 0 | AF35: =SUM('0602011_U:0602142_U'!AF35 ) -> 0 | AG35: =SUM('0602011_U:0602142_U'!AG35 ) -> 0 | AH35: =SUM('0602011_U:0602142_U'!AH35 ) -> 18 | AI35: =SUM('0602011_U:0602142_U'!AI35 ) -> 0 | AJ35: =SUM('0602011_U:0602142_U'!AJ35 ) -> 0 | AK35: =SUM(AD35:AJ35) -> 18
B36: 6.2 | C36: 0 | D36: =SUM('0602011_U:0602142_U'!D36 ) -> 0 | E36: =SUM('0602011_U:0602142_U'!E36 ) -> 0 | F36: =SUM('0602011_U:0602142_U'!F36 ) -> 0 | G36: =SUM('0602011_U:0602142_U'!G36 ) -> 0 | H36: =SUM('0602011_U:0602142_U'!H36 ) -> 0 | I36: =SUM('0602011_U:0602142_U'!I36 ) -> 0 | J36: =SUM('0602011_U:0602142_U'!J36 ) -> 0 | K36: =SUM('0602011_U:0602142_U'!K36 ) -> 0 | L36: =SUM('0602011_U:0602142_U'!L36 ) -> 0 | M36: 0 | N36: =SUM('0602011_U:0602142_U'!N36 ) -> 0 | O36: =SUM('0602011_U:0602142_U'!O36 ) -> 0 | P36: =SUM('0602011_U:0602142_U'!P36 ) -> 0 | Q36: =SUM('0602011_U:0602142_U'!Q36 ) -> 0 | R36: =SUM('0602011_U:0602142_U'!R36 ) -> 0 | S36: =SUM('0602011_U:0602142_U'!S36 ) -> 0 | T36: 0 | U36: =SUM('0602011_U:0602142_U'!U36 ) -> 0 | V36: =SUM('0602011_U:0602142_U'!V36 ) -> 0 | W36: =SUM('0602011_U:0602142_U'!W36 ) -> 0 | X36: =SUM('0602011_U:0602142_U'!X36 ) -> 0 | Y36: =SUM('0602011_U:0602142_U'!Y36 ) -> 0 | Z36: =SUM('0602011_U:0602142_U'!Z36 ) -> 0 | AA36: 0 | AB36: =SUM('0602011_U:0602142_U'!AB36 ) -> 0 | AC36: 0 | AD36: =SUM('0602011_U:0602142_U'!AD36 ) -> 0 | AE36: =SUM('0602011_U:0602142_U'!AE36 ) -> 0 | AF36: =SUM('0602011_U:0602142_U'!AF36 ) -> 0 | AG36: =SUM('0602011_U:0602142_U'!AG36 ) -> 0 | AH36: =SUM('0602011_U:0602142_U'!AH36 ) -> 0 | AI36: =SUM('0602011_U:0602142_U'!AI36 ) -> 0 | AJ36: =SUM('0602011_U:0602142_U'!AJ36 ) -> 0 | AK36: =SUM(AD36:AJ36) -> 0
B37: 6.3 | C37: 0 | D37: =SUM('0602011_U:0602142_U'!D37 ) -> 0 | E37: =SUM('0602011_U:0602142_U'!E37 ) -> 0 | F37: =SUM('0602011_U:0602142_U'!F37 ) -> 0 | G37: =SUM('0602011_U:0602142_U'!G37 ) -> 0 | H37: =SUM('0602011_U:0602142_U'!H37 ) -> 0 | I37: =SUM('0602011_U:0602142_U'!I37 ) -> 0 | J37: =SUM('0602011_U:0602142_U'!J37 ) -> 0 | K37: =SUM('0602011_U:0602142_U'!K37 ) -> 0 | L37: =SUM('0602011_U:0602142_U'!L37 ) -> 0 | M37: 0 | N37: =SUM('0602011_U:0602142_U'!N37 ) -> 0 | O37: =SUM('0602011_U:0602142_U'!O37 ) -> 0 | P37: =SUM('0602011_U:0602142_U'!P37 ) -> 0 | Q37: =SUM('0602011_U:0602142_U'!Q37 ) -> 0 | R37: =SUM('0602011_U:0602142_U'!R37 ) -> 0 | S37: =SUM('0602011_U:0602142_U'!S37 ) -> 0 | T37: 0 | U37: =SUM('0602011_U:0602142_U'!U37 ) -> 0 | V37: =SUM('0602011_U:0602142_U'!V37 ) -> 0 | W37: =SUM('0602011_U:0602142_U'!W37 ) -> 0 | X37: =SUM('0602011_U:0602142_U'!X37 ) -> 0 | Y37: =SUM('0602011_U:0602142_U'!Y37 ) -> 0 | Z37: =SUM('0602011_U:0602142_U'!Z37 ) -> 0 | AA37: 0 | AB37: =SUM('0602011_U:0602142_U'!AB37 ) -> 0 | AC37: 0 | AD37: =SUM('0602011_U:0602142_U'!AD37 ) -> 0 | AE37: =SUM('0602011_U:0602142_U'!AE37 ) -> 0 | AF37: =SUM('0602011_U:0602142_U'!AF37 ) -> 0 | AG37: =SUM('0602011_U:0602142_U'!AG37 ) -> 0 | AH37: =SUM('0602011_U:0602142_U'!AH37 ) -> 0 | AI37: =SUM('0602011_U:0602142_U'!AI37 ) -> 0 | AJ37: =SUM('0602011_U:0602142_U'!AJ37 ) -> 0 | AK37: =SUM(AD37:AJ37) -> 0
A38: Razem grupa 6 | C38: 35 | D38: =SUM(D35:D37) -> 0 | E38: 0 | F38: 0 | G38: 0 | H38: 3 | I38: 1 | J38: 2 | K38: 3 | L38: 0 | M38: 9 | N38: 0 | O38: 0 | P38: 0 | Q38: 1 | R38: 3 | S38: 0 | T38: 4 | U38: 0 | V38: 0 | W38: 0 | X38: 2 | Y38: 2 | Z38: 0 | AA38: 4 | AB38: 0 | AC38: 17 | AD38: 0 | AE38: 0 | AF38: 0 | AG38: 0 | AH38: 18 | AI38: 0 | AJ38: 0 | AK38: 18
A39: 7 | B39: 7.1 | C39: 102672 | D39: =SUM('0602011_U:0602142_U'!D39 ) -> 12 | E39: =SUM('0602011_U:0602142_U'!E39 ) -> 1331 | F39: =SUM('0602011_U:0602142_U'!F39 ) -> 5992 | G39: =SUM('0602011_U:0602142_U'!G39 ) -> 10895 | H39: =SUM('0602011_U:0602142_U'!H39 ) -> 16344 | I39: =SUM('0602011_U:0602142_U'!I39 ) -> 10757 | J39: =SUM('0602011_U:0602142_U'!J39 ) -> 9035 | K39: =SUM('0602011_U:0602142_U'!K39 ) -> 4940 | L39: =SUM('0602011_U:0602142_U'!L39 ) -> 0 | M39: 59306 | N39: =SUM('0602011_U:0602142_U'!N39 ) -> 0 | O39: =SUM('0602011_U:0602142_U'!O39 ) -> 35 | P39: =SUM('0602011_U:0602142_U'!P39 ) -> 1254 | Q39: =SUM('0602011_U:0602142_U'!Q39 ) -> 4438 | R39: =SUM('0602011_U:0602142_U'!R39 ) -> 4047 | S39: =SUM('0602011_U:0602142_U'!S39 ) -> 1039 | T39: 10813 | U39: =SUM('0602011_U:0602142_U'!U39 ) -> 0 | V39: =SUM('0602011_U:0602142_U'!V39 ) -> 6 | W39: =SUM('0602011_U:0602142_U'!W39 ) -> 858 | X39: =SUM('0602011_U:0602142_U'!X39 ) -> 2471 | Y39: =SUM('0602011_U:0602142_U'!Y39 ) -> 2054 | Z39: =SUM('0602011_U:0602142_U'!Z39 ) -> 1139 | AA39: 6528 | AB39: =SUM('0602011_U:0602142_U'!AB39 ) -> 85 | AC39: 76732 | AD39: =SUM('0602011_U:0602142_U'!AD39 ) -> 0 | AE39: =SUM('0602011_U:0602142_U'!AE39 ) -> 166 | AF39: =SUM('0602011_U:0602142_U'!AF39 ) -> 3648 | AG39: =SUM('0602011_U:0602142_U'!AG39 ) -> 7908 | AH39: =SUM('0602011_U:0602142_U'!AH39 ) -> 12633 | AI39: =SUM('0602011_U:0602142_U'!AI39 ) -> 1573 | AJ39: =SUM('0602011_U:0602142_U'!AJ39 ) -> 12 | AK39: =SUM(AD39:AJ39) -> 25940
B40: 7.2 | C40: 20489 | D40: =SUM('0602011_U:0602142_U'!D40 ) -> 1 | E40: =SUM('0602011_U:0602142_U'!E40 ) -> 98 | F40: =SUM('0602011_U:0602142_U'!F40 ) -> 693 | G40: =SUM('0602011_U:0602142_U'!G40 ) -> 2024 | H40: =SUM('0602011_U:0602142_U'!H40 ) -> 2866 | I40: =SUM('0602011_U:0602142_U'!I40 ) -> 2518 | J40: =SUM('0602011_U:0602142_U'!J40 ) -> 2146 | K40: =SUM('0602011_U:0602142_U'!K40 ) -> 1631 | L40: =SUM('0602011_U:0602142_U'!L40 ) -> 0 | M40: 11977 | N40: =SUM('0602011_U:0602142_U'!N40 ) -> 0 | O40: =SUM('0602011_U:0602142_U'!O40 ) -> 1 | P40: =SUM('0602011_U:0602142_U'!P40 ) -> 210 | Q40: =SUM('0602011_U:0602142_U'!Q40 ) -> 763 | R40: =SUM('0602011_U:0602142_U'!R40 ) -> 736 | S40: =SUM('0602011_U:0602142_U'!S40 ) -> 131 | T40: 1841 | U40: =SUM('0602011_U:0602142_U'!U40 ) -> 0 | V40: =SUM('0602011_U:0602142_U'!V40 ) -> 0 | W40: =SUM('0602011_U:0602142_U'!W40 ) -> 125 | X40: =SUM('0602011_U:0602142_U'!X40 ) -> 345 | Y40: =SUM('0602011_U:0602142_U'!Y40 ) -> 350 | Z40: =SUM('0602011_U:0602142_U'!Z40 ) -> 306 | AA40: 1126 | AB40: =SUM('0602011_U:0602142_U'!AB40 ) -> 195 | AC40: 15139 | AD40: =SUM('0602011_U:0602142_U'!AD40 ) -> 0 | AE40: =SUM('0602011_U:0602142_U'!AE40 ) -> 15 | AF40: =SUM('0602011_U:0602142_U'!AF40 ) -> 319 | AG40: =SUM('0602011_U:0602142_U'!AG40 ) -> 878 | AH40: =SUM('0602011_U:0602142_U'!AH40 ) -> 3887 | AI40: =SUM('0602011_U:0602142_U'!AI40 ) -> 250 | AJ40: =SUM('0602011_U:0602142_U'!AJ40 ) -> 1 | AK40: =SUM(AD40:AJ40) -> 5350
A41: Razem grupa 7 | C41: 123161 | D41: =SUM(D39:D40) -> 13 | E41: 1429 | F41: 6685 | G41: 12919 | H41: 19210 | I41: 13275 | J41: 11181 | K41: 6571 | L41: 0 | M41: 71283 | N41: 0 | O41: 36 | P41: 1464 | Q41: 5201 | R41: 4783 | S41: 1170 | T41: 12654 | U41: 0 | V41: 6 | W41: 983 | X41: 2816 | Y41: 2404 | Z41: 1445 | AA41: 7654 | AB41: 280 | AC41: 91871 | AD41: 0 | AE41: 181 | AF41: 3967 | AG41: 8786 | AH41: 16520 | AI41: 1823 | AJ41: 13 | AK41: 31290
A42: 8 | B42: 8.1 | C42: 4 | D42: =SUM('0602011_U:0602142_U'!D42 ) -> 0 | E42: =SUM('0602011_U:0602142_U'!E42 ) -> 0 | F42: =SUM('0602011_U:0602142_U'!F42 ) -> 0 | G42: =SUM('0602011_U:0602142_U'!G42 ) -> 1 | H42: =SUM('0602011_U:0602142_U'!H42 ) -> 2 | I42: =SUM('0602011_U:0602142_U'!I42 ) -> 1 | J42: =SUM('0602011_U:0602142_U'!J42 ) -> 0 | K42: =SUM('0602011_U:0602142_U'!K42 ) -> 0 | L42: =SUM('0602011_U:0602142_U'!L42 ) -> 0 | M42: 4 | N42: =SUM('0602011_U:0602142_U'!N42 ) -> 0 | O42: =SUM('0602011_U:0602142_U'!O42 ) -> 0 | P42: =SUM('0602011_U:0602142_U'!P42 ) -> 0 | Q42: =SUM('0602011_U:0602142_U'!Q42 ) -> 0 | R42: =SUM('0602011_U:0602142_U'!R42 ) -> 0 | S42: =SUM('0602011_U:0602142_U'!S42 ) -> 0 | T42: 0 | U42: =SUM('0602011_U:0602142_U'!U42 ) -> 0 | V42: =SUM('0602011_U:0602142_U'!V42 ) -> 0 | W42: =SUM('0602011_U:0602142_U'!W42 ) -> 0 | X42: =SUM('0602011_U:0602142_U'!X42 ) -> 0 | Y42: =SUM('0602011_U:0602142_U'!Y42 ) -> 0 | Z42: =SUM('0602011_U:0602142_U'!Z42 ) -> 0 | AA42: 0 | AB42: =SUM('0602011_U:0602142_U'!AB42 ) -> 0 | AC42: 4 | AD42: =SUM('0602011_U:0602142_U'!AD42 ) -> 0 | AE42: =SUM('0602011_U:0602142_U'!AE42 ) -> 0 | AF42: =SUM('0602011_U:0602142_U'!AF42 ) -> 0 | AG42: =SUM('0602011_U:0602142_U'!AG42 ) -> 0 | AH42: =SUM('0602011_U:0602142_U'!AH42 ) -> 0 | AI42: =SUM('0602011_U:0602142_U'!AI42 ) -> 0 | AJ42: =SUM('0602011_U:0602142_U'!AJ42 ) -> 0 | AK42: =SUM(AD42:AJ42) -> 0
B43: 8.2 | C43: 3 | D43: =SUM('0602011_U:0602142_U'!D43 ) -> 0 | E43: =SUM('0602011_U:0602142_U'!E43 ) -> 0 | F43: =SUM('0602011_U:0602142_U'!F43 ) -> 0 | G43: =SUM('0602011_U:0602142_U'!G43 ) -> 3 | H43: =SUM('0602011_U:0602142_U'!H43 ) -> 0 | I43: =SUM('0602011_U:0602142_U'!I43 ) -> 0 | J43: =SUM('0602011_U:0602142_U'!J43 ) -> 0 | K43: =SUM('0602011_U:0602142_U'!K43 ) -> 0 | L43: =SUM('0602011_U:0602142_U'!L43 ) -> 0 | M43: 3 | N43: =SUM('0602011_U:0602142_U'!N43 ) -> 0 | O43: =SUM('0602011_U:0602142_U'!O43 ) -> 0 | P43: =SUM('0602011_U:0602142_U'!P43 ) -> 0 | Q43: =SUM('0602011_U:0602142_U'!Q43 ) -> 0 | R43: =SUM('0602011_U:0602142_U'!R43 ) -> 0 | S43: =SUM('0602011_U:0602142_U'!S43 ) -> 0 | T43: 0 | U43: =SUM('0602011_U:0602142_U'!U43 ) -> 0 | V43: =SUM('0602011_U:0602142_U'!V43 ) -> 0 | W43: =SUM('0602011_U:0602142_U'!W43 ) -> 0 | X43: =SUM('0602011_U:0602142_U'!X43 ) -> 0 | Y43: =SUM('0602011_U:0602142_U'!Y43 ) -> 0 | Z43: =SUM('0602011_U:0602142_U'!Z43 ) -> 0 | AA43: 0 | AB43: =SUM('0602011_U:0602142_U'!AB43 ) -> 0 | AC43: 3 | AD43: =SUM('0602011_U:0602142_U'!AD43 ) -> 0 | AE43: =SUM('0602011_U:0602142_U'!AE43 ) -> 0 | AF43: =SUM('0602011_U:0602142_U'!AF43 ) -> 0 | AG43: =SUM('0602011_U:0602142_U'!AG43 ) -> 0 | AH43: =SUM('0602011_U:0602142_U'!AH43 ) -> 0 | AI43: =SUM('0602011_U:0602142_U'!AI43 ) -> 0 | AJ43: =SUM('0602011_U:0602142_U'!AJ43 ) -> 0 | AK43: =SUM(AD43:AJ43) -> 0
B44: 8.3 | C44: 68 | D44: =SUM('0602011_U:0602142_U'!D44 ) -> 0 | E44: =SUM('0602011_U:0602142_U'!E44 ) -> 1 | F44: =SUM('0602011_U:0602142_U'!F44 ) -> 0 | G44: =SUM('0602011_U:0602142_U'!G44 ) -> 2 | H44: =SUM('0602011_U:0602142_U'!H44 ) -> 8 | I44: =SUM('0602011_U:0602142_U'!I44 ) -> 1 | J44: =SUM('0602011_U:0602142_U'!J44 ) -> 1 | K44: =SUM('0602011_U:0602142_U'!K44 ) -> 1 | L44: =SUM('0602011_U:0602142_U'!L44 ) -> 0 | M44: 14 | N44: =SUM('0602011_U:0602142_U'!N44 ) -> 0 | O44: =SUM('0602011_U:0602142_U'!O44 ) -> 0 | P44: =SUM('0602011_U:0602142_U'!P44 ) -> 0 | Q44: =SUM('0602011_U:0602142_U'!Q44 ) -> 1 | R44: =SUM('0602011_U:0602142_U'!R44 ) -> 40 | S44: =SUM('0602011_U:0602142_U'!S44 ) -> 0 | T44: 41 | U44: =SUM('0602011_U:0602142_U'!U44 ) -> 0 | V44: =SUM('0602011_U:0602142_U'!V44 ) -> 0 | W44: =SUM('0602011_U:0602142_U'!W44 ) -> 3 | X44: =SUM('0602011_U:0602142_U'!X44 ) -> 9 | Y44: =SUM('0602011_U:0602142_U'!Y44 ) -> 1 | Z44: =SUM('0602011_U:0602142_U'!Z44 ) -> 0 | AA44: 13 | AB44: =SUM('0602011_U:0602142_U'!AB44 ) -> 0 | AC44: 68 | AD44: =SUM('0602011_U:0602142_U'!AD44 ) -> 0 | AE44: =SUM('0602011_U:0602142_U'!AE44 ) -> 0 | AF44: =SUM('0602011_U:0602142_U'!AF44 ) -> 0 | AG44: =SUM('0602011_U:0602142_U'!AG44 ) -> 0 | AH44: =SUM('0602011_U:0602142_U'!AH44 ) -> 0 | AI44: =SUM('0602011_U:0602142_U'!AI44 ) -> 0 | AJ44: =SUM('0602011_U:0602142_U'!AJ44 ) -> 0 | AK44: =SUM(AD44:AJ44) -> 0
A45: Razem grupa 8 | C45: 75 | D45: =SUM(D42:D44) -> 0 | E45: 1 | F45: 0 | G45: 6 | H45: 10 | I45: 2 | J45: 1 | K45: 1 | L45: 0 | M45: 21 | N45: 0 | O45: 0 | P45: 0 | Q45: 1 | R45: 40 | S45: 0 | T45: 41 | U45: 0 | V45: 0 | W45: 3 | X45: 9 | Y45: 1 | Z45: 0 | AA45: 13 | AB45: 0 | AC45: 75 | AD45: 0 | AE45: 0 | AF45: 0 | AG45: 0 | AH45: 0 | AI45: 0 | AJ45: 0 | AK45: 0
A46: 9 | B46: - | C46: 247 | D46: =SUM('0602011_U:0602142_U'!D46 ) -> 0 | E46: =SUM('0602011_U:0602142_U'!E46 ) -> 3 | F46: =SUM('0602011_U:0602142_U'!F46 ) -> 12 | G46: =SUM('0602011_U:0602142_U'!G46 ) -> 29 | H46: =SUM('0602011_U:0602142_U'!H46 ) -> 55 | I46: =SUM('0602011_U:0602142_U'!I46 ) -> 37 | J46: =SUM('0602011_U:0602142_U'!J46 ) -> 20 | K46: =SUM('0602011_U:0602142_U'!K46 ) -> 12 | L46: =SUM('0602011_U:0602142_U'!L46 ) -> 0 | M46: 168 | N46: =SUM('0602011_U:0602142_U'!N46 ) -> 0 | O46: =SUM('0602011_U:0602142_U'!O46 ) -> 0 | P46: =SUM('0602011_U:0602142_U'!P46 ) -> 7 | Q46: =SUM('0602011_U:0602142_U'!Q46 ) -> 16 | R46: =SUM('0602011_U:0602142_U'!R46 ) -> 12 | S46: =SUM('0602011_U:0602142_U'!S46 ) -> 4 | T46: 39 | U46: =SUM('0602011_U:0602142_U'!U46 ) -> 0 | V46: =SUM('0602011_U:0602142_U'!V46 ) -> 0 | W46: =SUM('0602011_U:0602142_U'!W46 ) -> 6 | X46: =SUM('0602011_U:0602142_U'!X46 ) -> 11 | Y46: =SUM('0602011_U:0602142_U'!Y46 ) -> 4 | Z46: =SUM('0602011_U:0602142_U'!Z46 ) -> 9 | AA46: 30 | AB46: =SUM('0602011_U:0602142_U'!AB46 ) -> 0 | AC46: 237 | AD46: =SUM('0602011_U:0602142_U'!AD46 ) -> 0 | AE46: =SUM('0602011_U:0602142_U'!AE46 ) -> 0 | AF46: =SUM('0602011_U:0602142_U'!AF46 ) -> 0 | AG46: =SUM('0602011_U:0602142_U'!AG46 ) -> 5 | AH46: =SUM('0602011_U:0602142_U'!AH46 ) -> 5 | AI46: =SUM('0602011_U:0602142_U'!AI46 ) -> 0 | AJ46: =SUM('0602011_U:0602142_U'!AJ46 ) -> 0 | AK46: =SUM(AD46:AJ46) -> 10
A47: Razem grupa 9 | C47: 247 | D47: =D46 -> 0 | E47: 3 | F47: 12 | G47: 29 | H47: 55 | I47: 37 | J47: 20 | K47: 12 | L47: 0 | M47: 168 | N47: 0 | O47: 0 | P47: 7 | Q47: 16 | R47: 12 | S47: 4 | T47: 39 | U47: 0 | V47: 0 | W47: 6 | X47: 11 | Y47: 4 | Z47: 9 | AA47: 30 | AB47: 0 | AC47: 237 | AD47: 0 | AE47: 0 | AF47: 0 | AG47: 5 | AH47: 5 | AI47: 0 | AJ47: 0 | AK47: 10
A48: 10 | B48: - | C48: 1109 | D48: =SUM('0602011_U:0602142_U'!D48 ) -> 0 | E48: =SUM('0602011_U:0602142_U'!E48 ) -> 0 | F48: =SUM('0602011_U:0602142_U'!F48 ) -> 0 | G48: =SUM('0602011_U:0602142_U'!G48 ) -> 4 | H48: =SUM('0602011_U:0602142_U'!H48 ) -> 6 | I48: =SUM('0602011_U:0602142_U'!I48 ) -> 8 | J48: =SUM('0602011_U:0602142_U'!J48 ) -> 13 | K48: =SUM('0602011_U:0602142_U'!K48 ) -> 35 | L48: =SUM('0602011_U:0602142_U'!L48 ) -> 0 | M48: 66 | N48: =SUM('0602011_U:0602142_U'!N48 ) -> 0 | O48: =SUM('0602011_U:0602142_U'!O48 ) -> 0 | P48: =SUM('0602011_U:0602142_U'!P48 ) -> 4 | Q48: =SUM('0602011_U:0602142_U'!Q48 ) -> 5 | R48: =SUM('0602011_U:0602142_U'!R48 ) -> 16 | S48: =SUM('0602011_U:0602142_U'!S48 ) -> 62 | T48: 87 | U48: =SUM('0602011_U:0602142_U'!U48 ) -> 0 | V48: =SUM('0602011_U:0602142_U'!V48 ) -> 0 | W48: =SUM('0602011_U:0602142_U'!W48 ) -> 34 | X48: =SUM('0602011_U:0602142_U'!X48 ) -> 82 | Y48: =SUM('0602011_U:0602142_U'!Y48 ) -> 105 | Z48: =SUM('0602011_U:0602142_U'!Z48 ) -> 164 | AA48: 385 | AB48: =SUM('0602011_U:0602142_U'!AB48 ) -> 6 | AC48: 544 | AD48: =SUM('0602011_U:0602142_U'!AD48 ) -> 0 | AE48: =SUM('0602011_U:0602142_U'!AE48 ) -> 0 | AF48: =SUM('0602011_U:0602142_U'!AF48 ) -> 13 | AG48: =SUM('0602011_U:0602142_U'!AG48 ) -> 101 | AH48: =SUM('0602011_U:0602142_U'!AH48 ) -> 352 | AI48: =SUM('0602011_U:0602142_U'!AI48 ) -> 99 | AJ48: =SUM('0602011_U:0602142_U'!AJ48 ) -> 0 | AK48: =SUM(AD48:AJ48) -> 565
A49: Razem grupa 10 | C49: 1109 | D49: =D48 -> 0 | E49: 0 | F49: 0 | G49: 4 | H49: 6 | I49: 8 | J49: 13 | K49: 35 | L49: 0 | M49: 66 | N49: 0 | O49: 0 | P49: 4 | Q49: 5 | R49: 16 | S49: 62 | T49: 87 | U49: 0 | V49: 0 | W49: 34 | X49: 82 | Y49: 105 | Z49: 164 | AA49: 385 | AB49: 6 | AC49: 544 | AD49: 0 | AE49: 0 | AF49: 13 | AG49: 101 | AH49: 352 | AI49: 99 | AJ49: 0 | AK49: 565
A50: 11 | B50: 11.1 | C50: 4 | D50: =SUM('0602011_U:0602142_U'!D50 ) -> 0 | E50: =SUM('0602011_U:0602142_U'!E50 ) -> 0 | F50: =SUM('0602011_U:0602142_U'!F50 ) -> 0 | G50: =SUM('0602011_U:0602142_U'!G50 ) -> 2 | H50: =SUM('0602011_U:0602142_U'!H50 ) -> 0 | I50: =SUM('0602011_U:0602142_U'!I50 ) -> 0 | J50: =SUM('0602011_U:0602142_U'!J50 ) -> 0 | K50: =SUM('0602011_U:0602142_U'!K50 ) -> 2 | L50: =SUM('0602011_U:0602142_U'!L50 ) -> 0 | M50: 4 | N50: =SUM('0602011_U:0602142_U'!N50 ) -> 0 | O50: =SUM('0602011_U:0602142_U'!O50 ) -> 0 | P50: =SUM('0602011_U:0602142_U'!P50 ) -> 0 | Q50: =SUM('0602011_U:0602142_U'!Q50 ) -> 0 | R50: =SUM('0602011_U:0602142_U'!R50 ) -> 0 | S50: =SUM('0602011_U:0602142_U'!S50 ) -> 0 | T50: 0 | U50: =SUM('0602011_U:0602142_U'!U50 ) -> 0 | V50: =SUM('0602011_U:0602142_U'!V50 ) -> 0 | W50: =SUM('0602011_U:0602142_U'!W50 ) -> 0 | X50: =SUM('0602011_U:0602142_U'!X50 ) -> 0 | Y50: =SUM('0602011_U:0602142_U'!Y50 ) -> 0 | Z50: =SUM('0602011_U:0602142_U'!Z50 ) -> 0 | AA50: 0 | AB50: =SUM('0602011_U:0602142_U'!AB50 ) -> 0 | AC50: 4 | AD50: =SUM('0602011_U:0602142_U'!AD50 ) -> 0 | AE50: =SUM('0602011_U:0602142_U'!AE50 ) -> 0 | AF50: =SUM('0602011_U:0602142_U'!AF50 ) -> 0 | AG50: =SUM('0602011_U:0602142_U'!AG50 ) -> 0 | AH50: =SUM('0602011_U:0602142_U'!AH50 ) -> 0 | AI50: =SUM('0602011_U:0602142_U'!AI50 ) -> 0 | AJ50: =SUM('0602011_U:0602142_U'!AJ50 ) -> 0 | AK50: =SUM(AD50:AJ50) -> 0
B51: 11.2 | C51: 2 | D51: =SUM('0602011_U:0602142_U'!D51 ) -> 0 | E51: =SUM('0602011_U:0602142_U'!E51 ) -> 0 | F51: =SUM('0602011_U:0602142_U'!F51 ) -> 1 | G51: =SUM('0602011_U:0602142_U'!G51 ) -> 0 | H51: =SUM('0602011_U:0602142_U'!H51 ) -> 0 | I51: =SUM('0602011_U:0602142_U'!I51 ) -> 0 | J51: =SUM('0602011_U:0602142_U'!J51 ) -> 0 | K51: =SUM('0602011_U:0602142_U'!K51 ) -> 1 | L51: =SUM('0602011_U:0602142_U'!L51 ) -> 0 | M51: 2 | N51: =SUM('0602011_U:0602142_U'!N51 ) -> 0 | O51: =SUM('0602011_U:0602142_U'!O51 ) -> 0 | P51: =SUM('0602011_U:0602142_U'!P51 ) -> 0 | Q51: =SUM('0602011_U:0602142_U'!Q51 ) -> 0 | R51: =SUM('0602011_U:0602142_U'!R51 ) -> 0 | S51: =SUM('0602011_U:0602142_U'!S51 ) -> 0 | T51: 0 | U51: =SUM('0602011_U:0602142_U'!U51 ) -> 0 | V51: =SUM('0602011_U:0602142_U'!V51 ) -> 0 | W51: =SUM('0602011_U:0602142_U'!W51 ) -> 0 | X51: =SUM('0602011_U:0602142_U'!X51 ) -> 0 | Y51: =SUM('0602011_U:0602142_U'!Y51 ) -> 0 | Z51: =SUM('0602011_U:0602142_U'!Z51 ) -> 0 | AA51: 0 | AB51: =SUM('0602011_U:0602142_U'!AB51 ) -> 0 | AC51: 2 | AD51: =SUM('0602011_U:0602142_U'!AD51 ) -> 0 | AE51: =SUM('0602011_U:0602142_U'!AE51 ) -> 0 | AF51: =SUM('0602011_U:0602142_U'!AF51 ) -> 0 | AG51: =SUM('0602011_U:0602142_U'!AG51 ) -> 0 | AH51: =SUM('0602011_U:0602142_U'!AH51 ) -> 0 | AI51: =SUM('0602011_U:0602142_U'!AI51 ) -> 0 | AJ51: =SUM('0602011_U:0602142_U'!AJ51 ) -> 0 | AK51: =SUM(AD51:AJ51) -> 0
B52: 11.3 | C52: 0 | D52: =SUM('0602011_U:0602142_U'!D52 ) -> 0 | E52: =SUM('0602011_U:0602142_U'!E52 ) -> 0 | F52: =SUM('0602011_U:0602142_U'!F52 ) -> 0 | G52: =SUM('0602011_U:0602142_U'!G52 ) -> 0 | H52: =SUM('0602011_U:0602142_U'!H52 ) -> 0 | I52: =SUM('0602011_U:0602142_U'!I52 ) -> 0 | J52: =SUM('0602011_U:0602142_U'!J52 ) -> 0 | K52: =SUM('0602011_U:0602142_U'!K52 ) -> 0 | L52: =SUM('0602011_U:0602142_U'!L52 ) -> 0 | M52: 0 | N52: =SUM('0602011_U:0602142_U'!N52 ) -> 0 | O52: =SUM('0602011_U:0602142_U'!O52 ) -> 0 | P52: =SUM('0602011_U:0602142_U'!P52 ) -> 0 | Q52: =SUM('0602011_U:0602142_U'!Q52 ) -> 0 | R52: =SUM('0602011_U:0602142_U'!R52 ) -> 0 | S52: =SUM('0602011_U:0602142_U'!S52 ) -> 0 | T52: 0 | U52: =SUM('0602011_U:0602142_U'!U52 ) -> 0 | V52: =SUM('0602011_U:0602142_U'!V52 ) -> 0 | W52: =SUM('0602011_U:0602142_U'!W52 ) -> 0 | X52: =SUM('0602011_U:0602142_U'!X52 ) -> 0 | Y52: =SUM('0602011_U:0602142_U'!Y52 ) -> 0 | Z52: =SUM('0602011_U:0602142_U'!Z52 ) -> 0 | AA52: 0 | AB52: =SUM('0602011_U:0602142_U'!AB52 ) -> 0 | AC52: 0 | AD52: =SUM('0602011_U:0602142_U'!AD52 ) -> 0 | AE52: =SUM('0602011_U:0602142_U'!AE52 ) -> 0 | AF52: =SUM('0602011_U:0602142_U'!AF52 ) -> 0 | AG52: =SUM('0602011_U:0602142_U'!AG52 ) -> 0 | AH52: =SUM('0602011_U:0602142_U'!AH52 ) -> 0 | AI52: =SUM('0602011_U:0602142_U'!AI52 ) -> 0 | AJ52: =SUM('0602011_U:0602142_U'!AJ52 ) -> 0 | AK52: =SUM(AD52:AJ52) -> 0
A53: Razem grupa 11 | C53: 6 | D53: =SUM(D50:D52) -> 0 | E53: 0 | F53: 1 | G53: 2 | H53: 0 | I53: 0 | J53: 0 | K53: 3 | L53: 0 | M53: 6 | N53: 0 | O53: 0 | P53: 0 | Q53: 0 | R53: 0 | S53: 0 | T53: 0 | U53: 0 | V53: 0 | W53: 0 | X53: 0 | Y53: 0 | Z53: 0 | AA53: 0 | AB53: 0 | AC53: 6 | AD53: 0 | AE53: 0 | AF53: 0 | AG53: 0 | AH53: 0 | AI53: 0 | AJ53: 0 | AK53: 0
A54: 12 | B54: 12.1 | C54: 0 | D54: =SUM('0602011_U:0602142_U'!D54 ) -> 0 | E54: =SUM('0602011_U:0602142_U'!E54 ) -> 0 | F54: =SUM('0602011_U:0602142_U'!F54 ) -> 0 | G54: =SUM('0602011_U:0602142_U'!G54 ) -> 0 | H54: =SUM('0602011_U:0602142_U'!H54 ) -> 0 | I54: =SUM('0602011_U:0602142_U'!I54 ) -> 0 | J54: =SUM('0602011_U:0602142_U'!J54 ) -> 0 | K54: =SUM('0602011_U:0602142_U'!K54 ) -> 0 | L54: =SUM('0602011_U:0602142_U'!L54 ) -> 0 | M54: 0 | N54: =SUM('0602011_U:0602142_U'!N54 ) -> 0 | O54: =SUM('0602011_U:0602142_U'!O54 ) -> 0 | P54: =SUM('0602011_U:0602142_U'!P54 ) -> 0 | Q54: =SUM('0602011_U:0602142_U'!Q54 ) -> 0 | R54: =SUM('0602011_U:0602142_U'!R54 ) -> 0 | S54: =SUM('0602011_U:0602142_U'!S54 ) -> 0 | T54: 0 | U54: =SUM('0602011_U:0602142_U'!U54 ) -> 0 | V54: =SUM('0602011_U:0602142_U'!V54 ) -> 0 | W54: =SUM('0602011_U:0602142_U'!W54 ) -> 0 | X54: =SUM('0602011_U:0602142_U'!X54 ) -> 0 | Y54: =SUM('0602011_U:0602142_U'!Y54 ) -> 0 | Z54: =SUM('0602011_U:0602142_U'!Z54 ) -> 0 | AA54: 0 | AB54: =SUM('0602011_U:0602142_U'!AB54 ) -> 0 | AC54: 0 | AD54: =SUM('0602011_U:0602142_U'!AD54 ) -> 0 | AE54: =SUM('0602011_U:0602142_U'!AE54 ) -> 0 | AF54: =SUM('0602011_U:0602142_U'!AF54 ) -> 0 | AG54: =SUM('0602011_U:0602142_U'!AG54 ) -> 0 | AH54: =SUM('0602011_U:0602142_U'!AH54 ) -> 0 | AI54: =SUM('0602011_U:0602142_U'!AI54 ) -> 0 | AJ54: =SUM('0602011_U:0602142_U'!AJ54 ) -> 0 | AK54: =SUM(AD54:AJ54) -> 0
B55: 12.2 | C55: 0 | D55: =SUM('0602011_U:0602142_U'!D55 ) -> 0 | E55: =SUM('0602011_U:0602142_U'!E55 ) -> 0 | F55: =SUM('0602011_U:0602142_U'!F55 ) -> 0 | G55: =SUM('0602011_U:0602142_U'!G55 ) -> 0 | H55: =SUM('0602011_U:0602142_U'!H55 ) -> 0 | I55: =SUM('0602011_U:0602142_U'!I55 ) -> 0 | J55: =SUM('0602011_U:0602142_U'!J55 ) -> 0 | K55: =SUM('0602011_U:0602142_U'!K55 ) -> 0 | L55: =SUM('0602011_U:0602142_U'!L55 ) -> 0 | M55: 0 | N55: =SUM('0602011_U:0602142_U'!N55 ) -> 0 | O55: =SUM('0602011_U:0602142_U'!O55 ) -> 0 | P55: =SUM('0602011_U:0602142_U'!P55 ) -> 0 | Q55: =SUM('0602011_U:0602142_U'!Q55 ) -> 0 | R55: =SUM('0602011_U:0602142_U'!R55 ) -> 0 | S55: =SUM('0602011_U:0602142_U'!S55 ) -> 0 | T55: 0 | U55: =SUM('0602011_U:0602142_U'!U55 ) -> 0 | V55: =SUM('0602011_U:0602142_U'!V55 ) -> 0 | W55: =SUM('0602011_U:0602142_U'!W55 ) -> 0 | X55: =SUM('0602011_U:0602142_U'!X55 ) -> 0 | Y55: =SUM('0602011_U:0602142_U'!Y55 ) -> 0 | Z55: =SUM('0602011_U:0602142_U'!Z55 ) -> 0 | AA55: 0 | AB55: =SUM('0602011_U:0602142_U'!AB55 ) -> 0 | AC55: 0 | AD55: =SUM('0602011_U:0602142_U'!AD55 ) -> 0 | AE55: =SUM('0602011_U:0602142_U'!AE55 ) -> 0 | AF55: =SUM('0602011_U:0602142_U'!AF55 ) -> 0 | AG55: =SUM('0602011_U:0602142_U'!AG55 ) -> 0 | AH55: =SUM('0602011_U:0602142_U'!AH55 ) -> 0 | AI55: =SUM('0602011_U:0602142_U'!AI55 ) -> 0 | AJ55: =SUM('0602011_U:0602142_U'!AJ55 ) -> 0 | AK55: =SUM(AD55:AJ55) -> 0
B56: 12.3 | C56: 0 | D56: =SUM('0602011_U:0602142_U'!D56 ) -> 0 | E56: =SUM('0602011_U:0602142_U'!E56 ) -> 0 | F56: =SUM('0602011_U:0602142_U'!F56 ) -> 0 | G56: =SUM('0602011_U:0602142_U'!G56 ) -> 0 | H56: =SUM('0602011_U:0602142_U'!H56 ) -> 0 | I56: =SUM('0602011_U:0602142_U'!I56 ) -> 0 | J56: =SUM('0602011_U:0602142_U'!J56 ) -> 0 | K56: =SUM('0602011_U:0602142_U'!K56 ) -> 0 | L56: =SUM('0602011_U:0602142_U'!L56 ) -> 0 | M56: 0 | N56: =SUM('0602011_U:0602142_U'!N56 ) -> 0 | O56: =SUM('0602011_U:0602142_U'!O56 ) -> 0 | P56: =SUM('0602011_U:0602142_U'!P56 ) -> 0 | Q56: =SUM('0602011_U:0602142_U'!Q56 ) -> 0 | R56: =SUM('0602011_U:0602142_U'!R56 ) -> 0 | S56: =SUM('0602011_U:0602142_U'!S56 ) -> 0 | T56: 0 | U56: =SUM('0602011_U:0602142_U'!U56 ) -> 0 | V56: =SUM('0602011_U:0602142_U'!V56 ) -> 0 | W56: =SUM('0602011_U:0602142_U'!W56 ) -> 0 | X56: =SUM('0602011_U:0602142_U'!X56 ) -> 0 | Y56: =SUM('0602011_U:0602142_U'!Y56 ) -> 0 | Z56: =SUM('0602011_U:0602142_U'!Z56 ) -> 0 | AA56: 0 | AB56: =SUM('0602011_U:0602142_U'!AB56 ) -> 0 | AC56: 0 | AD56: =SUM('0602011_U:0602142_U'!AD56 ) -> 0 | AE56: =SUM('0602011_U:0602142_U'!AE56 ) -> 0 | AF56: =SUM('0602011_U:0602142_U'!AF56 ) -> 0 | AG56: =SUM('0602011_U:0602142_U'!AG56 ) -> 0 | AH56: =SUM('0602011_U:0602142_U'!AH56 ) -> 0 | AI56: =SUM('0602011_U:0602142_U'!AI56 ) -> 0 | AJ56: =SUM('0602011_U:0602142_U'!AJ56 ) -> 0 | AK56: =SUM(AD56:AJ56) -> 0
B57: 12.4 | C57: 0 | D57: =SUM('0602011_U:0602142_U'!D57 ) -> 0 | E57: =SUM('0602011_U:0602142_U'!E57 ) -> 0 | F57: =SUM('0602011_U:0602142_U'!F57 ) -> 0 | G57: =SUM('0602011_U:0602142_U'!G57 ) -> 0 | H57: =SUM('0602011_U:0602142_U'!H57 ) -> 0 | I57: =SUM('0602011_U:0602142_U'!I57 ) -> 0 | J57: =SUM('0602011_U:0602142_U'!J57 ) -> 0 | K57: =SUM('0602011_U:0602142_U'!K57 ) -> 0 | L57: =SUM('0602011_U:0602142_U'!L57 ) -> 0 | M57: 0 | N57: =SUM('0602011_U:0602142_U'!N57 ) -> 0 | O57: =SUM('0602011_U:0602142_U'!O57 ) -> 0 | P57: =SUM('0602011_U:0602142_U'!P57 ) -> 0 | Q57: =SUM('0602011_U:0602142_U'!Q57 ) -> 0 | R57: =SUM('0602011_U:0602142_U'!R57 ) -> 0 | S57: =SUM('0602011_U:0602142_U'!S57 ) -> 0 | T57: 0 | U57: =SUM('0602011_U:0602142_U'!U57 ) -> 0 | V57: =SUM('0602011_U:0602142_U'!V57 ) -> 0 | W57: =SUM('0602011_U:0602142_U'!W57 ) -> 0 | X57: =SUM('0602011_U:0602142_U'!X57 ) -> 0 | Y57: =SUM('0602011_U:0602142_U'!Y57 ) -> 0 | Z57: =SUM('0602011_U:0602142_U'!Z57 ) -> 0 | AA57: 0 | AB57: =SUM('0602011_U:0602142_U'!AB57 ) -> 0 | AC57: 0 | AD57: =SUM('0602011_U:0602142_U'!AD57 ) -> 0 | AE57: =SUM('0602011_U:0602142_U'!AE57 ) -> 0 | AF57: =SUM('0602011_U:0602142_U'!AF57 ) -> 0 | AG57: =SUM('0602011_U:0602142_U'!AG57 ) -> 0 | AH57: =SUM('0602011_U:0602142_U'!AH57 ) -> 0 | AI57: =SUM('0602011_U:0602142_U'!AI57 ) -> 0 | AJ57: =SUM('0602011_U:0602142_U'!AJ57 ) -> 0 | AK57: =SUM(AD57:AJ57) -> 0
A58: Razem grupa 12 | C58: 0 | D58: =SUM(D54:D57) -> 0 | E58: 0 | F58: 0 | G58: 0 | H58: 0 | I58: 0 | J58: 0 | K58: 0 | L58: 0 | M58: 0 | N58: 0 | O58: 0 | P58: 0 | Q58: 0 | R58: 0 | S58: 0 | T58: 0 | U58: 0 | V58: 0 | W58: 0 | X58: 0 | Y58: 0 | Z58: 0 | AA58: 0 | AB58: 0 | AC58: 0 | AD58: 0 | AE58: 0 | AF58: 0 | AG58: 0 | AH58: 0 | AI58: 0 | AJ58: 0 | AK58: 0
A59: 13 | B59: 13.1 | C59: 0 | D59: =SUM('0602011_U:0602142_U'!D59 ) -> 0 | E59: =SUM('0602011_U:0602142_U'!E59 ) -> 0 | F59: =SUM('0602011_U:0602142_U'!F59 ) -> 0 | G59: =SUM('0602011_U:0602142_U'!G59 ) -> 0 | H59: =SUM('0602011_U:0602142_U'!H59 ) -> 0 | I59: =SUM('0602011_U:0602142_U'!I59 ) -> 0 | J59: =SUM('0602011_U:0602142_U'!J59 ) -> 0 | K59: =SUM('0602011_U:0602142_U'!K59 ) -> 0 | L59: =SUM('0602011_U:0602142_U'!L59 ) -> 0 | M59: 0 | N59: =SUM('0602011_U:0602142_U'!N59 ) -> 0 | O59: =SUM('0602011_U:0602142_U'!O59 ) -> 0 | P59: =SUM('0602011_U:0602142_U'!P59 ) -> 0 | Q59: =SUM('0602011_U:0602142_U'!Q59 ) -> 0 | R59: =SUM('0602011_U:0602142_U'!R59 ) -> 0 | S59: =SUM('0602011_U:0602142_U'!S59 ) -> 0 | T59: 0 | U59: =SUM('0602011_U:0602142_U'!U59 ) -> 0 | V59: =SUM('0602011_U:0602142_U'!V59 ) -> 0 | W59: =SUM('0602011_U:0602142_U'!W59 ) -> 0 | X59: =SUM('0602011_U:0602142_U'!X59 ) -> 0 | Y59: =SUM('0602011_U:0602142_U'!Y59 ) -> 0 | Z59: =SUM('0602011_U:0602142_U'!Z59 ) -> 0 | AA59: 0 | AB59: =SUM('0602011_U:0602142_U'!AB59 ) -> 0 | AC59: 0 | AD59: =SUM('0602011_U:0602142_U'!AD59 ) -> 0 | AE59: =SUM('0602011_U:0602142_U'!AE59 ) -> 0 | AF59: =SUM('0602011_U:0602142_U'!AF59 ) -> 0 | AG59: =SUM('0602011_U:0602142_U'!AG59 ) -> 0 | AH59: =SUM('0602011_U:0602142_U'!AH59 ) -> 0 | AI59: =SUM('0602011_U:0602142_U'!AI59 ) -> 0 | AJ59: =SUM('0602011_U:0602142_U'!AJ59 ) -> 0 | AK59: =SUM(AD59:AJ59) -> 0
B60: 13.2 | C60: 0 | D60: =SUM('0602011_U:0602142_U'!D60 ) -> 0 | E60: =SUM('0602011_U:0602142_U'!E60 ) -> 0 | F60: =SUM('0602011_U:0602142_U'!F60 ) -> 0 | G60: =SUM('0602011_U:0602142_U'!G60 ) -> 0 | H60: =SUM('0602011_U:0602142_U'!H60 ) -> 0 | I60: =SUM('0602011_U:0602142_U'!I60 ) -> 0 | J60: =SUM('0602011_U:0602142_U'!J60 ) -> 0 | K60: =SUM('0602011_U:0602142_U'!K60 ) -> 0 | L60: =SUM('0602011_U:0602142_U'!L60 ) -> 0 | M60: 0 | N60: =SUM('0602011_U:0602142_U'!N60 ) -> 0 | O60: =SUM('0602011_U:0602142_U'!O60 ) -> 0 | P60: =SUM('0602011_U:0602142_U'!P60 ) -> 0 | Q60: =SUM('0602011_U:0602142_U'!Q60 ) -> 0 | R60: =SUM('0602011_U:0602142_U'!R60 ) -> 0 | S60: =SUM('0602011_U:0602142_U'!S60 ) -> 0 | T60: 0 | U60: =SUM('0602011_U:0602142_U'!U60 ) -> 0 | V60: =SUM('0602011_U:0602142_U'!V60 ) -> 0 | W60: =SUM('0602011_U:0602142_U'!W60 ) -> 0 | X60: =SUM('0602011_U:0602142_U'!X60 ) -> 0 | Y60: =SUM('0602011_U:0602142_U'!Y60 ) -> 0 | Z60: =SUM('0602011_U:0602142_U'!Z60 ) -> 0 | AA60: 0 | AB60: =SUM('0602011_U:0602142_U'!AB60 ) -> 0 | AC60: 0 | AD60: =SUM('0602011_U:0602142_U'!AD60 ) -> 0 | AE60: =SUM('0602011_U:0602142_U'!AE60 ) -> 0 | AF60: =SUM('0602011_U:0602142_U'!AF60 ) -> 0 | AG60: =SUM('0602011_U:0602142_U'!AG60 ) -> 0 | AH60: =SUM('0602011_U:0602142_U'!AH60 ) -> 0 | AI60: =SUM('0602011_U:0602142_U'!AI60 ) -> 0 | AJ60: =SUM('0602011_U:0602142_U'!AJ60 ) -> 0 | AK60: =SUM(AD60:AJ60) -> 0
B61: 13.3 | C61: 0 | D61: =SUM('0602011_U:0602142_U'!D61 ) -> 0 | E61: =SUM('0602011_U:0602142_U'!E61 ) -> 0 | F61: =SUM('0602011_U:0602142_U'!F61 ) -> 0 | G61: =SUM('0602011_U:0602142_U'!G61 ) -> 0 | H61: =SUM('0602011_U:0602142_U'!H61 ) -> 0 | I61: =SUM('0602011_U:0602142_U'!I61 ) -> 0 | J61: =SUM('0602011_U:0602142_U'!J61 ) -> 0 | K61: =SUM('0602011_U:0602142_U'!K61 ) -> 0 | L61: =SUM('0602011_U:0602142_U'!L61 ) -> 0 | M61: 0 | N61: =SUM('0602011_U:0602142_U'!N61 ) -> 0 | O61: =SUM('0602011_U:0602142_U'!O61 ) -> 0 | P61: =SUM('0602011_U:0602142_U'!P61 ) -> 0 | Q61: =SUM('0602011_U:0602142_U'!Q61 ) -> 0 | R61: =SUM('0602011_U:0602142_U'!R61 ) -> 0 | S61: =SUM('0602011_U:0602142_U'!S61 ) -> 0 | T61: 0 | U61: =SUM('0602011_U:0602142_U'!U61 ) -> 0 | V61: =SUM('0602011_U:0602142_U'!V61 ) -> 0 | W61: =SUM('0602011_U:0602142_U'!W61 ) -> 0 | X61: =SUM('0602011_U:0602142_U'!X61 ) -> 0 | Y61: =SUM('0602011_U:0602142_U'!Y61 ) -> 0 | Z61: =SUM('0602011_U:0602142_U'!Z61 ) -> 0 | AA61: 0 | AB61: =SUM('0602011_U:0602142_U'!AB61 ) -> 0 | AC61: 0 | AD61: =SUM('0602011_U:0602142_U'!AD61 ) -> 0 | AE61: =SUM('0602011_U:0602142_U'!AE61 ) -> 0 | AF61: =SUM('0602011_U:0602142_U'!AF61 ) -> 0 | AG61: =SUM('0602011_U:0602142_U'!AG61 ) -> 0 | AH61: =SUM('0602011_U:0602142_U'!AH61 ) -> 0 | AI61: =SUM('0602011_U:0602142_U'!AI61 ) -> 0 | AJ61: =SUM('0602011_U:0602142_U'!AJ61 ) -> 0 | AK61: =SUM(AD61:AJ61) -> 0
A62: Razem grupa 13 | C62: 0 | D62: =SUM(D59:D61) -> 0 | E62: 0 | F62: 0 | G62: 0 | H62: 0 | I62: 0 | J62: 0 | K62: 0 | L62: 0 | M62: 0 | N62: 0 | O62: 0 | P62: 0 | Q62: 0 | R62: 0 | S62: 0 | T62: 0 | U62: 0 | V62: 0 | W62: 0 | X62: 0 | Y62: 0 | Z62: 0 | AA62: 0 | AB62: 0 | AC62: 0 | AD62: 0 | AE62: 0 | AF62: 0 | AG62: 0 | AH62: 0 | AI62: 0 | AJ62: 0 | AK62: 0
A63: 14 | B63: 14.1 | C63: 0 | D63: =SUM('0602011_U:0602142_U'!D63 ) -> 0 | E63: =SUM('0602011_U:0602142_U'!E63 ) -> 0 | F63: =SUM('0602011_U:0602142_U'!F63 ) -> 0 | G63: =SUM('0602011_U:0602142_U'!G63 ) -> 0 | H63: =SUM('0602011_U:0602142_U'!H63 ) -> 0 | I63: =SUM('0602011_U:0602142_U'!I63 ) -> 0 | J63: =SUM('0602011_U:0602142_U'!J63 ) -> 0 | K63: =SUM('0602011_U:0602142_U'!K63 ) -> 0 | L63: =SUM('0602011_U:0602142_U'!L63 ) -> 0 | M63: 0 | N63: =SUM('0602011_U:0602142_U'!N63 ) -> 0 | O63: =SUM('0602011_U:0602142_U'!O63 ) -> 0 | P63: =SUM('0602011_U:0602142_U'!P63 ) -> 0 | Q63: =SUM('0602011_U:0602142_U'!Q63 ) -> 0 | R63: =SUM('0602011_U:0602142_U'!R63 ) -> 0 | S63: =SUM('0602011_U:0602142_U'!S63 ) -> 0 | T63: 0 | U63: =SUM('0602011_U:0602142_U'!U63 ) -> 0 | V63: =SUM('0602011_U:0602142_U'!V63 ) -> 0 | W63: =SUM('0602011_U:0602142_U'!W63 ) -> 0 | X63: =SUM('0602011_U:0602142_U'!X63 ) -> 0 | Y63: =SUM('0602011_U:0602142_U'!Y63 ) -> 0 | Z63: =SUM('0602011_U:0602142_U'!Z63 ) -> 0 | AA63: 0 | AB63: =SUM('0602011_U:0602142_U'!AB63 ) -> 0 | AC63: 0 | AD63: =SUM('0602011_U:0602142_U'!AD63 ) -> 0 | AE63: =SUM('0602011_U:0602142_U'!AE63 ) -> 0 | AF63: =SUM('0602011_U:0602142_U'!AF63 ) -> 0 | AG63: =SUM('0602011_U:0602142_U'!AG63 ) -> 0 | AH63: =SUM('0602011_U:0602142_U'!AH63 ) -> 0 | AI63: =SUM('0602011_U:0602142_U'!AI63 ) -> 0 | AJ63: =SUM('0602011_U:0602142_U'!AJ63 ) -> 0 | AK63: =SUM(AD63:AJ63) -> 0
B64: 14.2 | C64: 0 | D64: =SUM('0602011_U:0602142_U'!D64 ) -> 0 | E64: =SUM('0602011_U:0602142_U'!E64 ) -> 0 | F64: =SUM('0602011_U:0602142_U'!F64 ) -> 0 | G64: =SUM('0602011_U:0602142_U'!G64 ) -> 0 | H64: =SUM('0602011_U:0602142_U'!H64 ) -> 0 | I64: =SUM('0602011_U:0602142_U'!I64 ) -> 0 | J64: =SUM('0602011_U:0602142_U'!J64 ) -> 0 | K64: =SUM('0602011_U:0602142_U'!K64 ) -> 0 | L64: =SUM('0602011_U:0602142_U'!L64 ) -> 0 | M64: 0 | N64: =SUM('0602011_U:0602142_U'!N64 ) -> 0 | O64: =SUM('0602011_U:0602142_U'!O64 ) -> 0 | P64: =SUM('0602011_U:0602142_U'!P64 ) -> 0 | Q64: =SUM('0602011_U:0602142_U'!Q64 ) -> 0 | R64: =SUM('0602011_U:0602142_U'!R64 ) -> 0 | S64: =SUM('0602011_U:0602142_U'!S64 ) -> 0 | T64: 0 | U64: =SUM('0602011_U:0602142_U'!U64 ) -> 0 | V64: =SUM('0602011_U:0602142_U'!V64 ) -> 0 | W64: =SUM('0602011_U:0602142_U'!W64 ) -> 0 | X64: =SUM('0602011_U:0602142_U'!X64 ) -> 0 | Y64: =SUM('0602011_U:0602142_U'!Y64 ) -> 0 | Z64: =SUM('0602011_U:0602142_U'!Z64 ) -> 0 | AA64: 0 | AB64: =SUM('0602011_U:0602142_U'!AB64 ) -> 0 | AC64: 0 | AD64: =SUM('0602011_U:0602142_U'!AD64 ) -> 0 | AE64: =SUM('0602011_U:0602142_U'!AE64 ) -> 0 | AF64: =SUM('0602011_U:0602142_U'!AF64 ) -> 0 | AG64: =SUM('0602011_U:0602142_U'!AG64 ) -> 0 | AH64: =SUM('0602011_U:0602142_U'!AH64 ) -> 0 | AI64: =SUM('0602011_U:0602142_U'!AI64 ) -> 0 | AJ64: =SUM('0602011_U:0602142_U'!AJ64 ) -> 0 | AK64: =SUM(AD64:AJ64) -> 0
B65: 14.3 | C65: 0 | D65: =SUM('0602011_U:0602142_U'!D65 ) -> 0 | E65: =SUM('0602011_U:0602142_U'!E65 ) -> 0 | F65: =SUM('0602011_U:0602142_U'!F65 ) -> 0 | G65: =SUM('0602011_U:0602142_U'!G65 ) -> 0 | H65: =SUM('0602011_U:0602142_U'!H65 ) -> 0 | I65: =SUM('0602011_U:0602142_U'!I65 ) -> 0 | J65: =SUM('0602011_U:0602142_U'!J65 ) -> 0 | K65: =SUM('0602011_U:0602142_U'!K65 ) -> 0 | L65: =SUM('0602011_U:0602142_U'!L65 ) -> 0 | M65: 0 | N65: =SUM('0602011_U:0602142_U'!N65 ) -> 0 | O65: =SUM('0602011_U:0602142_U'!O65 ) -> 0 | P65: =SUM('0602011_U:0602142_U'!P65 ) -> 0 | Q65: =SUM('0602011_U:0602142_U'!Q65 ) -> 0 | R65: =SUM('0602011_U:0602142_U'!R65 ) -> 0 | S65: =SUM('0602011_U:0602142_U'!S65 ) -> 0 | T65: 0 | U65: =SUM('0602011_U:0602142_U'!U65 ) -> 0 | V65: =SUM('0602011_U:0602142_U'!V65 ) -> 0 | W65: =SUM('0602011_U:0602142_U'!W65 ) -> 0 | X65: =SUM('0602011_U:0602142_U'!X65 ) -> 0 | Y65: =SUM('0602011_U:0602142_U'!Y65 ) -> 0 | Z65: =SUM('0602011_U:0602142_U'!Z65 ) -> 0 | AA65: 0 | AB65: =SUM('0602011_U:0602142_U'!AB65 ) -> 0 | AC65: 0 | AD65: =SUM('0602011_U:0602142_U'!AD65 ) -> 0 | AE65: =SUM('0602011_U:0602142_U'!AE65 ) -> 0 | AF65: =SUM('0602011_U:0602142_U'!AF65 ) -> 0 | AG65: =SUM('0602011_U:0602142_U'!AG65 ) -> 0 | AH65: =SUM('0602011_U:0602142_U'!AH65 ) -> 0 | AI65: =SUM('0602011_U:0602142_U'!AI65 ) -> 0 | AJ65: =SUM('0602011_U:0602142_U'!AJ65 ) -> 0 | AK65: =SUM(AD65:AJ65) -> 0
B66: 14.4 | C66: 0 | D66: =SUM('0602011_U:0602142_U'!D66 ) -> 0 | E66: =SUM('0602011_U:0602142_U'!E66 ) -> 0 | F66: =SUM('0602011_U:0602142_U'!F66 ) -> 0 | G66: =SUM('0602011_U:0602142_U'!G66 ) -> 0 | H66: =SUM('0602011_U:0602142_U'!H66 ) -> 0 | I66: =SUM('0602011_U:0602142_U'!I66 ) -> 0 | J66: =SUM('0602011_U:0602142_U'!J66 ) -> 0 | K66: =SUM('0602011_U:0602142_U'!K66 ) -> 0 | L66: =SUM('0602011_U:0602142_U'!L66 ) -> 0 | M66: 0 | N66: =SUM('0602011_U:0602142_U'!N66 ) -> 0 | O66: =SUM('0602011_U:0602142_U'!O66 ) -> 0 | P66: =SUM('0602011_U:0602142_U'!P66 ) -> 0 | Q66: =SUM('0602011_U:0602142_U'!Q66 ) -> 0 | R66: =SUM('0602011_U:0602142_U'!R66 ) -> 0 | S66: =SUM('0602011_U:0602142_U'!S66 ) -> 0 | T66: 0 | U66: =SUM('0602011_U:0602142_U'!U66 ) -> 0 | V66: =SUM('0602011_U:0602142_U'!V66 ) -> 0 | W66: =SUM('0602011_U:0602142_U'!W66 ) -> 0 | X66: =SUM('0602011_U:0602142_U'!X66 ) -> 0 | Y66: =SUM('0602011_U:0602142_U'!Y66 ) -> 0 | Z66: =SUM('0602011_U:0602142_U'!Z66 ) -> 0 | AA66: 0 | AB66: =SUM('0602011_U:0602142_U'!AB66 ) -> 0 | AC66: 0 | AD66: =SUM('0602011_U:0602142_U'!AD66 ) -> 0 | AE66: =SUM('0602011_U:0602142_U'!AE66 ) -> 0 | AF66: =SUM('0602011_U:0602142_U'!AF66 ) -> 0 | AG66: =SUM('0602011_U:0602142_U'!AG66 ) -> 0 | AH66: =SUM('0602011_U:0602142_U'!AH66 ) -> 0 | AI66: =SUM('0602011_U:0602142_U'!AI66 ) -> 0 | AJ66: =SUM('0602011_U:0602142_U'!AJ66 ) -> 0 | AK66: =SUM(AD66:AJ66) -> 0
A67: Razem grupa 14 | C67: 0 | D67: =SUM(D63:D66) -> 0 | E67: 0 | F67: 0 | G67: 0 | H67: 0 | I67: 0 | J67: 0 | K67: 0 | L67: 0 | M67: 0 | N67: 0 | O67: 0 | P67: 0 | Q67: 0 | R67: 0 | S67: 0 | T67: 0 | U67: 0 | V67: 0 | W67: 0 | X67: 0 | Y67: 0 | Z67: 0 | AA67: 0 | AB67: 0 | AC67: 0 | AD67: 0 | AE67: 0 | AF67: 0 | AG67: 0 | AH67: 0 | AI67: 0 | AJ67: 0 | AK67: 0
A68: 15 | B68: 15.1 | C68: 204 | D68: =SUM('0602011_U:0602142_U'!D68 ) -> 0 | E68: =SUM('0602011_U:0602142_U'!E68 ) -> 0 | F68: =SUM('0602011_U:0602142_U'!F68 ) -> 0 | G68: =SUM('0602011_U:0602142_U'!G68 ) -> 0 | H68: =SUM('0602011_U:0602142_U'!H68 ) -> 92 | I68: =SUM('0602011_U:0602142_U'!I68 ) -> 76 | J68: =SUM('0602011_U:0602142_U'!J68 ) -> 9 | K68: =SUM('0602011_U:0602142_U'!K68 ) -> 1 | L68: =SUM('0602011_U:0602142_U'!L68 ) -> 0 | M68: 178 | N68: =SUM('0602011_U:0602142_U'!N68 ) -> 0 | O68: =SUM('0602011_U:0602142_U'!O68 ) -> 0 | P68: =SUM('0602011_U:0602142_U'!P68 ) -> 3 | Q68: =SUM('0602011_U:0602142_U'!Q68 ) -> 1 | R68: =SUM('0602011_U:0602142_U'!R68 ) -> 3 | S68: =SUM('0602011_U:0602142_U'!S68 ) -> 3 | T68: 10 | U68: =SUM('0602011_U:0602142_U'!U68 ) -> 0 | V68: =SUM('0602011_U:0602142_U'!V68 ) -> 0 | W68: =SUM('0602011_U:0602142_U'!W68 ) -> 1 | X68: =SUM('0602011_U:0602142_U'!X68 ) -> 1 | Y68: =SUM('0602011_U:0602142_U'!Y68 ) -> 2 | Z68: =SUM('0602011_U:0602142_U'!Z68 ) -> 2 | AA68: 6 | AB68: =SUM('0602011_U:0602142_U'!AB68 ) -> 0 | AC68: 194 | AD68: =SUM('0602011_U:0602142_U'!AD68 ) -> 0 | AE68: =SUM('0602011_U:0602142_U'!AE68 ) -> 0 | AF68: =SUM('0602011_U:0602142_U'!AF68 ) -> 0 | AG68: =SUM('0602011_U:0602142_U'!AG68 ) -> 0 | AH68: =SUM('0602011_U:0602142_U'!AH68 ) -> 10 | AI68: =SUM('0602011_U:0602142_U'!AI68 ) -> 0 | AJ68: =SUM('0602011_U:0602142_U'!AJ68 ) -> 0 | AK68: =SUM(AD68:AJ68) -> 10
B69: 15.2 | C69: 41 | D69: =SUM('0602011_U:0602142_U'!D69 ) -> 0 | E69: =SUM('0602011_U:0602142_U'!E69 ) -> 1 | F69: =SUM('0602011_U:0602142_U'!F69 ) -> 0 | G69: =SUM('0602011_U:0602142_U'!G69 ) -> 0 | H69: =SUM('0602011_U:0602142_U'!H69 ) -> 0 | I69: =SUM('0602011_U:0602142_U'!I69 ) -> 1 | J69: =SUM('0602011_U:0602142_U'!J69 ) -> 2 | K69: =SUM('0602011_U:0602142_U'!K69 ) -> 3 | L69: =SUM('0602011_U:0602142_U'!L69 ) -> 0 | M69: 7 | N69: =SUM('0602011_U:0602142_U'!N69 ) -> 0 | O69: =SUM('0602011_U:0602142_U'!O69 ) -> 0 | P69: =SUM('0602011_U:0602142_U'!P69 ) -> 0 | Q69: =SUM('0602011_U:0602142_U'!Q69 ) -> 1 | R69: =SUM('0602011_U:0602142_U'!R69 ) -> 16 | S69: =SUM('0602011_U:0602142_U'!S69 ) -> 10 | T69: 27 | U69: =SUM('0602011_U:0602142_U'!U69 ) -> 0 | V69: =SUM('0602011_U:0602142_U'!V69 ) -> 0 | W69: =SUM('0602011_U:0602142_U'!W69 ) -> 0 | X69: =SUM('0602011_U:0602142_U'!X69 ) -> 0 | Y69: =SUM('0602011_U:0602142_U'!Y69 ) -> 1 | Z69: =SUM('0602011_U:0602142_U'!Z69 ) -> 1 | AA69: 2 | AB69: =SUM('0602011_U:0602142_U'!AB69 ) -> 0 | AC69: 36 | AD69: =SUM('0602011_U:0602142_U'!AD69 ) -> 0 | AE69: =SUM('0602011_U:0602142_U'!AE69 ) -> 0 | AF69: =SUM('0602011_U:0602142_U'!AF69 ) -> 1 | AG69: =SUM('0602011_U:0602142_U'!AG69 ) -> 0 | AH69: =SUM('0602011_U:0602142_U'!AH69 ) -> 1 | AI69: =SUM('0602011_U:0602142_U'!AI69 ) -> 3 | AJ69: =SUM('0602011_U:0602142_U'!AJ69 ) -> 0 | AK69: =SUM(AD69:AJ69) -> 5
B70: 15.3 | C70: 1354 | D70: =SUM('0602011_U:0602142_U'!D70 ) -> 0 | E70: =SUM('0602011_U:0602142_U'!E70 ) -> 0 | F70: =SUM('0602011_U:0602142_U'!F70 ) -> 6 | G70: =SUM('0602011_U:0602142_U'!G70 ) -> 19 | H70: =SUM('0602011_U:0602142_U'!H70 ) -> 24 | I70: =SUM('0602011_U:0602142_U'!I70 ) -> 35 | J70: =SUM('0602011_U:0602142_U'!J70 ) -> 156 | K70: =SUM('0602011_U:0602142_U'!K70 ) -> 71 | L70: =SUM('0602011_U:0602142_U'!L70 ) -> 0 | M70: 311 | N70: =SUM('0602011_U:0602142_U'!N70 ) -> 0 | O70: =SUM('0602011_U:0602142_U'!O70 ) -> 0 | P70: =SUM('0602011_U:0602142_U'!P70 ) -> 2 | Q70: =SUM('0602011_U:0602142_U'!Q70 ) -> 10 | R70: =SUM('0602011_U:0602142_U'!R70 ) -> 36 | S70: =SUM('0602011_U:0602142_U'!S70 ) -> 9 | T70: 57 | U70: =SUM('0602011_U:0602142_U'!U70 ) -> 0 | V70: =SUM('0602011_U:0602142_U'!V70 ) -> 0 | W70: =SUM('0602011_U:0602142_U'!W70 ) -> 0 | X70: =SUM('0602011_U:0602142_U'!X70 ) -> 9 | Y70: =SUM('0602011_U:0602142_U'!Y70 ) -> 9 | Z70: =SUM('0602011_U:0602142_U'!Z70 ) -> 8 | AA70: 26 | AB70: =SUM('0602011_U:0602142_U'!AB70 ) -> 8 | AC70: 402 | AD70: =SUM('0602011_U:0602142_U'!AD70 ) -> 0 | AE70: =SUM('0602011_U:0602142_U'!AE70 ) -> 0 | AF70: =SUM('0602011_U:0602142_U'!AF70 ) -> 19 | AG70: =SUM('0602011_U:0602142_U'!AG70 ) -> 77 | AH70: =SUM('0602011_U:0602142_U'!AH70 ) -> 266 | AI70: =SUM('0602011_U:0602142_U'!AI70 ) -> 52 | AJ70: =SUM('0602011_U:0602142_U'!AJ70 ) -> 538 | AK70: =SUM(AD70:AJ70) -> 952
A71: Razem grupa 15 | C71: =SUM(C68:C70) -> 1599 | D71: =SUM(D68:D70) -> 0 | E71: 1 | F71: 6 | G71: 19 | H71: 116 | I71: 112 | J71: 167 | K71: 75 | L71: 0 | M71: 496 | N71: 0 | O71: 0 | P71: 5 | Q71: 12 | R71: 55 | S71: 22 | T71: 94 | U71: 0 | V71: 0 | W71: 1 | X71: 10 | Y71: 12 | Z71: 11 | AA71: 34 | AB71: 8 | AC71: 632 | AD71: 0 | AE71: 0 | AF71: 20 | AG71: 77 | AH71: 277 | AI71: 55 | AJ71: 538 | AK71: 967
A72: Ogółem grupy 1-15 | C72: =C71+C67+C62+C58+C53+C49+C47+C45+C41+C38+C34+C29+C25+C23+C18 -> 161338 | D72: =D71+D67+D62+D58+D53+D49+D47+D45+D41+D38+D34+D29+D25+D23+D18 -> 13 | E72: 1439 | F72: 6737 | G72: 13092 | H72: 19571 | I72: 13596 | J72: 11603 | K72: 6860 | L72: 0 | M72: 72911 | N72: 0 | O72: 36 | P72: 1503 | Q72: 5424 | R72: 5036 | S72: 1332 | T72: 13331 | U72: 0 | V72: 6 | W72: 1040 | X72: 3019 | Y72: 2588 | Z72: 1738 | AA72: 8391 | AB72: 325 | AC72: 94958 | AD72: 0 | AE72: 185 | AF72: 4346 | AG72: 10675 | AH72: 20205 | AI72: 2293 | AJ72: 28676 | AK72: 66380

Sheet 0602_B
A1: Województwo: LUBELSKIE (06)
A2: Powiat: biłgorajski (0602)
A5: ="Powiatowe zbiorcze zestawienie danych dotyczących budynków stan na dzień 1 stycznia "&Start!G9 -> Powiatowe zbiorcze zestawienie danych dotyczących budynków stan na dzień 1 stycznia 2017
A7: Numer | C7: Nazwy grup i podgrup rejestrowych | D7: Rodzaj jednostki terytorialnej | E7: Nieruchomość | I7: Rodzaje budynków | AC7: Suma kontrolna* liczby | AD7: Suma kontrolna* wartości
A8: grupy | B8: podgrupy | E8: gruntowa zabudowana GZ | G8: budynkowa B | I8: Budynki mieszkalne | K8: Budynki przemysłowe | M8: Budynki transportu i łączności | O8: Budynki handlowo - usługowe | Q8: Zbiorniki, silosy, budynki magazynowe | S8: Budynki biurowe | U8: Budynki szpitali i zakładów opieki medycznej | W8: Budynki oświaty nauki i kultury oraz budynki sportowe | Y8: Budynki produkcyjno - usługowe i gospodarcze dla rolnictwa | AA8: Inne budynki niemieszkalne
E9: liczba budynków | F9: wartość budynków [tys. zł] | G9: liczba budynków | H9: wartość budynków [tys. zł] | I9: liczba budynków | J9: wartość budynków [tys. zł] | K9: liczba budynków | L9: wartość budynków [tys. zł] | M9: liczba budynków | N9: wartość budynków [tys. zł] | O9: liczba budynków | P9: wartość budynków [tys. zł] | Q9: liczba budynków | R9: wartość budynków [tys. zł] | S9: liczba budynków | T9: wartość budynków [tys. zł] | U9: liczba budynków | V9: wartość budynków [tys. zł] | W9: liczba budynków | X9: wartość budynków [tys. zł] | Y9: liczba budynków | Z9: wartość budynków [tys. zł] | AA9: liczba budynków | AB9: wartość budynków [tys. zł]
A10: 1 | B10: =A10+1 -> 2 | C10: =B10+1 -> 3 | D10: 4 | E10: 5 | F10: 6 | G10: 7 | H10: 8 | I10: 9 | J10: 10 | K10: 11 | L10: 12 | M10: 13 | N10: 14 | O10: 15 | P10: 16 | Q10: 17 | R10: 18 | S10: 19 | T10: 20 | U10: 21 | V10: 22 | W10: 23 | X10: 24 | Y10: 25 | Z10: 26 | AA10: 27 | AB10: 28 | AC10: 29 | AD10: 30
A11: 1 | B11: 1.1 | C11: Agencja Własności Rolnej Skarbu Państwa | D11: M | E11: =SUM('0602011_B:0602142_B'!E11 ) -> 8 | F11: =SUM('0602011_B:0602142_B'!F11 ) -> 0 | G11: =SUM('0602011_B:0602142_B'!G11 ) -> 0 | H11: =SUM('0602011_B:0602142_B'!H11 ) -> 0 | I11: =SUM('0602011_B:0602142_B'!I11 ) -> 0 | J11: =SUM('0602011_B:0602142_B'!J11 ) -> 0 | K11: =SUM('0602011_B:0602142_B'!K11 ) -> 0 | L11: =SUM('0602011_B:0602142_B'!L11 ) -> 0 | M11: =SUM('0602011_B:0602142_B'!M11 ) -> 0 | N11: =SUM('0602011_B:0602142_B'!N11 ) -> 0 | O11: =SUM('0602011_B:0602142_B'!O11 ) -> 1 | P11: =SUM('0602011_B:0602142_B'!P11 ) -> 0 | Q11: =SUM('0602011_B:0602142_B'!Q11 ) -> 0 | R11: =SUM('0602011_B:0602142_B'!R11 ) -> 0 | S11: =SUM('0602011_B:0602142_B'!S11 ) -> 0 | T11: =SUM('0602011_B:0602142_B'!T11 ) -> 0 | U11: =SUM('0602011_B:0602142_B'!U11 ) -> 0 | V11: =SUM('0602011_B:0602142_B'!V11 ) -> 0 | W11: =SUM('0602011_B:0602142_B'!W11 ) -> 0 | X11: =SUM('0602011_B:0602142_B'!X11 ) -> 0 | Y11: =SUM('0602011_B:0602142_B'!Y11 ) -> 0 | Z11: =SUM('0602011_B:0602142_B'!Z11 ) -> 0 | AA11: =SUM('0602011_B:0602142_B'!AA11 ) -> 7 | AB11: =SUM('0602011_B:0602142_B'!AB11 ) -> 0 | AC11: =E11+G11-I11-K11-M11-O11-Q11-S11-U11-W11-Y11-AA11 -> 0 | AD11: =F11+H11-J11-L11-N11-P11-R11-T11-V11-X11-Z11-AB11 -> 0
D12: W | E12: =SUM('0602011_B:0602142_B'!E12 ) -> 12 | F12: =SUM('0602011_B:0602142_B'!F12 ) -> 0 | G12: =SUM('0602011_B:0602142_B'!G12 ) -> 0 | H12: =SUM('0602011_B:0602142_B'!H12 ) -> 0 | I12: =SUM('0602011_B:0602142_B'!I12 ) -> 4 | J12: =SUM('0602011_B:0602142_B'!J12 ) -> 0 | K12: =SUM('0602011_B:0602142_B'!K12 ) -> 0 | L12: =SUM('0602011_B:0602142_B'!L12 ) -> 0 | M12: =SUM('0602011_B:0602142_B'!M12 ) -> 0 | N12: =SUM('0602011_B:0602142_B'!N12 ) -> 0 | O12: =SUM('0602011_B:0602142_B'!O12 ) -> 0 | P12: =SUM('0602011_B:0602142_B'!P12 ) -> 0 | Q12: =SUM('0602011_B:0602142_B'!Q12 ) -> 0 | R12: =SUM('0602011_B:0602142_B'!R12 ) -> 0 | S12: =SUM('0602011_B:0602142_B'!S12 ) -> 0 | T12: =SUM('0602011_B:0602142_B'!T12 ) -> 0 | U12: =SUM('0602011_B:0602142_B'!U12 ) -> 0 | V12: =SUM('0602011_B:0602142_B'!V12 ) -> 0 | W12: =SUM('0602011_B:0602142_B'!W12 ) -> 0 | X12: =SUM('0602011_B:0602142_B'!X12 ) -> 0 | Y12: =SUM('0602011_B:0602142_B'!Y12 ) -> 7 | Z12: =SUM('0602011_B:0602142_B'!Z12 ) -> 0 | AA12: =SUM('0602011_B:0602142_B'!AA12 ) -> 1 | AB12: =SUM('0602011_B:0602142_B'!AB12 ) -> 0 | AC12: =E12+G12-I12-K12-M12-O12-Q12-S12-U12-W12-Y12-AA12 -> 0 | AD12: 0
D13: Razem | E13: =E11+E12 -> 20 | F13: =F11+F12 -> 0 | G13: =G11+G12 -> 0 | H13: 0 | I13: 4 | J13: 0 | K13: 0 | L13: 0 | M13: 0 | N13: 0 | O13: 1 | P13: 0 | Q13: 0 | R13: 0 | S13: 0 | T13: 0 | U13: =U11+U12 -> 0 | V13: =V11+V12 -> 0 | W13: 0 | X13: =X11+X12 -> 0 | Y13: 7 | Z13: 0 | AA13: 8 | AB13: 0 | AC13: 0 | AD13: 0
B14: 1.2 | C14: Państwowe Gospodarstwa Leśne Lasy Państwowe | D14: M | E14: =SUM('0602011_B:0602142_B'!E14 ) -> 12 | F14: =SUM('0602011_B:0602142_B'!F14 ) -> 0 | G14: =SUM('0602011_B:0602142_B'!G14 ) -> 0 | H14: =SUM('0602011_B:0602142_B'!H14 ) -> 0 | I14: =SUM('0602011_B:0602142_B'!I14 ) -> 1 | J14: =SUM('0602011_B:0602142_B'!J14 ) -> 0 | K14: =SUM('0602011_B:0602142_B'!K14 ) -> 0 | L14: =SUM('0602011_B:0602142_B'!L14 ) -> 0 | M14: =SUM('0602011_B:0602142_B'!M14 ) -> 1 | N14: =SUM('0602011_B:0602142_B'!N14 ) -> 0 | O14: =SUM('0602011_B:0602142_B'!O14 ) -> 0 | P14: =SUM('0602011_B:0602142_B'!P14 ) -> 0 | Q14: =SUM('0602011_B:0602142_B'!Q14 ) -> 2 | R14: =SUM('0602011_B:0602142_B'!R14 ) -> 0 | S14: =SUM('0602011_B:0602142_B'!S14 ) -> 2 | T14: =SUM('0602011_B:0602142_B'!T14 ) -> 0 | U14: =SUM('0602011_B:0602142_B'!U14 ) -> 0 | V14: =SUM('0602011_B:0602142_B'!V14 ) -> 0 | W14: =SUM('0602011_B:0602142_B'!W14 ) -> 0 | X14: =SUM('0602011_B:0602142_B'!X14 ) -> 0 | Y14: =SUM('0602011_B:0602142_B'!Y14 ) -> 2 | Z14: =SUM('0602011_B:0602142_B'!Z14 ) -> 0 | AA14: =SUM('0602011_B:0602142_B'!AA14 ) -> 4 | AB14: =SUM('0602011_B:0602142_B'!AB14 ) -> 0 | AC14: 0 | AD14: 0
D15: W | E15: =SUM('0602011_B:0602142_B'!E15 ) -> 3 | F15: =SUM('0602011_B:0602142_B'!F15 ) -> 0 | G15: =SUM('0602011_B:0602142_B'!G15 ) -> 0 | H15: =SUM('0602011_B:0602142_B'!H15 ) -> 0 | I15: =SUM('0602011_B:0602142_B'!I15 ) -> 1 | J15: =SUM('0602011_B:0602142_B'!J15 ) -> 0 | K15: =SUM('0602011_B:0602142_B'!K15 ) -> 0 | L15: =SUM('0602011_B:0602142_B'!L15 ) -> 0 | M15: =SUM('0602011_B:0602142_B'!M15 ) -> 0 | N15: =SUM('0602011_B:0602142_B'!N15 ) -> 0 | O15: =SUM('0602011_B:0602142_B'!O15 ) -> 0 | P15: =SUM('0602011_B:0602142_B'!P15 ) -> 0 | Q15: =SUM('0602011_B:0602142_B'!Q15 ) -> 0 | R15: =SUM('0602011_B:0602142_B'!R15 ) -> 0 | S15: =SUM('0602011_B:0602142_B'!S15 ) -> 0 | T15: =SUM('0602011_B:0602142_B'!T15 ) -> 0 | U15: =SUM('0602011_B:0602142_B'!U15 ) -> 0 | V15: =SUM('0602011_B:0602142_B'!V15 ) -> 0 | W15: =SUM('0602011_B:0602142_B'!W15 ) -> 0 | X15: =SUM('0602011_B:0602142_B'!X15 ) -> 0 | Y15: =SUM('0602011_B:0602142_B'!Y15 ) -> 1 | Z15: =SUM('0602011_B:0602142_B'!Z15 ) -> 0 | AA15: =SUM('0602011_B:0602142_B'!AA15 ) -> 1 | AB15: =SUM('0602011_B:0602142_B'!AB15 ) -> 0 | AC15: 0 | AD15: 0
D16: Razem | E16: =E14+E15 -> 15 | F16: =F14+F15 -> 0 | G16: 0 | H16: 0 | I16: 2 | J16: 0 | K16: 0 | L16: 0 | M16: 1 | N16: 0 | O16: 0 | P16: 0 | Q16: 2 | R16: 0 | S16: 2 | T16: 0 | U16: =U14+U15 -> 0 | V16: =V14+V15 -> 0 | W16: 0 | X16: 0 | Y16: 3 | Z16: 0 | AA16: 5 | AB16: 0 | AC16: 0 | AD16: 0
B17: 1.3 | C17: Państwowe jedn. organ. sprawujące na podstawie ustawy o gosp. nieruchom. trwały zarząd nad nieruchomościami Skarbu Państwa | D17: M | E17: =SUM('0602011_B:0602142_B'!E17 ) -> 53 | F17: =SUM('0602011_B:0602142_B'!F17 ) -> 0 | G17: =SUM('0602011_B:0602142_B'!G17 ) -> 0 | H17: =SUM('0602011_B:0602142_B'!H17 ) -> 0 | I17: =SUM('0602011_B:0602142_B'!I17 ) -> 1 | J17: =SUM('0602011_B:0602142_B'!J17 ) -> 0 | K17: =SUM('0602011_B:0602142_B'!K17 ) -> 0 | L17: =SUM('0602011_B:0602142_B'!L17 ) -> 0 | M17: =SUM('0602011_B:0602142_B'!M17 ) -> 13 | N17: =SUM('0602011_B:0602142_B'!N17 ) -> 0 | O17: =SUM('0602011_B:0602142_B'!O17 ) -> 1 | P17: =SUM('0602011_B:0602142_B'!P17 ) -> 0 | Q17: =SUM('0602011_B:0602142_B'!Q17 ) -> 1 | R17: =SUM('0602011_B:0602142_B'!R17 ) -> 0 | S17: =SUM('0602011_B:0602142_B'!S17 ) -> 9 | T17: =SUM('0602011_B:0602142_B'!T17 ) -> 0 | U17: =SUM('0602011_B:0602142_B'!U17 ) -> 0 | V17: =SUM('0602011_B:0602142_B'!V17 ) -> 0 | W17: =SUM('0602011_B:0602142_B'!W17 ) -> 9 | X17: =SUM('0602011_B:0602142_B'!X17 ) -> 0 | Y17: =SUM('0602011_B:0602142_B'!Y17 ) -> 0 | Z17: =SUM('0602011_B:0602142_B'!Z17 ) -> 0 | AA17: =SUM('0602011_B:0602142_B'!AA17 ) -> 19 | AB17: =SUM('0602011_B:0602142_B'!AB17 ) -> 0 | AC17: 0 | AD17: 0
D18: W | E18: =SUM('0602011_B:0602142_B'!E18 ) -> 12 | F18: =SUM('0602011_B:0602142_B'!F18 ) -> 0 | G18: =SUM('0602011_B:0602142_B'!G18 ) -> 0 | H18: =SUM('0602011_B:0602142_B'!H18 ) -> 0 | I18: =SUM('0602011_B:0602142_B'!I18 ) -> 0 | J18: =SUM('0602011_B:0602142_B'!J18 ) -> 0 | K18: =SUM('0602011_B:0602142_B'!K18 ) -> 0 | L18: =SUM('0602011_B:0602142_B'!L18 ) -> 0 | M18: =SUM('0602011_B:0602142_B'!M18 ) -> 0 | N18: =SUM('0602011_B:0602142_B'!N18 ) -> 0 | O18: =SUM('0602011_B:0602142_B'!O18 ) -> 0 | P18: =SUM('0602011_B:0602142_B'!P18 ) -> 0 | Q18: =SUM('0602011_B:0602142_B'!Q18 ) -> 0 | R18: =SUM('0602011_B:0602142_B'!R18 ) -> 0 | S18: =SUM('0602011_B:0602142_B'!S18 ) -> 0 | T18: =SUM('0602011_B:0602142_B'!T18 ) -> 0 | U18: =SUM('0602011_B:0602142_B'!U18 ) -> 0 | V18: =SUM('0602011_B:0602142_B'!V18 ) -> 0 | W18: =SUM('0602011_B:0602142_B'!W18 ) -> 2 | X18: =SUM('0602011_B:0602142_B'!X18 ) -> 0 | Y18: =SUM('0602011_B:0602142_B'!Y18 ) -> 6 | Z18: =SUM('0602011_B:0602142_B'!Z18 ) -> 0 | AA18: =SUM('0602011_B:0602142_B'!AA18 ) -> 4 | AB18: =SUM('0602011_B:0602142_B'!AB18 ) -> 0 | AC18: 0 | AD18: 0
D19: Razem | E19: =E17+E18 -> 65 | F19: =F17+F18 -> 0 | G19: 0 | H19: 0 | I19: 1 | J19: 0 | K19: 0 | L19: 0 | M19: 13 | N19: 0 | O19: 1 | P19: 0 | Q19: 1 | R19: 0 | S19: 9 | T19: 0 | U19: =U17+U18 -> 0 | V19: =V17+V18 -> 0 | W19: 11 | X19: 0 | Y19: 6 | Z19: 0 | AA19: 23 | AB19: 0 | AC19: 0 | AD19: 0
B20: 1.4 | C20: Organy administracji publicznej gospod. zasobem nieruchomości Skarbu Państwa, z wyłączeniem nieruchomości przekazanych w trwały zarząd (przez które należy rozumieć nieruchomości gruntowe zabudowane lub nieruchomości budynkowe) | D20: M | E20: =SUM('0602011_B:0602142_B'!E20 ) -> 3 | F20: =SUM('0602011_B:0602142_B'!F20 ) -> 0 | G20: =SUM('0602011_B:0602142_B'!G20 ) -> 0 | H20: =SUM('0602011_B:0602142_B'!H20 ) -> 0 | I20: =SUM('0602011_B:0602142_B'!I20 ) -> 0 | J20: =SUM('0602011_B:0602142_B'!J20 ) -> 0 | K20: =SUM('0602011_B:0602142_B'!K20 ) -> 0 | L20: =SUM('0602011_B:0602142_B'!L20 ) -> 0 | M20: =SUM('0602011_B:0602142_B'!M20 ) -> 0 | N20: =SUM('0602011_B:0602142_B'!N20 ) -> 0 | O20: =SUM('0602011_B:0602142_B'!O20 ) -> 0 | P20: =SUM('0602011_B:0602142_B'!P20 ) -> 0 | Q20: =SUM('0602011_B:0602142_B'!Q20 ) -> 0 | R20: =SUM('0602011_B:0602142_B'!R20 ) -> 0 | S20: =SUM('0602011_B:0602142_B'!S20 ) -> 0 | T20: =SUM('0602011_B:0602142_B'!T20 ) -> 0 | U20: =SUM('0602011_B:0602142_B'!U20 ) -> 1 | V20: =SUM('0602011_B:0602142_B'!V20 ) -> 0 | W20: =SUM('0602011_B:0602142_B'!W20 ) -> 0 | X20: =SUM('0602011_B:0602142_B'!X20 ) -> 0 | Y20: =SUM('0602011_B:0602142_B'!Y20 ) -> 0 | Z20: =SUM('0602011_B:0602142_B'!Z20 ) -> 0 | AA20: =SUM('0602011_B:0602142_B'!AA20 ) -> 2 | AB20: =SUM('0602011_B:0602142_B'!AB20 ) -> 0 | AC20: 0 | AD20: 0
D21: W | E21: =SUM('0602011_B:0602142_B'!E21 ) -> 0 | F21: =SUM('0602011_B:0602142_B'!F21 ) -> 0 | G21: =SUM('0602011_B:0602142_B'!G21 ) -> 0 | H21: =SUM('0602011_B:0602142_B'!H21 ) -> 0 | I21: =SUM('0602011_B:0602142_B'!I21 ) -> 0 | J21: =SUM('0602011_B:0602142_B'!J21 ) -> 0 | K21: =SUM('0602011_B:0602142_B'!K21 ) -> 0 | L21: =SUM('0602011_B:0602142_B'!L21 ) -> 0 | M21: =SUM('0602011_B:0602142_B'!M21 ) -> 0 | N21: =SUM('0602011_B:0602142_B'!N21 ) -> 0 | O21: =SUM('0602011_B:0602142_B'!O21 ) -> 0 | P21: =SUM('0602011_B:0602142_B'!P21 ) -> 0 | Q21: =SUM('0602011_B:0602142_B'!Q21 ) -> 0 | R21: =SUM('0602011_B:0602142_B'!R21 ) -> 0 | S21: =SUM('0602011_B:0602142_B'!S21 ) -> 0 | T21: =SUM('0602011_B:0602142_B'!T21 ) -> 0 | U21: =SUM('0602011_B:0602142_B'!U21 ) -> 0 | V21: =SUM('0602011_B:0602142_B'!V21 ) -> 0 | W21: =SUM('0602011_B:0602142_B'!W21 ) -> 0 | X21: =SUM('0602011_B:0602142_B'!X21 ) -> 0 | Y21: =SUM('0602011_B:0602142_B'!Y21 ) -> 0 | Z21: =SUM('0602011_B:0602142_B'!Z21 ) -> 0 | AA21: =SUM('0602011_B:0602142_B'!AA21 ) -> 0 | AB21: =SUM('0602011_B:0602142_B'!AB21 ) -> 0 | AC21: 0 | AD21: 0
D22: Razem | E22: =E20+E21 -> 3 | F22: =F20+F21 -> 0 | G22: 0 | H22: 0 | I22: 0 | J22: 0 | K22: 0 | L22: 0 | M22: 0 | N22: 0 | O22: 0 | P22: 0 | Q22: 0 | R22: 0 | S22: 0 | T22: 0 | U22: =U20+U21 -> 1 | V22: =V20+V21 -> 0 | W22: 0 | X22: 0 | Y22: 0 | Z22: 0 | AA22: 2 | AB22: 0 | AC22: 0 | AD22: 0
B23: 1.5 | C23: Agencja Mienia Wojskowego | D23: M | E23: =SUM('0602011_B:0602142_B'!E23 ) -> 0 | F23: =SUM('0602011_B:0602142_B'!F23 ) -> 0 | G23: =SUM('0602011_B:0602142_B'!G23 ) -> 0 | H23: =SUM('0602011_B:0602142_B'!H23 ) -> 0 | I23: =SUM('0602011_B:0602142_B'!I23 ) -> 0 | J23: =SUM('0602011_B:0602142_B'!J23 ) -> 0 | K23: =SUM('0602011_B:0602142_B'!K23 ) -> 0 | L23: =SUM('0602011_B:0602142_B'!L23 ) -> 0 | M23: =SUM('0602011_B:0602142_B'!M23 ) -> 0 | N23: =SUM('0602011_B:0602142_B'!N23 ) -> 0 | O23: =SUM('0602011_B:0602142_B'!O23 ) -> 0 | P23: =SUM('0602011_B:0602142_B'!P23 ) -> 0 | Q23: =SUM('0602011_B:0602142_B'!Q23 ) -> 0 | R23: =SUM('0602011_B:0602142_B'!R23 ) -> 0 | S23: =SUM('0602011_B:0602142_B'!S23 ) -> 0 | T23: =SUM('0602011_B:0602142_B'!T23 ) -> 0 | U23: =SUM('0602011_B:0602142_B'!U23 ) -> 0 | V23: =SUM('0602011_B:0602142_B'!V23 ) -> 0 | W23: =SUM('0602011_B:0602142_B'!W23 ) -> 0 | X23: =SUM('0602011_B:0602142_B'!X23 ) -> 0 | Y23: =SUM('0602011_B:0602142_B'!Y23 ) -> 0 | Z23: =SUM('0602011_B:0602142_B'!Z23 ) -> 0 | AA23: =SUM('0602011_B:0602142_B'!AA23 ) -> 0 | AB23: =SUM('0602011_B:0602142_B'!AB23 ) -> 0 | AC23: 0 | AD23: 0
D24: W | E24: =SUM('0602011_B:0602142_B'!E24 ) -> 0 | F24: =SUM('0602011_B:0602142_B'!F24 ) -> 0 | G24: =SUM('0602011_B:0602142_B'!G24 ) -> 0 | H24: =SUM('0602011_B:0602142_B'!H24 ) -> 0 | I24: =SUM('0602011_B:0602142_B'!I24 ) -> 0 | J24: =SUM('0602011_B:0602142_B'!J24 ) -> 0 | K24: =SUM('0602011_B:0602142_B'!K24 ) -> 0 | L24: =SUM('0602011_B:0602142_B'!L24 ) -> 0 | M24: =SUM('0602011_B:0602142_B'!M24 ) -> 0 | N24: =SUM('0602011_B:0602142_B'!N24 ) -> 0 | O24: =SUM('0602011_B:0602142_B'!O24 ) -> 0 | P24: =SUM('0602011_B:0602142_B'!P24 ) -> 0 | Q24: =SUM('0602011_B:0602142_B'!Q24 ) -> 0 | R24: =SUM('0602011_B:0602142_B'!R24 ) -> 0 | S24: =SUM('0602011_B:0602142_B'!S24 ) -> 0 | T24: =SUM('0602011_B:0602142_B'!T24 ) -> 0 | U24: =SUM('0602011_B:0602142_B'!U24 ) -> 0 | V24: =SUM('0602011_B:0602142_B'!V24 ) -> 0 | W24: =SUM('0602011_B:0602142_B'!W24 ) -> 0 | X24: =SUM('0602011_B:0602142_B'!X24 ) -> 0 | Y24: =SUM('0602011_B:0602142_B'!Y24 ) -> 0 | Z24: =SUM('0602011_B:0602142_B'!Z24 ) -> 0 | AA24: =SUM('0602011_B:0602142_B'!AA24 ) -> 0 | AB24: =SUM('0602011_B:0602142_B'!AB24 ) -> 0 | AC24: 0 | AD24: 0
D25: Razem | E25: =E23+E24 -> 0 | F25: =F23+F24 -> 0 | G25: 0 | H25: 0 | I25: 0 | J25: 0 | K25: 0 | L25: 0 | M25: 0 | N25: 0 | O25: 0 | P25: 0 | Q25: 0 | R25: 0 | S25: 0 | T25: 0 | U25: =U23+U24 -> 0 | V25: =V23+V24 -> 0 | W25: 0 | X25: 0 | Y25: 0 | Z25: 0 | AA25: 0 | AB25: 0 | AC25: 0 | AD25: 0
B26: 1.6 | C26: Wojskowa Agencja Mieszkaniowa | D26: M | E26: =SUM('0602011_B:0602142_B'!E26 ) -> 0 | F26: =SUM('0602011_B:0602142_B'!F26 ) -> 0 | G26: =SUM('0602011_B:0602142_B'!G26 ) -> 0 | H26: =SUM('0602011_B:0602142_B'!H26 ) -> 0 | I26: =SUM('0602011_B:0602142_B'!I26 ) -> 0 | J26: =SUM('0602011_B:0602142_B'!J26 ) -> 0 | K26: =SUM('0602011_B:0602142_B'!K26 ) -> 0 | L26: =SUM('0602011_B:0602142_B'!L26 ) -> 0 | M26: =SUM('0602011_B:0602142_B'!M26 ) -> 0 | N26: =SUM('0602011_B:0602142_B'!N26 ) -> 0 | O26: =SUM('0602011_B:0602142_B'!O26 ) -> 0 | P26: =SUM('0602011_B:0602142_B'!P26 ) -> 0 | Q26: =SUM('0602011_B:0602142_B'!Q26 ) -> 0 | R26: =SUM('0602011_B:0602142_B'!R26 ) -> 0 | S26: =SUM('0602011_B:0602142_B'!S26 ) -> 0 | T26: =SUM('0602011_B:0602142_B'!T26 ) -> 0 | U26: =SUM('0602011_B:0602142_B'!U26 ) -> 0 | V26: =SUM('0602011_B:0602142_B'!V26 ) -> 0 | W26: =SUM('0602011_B:0602142_B'!W26 ) -> 0 | X26: =SUM('0602011_B:0602142_B'!X26 ) -> 0 | Y26: =SUM('0602011_B:0602142_B'!Y26 ) -> 0 | Z26: =SUM('0602011_B:0602142_B'!Z26 ) -> 0 | AA26: =SUM('0602011_B:0602142_B'!AA26 ) -> 0 | AB26: =SUM('0602011_B:0602142_B'!AB26 ) -> 0 | AC26: 0 | AD26: 0
D27: W | E27: =SUM('0602011_B:0602142_B'!E27 ) -> 0 | F27: =SUM('0602011_B:0602142_B'!F27 ) -> 0 | G27: =SUM('0602011_B:0602142_B'!G27 ) -> 0 | H27: =SUM('0602011_B:0602142_B'!H27 ) -> 0 | I27: =SUM('0602011_B:0602142_B'!I27 ) -> 0 | J27: =SUM('0602011_B:0602142_B'!J27 ) -> 0 | K27: =SUM('0602011_B:0602142_B'!K27 ) -> 0 | L27: =SUM('0602011_B:0602142_B'!L27 ) -> 0 | M27: =SUM('0602011_B:0602142_B'!M27 ) -> 0 | N27: =SUM('0602011_B:0602142_B'!N27 ) -> 0 | O27: =SUM('0602011_B:0602142_B'!O27 ) -> 0 | P27: =SUM('0602011_B:0602142_B'!P27 ) -> 0 | Q27: =SUM('0602011_B:0602142_B'!Q27 ) -> 0 | R27: =SUM('0602011_B:0602142_B'!R27 ) -> 0 | S27: =SUM('0602011_B:0602142_B'!S27 ) -> 0 | T27: =SUM('0602011_B:0602142_B'!T27 ) -> 0 | U27: =SUM('0602011_B:0602142_B'!U27 ) -> 0 | V27: =SUM('0602011_B:0602142_B'!V27 ) -> 0 | W27: =SUM('0602011_B:0602142_B'!W27 ) -> 0 | X27: =SUM('0602011_B:0602142_B'!X27 ) -> 0 | Y27: =SUM('0602011_B:0602142_B'!Y27 ) -> 0 | Z27: =SUM('0602011_B:0602142_B'!Z27 ) -> 0 | AA27: =SUM('0602011_B:0602142_B'!AA27 ) -> 0 | AB27: =SUM('0602011_B:0602142_B'!AB27 ) -> 0 | AC27: 0 | AD27: 0
D28: Razem | E28: =E26+E27 -> 0 | F28: =F26+F27 -> 0 | G28: 0 | H28: 0 | I28: 0 | J28: 0 | K28: 0 | L28: 0 | M28: 0 | N28: 0 | O28: 0 | P28: 0 | Q28: 0 | R28: 0 | S28: 0 | T28: 0 | U28: =U26+U27 -> 0 | V28: =V26+V27 -> 0 | W28: 0 | X28: 0 | Y28: 0 | Z28: 0 | AA28: 0 | AB28: 0 | AC28: 0 | AD28: 0
B29: 1.7 | C29: Organy gospodarujące gruntami Skarbu Państwa pokrytymi wodami powierzchniowymi | D29: M | E29: =SUM('0602011_B:0602142_B'!E29 ) -> 4 | F29: =SUM('0602011_B:0602142_B'!F29 ) -> 0 | G29: =SUM('0602011_B:0602142_B'!G29 ) -> 0 | H29: =SUM('0602011_B:0602142_B'!H29 ) -> 0 | I29: =SUM('0602011_B:0602142_B'!I29 ) -> 0 | J29: =SUM('0602011_B:0602142_B'!J29 ) -> 0 | K29: =SUM('0602011_B:0602142_B'!K29 ) -> 0 | L29: =SUM('0602011_B:0602142_B'!L29 ) -> 0 | M29: =SUM('0602011_B:0602142_B'!M29 ) -> 1 | N29: =SUM('0602011_B:0602142_B'!N29 ) -> 0 | O29: =SUM('0602011_B:0602142_B'!O29 ) -> 0 | P29: =SUM('0602011_B:0602142_B'!P29 ) -> 0 | Q29: =SUM('0602011_B:0602142_B'!Q29 ) -> 0 | R29: =SUM('0602011_B:0602142_B'!R29 ) -> 0 | S29: =SUM('0602011_B:0602142_B'!S29 ) -> 0 | T29: =SUM('0602011_B:0602142_B'!T29 ) -> 0 | U29: =SUM('0602011_B:0602142_B'!U29 ) -> 0 | V29: =SUM('0602011_B:0602142_B'!V29 ) -> 0 | W29: =SUM('0602011_B:0602142_B'!W29 ) -> 0 | X29: =SUM('0602011_B:0602142_B'!X29 ) -> 0 | Y29: =SUM('0602011_B:0602142_B'!Y29 ) -> 0 | Z29: =SUM('0602011_B:0602142_B'!Z29 ) -> 0 | AA29: =SUM('0602011_B:0602142_B'!AA29 ) -> 3 | AB29: =SUM('0602011_B:0602142_B'!AB29 ) -> 0 | AC29: 0 | AD29: 0
D30: W | E30: =SUM('0602011_B:0602142_B'!E30 ) -> 1 | F30: =SUM('0602011_B:0602142_B'!F30 ) -> 0 | G30: =SUM('0602011_B:0602142_B'!G30 ) -> 0 | H30: =SUM('0602011_B:0602142_B'!H30 ) -> 0 | I30: =SUM('0602011_B:0602142_B'!I30 ) -> 0 | J30: =SUM('0602011_B:0602142_B'!J30 ) -> 0 | K30: =SUM('0602011_B:0602142_B'!K30 ) -> 0 | L30: =SUM('0602011_B:0602142_B'!L30 ) -> 0 | M30: =SUM('0602011_B:0602142_B'!M30 ) -> 0 | N30: =SUM('0602011_B:0602142_B'!N30 ) -> 0 | O30: =SUM('0602011_B:0602142_B'!O30 ) -> 0 | P30: =SUM('0602011_B:0602142_B'!P30 ) -> 0 | Q30: =SUM('0602011_B:0602142_B'!Q30 ) -> 0 | R30: =SUM('0602011_B:0602142_B'!R30 ) -> 0 | S30: =SUM('0602011_B:0602142_B'!S30 ) -> 0 | T30: =SUM('0602011_B:0602142_B'!T30 ) -> 0 | U30: =SUM('0602011_B:0602142_B'!U30 ) -> 0 | V30: =SUM('0602011_B:0602142_B'!V30 ) -> 0 | W30: =SUM('0602011_B:0602142_B'!W30 ) -> 0 | X30: =SUM('0602011_B:0602142_B'!X30 ) -> 0 | Y30: =SUM('0602011_B:0602142_B'!Y30 ) -> 1 | Z30: =SUM('0602011_B:0602142_B'!Z30 ) -> 0 | AA30: =SUM('0602011_B:0602142_B'!AA30 ) -> 0 | AB30: =SUM('0602011_B:0602142_B'!AB30 ) -> 0 | AC30: 0 | AD30: 0
D31: Razem | E31: =E29+E30 -> 5 | F31: =F29+F30 -> 0 | G31: 0 | H31: 0 | I31: 0 | J31: 0 | K31: 0 | L31: 0 | M31: 1 | N31: 0 | O31: 0 | P31: 0 | Q31: 0 | R31: 0 | S31: 0 | T31: 0 | U31: =U29+U30 -> 0 | V31: =V29+V30 -> 0 | W31: 0 | X31: 0 | Y31: 1 | Z31: 0 | AA31: 3 | AB31: 0 | AC31: 0 | AD31: 0
B32: 1.8 | C32: Organy zarządzające drogami publicznymi Skarbu Państwa | D32: M | E32: =SUM('0602011_B:0602142_B'!E32 ) -> 0 | F32: =SUM('0602011_B:0602142_B'!F32 ) -> 0 | G32: =SUM('0602011_B:0602142_B'!G32 ) -> 0 | H32: =SUM('0602011_B:0602142_B'!H32 ) -> 0 | I32: =SUM('0602011_B:0602142_B'!I32 ) -> 0 | J32: =SUM('0602011_B:0602142_B'!J32 ) -> 0 | K32: =SUM('0602011_B:0602142_B'!K32 ) -> 0 | L32: =SUM('0602011_B:0602142_B'!L32 ) -> 0 | M32: =SUM('0602011_B:0602142_B'!M32 ) -> 0 | N32: =SUM('0602011_B:0602142_B'!N32 ) -> 0 | O32: =SUM('0602011_B:0602142_B'!O32 ) -> 0 | P32: =SUM('0602011_B:0602142_B'!P32 ) -> 0 | Q32: =SUM('0602011_B:0602142_B'!Q32 ) -> 0 | R32: =SUM('0602011_B:0602142_B'!R32 ) -> 0 | S32: =SUM('0602011_B:0602142_B'!S32 ) -> 0 | T32: =SUM('0602011_B:0602142_B'!T32 ) -> 0 | U32: =SUM('0602011_B:0602142_B'!U32 ) -> 0 | V32: =SUM('0602011_B:0602142_B'!V32 ) -> 0 | W32: =SUM('0602011_B:0602142_B'!W32 ) -> 0 | X32: =SUM('0602011_B:0602142_B'!X32 ) -> 0 | Y32: =SUM('0602011_B:0602142_B'!Y32 ) -> 0 | Z32: =SUM('0602011_B:0602142_B'!Z32 ) -> 0 | AA32: =SUM('0602011_B:0602142_B'!AA32 ) -> 0 | AB32: =SUM('0602011_B:0602142_B'!AB32 ) -> 0 | AC32: 0 | AD32: 0
D33: W | E33: =SUM('0602011_B:0602142_B'!E33 ) -> 0 | F33: =SUM('0602011_B:0602142_B'!F33 ) -> 0 | G33: =SUM('0602011_B:0602142_B'!G33 ) -> 0 | H33: =SUM('0602011_B:0602142_B'!H33 ) -> 0 | I33: =SUM('0602011_B:0602142_B'!I33 ) -> 0 | J33: =SUM('0602011_B:0602142_B'!J33 ) -> 0 | K33: =SUM('0602011_B:0602142_B'!K33 ) -> 0 | L33: =SUM('0602011_B:0602142_B'!L33 ) -> 0 | M33: =SUM('0602011_B:0602142_B'!M33 ) -> 0 | N33: =SUM('0602011_B:0602142_B'!N33 ) -> 0 | O33: =SUM('0602011_B:0602142_B'!O33 ) -> 0 | P33: =SUM('0602011_B:0602142_B'!P33 ) -> 0 | Q33: =SUM('0602011_B:0602142_B'!Q33 ) -> 0 | R33: =SUM('0602011_B:0602142_B'!R33 ) -> 0 | S33: =SUM('0602011_B:0602142_B'!S33 ) -> 0 | T33: =SUM('0602011_B:0602142_B'!T33 ) -> 0 | U33: =SUM('0602011_B:0602142_B'!U33 ) -> 0 | V33: =SUM('0602011_B:0602142_B'!V33 ) -> 0 | W33: =SUM('0602011_B:0602142_B'!W33 ) -> 0 | X33: =SUM('0602011_B:0602142_B'!X33 ) -> 0 | Y33: =SUM('0602011_B:0602142_B'!Y33 ) -> 0 | Z33: =SUM('0602011_B:0602142_B'!Z33 ) -> 0 | AA33: =SUM('0602011_B:0602142_B'!AA33 ) -> 0 | AB33: =SUM('0602011_B:0602142_B'!AB33 ) -> 0 | AC33: 0 | AD33: 0
D34: Razem | E34: =E32+E33 -> 0 | F34: =F32+F33 -> 0 | G34: 0 | H34: 0 | I34: 0 | J34: 0 | K34: 0 | L34: 0 | M34: 0 | N34: 0 | O34: 0 | P34: 0 | Q34: 0 | R34: 0 | S34: 0 | T34: 0 | U34: =U32+U33 -> 0 | V34: =V32+V33 -> 0 | W34: =W32+W33 -> 0 | X34: 0 | Y34: 0 | Z34: 0 | AA34: 0 | AB34: 0 | AC34: 0 | AD34: 0
B35: Razem podgrupy 1.1-1.8 | C35: Skarb Państwa z wyłączeniem gruntów przekazanych w użytkowanie wieczyste | D35: M | E35: =SUM(E11,E14,E17,E20,E23,E26,E29,E32) -> 80 | F35: =SUM(F11,F14,F17,F20,F23,F26,F29,F32) -> 0 | G35: =SUM(G11,G14,G17,G20,G23,G26,G29,G32) -> 0 | H35: 0 | I35: 2 | J35: 0 | K35: 0 | L35: 0 | M35: 15 | N35: =SUM(N11,N14,N17,N20,N23,N26,N29,N32) -> 0 | O35: 2 | P35: 0 | Q35: 3 | R35: 0 | S35: 11 | T35: =SUM(T11,T14,T17,T20,T23,T26,T29,T32) -> 0 | U35: 1 | V35: 0 | W35: 9 | X35: =SUM(X11,X14,X17,X20,X23,X26,X29,X32) -> 0 | Y35: 2 | Z35: 0 | AA35: 35 | AB35: =SUM(AB11,AB14,AB17,AB20,AB23,AB26,AB29,AB32) -> 0 | AC35: =E35+G35-I35-K35-M35-O35-Q35-S35-U35-W35-Y35-AA35 -> 0 | AD35: =F35+H35-J35-L35-N35-P35-R35-T35-V35-X35-Z35-AB35 -> 0
D36: W | E36: =SUM(E12,E15,E18,E21,E24,E27,E30,E33) -> 28 | F36: =SUM(F12,F15,F18,F21,F24,F27,F30,F33) -> 0 | G36: 0 | H36: 0 | I36: 5 | J36: 0 | K36: 0 | L36: 0 | M36: 0 | N36: 0 | O36: =SUM(O12,O15,O18,O21,O24,O27,O30,O33) -> 0 | P36: 0 | Q36: 0 | R36: 0 | S36: 0 | T36: 0 | U36: 0 | V36: 0 | W36: 2 | X36: 0 | Y36: 15 | Z36: 0 | AA36: 6 | AB36: 0 | AC36: =E36+G36-I36-K36-M36-O36-Q36-S36-U36-W36-Y36-AA36 -> 0 | AD36: 0
D37: Razem | E37: =SUM(E35,E36) -> 108 | F37: =SUM(F35,F36) -> 0 | G37: 0 | H37: 0 | I37: 7 | J37: 0 | K37: 0 | L37: 0 | M37: =SUM(M35,M36) -> 15 | N37: 0 | O37: 2 | P37: 0 | Q37: 3 | R37: 0 | S37: 11 | T37: 0 | U37: =SUM(U35,U36) -> 1 | V37: =SUM(V35,V36) -> 0 | W37: 11 | X37: 0 | Y37: 17 | Z37: 0 | AA37: 41 | AB37: 0 | AC37: 0 | AD37: 0
A38: 2 | B38: 2.1 | C38: Osoby fizyczne - użytkownicy wieczyści na gruntach Skarbu Państwa | D38: M | E38: =SUM('0602011_B:0602142_B'!E38 ) -> 0 | F38: =SUM('0602011_B:0602142_B'!F38 ) -> 0 | G38: =SUM('0602011_B:0602142_B'!G38 ) -> 0 | H38: =SUM('0602011_B:0602142_B'!H38 ) -> 0 | I38: =SUM('0602011_B:0602142_B'!I38 ) -> 0 | J38: =SUM('0602011_B:0602142_B'!J38 ) -> 0 | K38: =SUM('0602011_B:0602142_B'!K38 ) -> 0 | L38: =SUM('0602011_B:0602142_B'!L38 ) -> 0 | M38: =SUM('0602011_B:0602142_B'!M38 ) -> 0 | N38: =SUM('0602011_B:0602142_B'!N38 ) -> 0 | O38: =SUM('0602011_B:0602142_B'!O38 ) -> 0 | P38: =SUM('0602011_B:0602142_B'!P38 ) -> 0 | Q38: =SUM('0602011_B:0602142_B'!Q38 ) -> 0 | R38: =SUM('0602011_B:0602142_B'!R38 ) -> 0 | S38: =SUM('0602011_B:0602142_B'!S38 ) -> 0 | T38: =SUM('0602011_B:0602142_B'!T38 ) -> 0 | U38: =SUM('0602011_B:0602142_B'!U38 ) -> 0 | V38: =SUM('0602011_B:0602142_B'!V38 ) -> 0 | W38: =SUM('0602011_B:0602142_B'!W38 ) -> 0 | X38: =SUM('0602011_B:0602142_B'!X38 ) -> 0 | Y38: =SUM('0602011_B:0602142_B'!Y38 ) -> 0 | Z38: =SUM('0602011_B:0602142_B'!Z38 ) -> 0 | AA38: =SUM('0602011_B:0602142_B'!AA38 ) -> 0 | AB38: =SUM('0602011_B:0602142_B'!AB38 ) -> 0 | AC38: 0 | AD38: 0
D39: W | E39: =SUM('0602011_B:0602142_B'!E39 ) -> 0 | F39: =SUM('0602011_B:0602142_B'!F39 ) -> 0 | G39: =SUM('0602011_B:0602142_B'!G39 ) -> 0 | H39: =SUM('0602011_B:0602142_B'!H39 ) -> 0 | I39: =SUM('0602011_B:0602142_B'!I39 ) -> 0 | J39: =SUM('0602011_B:0602142_B'!J39 ) -> 0 | K39: =SUM('0602011_B:0602142_B'!K39 ) -> 0 | L39: =SUM('0602011_B:0602142_B'!L39 ) -> 0 | M39: =SUM('0602011_B:0602142_B'!M39 ) -> 0 | N39: =SUM('0602011_B:0602142_B'!N39 ) -> 0 | O39: =SUM('0602011_B:0602142_B'!O39 ) -> 0 | P39: =SUM('0602011_B:0602142_B'!P39 ) -> 0 | Q39: =SUM('0602011_B:0602142_B'!Q39 ) -> 0 | R39: =SUM('0602011_B:0602142_B'!R39 ) -> 0 | S39: =SUM('0602011_B:0602142_B'!S39 ) -> 0 | T39: =SUM('0602011_B:0602142_B'!T39 ) -> 0 | U39: =SUM('0602011_B:0602142_B'!U39 ) -> 0 | V39: =SUM('0602011_B:0602142_B'!V39 ) -> 0 | W39: =SUM('0602011_B:0602142_B'!W39 ) -> 0 | X39: =SUM('0602011_B:0602142_B'!X39 ) -> 0 | Y39: =SUM('0602011_B:0602142_B'!Y39 ) -> 0 | Z39: =SUM('0602011_B:0602142_B'!Z39 ) -> 0 | AA39: =SUM('0602011_B:0602142_B'!AA39 ) -> 0 | AB39: =SUM('0602011_B:0602142_B'!AB39 ) -> 0 | AC39: 0 | AD39: 0
D40: Razem | E40: =E38+E39 -> 0 | F40: =F38+F39 -> 0 | G40: 0 | H40: 0 | I40: 0 | J40: 0 | K40: 0 | L40: 0 | M40: 0 | N40: 0 | O40: 0 | P40: 0 | Q40: 0 | R40: 0 | S40: 0 | T40: 0 | U40: =U38+U39 -> 0 | V40: =V38+V39 -> 0 | W40: 0 | X40: 0 | Y40: 0 | Z40: 0 | AA40: 0 | AB40: 0 | AC40: 0 | AD40: 0
B41: 2.2 | C41: Państwowe osoby prawne - użytkownicy wieczyści na gruntach Skarbu Państwa | D41: M | E41: =SUM('0602011_B:0602142_B'!E41 ) -> 0 | F41: =SUM('0602011_B:0602142_B'!F41 ) -> 0 | G41: =SUM('0602011_B:0602142_B'!G41 ) -> 0 | H41: =SUM('0602011_B:0602142_B'!H41 ) -> 0 | I41: =SUM('0602011_B:0602142_B'!I41 ) -> 0 | J41: =SUM('0602011_B:0602142_B'!J41 ) -> 0 | K41: =SUM('0602011_B:0602142_B'!K41 ) -> 0 | L41: =SUM('0602011_B:0602142_B'!L41 ) -> 0 | M41: =SUM('0602011_B:0602142_B'!M41 ) -> 0 | N41: =SUM('0602011_B:0602142_B'!N41 ) -> 0 | O41: =SUM('0602011_B:0602142_B'!O41 ) -> 0 | P41: =SUM('0602011_B:0602142_B'!P41 ) -> 0 | Q41: =SUM('0602011_B:0602142_B'!Q41 ) -> 0 | R41: =SUM('0602011_B:0602142_B'!R41 ) -> 0 | S41: =SUM('0602011_B:0602142_B'!S41 ) -> 0 | T41: =SUM('0602011_B:0602142_B'!T41 ) -> 0 | U41: =SUM('0602011_B:0602142_B'!U41 ) -> 0 | V41: =SUM('0602011_B:0602142_B'!V41 ) -> 0 | W41: =SUM('0602011_B:0602142_B'!W41 ) -> 0 | X41: =SUM('0602011_B:0602142_B'!X41 ) -> 0 | Y41: =SUM('0602011_B:0602142_B'!Y41 ) -> 0 | Z41: =SUM('0602011_B:0602142_B'!Z41 ) -> 0 | AA41: =SUM('0602011_B:0602142_B'!AA41 ) -> 0 | AB41: =SUM('0602011_B:0602142_B'!AB41 ) -> 0 | AC41: 0 | AD41: 0
D42: W | E42: =SUM('0602011_B:0602142_B'!E42 ) -> 0 | F42: =SUM('0602011_B:0602142_B'!F42 ) -> 0 | G42: =SUM('0602011_B:0602142_B'!G42 ) -> 0 | H42: =SUM('0602011_B:0602142_B'!H42 ) -> 0 | I42: =SUM('0602011_B:0602142_B'!I42 ) -> 0 | J42: =SUM('0602011_B:0602142_B'!J42 ) -> 0 | K42: =SUM('0602011_B:0602142_B'!K42 ) -> 0 | L42: =SUM('0602011_B:0602142_B'!L42 ) -> 0 | M42: =SUM('0602011_B:0602142_B'!M42 ) -> 0 | N42: =SUM('0602011_B:0602142_B'!N42 ) -> 0 | O42: =SUM('0602011_B:0602142_B'!O42 ) -> 0 | P42: =SUM('0602011_B:0602142_B'!P42 ) -> 0 | Q42: =SUM('0602011_B:0602142_B'!Q42 ) -> 0 | R42: =SUM('0602011_B:0602142_B'!R42 ) -> 0 | S42: =SUM('0602011_B:0602142_B'!S42 ) -> 0 | T42: =SUM('0602011_B:0602142_B'!T42 ) -> 0 | U42: =SUM('0602011_B:0602142_B'!U42 ) -> 0 | V42: =SUM('0602011_B:0602142_B'!V42 ) -> 0 | W42: =SUM('0602011_B:0602142_B'!W42 ) -> 0 | X42: =SUM('0602011_B:0602142_B'!X42 ) -> 0 | Y42: =SUM('0602011_B:0602142_B'!Y42 ) -> 0 | Z42: =SUM('0602011_B:0602142_B'!Z42 ) -> 0 | AA42: =SUM('0602011_B:0602142_B'!AA42 ) -> 0 | AB42: =SUM('0602011_B:0602142_B'!AB42 ) -> 0 | AC42: 0 | AD42: 0
D43: Razem | E43: =E41+E42 -> 0 | F43: =F41+F42 -> 0 | G43: 0 | H43: 0 | I43: 0 | J43: 0 | K43: 0 | L43: 0 | M43: 0 | N43: 0 | O43: 0 | P43: 0 | Q43: 0 | R43: 0 | S43: 0 | T43: 0 | U43: =U41+U42 -> 0 | V43: =V41+V42 -> 0 | W43: 0 | X43: 0 | Y43: 0 | Z43: 0 | AA43: 0 | AB43: 0 | AC43: 0 | AD43: 0
B44: 2.3 | C44: Spółdzielnie mieszkaniowe - użytkownicy wieczyści na gruntach Skarbu Państwa | D44: M | E44: =SUM('0602011_B:0602142_B'!E44 ) -> 0 | F44: =SUM('0602011_B:0602142_B'!F44 ) -> 0 | G44: =SUM('0602011_B:0602142_B'!G44 ) -> 0 | H44: =SUM('0602011_B:0602142_B'!H44 ) -> 0 | I44: =SUM('0602011_B:0602142_B'!I44 ) -> 0 | J44: =SUM('0602011_B:0602142_B'!J44 ) -> 0 | K44: =SUM('0602011_B:0602142_B'!K44 ) -> 0 | L44: =SUM('0602011_B:0602142_B'!L44 ) -> 0 | M44: =SUM('0602011_B:0602142_B'!M44 ) -> 0 | N44: =SUM('0602011_B:0602142_B'!N44 ) -> 0 | O44: =SUM('0602011_B:0602142_B'!O44 ) -> 0 | P44: =SUM('0602011_B:0602142_B'!P44 ) -> 0 | Q44: =SUM('0602011_B:0602142_B'!Q44 ) -> 0 | R44: =SUM('0602011_B:0602142_B'!R44 ) -> 0 | S44: =SUM('0602011_B:0602142_B'!S44 ) -> 0 | T44: =SUM('0602011_B:0602142_B'!T44 ) -> 0 | U44: =SUM('0602011_B:0602142_B'!U44 ) -> 0 | V44: =SUM('0602011_B:0602142_B'!V44 ) -> 0 | W44: =SUM('0602011_B:0602142_B'!W44 ) -> 0 | X44: =SUM('0602011_B:0602142_B'!X44 ) -> 0 | Y44: =SUM('0602011_B:0602142_B'!Y44 ) -> 0 | Z44: =SUM('0602011_B:0602142_B'!Z44 ) -> 0 | AA44: =SUM('0602011_B:0602142_B'!AA44 ) -> 0 | AB44: =SUM('0602011_B:0602142_B'!AB44 ) -> 0 | AC44: 0 | AD44: 0
D45: W | E45: =SUM('0602011_B:0602142_B'!E45 ) -> 0 | F45: =SUM('0602011_B:0602142_B'!F45 ) -> 0 | G45: =SUM('0602011_B:0602142_B'!G45 ) -> 0 | H45: =SUM('0602011_B:0602142_B'!H45 ) -> 0 | I45: =SUM('0602011_B:0602142_B'!I45 ) -> 0 | J45: =SUM('0602011_B:0602142_B'!J45 ) -> 0 | K45: =SUM('0602011_B:0602142_B'!K45 ) -> 0 | L45: =SUM('0602011_B:0602142_B'!L45 ) -> 0 | M45: =SUM('0602011_B:0602142_B'!M45 ) -> 0 | N45: =SUM('0602011_B:0602142_B'!N45 ) -> 0 | O45: =SUM('0602011_B:0602142_B'!O45 ) -> 0 | P45: =SUM('0602011_B:0602142_B'!P45 ) -> 0 | Q45: =SUM('0602011_B:0602142_B'!Q45 ) -> 0 | R45: =SUM('0602011_B:0602142_B'!R45 ) -> 0 | S45: =SUM('0602011_B:0602142_B'!S45 ) -> 0 | T45: =SUM('0602011_B:0602142_B'!T45 ) -> 0 | U45: =SUM('0602011_B:0602142_B'!U45 ) -> 0 | V45: =SUM('0602011_B:0602142_B'!V45 ) -> 0 | W45: =SUM('0602011_B:0602142_B'!W45 ) -> 0 | X45: =SUM('0602011_B:0602142_B'!X45 ) -> 0 | Y45: =SUM('0602011_B:0602142_B'!Y45 ) -> 0 | Z45: =SUM('0602011_B:0602142_B'!Z45 ) -> 0 | AA45: =SUM('0602011_B:0602142_B'!AA45 ) -> 0 | AB45: =SUM('0602011_B:0602142_B'!AB45 ) -> 0 | AC45: 0 | AD45: 0
D46: Razem | E46: =E44+E45 -> 0 | F46: =F44+F45 -> 0 | G46: 0 | H46: 0 | I46: 0 | J46: 0 | K46: 0 | L46: 0 | M46: 0 | N46: 0 | O46: 0 | P46: 0 | Q46: 0 | R46: 0 | S46: 0 | T46: 0 | U46: =U44+U45 -> 0 | V46: =V44+V45 -> 0 | W46: 0 | X46: 0 | Y46: 0 | Z46: 0 | AA46: 0 | AB46: 0 | AC46: 0 | AD46: 0
